{"text_format":"1","workbook":"xlsx","n_sheets":6,"sheets":["Standard Equipment Workbook","Equipment Options","Measure Totals","EquipOpt Lookups","Active Measures","Changelog"],"not_rendered":{"charts":0,"images":1,"macros":1,"external_links":0,"defined_names":49,"comments":1,"pivot_tables":0},"unopened":[],"bounds":{"document_bytes":16777216,"sheet_cells":100000,"rows_first":2000,"rows_last":500,"rows_between":2000,"halvings":0,"cell_chars":16384,"cell_head_chars":4096},"cells_cut":0,"cells_raw":0,"read":"whole","date_system":"1900"}

{"sheet":"Standard Equipment Workbook","index":0,"n_rows":43,"n_cols":30,"rows_kept":43,"cut":false,"hidden":false,"merged":[[32,6,32,14],[32,1,32,5],[32,27,32,33],[34,27,34,33],[34,18,34,26],[33,18,33,26],[32,18,32,26],[21,2,21,33],[16,3,16,33],[17,2,17,33],[22,2,22,33],[18,2,18,33],[19,2,19,33],[20,3,20,33],[23,1,23,33],[30,21,30,28],[30,29,30,33],[25,1,25,33],[27,1,27,33],[28,1,28,6],[29,1,29,6],[29,7,29,19],[24,1,24,24],[24,26,24,33],[28,7,28,19],[28,24,28,33],[29,27,29,33],[30,5,30,14],[13,2,13,33],[6,10,6,11],[15,2,15,33],[7,1,7,33],[9,1,9,33],[11,1,11,33],[10,1,10,33],[6,8,6,9],[14,3,14,33],[6,16,6,18],[6,22,6,27],[42,28,42,29],[36,1,36,33],[39,1,39,14],[33,6,33,14],[41,20,41,26],[41,27,41,33],[41,1,41,19],[39,27,39,33],[37,1,38,33],[39,15,39,26],[33,1,33,5],[34,1,34,5],[33,27,33,33],[34,6,34,14]]}
[]
[null,"Standard Equipment"]
[null,"New Buildings l Incentive Application l Form 520S"]
[]
[]
[]
[null,"For Program Use Only",null,null,null,null,null,null,"OM:",null,null,null,"Project ID:",null,null,null,null,null,null,"PT ID:",null,null,null,null,null,null,null,null,null,"v2025.1"]
[null,"CLEAResult is a Program Management Contractor (PMC) for Energy Trust of Oregon, Inc."]
[]
[null,"OVERVIEW AND ELIGIBILITY"]
[null,"A signed copy of the Form 510A: Project Enrollment Application must accompany or precede this Incentive Application, and only those projects approved for enrollment by the New Buildings program (Program) can apply for incentive funding. This Incentive Application must be submitted to the Program along with all required documentation. Any equipment which, either separately or as part of a project, has or will receive an incentive from any other Energy Trust offering is ineligible."]
[null,"STEPS TO PARTICIPATE"]
[]
[null,"1. ","Successfully enroll your project as described in the Project Enrollment Application."]
[null,null,null,"» Electric customers of Portland General Electric or Pacific Power can apply for incentives for qualifying electric equipment, and natural gas customers (on qualifying rate schedules) of NW Natural, Cascade Natural Gas or Avista can apply for incentives for qualifying natural gas equipment. "]
[null,"2. ","Complete this Incentive Application and submit it to the Program, along with:"]
[null,null,null,"» Product data sheets or other documentation demonstrating equipment compliance"]
[null,"3. ","Following its review of the application, Energy Trust will notify Project Owner via email of its decision. If the application is approved for an incentive reservation, you will receive a written notice. The incentive reservation notice will inform Project Owner of the estimated incentive and incentive reservation period (i.e. the deadline to install the measures and submit all required completion documentation)."]
[null,"4. ","Install the energy efficient equipment."]
[null,"5. ","To request payment, submit the following to the Program, before the established incentive reservation deadline, for verification:"]
[null,null,null,"» Complete, signed Form 540PR: Payment Request \n» Revised version of this Incentive Application, required if installed measures differ from initial submittal\n» Product data sheets or other documentation demonstrating equipment compliance\n» Payment documentation (suppliers or contractors can send copies of the invoices directly to the Program)\n» Project Owner's current W-9 (if not previously submitted)"]
[null,null,"If Project Owner applies for additional installed  incentives using other Energy Trust tools, workbooks, or forms, the Program will combine all approved installed  incentives into one payment and only one signed Payment Request is required."]
[null,"6. ","A site verification visit may be required by the Program prior to final payment."]
[null,"INCENTIVE CALCULATION"]
[null,"Based on the equipment you have selected in this workbook, your incentive is estimated at:",null,null,null,null,null,null,null,null,null,null,null,null,null,null,null,null,null,null,null,null,null,null,null,null,{"$f":"'Equipment Options'!J226","v":0}]
[null,"No incentives are reserved unless an incentive reservation is issued in response to this application. Reserved amounts are estimates only and the final amount may vary depending on upon actual qualifying equipment installed and operating as verified by the Program. Incentives are subject to Program per-project installation incentive caps."]
[]
[null,"PROJECT INFORMATION"]
[null,"Project Owner Name",null,null,null,null,null,null,null,null,null,null,null,null,null,null,null,null,null,null,null,"Company"]
[null,"Building/Project Name",null,null,null,null,null,null,null,null,null,null,null,null,null,null,null,null,null,null,null,"Project ID (if known)"]
[null,"Permit Date",null,null,null,null,null,null,null,null,null,null,null,null,null,null,null,null,null,null,null,"Construction \nCompletion Date"]
[]
[null,"Electric Utility:",null,null,null,null,"Select Electric Utility",null,null,null,null,null,null,null,null,null,null,null,"Gas Utility:",null,null,null,null,null,null,null,null,"Select Gas Utility"]
[null,"Heating Fuel:",null,null,null,null,"Select Type",null,null,null,null,null,null,null,null,null,null,null,"Domestic Hot Water (DHW) Fuel:",null,null,null,null,null,null,null,null,"Select Type"]
[null,"Building Type:",null,null,null,null,"Select Building Type",null,null,null,null,null,null,null,null,null,null,null,"Building Code Year:",null,null,null,null,null,null,null,null,"Select Code Year"]
[]
[null,"SUBMITTAL"]
[null,"By signing (including typing or printing) my name below, I represent to Energy Trust that (i) I have completed this application completely, truthfully and accurately to the best of my knowledge, (ii) I have read, understand and agree that the terms and conditions contained in this Incentive Application are in addition to, and governed by, Project Owner’s Project Enrollment Application agreement with Energy Trust for the identified project; (iii) I am authorized to enter into this agreement on behalf of the named Project Owner; and (iv) all of the information in the submitted Project Enrollment Application agreement remains true and correct as of the date of this submission. \n\nSubmitted By: (Must be an authorized representative of Project Owner)\n\n"]
[]
[]
[null,"Type or Print Name Here",null,null,null,null,null,null,null,null,null,null,null,null,null,null,null,null,"Title",null,null,null,null,null,null,null,null,"Date"]
[]
[null,"Firm name",null,null,null,null,null,null,null,null,null,null,null,null,null,null,null,null,null,null,null,null,"Phone",null,null,null,null,null,"Email"]

{"sheet":"Equipment Options","index":1,"n_rows":226,"n_cols":13,"rows_kept":226,"cut":false,"hidden":false,"merged":[[60,3,61,3],[51,1,57,1],[51,2,57,2],[58,1,59,1],[192,3,193,3],[156,3,158,3],[159,3,161,3],[162,3,164,3],[151,1,153,1],[151,2,153,2],[151,3,153,3],[154,3,155,3],[144,2,146,2],[118,1,125,1],[118,2,125,2],[126,1,132,1],[221,1,223,1],[221,2,223,2],[156,1,164,1],[156,2,164,2],[169,1,173,1],[169,2,173,2],[175,1,190,1],[175,2,190,2],[165,1,166,1],[167,1,168,1],[196,1,199,1],[196,2,199,2],[191,1,195,1],[191,2,195,2],[202,1,214,1],[202,2,214,2],[126,2,132,2],[136,1,141,1],[136,2,141,2],[144,1,146,1],[15,1,23,1],[15,2,23,2],[37,1,38,1],[37,2,38,2],[30,1,32,1],[30,2,32,2],[33,1,35,1],[33,2,35,2],[26,1,29,1],[26,2,29,2],[12,1,14,1],[12,2,14,2],[2,1,2,11],[6,2,8,2],[6,1,8,1],[9,1,11,1],[9,2,11,2],[225,1,225,8],[39,2,40,2],[39,1,40,1],[48,3,50,3],[45,1,50,1],[45,2,50,2],[41,1,42,1],[41,2,42,2],[43,1,44,1],[43,2,44,2],[45,3,47,3],[71,2,72,2],[62,2,70,2],[62,1,70,1],[71,1,72,1],[89,2,90,2],[26,3,27,3],[28,3,29,3],[30,3,31,3],[133,1,134,1],[133,2,134,2],[73,2,87,2],[73,1,87,1],[89,1,90,1],[91,1,99,1],[91,2,99,2],[100,1,108,1],[100,2,108,2],[109,1,117,1],[109,2,117,2],[58,2,61,2],[58,3,59,3],[198,3,199,3],[147,1,149,1],[147,2,149,2],[215,1,220,1],[215,2,220,2],[154,1,155,1],[154,2,155,2]]}
[null,{"$f":"_xlfn.CONCAT(\"Project ID: \",ProjectID)","v":"Project ID: "},null,{"$f":"IFERROR(\n_xlfn.IFS(\nAND(OR(SelectedElectric=\"Pacific Power\",SelectedElectric=\"Portland General Electric\"),NOT(SelectedGas=\"None\"),NOT(SelectedGas=\"Select Gas Utility\")),\"Full Territory\",\nAND(OR(SelectedElectric=\"Pacific Power\",SelectedElectric=\"Portland General Electric\"),OR(SelectedGas=\"None\",SelectedGas=\"Select Gas Utility\")),\"Electric Only\",\nAND(OR(SelectedElectric=\"Other\",SelectedElectric=\"Select Electric Utility\"),NOT(SelectedGas=\"None\"),NOT(SelectedGas=\"Select Gas Utility\")),\"Gas Only\"\n),\"No Utilities Selected\")","v":"No Utilities Selected"},null,{"$f":"_xlfn.CONCAT(\"Electric Utility: \", SelectedElectric)","v":"Electric Utility: Select Electric Utility"},null,null,{"$f":"_xlfn.CONCAT(\"Heating: \", SelectedHeat)","v":"Heating: Select Type"}]
[null,{"$f":"_xlfn.CONCAT(\"Building Type: \", SelectedBldgType)","v":"Building Type: Select Building Type"},null,null,null,{"$f":"_xlfn.CONCAT(\"Gas Utility: \", SelectedGas)","v":"Gas Utility: Select Gas Utility"},null,null,{"$f":"_xlfn.CONCAT(\"DHW: \", SelectedDHW)","v":"DHW: Select Type"}]
[]
[null,"Equipment","Requirements","Specification","Participating Utility","Installation Setting","Incentive Basis","Incentive","Quantity","Total Incentive","Model Number","MAD ID","Product Code"]
[]
[null,"Multifamily Only Options"]
[null,"Bath Fan - Continuous single speed","• ENERGY STAR® Continuous Operating Bath Fans\n• Single speed fans ≤50 cfm exhaust rate","<10 cfm/W","Electric","Multifamily","each",15,0,{"$f":"SUM(H7*I7)","v":0},null,269,"BFSS5"]
[null,null,null,">=10 cfm/W, <15 cfm/W","Electric","Multifamily","each",25,0,{"$f":"SUM(H8*I8)","v":0},null,269,"BFSS10"]
[null,null,null,">=15 cfm/W","Electric","Multifamily","each",30,0,0,null,269,"BFSS15"]
[null,"Bath Fan - Continuous two-speed, less than 90 cfm","• ENERGY STAR® Continuous Operating Bath Fans\n• Two-speed fans: ≤50 cfm unoccupied exhaust rate, AND ≤200 cfm occupied exhaust rate","<90 cfm, >=5 cfm/W, <10 cfm/W","Electric","Multifamily","each",15,0,0,null,269,"BFTSSM5"]
[null,null,null,"<90 cfm, >=10 cfm/W, <15 cfm/W","Electric","Multifamily","each",25,0,0,null,269,"BFTSSM10"]
[null,null,null,"<90 cfm,  >=15 cfm/W","Electric","Multifamily","each",30,0,0,null,269,"BFTSSM15"]
[null,"Bath Fan - Continuous two-speed, greater than 90 cfm","• ENERGY STAR® Continuous Operating Bath Fans\n• Two-speed fans: ≤50 cfm unoccupied exhaust rate AND ≤200 cfm occupied exhaust rate","Bath Fan - two-speed, >90 cfm, >=5 cfm/W, <10 cfm/W","Electric","Multifamily","each",15,0,0,null,269,"BFTSLG5"]
[null,null,null,"Bath Fan - two-speed, >90 cfm, >=5 cfm/W,  >=10 cfm/W, <15 cfm/W","Electric","Multifamily","each",25,0,0,null,269,"BFTSLG10"]
[null,null,null,"Bath Fan - two-speed, >90 cfm, >=5 cfm/W,  >=15 cfm/W","Electric","Multifamily","each",30,0,0,null,269,"BFTSLG15"]
[null,"Commercial Clothes Washer w/ Dryer","• ENERGY STAR®\n• Front-loading with hot water provided by a participating utility\n• Electric only includes sites using propane or other fuels for water heat or dryer fuel","Electric dryer, elctric water heating","Gas and Electric","Multifamily","each",400,0,{"$f":"SUM(H16*I16)","v":0},null,89,"COMWASHEDRYEMFFT"]
[null,null,null,"Gas dryer, electric water heating","Gas and Electric","Multifamily","each",350,0,0,null,89,"COMWASHEDRYGMFFT"]
[null,null,null,"Gas/other dryer, electric water heating","Electric only","Multifamily","each",150,0,0,null,89,"COMWASHEDRYGMFET"]
[null,null,null,"Gas dryer, electric water heating","Gas only","Multifamily","each",100,0,0,null,89,"COMWASHEDRYGMFGT"]
[null,null,null,"Electric dryer, gas water heating","Gas and Electric","Multifamily","each",400,0,0,null,89,"COMWASHGDRYEMFFT"]
[null,null,null,"Gas dryer, gas water heating","Gas and Electric","Multifamily","each",350,0,0,null,89,"COMWASHGDRYGMFFT"]
[null,null,null,"Electric dryer, gas/other water heating","Electric only","Multifamily","each",150,0,0,null,89,"COMWASHGDRYEMFET"]
[null,null,null,"Electric dryer, gas water heating","Gas only","Multifamily","each",100,0,{"$f":"SUM(H23*I23)","v":0},null,89,"COMWASHGDRYEMFGT"]
[null,null,null,"Gas dryer, gas water heating","Gas only","Multifamily","each",100,0,{"$f":"SUM(H24*I24)","v":0},null,89,"COMWASHGDRYGMFGT"]
[null,"Electric Clothes Dryer","• ENERGY STAR®\n• Dryer may not be purchased through retail channel","In-unit","Electric","Multifamily","each",50,0,0,null,231,"DRYERELE"]
[null,"Heat Pump Water Heater","• Stand-alone, in-unit HPHW in new multifamily buildings\n• Excludes central systems, contact the Program with eligibilty questions\n• Tier 3 minimum, per Advanced Water Heater Specifications v8.0\n• Verify at link: https://neea.org/resources/residential-unitary-hpwh-qualified-products-list",null,"Electric","Multifamily","each",800,0,0,null,52,"COMHPWHT3"]
[null,"Laundry Center","• ENERGY STAR®\n• Tub: 2.5 cubic feet or more\n• Water heating must be provided by participating utility\n• In-unit, Front-loading","Electric water heating","Gas and Electric","Multifamily","each",200,0,{"$f":"SUM(H27*I27)","v":0},null,152,"LCELE"]
[null,null,null,null,"Electric Only","Multifamily","each",200,0,{"$f":"SUM(H28*I28)","v":0},null,152,"LCELEEOT"]
[null,null,null,"Gas water heating","Gas and Electric","Multifamily","each",200,0,0,null,152,"LCGAS"]
[null,null,null,null,"Gas only","Multifamily","each",200,0,0,null,152,"LCGASGOT"]
[null,"Residential Clothes Washer","• ENERGY STAR\n• Residential front-loading clothes washers\n• At least 2.5 cubic feet tub capacity\n• Water heating must be provided by participating utility\n• Washer may not be puchased through retail channel","Electric water heating","Gas and Electric","Multifamily","each",100,0,0,null,152,"WASHELEFL"]
[null,null,null,null,"Electric only","Multifamily","each",100,0,0,null,152,"WASHELEFLEOT"]
[null,null,null,"Gas water heating","Gas and Electric","Multifamily","each",100,0,0,null,152,"WASHGASFL"]
[null,"Residential Refrigerator","• Residential ENERGY STAR refrigerator\n• 14.3 to 20.5 cubic feet\n• Top mounted freezer and no through the door ice","ENERGY STAR","Electric","Multifamily","each",70,0,0,null,112,"ESTARFRIDGE"]
[null,null,null,"ENERGY STAR Most Efficient (ESME)","Electric","Multifamily","each",70,0,0,null,112,"ESMEFRIDGE"]
[null,null,null,"ENERGY STAR Emerging Technology Award (ESETA)","Electric","Multifamily","each",70,0,0,null,112,"ESETAFRIDGE"]
[null,"HVAC & Domestic Hot Water Equipment"]
[null,"Condensing Furnace","• 95% AFUE or better\n• Must be primary heat source for the space and must have an ECM supply fan\n• Capacity less than 225,000 Btu/h",null,"Electric and gas","Any Except Multifamily","kBtu/hr",8.25,0,{"$f":"SUM(H38*I38)","v":0},null,270,"GASFURNCONN"]
[null,null,null,"Gas only territory","Gas","Any Except Multifamily","kBtu/hr",8.25,0,{"$f":"SUM(H39*I39)","v":0},null,270,"GASFURNCONNGO"]
[null,"Condensing Tankless Water Heater - ≥200 kBtu/h","• Must not provide building space heating\n• Integral tank volume <10 gal\n• Minimum 94.0% thermal efficiency\n• Installed equipment must be on the AHRI certified product list",null,"Gas","Any Except Multifamily","kBtu/hr",1.4,0,0,null,72,"CTWH200COMNONMF"]
[null,null,null,null,"Gas","Multifamily","kBtu/hr",1.4,0,0,null,72,"CTWH200COMMF"]
[null,"Condensing Tankless Water Heater - <200 kBtu/h","• Energy Factor (EF) ≥ 0.94\n• No external storage tanks\n• Installed equipment must be on the AHRI certified product list",null,"Gas","Any Except Multifamily","each",140,0,0,null,212,"CTWH199ALLCOM"]
[null,null,null,"Must be installed in stacked multifamily structures with central water heating","Gas","Multifamily","each",140,0,0,null,196,"MFTANKLESS199"]
[null,"Condensing Tank Water Heater","• Tank volume ≥ 10gal; Capacity > 75,000 Btu/h\n• Minimum 94% thermal efficiency rating\n• Use in multifamily is limited to shared central DHW systems",null,"Gas","Any Except Multifamily","kBtu/hr",3.5,0,0,null,21,"DHWCONDNMF"]
[null,null,null,null,"Gas","Multifamily","kBtu/hr",3.5,0,0,null,21,"DHWCONDTANKMF"]
[null,"Ductless Heatpump","• Minimum efficiency of 18 SEER or SEER2 and 10 HSPF or 9.5 HSPF2\n• Single compressor systems with up to two heads per dwelling unit","With baseboard heating","Electric","Commercial Dorm","ton",500,0,0,null,192,"DHPDORMBASE"]
[null,null,null,null,"Electric","Commercial Lodging","ton",500,0,0,null,192,"DHPLODBASE"]
[null,null,null,null,"Electric","Commercial Multifamily","ton",500,0,0,null,192,"DHPMFBASE"]
[null,null,null,"Without baseboard heating","Electric","Commercial Dorm","ton",500,0,{"$f":"SUM(H49*I49)","v":0},null,192,"DHPDORMNOBASE"]
[null,null,null,null,"Electric","Commercial Lodging","ton",500,0,0,null,192,"DHPLODNOBASE"]
[null,null,null,null,"Electric","Commercial Multifamily","ton",500,0,0,null,192,"DHPMFNOBASE"]
[null,"Commercial Heat Pump Water Heater","• Tank volume ≥ 40, < 120 gallons; Excludes central systems, contact the Program with eligibilty questions\n• Tier 3 minimum, per Advanced Water Heater Specifications v8.0\n• Verify at: https://neea.org/resources/residential-unitary-hpwh-qualified-products-list","Tier 1","Electric","Any Except Multifamily","each",800,0,0,null,254,"CHPWHT1"]
[null,null,null,"Tier 2","Electric","Any Except Multifamily","each",800,0,{"$f":"SUM(H53*I53)","v":0},null,254,"CHPWHT2"]
[null,null,null,"Tier 2, ducted","Electric","Any Except Multifamily","each",800,0,0,null,254,"CHPWHT2D"]
[null,null,null,"Tier 3","Electric","Any Except Multifamily","each",800,0,0,null,254,"CHPWHT3"]
[null,null,null,"Tier 3, ducted","Electric","Any Except Multifamily","each",800,0,0,null,254,"CHPWHT3D"]
[null,null,null,"Tier 4 & up","Electric","Any Except Multifamily","each",800,0,0,null,254,"CHPWHT4UP"]
[null,null,null,"Tier 4 & up, ducted","Electric","Any Except Multifamily","each",800,0,0,null,254,"CHPWHT4UPD"]
[null,"Commercial Infrared Radiant Heaters","• Low intensity discharge, natural gas-fired, non-condensing, positive pressure system","Modulating","Gas and Electric","Interiorspaces <20,000 sqft","kBtu/hr",5,0,{"$f":"SUM(H59*I59)","v":0},null,117,"RADHEATMOD"]
[null,null,null,null,"Gas only","Interiorspaces <20,000 sqft","kBtu/hr",5,0,{"$f":"SUM(H60*I60)","v":0},null,117,"RADHEATMODGO"]
[null,null,null,"Non-modulating","Gas and Electric","Interiorspaces <20,000 sqft","kBtu/hr",4,0,{"$f":"SUM(H61*I61)","v":0},null,117,"RADHEATNONMOD"]
[null,null,null,null,"Gas only","Interiorspaces <20,000 sqft","kBtu/hr",4,0,{"$f":"SUM(H62*I62)","v":0},null,117,"RADHEATNONMODGO"]
[null,"Commercial Clothes Washer w/ Dryer","• ENERGY STAR\n• Front-loading with hot water provided by a participating utility\n• Electric only includes sites using propane or other fuels for water heat or dryer fuel","Electric dryer, elctric water heating","Gas and Electric","Any Except Multifamily","each",400,0,0,null,89,"COMWASHEDRYEFT"]
[null,null,null,"Gas dryer, electric water heating","Gas and Electric","Any Except Multifamily","each",350,0,{"$f":"SUM(H64*I64)","v":0},null,89,"COMWASHEDRYGFT"]
[null,null,null,"Gas dryer, electric water heating","Gas only","Any Except Multifamily","each",100,0,0,null,89,"COMWASHEDRYGGT"]
[null,null,null,"Gas dryer, electric water heating","Electric only","Any Except Multifamily","each",150,0,{"$f":"SUM(H66*I66)","v":0},null,89,"COMWASHEDRYGET"]
[null,null,null,"Electric dryer, gas water heating","Gas and Electric","Any Except Multifamily","each",400,0,{"$f":"SUM(H67*I67)","v":0},null,89,"COMWASHGDRYEFT"]
[null,null,null,"Gas dryer, gas water heating","Gas and Electric","Any Except Multifamily","each",350,0,0,null,89,"COMWASHGDRYGFT"]
[null,null,null,"Electric dryer, gas/other water heating","Electric only","Any Except Multifamily","each",150,0,0,null,89,"COMWASHGDRYEET"]
[null,null,null,"Electric dryer, gas water heating","Gas only","Any Except Multifamily","each",100,0,0,null,89,"COMWASHGDRYEGT"]
[null,null,null,"Gas dryer, gas water heating","Gas only","Any Except Multifamily","each",100,0,{"$f":"SUM(H71*I71)","v":0},null,89,"COMWASHGDRYGGT"]
[null,"Commercial Air-Source Ductless Heat Pump","• Conditioned space served must have a combined floor area < 10,000 sq ft.\n• AHRI rated with SEER ≥ 20 and HSPF > 9.5","Heating Zone 1","Electric","Office, Retail, or Restaurant","ton",300,0,{"$f":"SUM(H72*I72)","v":0},null,256,"HPREPHZ1"]
[null,null,null,"Heating Zone 2 or 3","Electric","Office, Retail, or Restaurant","ton",300,0,{"$f":"SUM(H73*I73)","v":0},null,255,"HPREPHZ23"]
[null,"Ozone Laundry System","• Must be new and installed on either new or existing programmable commercial washing machine(s)\n• All existing/new washers at a facility must be reprogrammed and connected to work with the new ozone laundry system. Partial conversions are not eligible\n• Water heating for clothes washing must be provided by boilers, or gas or electric water heaters. Water heating must be provided by a participating utility\n• The ozone laundry system(s) must transfer ozone into the water with either the venturi injection or bubble diffusion process","<75 lbs capacity, gas water heating","Gas and Electric","Any Except Multifamily","per system",5000,0,0,null,80,"OZONSYS75GWHFULL"]
[null,null,null,"<75 lbs capacity, electric water heating","Electric","Any Except Multifamily","per system",5000,0,{"$f":"SUM(H75*I75)","v":0},null,80,"OZONSYS75EWH"]
[null,null,null,"<75 lbs capacity, gas water heating","Gas only","Any Except Multifamily","per system",5000,0,0,null,80,"OZONSYS75GWHGOT"]
[null,null,null,"75-125 lbs capacity, gas water heating","Gas and Electric","Any Except Multifamily","per system",7500,0,{"$f":"SUM(H77*I77)","v":0},null,80,"OZONSYS75125GWHFULL"]
[null,null,null,"75-125 lbs capacity, electric water heating","Electric","Any Except Multifamily","per system",7500,0,0,null,80,"OZONSYS75125EWH"]
[null,null,null,"75-125 lbs capacity","Gas only","Any Except Multifamily","per system",7500,0,0,null,80,"OZONSYS75125GWHGOT"]
[null,null,null,"126-400 lbs capacity, gas water heating","Gas and Electric","Any Except Multifamily","per system",15000,0,{"$f":"SUM(H80*I80)","v":0},null,80,"OZONSYS126400GWHFULL"]
[null,null,null,"126-400 lbs capacity, electric water heating","Electric","Any Except Multifamily","per system",15000,0,{"$f":"SUM(H81*I81)","v":0},null,80,"OZONSYS126400EWH"]
[null,null,null,"126-400 lbs capacity, gas water heating","Gas only","Any Except Multifamily","per system",15000,0,{"$f":"SUM(H82*I82)","v":0},null,80,"OZONSYS126400GWHGOT"]
[null,null,null,"401-600 lbs capacity, gas water heating","Gas and Electric","Any Except Multifamily","per system",25000,0,{"$f":"SUM(H83*I83)","v":0},null,80,"OZONSYS401600GWHFULL"]
[null,null,null,"401-600 lbs capacity, electric water heating","Electric","Any Except Multifamily","per system",25000,0,0,null,80,"OZONSYS401600EWH"]
[null,null,null,"401-600 lbs capacity","Gas only","Any Except Multifamily","per system",25000,0,{"$f":"SUM(H85*I85)","v":0},null,80,"OZONSYS401600GWHGOT"]
[null,null,null,">600 lbs capacity, gas water heating","Gas and Electric","Any Except Multifamily","per system",30000,0,{"$f":"SUM(H86*I86)","v":0},null,80,"OZONSYS600GWHFULL"]
[null,null,null,">600 lbs capacity, electric water heating","Electric","Any Except Multifamily","per system",30000,0,0,null,80,"OZONSYS600EWH"]
[null,null,null,">600 lbs capacity, gas water heating","Gas only","Any Except Multifamily","per system",30000,0,0,null,80,"OZONSYS600GWHGOT"]
[null,"Two-stage Gas Valve on Clothes Dryers in On-Premises Laundry","• Valves must be installed on commercial gas-fired dryers\n• Dryer ≤200 pounds of dry clothes capacity or ≤65 cubic feet of dryer drum volume\n• Valves can be installed on new or existing gas-fired dryers",null,"Gas","Any Except Multifamily","ton",700,0,{"$f":"SUM(H89*I89)","v":0},null,291,"2STAGASGVALVEOPLDRY"]
[null,"Server Closet Mini-Split A/C or Heat Pump","• Cooling efficiency greater than SEER 18 or SEER2 18\n• Cooling capacity no greater than 4.5 tons per unit\n• Must serve a space exclusively for servers, communications, or data equipment; Maximum of 2 units per space","Mini-Split A/C","Electric","Any (Excluding Multifamily Tenant Spaces)","ton cooling capacity",250,0,{"$f":"SUM(H90*I90)","v":0},null,3,"MINISPLITAC"]
[null,null,null,"Mini-Split Heat Pump","Electric","Any (Excluding Multifamily Tenant Spaces)","ton cooling capacity",250,0,0,null,3,"MINISPLITHP"]
[null,"Hydronic Heating Circulators with Speed Controls","• Variable speed ECMs only \n• Limited to in-line circulators with horizontal motors",">1/6 - ≤1/4 horsepower (>300 - ≤400 Max watts)","Electric","Any","kBtu/hr",250,0,0,null,247,"HHCECMSC1614HP"]
[null,null,null,">1/4 - ≤1/2 horsepower (>400 - ≤550 Max watts)","Electric","Any","kBtu/hr",250,0,0,null,247,"HHCECMSC025050HP"]
[null,null,null,">1/2 - ≤3/4 horsepower (>550 - ≤750 Max watts)","Electric","Any","kBtu/hr",250,0,0,null,247,"HHCECMSC050075HP"]
[null,null,null,">3/4 - ≤1.25 horsepower (>750 - ≤1000 Max watts)","Electric","Any","kBtu/hr",300,0,0,null,247,"HHCECMSC075125HP"]
[null,null,null,">1.25 - ≤1.75 horsepower (>1000 - ≤1300 Max watts)","Electric","Any","kBtu/hr",300,0,0,null,247,"HHCECMSC125175HP"]
[null,null,null,">1.75 - ≤2.5 horsepower (>1300 - ≤1750 Max watts)","Electric","Any","kBtu/hr",300,0,0,null,247,"HHCECMSC175250HP"]
[null,null,null,">2.5 - ≤3.5 horsepower (>1750 - ≤2350 Max watts)","Electric","Any","kBtu/hr",750,0,0,null,247,"HHCECMSC250350HP"]
[null,null,null,">3.5 - ≤4.5 horsepower (>2350 - ≤3100 Max watts)","Electric","Any","kBtu/hr",750,0,0,null,247,"HHCECMSC350450HP"]
[null,null,null,">4.5 - ≤5 horsepower (>3100 - ≤3700 Max watts)","Electric","Any","kBtu/hr",750,0,0,null,247,"HHCECMSC450500HP"]
[null,"VFD on Cooling Tower Pump","• VFD installed on a commercial pump with a nominal motor power up to 20 hp\n• Irrigation pumps are ineligible","1.5 HP (1.26 to 1.75 HP)","Electric","Any","each",250,0,{"$f":"SUM(H101*I101)","v":0},null,284,"CPUMPVSDCOOLT1P5HP"]
[null,null,null,"2 HP (1.76 to 2.50 HP)","Electric","Any","each",300,0,0,null,284,"CPUMPVSDCOOLT2HP"]
[null,null,null,"3 HP (2.51 to 3.50 HP)","Electric","Any","each",350,0,0,null,284,"CPUMPVSDCOOLT3HP"]
[null,null,null,"4 HP (3.51 to 4.50 HP)","Electric","Any","each",450,0,0,null,284,"CPUMPVSDCOOLT4HP"]
[null,null,null,"5 HP (4.51 to 6.00 HP)","Electric","Any","each",500,0,0,null,284,"CPUMPVSDCOOLT5HP"]
[null,null,null,"7.5 HP (6.01 to 8.00 HP)","Electric","Any","each",600,0,0,null,284,"CPUMPVSDCOOLT7P5HP"]
[null,null,null,"10 HP (8.01 to 12.50 HP)","Electric","Any","each",700,0,0,null,284,"CPUMPVSDCOOLT10HP"]
[null,null,null,"15 HP (12.51 to 17.50 HP)","Electric","Any","each",850,0,0,null,284,"CPUMPVSDCOOLT15HP"]
[null,null,null,"20 HP (17.51 to 22.50 HP)","Electric","Any","each",1000,0,0,null,284,"CPUMPVSDCOOLT20HP"]
[null,"VFD on Pressure Boost Pump","• VFD installed on a commercial pump with a nominal motor power up to 20 hp\n• Irrigation pumps are ineligible","1.5 HP (1.26 to 1.75 HP)","Electric","Any","each",250,0,{"$f":"SUM(H110*I110)","v":0},null,284,"CPUMPVSDPB1P5HP"]
[null,null,null,"2 HP (1.76 to 2.50 HP)","Electric","Any","each",250,0,0,null,284,"CPUMPVSDPB2HP"]
[null,null,null,"3 HP (2.51 to 3.50 HP)","Electric","Any","each",350,0,0,null,284,"CPUMPVSDPB3HP"]
[null,null,null,"4 HP (3.51 to 4.50 HP)","Electric","Any","each",450,0,0,null,284,"CPUMPVSDPB4HP"]
[null,null,null,"5 HP (4.51 to 6.00 HP)","Electric","Any","each",500,0,0,null,284,"CPUMPVSDPB5HP"]
[null,null,null,"7.5 HP (6.01 to 8.00 HP)","Electric","Any","each",600,0,0,null,284,"CPUMPVSDPB7P5HP"]
[null,null,null,"10 HP (8.01 to 12.50 HP)","Electric","Any","each",700,0,0,null,284,"CPUMPVSDPB10HP"]
[null,null,null,"15 HP (12.51 to 17.50 HP)","Electric","Any","each",850,0,{"$f":"SUM(H117*I117)","v":0},null,284,"CPUMPVSDPB15HP"]
[null,null,null,"20 HP (17.51 to 22.50 HP)","Electric","Any","each",1000,0,{"$f":"SUM(H118*I118)","v":0},null,284,"CPUMPVSDPB20HP"]
[null,"VFD on Heating Water Pump","• VFD installed on a commercial pump with a nominal motor power up to 20 hp\n• Irrigation pumps are ineligible","0.75 HP (0.50 to 0.75 HP)","Electric","Any","each",150,0,{"$f":"SUM(H119*I119)","v":0},null,284,"CPUMPVSDHEAT0P75"]
[null,null,null,"1 HP (0.76 to 1.25 HP)","Electric","Any","each",200,0,0,null,284,"CPUMPVSDHEAT1HP"]
[null,null,null,"1.5 HP (1.26 to 1.75 HP)","Electric","Any","each",250,0,0,null,284,"CPUMPVSDHEAT1P5HP"]
[null,null,null,"2 HP (1.76 to 2.50 HP)","Electric","Any","each",300,0,0,null,284,"CPUMPVSDHEAT2HP"]
[null,null,null,"3 HP (2.51 to 3.50 HP)","Electric","Any","each",350,0,0,null,284,"CPUMPVSDHEAT3HP"]
[null,null,null,"4 HP (3.51 to 4.50 HP)","Electric","Any","each",450,0,0,null,284,"CPUMPVSDHEAT4HP"]
[null,null,null,"5 HP (4.51 to 6.00 HP)","Electric","Any","each",500,0,0,null,284,"CPUMPVSDHEAT5HP"]
[null,null,null,"7.5 HP (6.01 to 8.00 HP)","Electric","Any","each",600,0,0,null,284,"CPUMPVSDHEAT7P5HP"]
[null,"VFD on Chilled Water Pump","• VFD installed on a commercial pump with a nominal motor power up to 20 hp\n• Irrigation pumps are ineligible","0.75 HP (0.50 to 0.75 HP)","Electric","Any","each",150,0,{"$f":"SUM(H127*I127)","v":0},null,284,"CPUMPVSDCOOL0P75HP"]
[null,null,null,"1 HP (0.76 to 1.25 HP)","Electric","Any","each",200,0,0,null,284,"CPUMPVSDCOOL1HP"]
[null,null,null,"1.5 HP (1.26 to 1.75 HP)","Electric","Any","each",250,0,0,null,284,"CPUMPVSDCOOL1P5HP"]
[null,null,null,"2 HP (1.76 to 2.50 HP)","Electric","Any","each",300,0,0,null,284,"CPUMPVSDCOOL2HP"]
[null,null,null,"3 HP (2.51 to 3.50 HP)","Electric","Any","each",350,0,0,null,284,"CPUMPVSDCOOL3HP"]
[null,null,null,"4 HP (3.51 to 4.50 HP)","Electric","Any","each",450,0,0,null,284,"CPUMPVSDCOOL4HP"]
[null,null,null,"5 HP (4.51 to 6.00 HP)","Electric","Any","each",500,0,0,null,284,"CPUMPVSDCOOL5HP"]
[null,"Forced Circulation Generator Block Heater","• Must be installed by manufacturer-certified installer","1.1 to 1.5 kW","Electric","Any","each",320,0,{"$f":"SUM(H134*I134)","v":0},null,190,"GENHTR1115"]
[null,null,null,"1.6 to 2.5 kW","Electric","Any","each",320,0,{"$f":"SUM(H135*I135)","v":0},null,190,"GENHTR1625"]
[null,"Food Service Options"]
[null,"Dishwashers","• ENERGY STAR® v 3.0\n• Flight type dishwashers do not qualify","Under Counter - Low Temp","Electric","Any","each",750,0,0,null,35,"DWUCLTEMP"]
[null,null,null,"Under Counter - High Temp","Electric","Any","each",750,0,0,null,35,"DWUCHTEMP"]
[null,null,null,"Stationary Single Tank Door - High Temp","Electric","Any","each",900,0,0,null,35,"DWSTDHTEMP"]
[null,null,null,"Single Tank Conveyor - High Temp","Electric","Any","each",900,0,0,null,35,"DWSTCONHTEMP"]
[null,null,null,"Multiple Tank Conveyor - High Temp","Electric","Any","each",900,0,0,null,35,"DWMTCONHTEMP"]
[null,null,null,"Pot, Pan and Utensil (PPU)","Electric","Any","each",1200,0,0,null,35,"DWPPUHTEMP"]
[null,"Electric Convection Oven","• ENERGY STAR® v 3.0","Full-Size ","Electric","Any","each",1000,0,{"$f":"SUM(H143*I143)","v":0},null,101,"ELECONVOVES3FULL"]
[null,"Gas Convection Oven","• ENERGY STAR® v 3.0","Full-Size ","Gas","Any","each",500,0,{"$f":"SUM(H144*I144)","v":0},null,101,"GASCONOVENES3FULL"]
[null,"Electric Combination Oven","• ENERGY STAR v 3.0","5-14 pan capacity","Electric","Any","each",1000,0,{"$f":"SUM(H145*I145)","v":0},null,101,"COMBOOVES3514PANELE"]
[null,null,null,"15-28 pan capacity","Electric","Any","each",600,0,{"$f":"SUM(H146*I146)","v":0},null,101,"COMBOOVES31528PANELE"]
[null,null,null,"29-40 pan capacity","Electric","Any","each",3000,0,{"$f":"SUM(H147*I147)","v":0},null,101,"COMBOOVES32940PANELE"]
[null,"Gas Combination Oven","• ENERGY STAR v 3.0","5-14 pan capacity","Electric","Any","each",500,0,{"$f":"SUM(H148*I148)","v":0},null,101,"COMBOOVES3514PANGAS"]
[null,null,null,"15-28 pan capacity","Electric","Any","each",500,0,{"$f":"SUM(H149*I149)","v":0},null,101,"COMBOOVES31528PANGAS"]
[null,null,null,"29-40 pan capacity","Electric","Any","each",500,0,{"$f":"SUM(H150*I150)","v":0},null,101,"COMBOOVES32940PANGAS"]
[null,"Electric Hot Food Holding Cabinet, Half Size","• ENERGY STAR\n• Must have interior volume less than 13 cubic feet",null,"Electric","Any","each",150,0,0,null,101,"HOTCABINETHALF"]
[null,"Double Rack Oven","• ENERGY STAR® v 3.0\n• Double accomodates two standard full-size sheet pans measuring 18 x 26 x 1 inch",null,"Gas and Electric","Any","each",900,0,0,null,101,"RACKOVENDOUBGAS"]
[null,null,null,null,"Electric only","Any","each",600,0,0,null,101,"RACKOVENDOUBGEOT"]
[null,null,null,null,"Gas only","Any","each",900,0,0,null,101,"RACKOVENDOUBGOT"]
[null,"Griddles","• Single Sided",null,"Electric","Any","each",1000,0,{"$f":"SUM(H155*I155)","v":0},null,101,"ELECGRIDSING"]
[null,null,null,null,"Gas","Any","each",1000,0,0,null,101,"GASGRIDSING"]
[null,"Gas-fired Automatic Conveyor Broiler - Continuous Two Speed, > 90cfm","• Automatic conveyor with catalyst\n• Input rate less than 80 kBtu/h OR dual stage OR modulating gas valve with a capability of throttling the input rate below 80 kBtu/h","under 20\"","Gas and Electric","Any","each",2500,0,0,null,101,"BROILER20FULL"]
[null,null,null,null,"Electric only","Any","each",2500,0,0,null,101,"BROILER20EOT"]
[null,null,null,null,"Gas only","Any","each",2500,0,0,null,101,"BROILER20GOT"]
[null,null,null,"20-26\"","Gas and Electric","Any","each",3000,0,0,null,101,"BROILER2026FULL"]
[null,null,null,null,"Electric only","Any","each",3000,0,0,null,101,"BROILER2026EOT"]
[null,null,null,null,"Gas only","Any","each",3000,0,0,null,101,"BROILER2026GOT"]
[null,null,null,"over 26\"","Gas and Electric","Any","each",3500,0,0,null,101,"BROILER26FULL"]
[null,null,null,null,"Electric only","Any","each",3500,0,0,null,101,"BROILER26EOT"]
[null,null,null,null,"Gas only","Any","each",3500,0,0,null,101,"BROILER26GOT"]
[null,"High Efficiency Electric Fryer","• ≥ 85% efficiency\n• Idle Energy Rate ≤ 700 watts","Standard or Split Vat","Electric","Any","each",800,0,0,null,272,"HEELECFRYERSTAN"]
[null,null,"• ≥ 88% efficiency\n• Idle Energy Rate ≤ 1,000 watts","Large Vat","Electric","Any","each",1000,0,0,null,272,"HEELECFRYERLARG"]
[null,"High Efficiency Gas Fryer","• ≥ 54% efficiency\n• Idle Energy Rate ≤ 8,000 BTU/hr","Standard Vat","Gas","Any","each",1500,0,0,null,272,"HEGASFRYERSTAN"]
[null,null,"• ≥ 56% efficiency\n• Idle Energy Rate ≤ 10,000 BTU/hr","Large Vat","Gas","Any","each",2000,0,0,null,272,"HEGASFRYERLARG"]
[null,"Ice Maker","• ENERGY STAR v 3.0\n• Must be ≤4,000 lb/day","Batch SCU, >200 lb/day","Electric","Any","each",180,0,0,null,90,"ICESCUBATCH"]
[null,null,null,"Batch RCU, >988 lb/day","Electric","Any","each",400,0,0,null,90,"ICERCUBATCH"]
[null,null,null,"Batch IMH, >1,500 lb/day","Electric","Any","each",400,0,0,null,90,"ICEIMHBATCH"]
[null,null,null,"Continuous RCU, >800 lb/day","Electric","Any","each",400,0,0,null,90,"ICERCUCONT"]
[null,null,null,"Continuous IMH, >820 lb/day","Electric","Any","each",400,0,0,null,90,"ICEIMHCONT"]
[null,"On-Demand Overwrapper","• Must use either a mechanical or optical control system",null,"Electric","Any","each",350,0,0,null,230,"OVERWRAPPER"]
[null,"Reach-In Glass Door Freezer","• ENERGY STAR\n• Must be packaged and self-contained w/built-in compressor for cooling \n• Must have glass doors; Used or rebuilt equipment is not eligible","Electric Resistance Heat, 0 < V < 15","Electric","Any","each",40,0,0,null,186,"FREZRCHVRT015ELE"]
[null,null,null,"Electric Resistance Heat, 15 ≤ V < 30","Electric","Any","each",80,0,0,null,186,"FREZRCHVRT1530ELE"]
[null,null,null,"Electric Resistance Heat, 30 ≤ V < 50","Electric","Any","each",190,0,0,null,186,"FREZRCHVRT3050ELE"]
[null,null,null,"Electric Resistance Heat, 50 ≤ V","Electric","Any","each",325,0,0,null,186,"FREZRCHVRT50ELE"]
[null,null,null,"Heat Pump, 0 < V < 15","Electric","Any","each",40,0,0,null,186,"FREZRCHVRT015HP"]
[null,null,null,"Heat Pump, 15 ≤ V < 30","Electric","Any","each",80,0,0,null,186,"FREZRCHVRT1530HP"]
[null,null,null,"Heat Pump, 30 ≤ V < 50","Electric","Any","each",190,0,0,null,186,"FREZRCHVRT3050HP"]
[null,null,null,"Heat Pump, 50 ≤ V","Electric","Any","each",325,0,0,null,186,"FREZRCHVRT50HP"]
[null,null,null,"Natural Gas, 0 < V < 15","Gas","Any","each",40,0,0,null,186,"FREZRCHVRT015GAS"]
[null,null,null,"Natural Gas, 15 ≤ V < 30","Gas","Any","each",80,0,0,null,186,"FREZRCHVRT1530GAS"]
[null,null,null,"Natural Gas, 30 ≤ V < 50","Gas","Any","each",190,0,0,null,186,"FREZRCHVRT3050GAS"]
[null,null,null,"Natural Gas, 50 ≤ V","Gas","Any","each",325,0,0,null,186,"FREZRCHVRT50GAS"]
[null,null,null,"Natural Gas, 0 < V < 15","Electric only","Any","each",40,0,0,null,186,"FREZRCHVRT015GEOT"]
[null,null,null,"Natural Gas, 15 ≤ V < 30","Electric only","Any","each",80,0,0,null,186,"FREZRCHVRT1530GEOT"]
[null,null,null,"Natural Gas, 30 ≤ V < 50","Electric only","Any","each",190,0,0,null,186,"FREZRCHVRT3050GEOT"]
[null,null,null,"Natural Gas, 50 ≤ V","Electric only","Any","each",325,0,0,null,186,"FREZRCHVRT50GEOT"]
[null,"Reach-In Glass Door Refrigerator","• ENERGY STAR\n• Must be packaged and self-contained w/built-in compressor for cooling\n• Must have glass doors; Used or rebuilt equipment is not eligible","Electric Resistance Heat, 0 < V < 15","Electric","Any","each",20,0,0,null,186,"FRIGRCHVRT015ELE"]
[null,null,null,"Gas Heat","Electric only","any","each",20,0,0,null,186]
[null,null,null,null,"Gas and Electric","Any","each",20,0,0,null,186,"FRIGRCHVRT015GAS"]
[null,null,null,"Heat Pump, 0 < V < 15","Electric","Any","each",20,0,0,null,186,"FRIGRCHVRT015HP"]
[null,null,null,"Natural Gas, 0 < V < 15","Electric only","Any","each",20,0,0,null,186,"FRIGRCHVRT015GEOT"]
[null,"High-Speed Doors for Walk-in Freezers","• Walk-in doorway must be at least 5 ft wide\n• Spaces set above 50°F are not eligible\n• Freezers >3,000 ft2 are not eligible\n• Refigerated warehouses and distribution centers are not eligible\n• New high-speed doors equipped with or without air curtains and/or door heaters are eligible\n• Electric only measures may be used for buildings heated with propane or other bulk fuels","Electric Heating","Electric","Any","each",14000,0,0,null,301,"HISPDDRWLKINFRZEH"]
[null,null,null,"Heat Pump Heating","Gas or Electric","Any","each",14000,0,0,null,301,"HISPDDRWLKINFRZHP"]
[null,null,null,"Gas Heating","Gas","Any","each",14000,0,0,null,301,"HISPDDRWLKINFRZGH"]
[null,null,null,null,"Electric Only","Any","each",14000,0,0,null,301,"HISPDDRWLKINFRZGHET"]
[null,"High-Speed Doors for Walk-in Coolers","• Walk-in doorway must be at least 5 ft wide\n• Spaces set above 50°F are not eligible \n• Coolers >3,000 ft2 are not eligible\n• Refigerated warehouses and distribution centers are not eligible",null,"Gas or Electric","Any","each",11000,0,0,null,301,"HISPDDRWLKINCOOLR"]
[null,"Advanced Controls for Walk-in Coolers/Freezers","• Controller must be installed on a single walk-in cooler/freezer or a single condensing unit connected to multiple daisy-chained evaporator units of the same walk-in type\n• X-Line condensing units are not eligible\n• Controls installed on walk-in units in industrial warehouses are not eligible\n• Controls installed in units >3,000 ft2 are not eligible\n• Controls installed on reach-in refrigerated cases, multiplex, or rack refrigeration systems are not eligible\n• Qualifying control devices may include the following (other controls would require program verification to qualify):\n   • KE2 Therm Evaporator Efficiency Controller\n   • intelliGen Refrigeration Controller\n   • EcoNet Enabled Unit Coolers",null,"Electric","Any","each",750,0,0,null,300,"COOLFREZRAC"]
[null,"Refrigerated Cases with Doors","• ENERGY STAR\n• Doors must be transparent\n• Self-contained eligible with has heating in electric only territories\n• Refurbished cases are not eligible","Remote condensing, vertical med temp, electric","Electric","Any","each",150,0,{"$f":"SUM(H203*I203)","v":0},null,201,"COOLCASEDRRCVTMEDELE"]
[null,null,null,"Remote condensing, vertical med temp, gas","Electric only","Any","each",150,0,0,null,201,"COOLCASEDRRCVTMEDEOT"]
[null,null,null,"Remote condensing, vertical med temp, gas","Gas","Any","each",150,0,0,null,201,"COOLCASEDRRCVTMEDGAS"]
[null,null,null,"Remote condensing, vertical med temp, gas","Gas only","Any","each",150,0,0,null,201,"COOLCASEDRRCVTMEDGOT"]
[null,null,null,"Remote condensing, horizontal med temp, electric","Electric","Any","each",150,0,0,null,201,"COOLCASEDRRCHZMEDELE"]
[null,null,null,"Remote condensing, horizontal med temp, gas","Electric only","Any","each",150,0,0,null,201,"COOLCASEDRRCHZMEDEOT"]
[null,null,null,"Remote condensing, horizontal med temp, gas","Gas","Any","each",150,0,0,null,201,"COOLCASEDRRCHZMEDGAS"]
[null,null,null,"Remote condensing, horizontal med temp, gas","Gas only","Any","each",150,0,0,null,201,"COOLCASEDRRCHZMEDGOT"]
[null,null,null,"Remote condensing, horizontal low temp, electric","Electric","Any","each",150,0,0,null,201,"COOLCASEDRRCHZLOWELE"]
[null,null,null,"Remote condensing, horizontal low temp, gas","Electric only","Any","each",150,0,0,null,201,"COOLCASEDRRCHZLOWEOT"]
[null,null,null,"Remote condensing, horizontal low temp, gas","Gas","Any","each",150,0,0,null,201,"COOLCASEDRRCHZLOWGAS"]
[null,null,null,"Remote condensing, horizontal low temp, gas","Gas only","Any","each",150,0,0,null,201,"COOLCASEDRRCHZLOWGOT"]
[null,null,null,"Self-Contained, horizontal low temp","Electric","Any","each",150,0,0,null,201,"COOLCASEDRSCHZLOWEOT"]
[null,"Electric Steam Cooker","• ENERGY STAR","Boilerless, 3-4 Pans","Electric","Any except Schools","each",400,0,{"$f":"SUM(H216*I216)","v":0},null,101,"ELESTEAMCOOKBOIL3PNS"]
[null,null,null,"Boilerless, 5+ Pans ","Electric","Any except Schools","each",600,0,0,null,101,"ELESTEAMCOOKBOIL5PNS"]
[null,null,null,"Generator, 3+ Pans","Electric","Any except Schools","each",2000,0,0,null,101,"ELESTEAMCOOKGEN3PNS"]
[null,null,null,"Boilerless, 3-4 Pans - School","Electric","Schools","each",400,0,0,null,101,"ELESTEAMCOOKBOIL3PS"]
[null,null,null,"Boilerless, 5+ Pans - School","Electric","Schools","each",600,0,0,null,101,"ELESTEAMCOOKBOIL5PS"]
[null,null,null,"Generator, 3+ Pans - School","Electric","Schools","each",600,0,0,null,101,"ELESTEAMCOOKGEN3PS"]
[null,"Gas Steam Cooker","• ENERGY STAR","Boilerless, 3+ Pans","Gas","Any except Schools","each",1000,0,0,null,101,"GASSTEAMCOOKBOIL3PNS"]
[null,null,null,"Steam Generator, 3+ Pans","Gas","Any except Schools","each",1000,0,0,null,101,"GASSTEAMCOOKGEN3PNS"]
[null,null,null,"Boilerless, 3+ Pans","Gas","Schools","each",1000,0,0,null,101,"GASSTEAMCOOKBOIL3PS"]
[]
[null,"TOTAL REQUESTED INCENTIVE",null,null,null,null,null,null,null,{"$f":"SUM(J7:J225)","v":0}]

{"sheet":"Measure Totals","index":2,"n_rows":278,"n_cols":16,"rows_kept":278,"cut":false,"hidden":true,"merged":[]}
[null,"Measure Totals"]
[]
[]
[null,"Description","Product Code","Product Version ID","Incentive / unit","kWh / unit","Therms / unit","Ele allocation","Gas allocation","Quantity","Elec Savings","Elec Incentive","Gas Savings","Gas Incentive","Total Incentive","Incremental Cost"]
[null,"Commercial Pump VSD_Heating_New Pump_5 HP (4.51 to 6.00 HP)","CPUMPVSDHEAT5HP",15287,{"$f":"IFERROR(_xlfn.XLOOKUP($C5,ProductCode,DefaultIncentive,0,0),0)","v":500},{"$f":"IFERROR(_xlfn.XLOOKUP($C5,ProductCode,DefaultKwh,0,0),0)","v":1826.51},{"$f":"IFERROR(_xlfn.XLOOKUP($C5,ProductCode,DefaultTherms,0,0),0)","v":0},{"$f":"IFERROR((_xlfn.XLOOKUP($C5,ProductCode,AllocationElectric,0,0))/100,0)","v":1},{"$f":"IFERROR((_xlfn.XLOOKUP($C5,ProductCode,AllocationGas,0,0))/100,0)","v":0},{"$f":"IFERROR(SUMIFS('Equipment Options'!I:I,'Equipment Options'!M:M,$C5),\"\")","v":0},{"$f":"J5*F5","v":0},{"$f":"O5*H5","v":0},{"$f":"J5*G5","v":0},{"$f":"O5*I5","v":0},{"$f":"J5*E5","v":0},{"$f":"(_xlfn.XLOOKUP($C5,ProductCode,IncrementalCost,\"\",0))*J5","v":0}]
[null,"Comm Pump VSD_Cooling_New Pump_4 HP (3.51 to 4.50 HP)","CPUMPVSDCOOL4HP",15288,450,1438.37,0,1,0,{"$f":"IFERROR(SUMIFS('Equipment Options'!I:I,'Equipment Options'!M:M,$C6),\"\")","v":0},{"$f":"J6*F6","v":0},{"$f":"O6*H6","v":0},{"$f":"J6*G6","v":0},{"$f":"O6*I6","v":0},{"$f":"J6*E6","v":0},{"$f":"(_xlfn.XLOOKUP($C6,ProductCode,IncrementalCost,\"\",0))*J6","v":0}]
[null,"Comm Pump VSD_Cooling_New Pump_3 HP (2.51 to 3.50 HP)","CPUMPVSDCOOL3HP",15289,350,1078.78,0,1,0,{"$f":"IFERROR(SUMIFS('Equipment Options'!I:I,'Equipment Options'!M:M,$C7),\"\")","v":0},0,0,0,0,0,0]
[null,"Comm Pump VSD_Pressure Boost_New Pump_7.5 HP (6.01 to 8.00 HP)","CPUMPVSDPB7P5HP",15290,600,2088.5500000000002,0,1,0,{"$f":"IFERROR(SUMIFS('Equipment Options'!I:I,'Equipment Options'!M:M,$C8),\"\")","v":0},0,0,0,0,0,0]
[null,"Comm Pump VSD_Pressure Boost_New Pump_4 HP (3.51 to 4.50 HP)","CPUMPVSDPB4HP",15291,450,1113.8900000000001,0,1,0,{"$f":"IFERROR(SUMIFS('Equipment Options'!I:I,'Equipment Options'!M:M,$C9),\"\")","v":0},0,0,0,0,0,0]
[null,"Commercial Pump VSD_Heating_New Pump_0.75 HP (0.50 to 0.75 HP)","CPUMPVSDHEAT0P75",15292,150,273.98,0,1,0,{"$f":"IFERROR(SUMIFS('Equipment Options'!I:I,'Equipment Options'!M:M,$C10),\"\")","v":0},0,0,0,0,0,0]
[null,"Commercial Pump VSD_Heating_New Pump_4 HP (3.51 to 4.50 HP)","CPUMPVSDHEAT4HP",15293,450,1461.2,0,1,0,{"$f":"IFERROR(SUMIFS('Equipment Options'!I:I,'Equipment Options'!M:M,$C11),\"\")","v":0},0,0,0,0,0,0]
[null,"Comm Pump VSD_Cooling Tower_New Pump_5 HP (4.51 to 6.00 HP)","CPUMPVSDCOOLT5HP",15294,500,898.41,0,1,0,{"$f":"IFERROR(SUMIFS('Equipment Options'!I:I,'Equipment Options'!M:M,$C12),\"\")","v":0},0,0,0,0,0,0]
[null,"Comm Pump VSD_Pressure Boost_New Pump_15 HP (12.51 to 17.50 HP)","CPUMPVSDPB15HP",15295,850,4177.09,0,1,0,{"$f":"IFERROR(SUMIFS('Equipment Options'!I:I,'Equipment Options'!M:M,$C13),\"\")","v":0},0,0,0,0,0,0]
[null,"Comm Pump VSD_Pressure Boost_New Pump_3 HP (2.51 to 3.50 HP)","CPUMPVSDPB3HP",15296,350,835.42,0,1,0,{"$f":"IFERROR(SUMIFS('Equipment Options'!I:I,'Equipment Options'!M:M,$C14),\"\")","v":0},0,0,0,0,0,0]
[null,"Comm Pump VSD_Pressure Boost_New Pump_10 HP (8.01 to 12.50 HP)","CPUMPVSDPB10HP",15297,700,2784.73,0,1,0,{"$f":"IFERROR(SUMIFS('Equipment Options'!I:I,'Equipment Options'!M:M,$C15),\"\")","v":0},0,0,0,0,0,0]
[null,"Comm Pump VSD_Cooling Tower_New Pump_7.5 HP (6.01 to 8.00 HP)","CPUMPVSDCOOLT7P5HP",15298,600,1347.61,0,1,0,{"$f":"IFERROR(SUMIFS('Equipment Options'!I:I,'Equipment Options'!M:M,$C16),\"\")","v":0},0,0,0,0,0,0]
[null,"Commercial Pump VSD_Heating_New Pump_2 HP (1.76 to 2.50 HP)","CPUMPVSDHEAT2HP",15299,300,730.6,0,1,0,{"$f":"IFERROR(SUMIFS('Equipment Options'!I:I,'Equipment Options'!M:M,$C17),\"\")","v":0},0,0,0,0,0,0]
[null,"Comm Pump VSD_Cooling_New Pump_1 HP (0.76 to 1.25 HP)","CPUMPVSDCOOL1HP",15300,200,359.59,0,1,0,{"$f":"IFERROR(SUMIFS('Equipment Options'!I:I,'Equipment Options'!M:M,$C18),\"\")","v":0},0,0,0,0,0,0]
[null,"Comm Pump VSD_Cooling_New Pump_2 HP (1.76 to 2.50 HP)","CPUMPVSDCOOL2HP",15301,300,719.19,0,1,0,{"$f":"IFERROR(SUMIFS('Equipment Options'!I:I,'Equipment Options'!M:M,$C19),\"\")","v":0},0,0,0,0,0,0]
[null,"Comm Pump VSD_Pressure Boost_New Pump_2 HP (1.76 to 2.50 HP)","CPUMPVSDPB2HP",15303,300,556.95000000000005,0,1,0,{"$f":"IFERROR(SUMIFS('Equipment Options'!I:I,'Equipment Options'!M:M,$C20),\"\")","v":0},0,0,0,0,0,0]
[null,"Comm Pump VSD_Cooling Tower_New Pump_15 HP (12.51 to 17.50 HP)","CPUMPVSDCOOLT15HP",15304,850,2695.22,0,1,0,{"$f":"IFERROR(SUMIFS('Equipment Options'!I:I,'Equipment Options'!M:M,$C21),\"\")","v":0},0,0,0,0,0,0]
[null,"Comm Pump VSD_Pressure Boost_New Pump_20 HP (17.51 to 22.50 HP)","CPUMPVSDPB20HP",15305,1000,5569.46,0,1,0,{"$f":"IFERROR(SUMIFS('Equipment Options'!I:I,'Equipment Options'!M:M,$C22),\"\")","v":0},0,0,0,0,0,0]
[null,"Comm Pump VSD_Pressure Boost_New Pump_5 HP (4.51 to 6.00 HP)","CPUMPVSDPB5HP",15306,500,1392.36,0,1,0,{"$f":"IFERROR(SUMIFS('Equipment Options'!I:I,'Equipment Options'!M:M,$C23),\"\")","v":0},0,0,0,0,0,0]
[null,"Comm Pump VSD_Cooling_New Pump_0.75 HP (0.50 to 0.75 HP)","CPUMPVSDCOOL0P75HP",15307,150,269.69,0,1,0,{"$f":"IFERROR(SUMIFS('Equipment Options'!I:I,'Equipment Options'!M:M,$C24),\"\")","v":0},0,0,0,0,0,0]
[null,"Comm Pump VSD_Cooling_New Pump_1.5 HP (1.26 to 1.75 HP)","CPUMPVSDCOOL1P5HP",15308,250,539.39,0,1,0,{"$f":"IFERROR(SUMIFS('Equipment Options'!I:I,'Equipment Options'!M:M,$C25),\"\")","v":0},0,0,0,0,0,0]
[null,"Commercial Pump VSD_Heating_New Pump_7.5 HP (6.01 to 8.00 HP)","CPUMPVSDHEAT7P5HP",15309,600,2739.76,0,1,0,{"$f":"IFERROR(SUMIFS('Equipment Options'!I:I,'Equipment Options'!M:M,$C26),\"\")","v":0},0,0,0,0,0,0]
[null,"Comm Pump VSD_Cooling_New Pump_5 HP (4.51 to 6.00 HP)","CPUMPVSDCOOL5HP",15310,500,1797.97,0,1,0,{"$f":"IFERROR(SUMIFS('Equipment Options'!I:I,'Equipment Options'!M:M,$C27),\"\")","v":0},0,0,0,0,0,0]
[null,"Commercial Pump VSD_Heating_New Pump_3 HP (2.51 to 3.50 HP)","CPUMPVSDHEAT3HP",15311,350,1095.9000000000001,0,1,0,{"$f":"IFERROR(SUMIFS('Equipment Options'!I:I,'Equipment Options'!M:M,$C28),\"\")","v":0},0,0,0,0,0,0]
[null,"Commercial Pump VSD_Heating_New Pump_1.5 HP (1.26 to 1.75 HP)","CPUMPVSDHEAT1P5HP",15312,250,547.95000000000005,0,1,0,{"$f":"IFERROR(SUMIFS('Equipment Options'!I:I,'Equipment Options'!M:M,$C29),\"\")","v":0},0,0,0,0,0,0]
[null,"Commercial Pump VSD_Heating_New Pump_1 HP (0.76 to 1.25 HP)","CPUMPVSDHEAT1HP",15313,200,365.3,0,1,0,{"$f":"IFERROR(SUMIFS('Equipment Options'!I:I,'Equipment Options'!M:M,$C30),\"\")","v":0},0,0,0,0,0,0]
[null,"Comm Pump VSD_Pressure Boost_New Pump_1.5 HP (1.26 to 1.75 HP)","CPUMPVSDPB1P5HP",15314,250,417.71,0,1,0,{"$f":"IFERROR(SUMIFS('Equipment Options'!I:I,'Equipment Options'!M:M,$C31),\"\")","v":0},0,0,0,0,0,0]
[null,"Comm Pump VSD_Cooling Tower_New Pump_20 HP (17.51 to 22.50 HP)","CPUMPVSDCOOLT20HP",15315,1000,3593.63,0,1,0,{"$f":"IFERROR(SUMIFS('Equipment Options'!I:I,'Equipment Options'!M:M,$C32),\"\")","v":0},0,0,0,0,0,0]
[null,"Comm Pump VSD_Cooling Tower_New Pump_10 HP (8.01 to 12.50 HP)","CPUMPVSDCOOLT10HP",15316,700,1796.82,0,1,0,{"$f":"IFERROR(SUMIFS('Equipment Options'!I:I,'Equipment Options'!M:M,$C33),\"\")","v":0},0,0,0,0,0,0]
[null,"Comm Pump VSD_Cooling Tower_New Pump_4 HP (3.51 to 4.50 HP)","CPUMPVSDCOOLT4HP",15317,450,718.73,0,1,0,{"$f":"IFERROR(SUMIFS('Equipment Options'!I:I,'Equipment Options'!M:M,$C34),\"\")","v":0},0,0,0,0,0,0]
[null,"Comm Pump VSD_Cooling Tower_New Pump_3 HP (2.51 to 3.50 HP)","CPUMPVSDCOOLT3HP",15318,350,539.04,0,1,0,{"$f":"IFERROR(SUMIFS('Equipment Options'!I:I,'Equipment Options'!M:M,$C35),\"\")","v":0},0,0,0,0,0,0]
[null,"Comm Pump VSD_Cooling Tower_New Pump_2 HP (1.76 to 2.50 HP)","CPUMPVSDCOOLT2HP",15319,300,359.36,0,1,0,{"$f":"IFERROR(SUMIFS('Equipment Options'!I:I,'Equipment Options'!M:M,$C36),\"\")","v":0},0,0,0,0,0,0]
[null,"Comm Pump VSD_Cooling Tower_New Pump_1.5 HP (1.26 to 1.75 HP)","CPUMPVSDCOOLT1P5HP",15320,250,269.52,0,1,0,{"$f":"IFERROR(SUMIFS('Equipment Options'!I:I,'Equipment Options'!M:M,$C37),\"\")","v":0},0,0,0,0,0,0]
[null,"Multifamily 199 kBth/h Condensing Tankless water heater","MFTANKLESS199",15429,140,0,25.67,0,1,{"$f":"IFERROR(SUMIFS('Equipment Options'!I:I,'Equipment Options'!M:M,$C38),\"\")","v":0},0,0,0,0,0,0]
[null,"Lighting, Interior, 2019 Code Calc","LIN2019CC",16185,0,0,0,1,0,{"$f":"IFERROR(SUMIFS('Equipment Options'!I:I,'Equipment Options'!M:M,$C39),\"\")","v":0},0,0,0,0,0,0]
[null,"Server Closet/Telecom Room Mini-Split Air Conditioner","MINISPLITAC",17692,250,417.14,0,1,0,{"$f":"IFERROR(SUMIFS('Equipment Options'!I:I,'Equipment Options'!M:M,$C40),\"\")","v":0},0,0,0,0,0,0]
[null,"Server Closet/Telecom Room Mini-Split Heat Pumps","MINISPLITHP",17693,250,417.14,0,1,0,{"$f":"IFERROR(SUMIFS('Equipment Options'!I:I,'Equipment Options'!M:M,$C41),\"\")","v":0},0,0,0,0,0,0]
[null,"Multifamily Refrigerator","ESTARFRIDGE",17915,70,75.77,0,1,0,{"$f":"IFERROR(SUMIFS('Equipment Options'!I:I,'Equipment Options'!M:M,$C42),\"\")","v":0},0,0,0,0,0,0]
[null,"Energy Star Most Efficient (ESME) Multifamily Refrigerator","ESMEFRIDGE",17916,70,95.8,0,1,0,{"$f":"IFERROR(SUMIFS('Equipment Options'!I:I,'Equipment Options'!M:M,$C43),\"\")","v":0},0,0,0,0,0,0]
[null,"Ozone Laundry System 126-400 Lbs Capacity - Ele WH","OZONSYS126400EWH",17926,15000,271970.52,0,1,0,{"$f":"IFERROR(SUMIFS('Equipment Options'!I:I,'Equipment Options'!M:M,$C44),\"\")","v":0},0,0,0,0,0,0]
[null,"Ozone Laundry System 401-600 Lbs Capacity - Gas WH GOT","OZONSYS401600GWHGOT",17927,25000,0,22322.85,0,1,{"$f":"IFERROR(SUMIFS('Equipment Options'!I:I,'Equipment Options'!M:M,$C45),\"\")","v":0},0,0,0,0,0,0]
[null,"Ozone Laundry System 401-600 Lbs Capacity - Gas WH Full Terr","OZONSYS401600GWHFULL",17928,25000,5131.7700000000004,22322.85,0.01,0.99,{"$f":"IFERROR(SUMIFS('Equipment Options'!I:I,'Equipment Options'!M:M,$C46),\"\")","v":0},0,0,0,0,0,0]
[null,"Ozone Laundry System 401-600 Lbs Capacity - Ele WH","OZONSYS401600EWH",17929,25000,518039.09,0,1,0,{"$f":"IFERROR(SUMIFS('Equipment Options'!I:I,'Equipment Options'!M:M,$C47),\"\")","v":0},0,0,0,0,0,0]
[null,"Ozone Laundry System > 600 Lbs Capacity - Gas WH GOT","OZONSYS600GWHGOT",17930,30000,0,31251.99,0,1,{"$f":"IFERROR(SUMIFS('Equipment Options'!I:I,'Equipment Options'!M:M,$C48),\"\")","v":0},0,0,0,0,0,0]
[null,"Ozone Laundry System > 600 Lbs Capacity - Gas WH Full Terr","OZONSYS600GWHFULL",17931,30000,7184.48,31251.99,0.01,0.99,{"$f":"IFERROR(SUMIFS('Equipment Options'!I:I,'Equipment Options'!M:M,$C49),\"\")","v":0},0,0,0,0,0,0]
[null,"Ozone Laundry System > 600 Lbs Capacity - Ele WH","OZONSYS600EWH",17932,30000,725254.73,0,1,0,{"$f":"IFERROR(SUMIFS('Equipment Options'!I:I,'Equipment Options'!M:M,$C50),\"\")","v":0},0,0,0,0,0,0]
[null,"Ozone Laundry System < 75 Lbs Capacity - Gas WH Full Terr","OZONSYS75GWHFULL",17933,5000,513.17999999999995,2232.29,0.01,0.99,{"$f":"IFERROR(SUMIFS('Equipment Options'!I:I,'Equipment Options'!M:M,$C51),\"\")","v":0},0,0,0,0,0,0]
[null,"Ozone Laundry System < 75 Lbs Capacity - Ele WH","OZONSYS75EWH",17934,5000,51803.91,0,1,0,{"$f":"IFERROR(SUMIFS('Equipment Options'!I:I,'Equipment Options'!M:M,$C52),\"\")","v":0},0,0,0,0,0,0]
[null,"Ozone Laundry System 75-125 Lbs Capacity - Gas WH GOT","OZONSYS75125GWHGOT",17935,7500,0,4464.57,0,1,{"$f":"IFERROR(SUMIFS('Equipment Options'!I:I,'Equipment Options'!M:M,$C53),\"\")","v":0},0,0,0,0,0,0]
[null,"Ozone Laundry System 75-125 Lbs Capacity - Gas WH Full Terr","OZONSYS75125GWHFULL",17936,7500,1026.3499999999999,4464.57,0.01,0.99,{"$f":"IFERROR(SUMIFS('Equipment Options'!I:I,'Equipment Options'!M:M,$C54),\"\")","v":0},0,0,0,0,0,0]
[null,"Ozone Laundry System 75-125 Lbs Capacity - Ele WH","OZONSYS75125EWH",17937,7500,103607.82,0,1,0,{"$f":"IFERROR(SUMIFS('Equipment Options'!I:I,'Equipment Options'!M:M,$C55),\"\")","v":0},0,0,0,0,0,0]
[null,"Ozone Laundry System 126-400 Lbs Capacity - Gas WH GOT","OZONSYS126400GWHGOT",17938,15000,0,11719.5,0,1,{"$f":"IFERROR(SUMIFS('Equipment Options'!I:I,'Equipment Options'!M:M,$C56),\"\")","v":0},0,0,0,0,0,0]
[null,"Ozone Laundry System 126-400 Lbs Capacity - Gas WH Full Terr","OZONSYS126400GWHFULL",17939,15000,2694.18,11719.5,0.01,0.99,{"$f":"IFERROR(SUMIFS('Equipment Options'!I:I,'Equipment Options'!M:M,$C57),\"\")","v":0},0,0,0,0,0,0]
[null,"Ozone Laundry System < 75 Lbs Capacity - Gas WH GOT","OZONSYS75GWHGOT",17947,5000,0,2232.29,0,1,{"$f":"IFERROR(SUMIFS('Equipment Options'!I:I,'Equipment Options'!M:M,$C58),\"\")","v":0},0,0,0,0,0,0]
[null,"Commercial Washer Gas/Other Dryer Ele WH, Energy Star, EOT","COMWASHEDRYGET",17948,150,427.56,0,1,0,{"$f":"IFERROR(SUMIFS('Equipment Options'!I:I,'Equipment Options'!M:M,$C59),\"\")","v":0},0,0,0,0,0,0]
[null,"Commercial Washer Ele Dryer Gas/Other WH, Energy Star, EOT","COMWASHGDRYEET",17949,150,804.37,0,1,0,{"$f":"IFERROR(SUMIFS('Equipment Options'!I:I,'Equipment Options'!M:M,$C60),\"\")","v":0},0,0,0,0,0,0]
[null,"MF Commercial Washer Gas/Other Dryer Ele WH, Energy Star, EOT","COMWASHEDRYGMFET",17950,150,312.74,0,1,0,{"$f":"IFERROR(SUMIFS('Equipment Options'!I:I,'Equipment Options'!M:M,$C61),\"\")","v":0},0,0,0,0,0,0]
[null,"MF Commercial Washer Ele Dryer Gas/Other WH, Energy Star, EOT","COMWASHGDRYEMFET",17951,150,588.37,0,1,0,{"$f":"IFERROR(SUMIFS('Equipment Options'!I:I,'Equipment Options'!M:M,$C62),\"\")","v":0},0,0,0,0,0,0]
[null,"Commercial Washer Gas Dryer Gas WH, Energy Star","COMWASHGDRYGFT",17952,350,64.09,44.86,0.08,0.92,{"$f":"IFERROR(SUMIFS('Equipment Options'!I:I,'Equipment Options'!M:M,$C63),\"\")","v":0},0,0,0,0,0,0]
[null,"Commercial Washer Gas Dryer Ele WH, Energy Star","COMWASHEDRYGFT",17953,350,427.56,28.31,0.47,0.53,{"$f":"IFERROR(SUMIFS('Equipment Options'!I:I,'Equipment Options'!M:M,$C64),\"\")","v":0},0,0,0,0,0,0]
[null,"Commercial Washer Ele Dryer Gas WH, Energy Star","COMWASHGDRYEFT",17954,400,804.37,16.55,0.74,0.26,{"$f":"IFERROR(SUMIFS('Equipment Options'!I:I,'Equipment Options'!M:M,$C65),\"\")","v":0},0,0,0,0,0,0]
[null,"Commercial Washer Ele Dryer Ele WH, Energy Star","COMWASHEDRYEFT",17955,400,1167.8399999999999,0,1,0,{"$f":"IFERROR(SUMIFS('Equipment Options'!I:I,'Equipment Options'!M:M,$C66),\"\")","v":0},0,0,0,0,0,0]
[null,"MF Commercial Washer Gas Dryer Gas WH, Energy Star","COMWASHGDRYGMFFT",17956,350,46.88,32.81,0.08,0.92,{"$f":"IFERROR(SUMIFS('Equipment Options'!I:I,'Equipment Options'!M:M,$C67),\"\")","v":0},0,0,0,0,0,0]
[null,"MF Commercial Washer Gas Dryer Ele WH, Energy Star","COMWASHEDRYGMFFT",17957,350,312.74,20.71,0.48,0.52,{"$f":"IFERROR(SUMIFS('Equipment Options'!I:I,'Equipment Options'!M:M,$C68),\"\")","v":0},0,0,0,0,0,0]
[null,"MF Commercial Washer Ele Dryer Gas WH, Energy Star","COMWASHGDRYEMFFT",17958,{"$f":"IFERROR(_xlfn.XLOOKUP($C69,ProductCode,DefaultIncentive,0,0),0)","v":400},{"$f":"IFERROR(_xlfn.XLOOKUP($C69,ProductCode,DefaultKwh,0,0),0)","v":588.37},{"$f":"IFERROR(_xlfn.XLOOKUP($C69,ProductCode,DefaultTherms,0,0),0)","v":12.1},{"$f":"IFERROR((_xlfn.XLOOKUP($C69,ProductCode,AllocationElectric,0,0))/100,0)","v":0.75},{"$f":"IFERROR((_xlfn.XLOOKUP($C69,ProductCode,AllocationGas,0,0))/100,0)","v":0.25},{"$f":"IFERROR(SUMIFS('Equipment Options'!I:I,'Equipment Options'!M:M,$C69),\"\")","v":0},0,0,0,0,0,0]
[null,"MF Commercial Washer Ele Dryer Ele WH, Energy Star","COMWASHEDRYEMFFT",17959,400,854.23,0,1,0,{"$f":"IFERROR(SUMIFS('Equipment Options'!I:I,'Equipment Options'!M:M,$C70),\"\")","v":0},{"$f":"J70*F70","v":0},{"$f":"O70*H70","v":0},{"$f":"J70*G70","v":0},{"$f":"O70*I70","v":0},{"$f":"J70*E70","v":0},{"$f":"(_xlfn.XLOOKUP($C70,ProductCode,IncrementalCost,\"\",0))*J70","v":0}]
[null,"Commercial Washer Gas Dryer Gas WH, Energy Star, GOT","COMWASHGDRYGGT",17960,100,0,44.86,0,1,{"$f":"IFERROR(SUMIFS('Equipment Options'!I:I,'Equipment Options'!M:M,$C71),\"\")","v":0},0,0,0,0,0,0]
[null,"Commercial Washer Gas Dryer Ele WH, Energy Star, GOT","COMWASHEDRYGGT",17961,100,0,28.31,0,1,{"$f":"IFERROR(SUMIFS('Equipment Options'!I:I,'Equipment Options'!M:M,$C72),\"\")","v":0},0,0,0,0,0,0]
[null,"Commercial Washer Ele Dryer Gas WH, Energy Star, GOT","COMWASHGDRYEGT",17962,100,0,16.55,0,1,{"$f":"IFERROR(SUMIFS('Equipment Options'!I:I,'Equipment Options'!M:M,$C73),\"\")","v":0},0,0,0,0,0,0]
[null,"MF Commercial Washer Gas Dryer Gas WH, Energy Star, GOT","COMWASHGDRYGMFGT",17963,100,0,32.81,0,1,{"$f":"IFERROR(SUMIFS('Equipment Options'!I:I,'Equipment Options'!M:M,$C74),\"\")","v":0},0,0,0,0,0,0]
[null,"MF Commercial Washer Gas Dryer Ele WH, Energy Star, GOT","COMWASHEDRYGMFGT",17964,100,0,20.71,0,1,{"$f":"IFERROR(SUMIFS('Equipment Options'!I:I,'Equipment Options'!M:M,$C75),\"\")","v":0},0,0,0,0,0,0]
[null,"MF Commercial Washer Ele Dryer Gas WH, Energy Star, GOT","COMWASHGDRYEMFGT",17965,100,0,12.1,0,1,{"$f":"IFERROR(SUMIFS('Equipment Options'!I:I,'Equipment Options'!M:M,$C76),\"\")","v":0},0,0,0,0,0,0]
[null,"Commercial Ice Maker, Enrgy Str, Batch SCU, 200-4,000 lb/day","ICESCUBATCH",17966,180,559.25,0,1,0,{"$f":"IFERROR(SUMIFS('Equipment Options'!I:I,'Equipment Options'!M:M,$C77),\"\")","v":0},0,0,0,0,0,0]
[null,"Commercial Ice Maker, Enrgy Str, Batch RCU, 988-4,000 lb/day","ICERCUBATCH",17967,400,1244.53,0,1,0,{"$f":"IFERROR(SUMIFS('Equipment Options'!I:I,'Equipment Options'!M:M,$C78),\"\")","v":0},0,0,0,0,0,0]
[null,"Commercial Ice Maker, Enrgy Str, Cont RCU, 800-4,000 lb/day","ICERCUCONT",17968,400,4207.47,0,1,0,{"$f":"IFERROR(SUMIFS('Equipment Options'!I:I,'Equipment Options'!M:M,$C79),\"\")","v":0},0,0,0,0,0,0]
[null,"Commercial Ice Maker, Enrgy Str, Cont IMH, 820-4,000 lb/day","ICEIMHCONT",17969,400,1138.52,0,1,0,{"$f":"IFERROR(SUMIFS('Equipment Options'!I:I,'Equipment Options'!M:M,$C80),\"\")","v":0},0,0,0,0,0,0]
[null,"Commercial Ice Maker, Energy Star, Batch IMH, 1,500-4,000 lb/day","ICEIMHBATCH",17970,400,1831.57,0,1,0,{"$f":"IFERROR(SUMIFS('Equipment Options'!I:I,'Equipment Options'!M:M,$C81),\"\")","v":0},0,0,0,0,0,0]
[null,"Energy Star Emerging Tech Award (ESETA) Multifamily Refrigerator","ESETAFRIDGE",17987,70,135.88,0,1,0,{"$f":"IFERROR(SUMIFS('Equipment Options'!I:I,'Equipment Options'!M:M,$C82),\"\")","v":0},0,0,0,0,0,0]
[null,"Cooler w/ Door - Remote Condensing, Horiz Low Temp - Gas","COOLCASEDRRCHZLOWGAS",17988,150,500.36,15.91,0.56999999999999995,0.43,{"$f":"IFERROR(SUMIFS('Equipment Options'!I:I,'Equipment Options'!M:M,$C83),\"\")","v":0},0,0,0,0,0,0]
[null,"Cooler w/ Door - Remote Condensing, Horiz Med Temp - Gas","COOLCASEDRRCHZMEDGAS",17989,150,282.10000000000002,25.68,0.32,0.68,{"$f":"IFERROR(SUMIFS('Equipment Options'!I:I,'Equipment Options'!M:M,$C84),\"\")","v":0},0,0,0,0,0,0]
[null,"Cooler w/ Door - Remote Condensing, Vert Med Temp - Gas","COOLCASEDRRCVTMEDGAS",17990,150,729.34,66.400000000000006,0.32,0.68,{"$f":"IFERROR(SUMIFS('Equipment Options'!I:I,'Equipment Options'!M:M,$C85),\"\")","v":0},0,0,0,0,0,0]
[null,"Cooler w/ Door - Remote Condensing, Horiz Low Temp - Gas EOT","COOLCASEDRRCHZLOWEOT",17991,150,500.36,0,1,0,{"$f":"IFERROR(SUMIFS('Equipment Options'!I:I,'Equipment Options'!M:M,$C86),\"\")","v":0},0,0,0,0,0,0]
[null,"Cooler w/ Door - Remote Condensing, Vert Med Temp - Gas EOT","COOLCASEDRRCVTMEDEOT",17992,150,729.34,0,1,0,{"$f":"IFERROR(SUMIFS('Equipment Options'!I:I,'Equipment Options'!M:M,$C87),\"\")","v":0},0,0,0,0,0,0]
[null,"Cooler w/ Door - Remote Condensing, Horiz Med Temp - Gas EOT","COOLCASEDRRCHZMEDEOT",17993,150,282.10000000000002,0,1,0,{"$f":"IFERROR(SUMIFS('Equipment Options'!I:I,'Equipment Options'!M:M,$C88),\"\")","v":0},0,0,0,0,0,0]
[null,"Cooler w/ Door - Remote Condensing, Horiz Low Temp - GOT","COOLCASEDRRCHZLOWGOT",17994,150,0,15.91,0,1,{"$f":"IFERROR(SUMIFS('Equipment Options'!I:I,'Equipment Options'!M:M,$C89),\"\")","v":0},0,0,0,0,0,0]
[null,"Cooler w/ Door - Remote Condensing, Horiz Med Temp - GOT","COOLCASEDRRCHZMEDGOT",17995,150,0,25.68,0,1,{"$f":"IFERROR(SUMIFS('Equipment Options'!I:I,'Equipment Options'!M:M,$C90),\"\")","v":0},0,0,0,0,0,0]
[null,"Cooler w/ Door - Remote Condensing, Vert Med Temp - GOT","COOLCASEDRRCVTMEDGOT",17996,150,0,66.400000000000006,0,1,{"$f":"IFERROR(SUMIFS('Equipment Options'!I:I,'Equipment Options'!M:M,$C91),\"\")","v":0},0,0,0,0,0,0]
[null,"Cooler w/ Door - Remote Condensing, Horiz Low Temp - Elec","COOLCASEDRRCHZLOWELE",17997,150,852.29,0,1,0,{"$f":"IFERROR(SUMIFS('Equipment Options'!I:I,'Equipment Options'!M:M,$C92),\"\")","v":0},0,0,0,0,0,0]
[null,"Cooler w/ Door - Remote Condensing, Horiz Med Temp - Elec","COOLCASEDRRCHZMEDELE",17998,150,850.19,0,1,0,{"$f":"IFERROR(SUMIFS('Equipment Options'!I:I,'Equipment Options'!M:M,$C93),\"\")","v":0},0,0,0,0,0,0]
[null,"DHP - Replacement or new HZ2 or HZ3","HPREPHZ23",18001,300,461.07,0,1,0,{"$f":"IFERROR(SUMIFS('Equipment Options'!I:I,'Equipment Options'!M:M,$C94),\"\")","v":0},0,0,0,0,0,0]
[null,"DHP - Replacement or new - HZ_all CZs","HPREPHZ1",18002,300,410.61,0,1,0,{"$f":"IFERROR(SUMIFS('Equipment Options'!I:I,'Equipment Options'!M:M,$C95),\"\")","v":0},0,0,0,0,0,0]
[null,"On-Demand Overwrapper","OVERWRAPPER",18003,350,1584.49,-37.57,1,0,{"$f":"IFERROR(SUMIFS('Equipment Options'!I:I,'Equipment Options'!M:M,$C96),\"\")","v":0},0,0,0,0,0,0]
[null,"Cooler w/ Door - Remote Condensing, Vert Med Temp - Elec","COOLCASEDRRCVTMEDELE",18008,150,2198.0700000000002,0,1,0,{"$f":"IFERROR(SUMIFS('Equipment Options'!I:I,'Equipment Options'!M:M,$C97),\"\")","v":0},0,0,0,0,0,0]
[null,"Two-stage Gas Valve on Clothes Dryers in On-Premises Laundry","2STAGASGVALVEOPLDRY",18010,700,0,351.82,0,1,{"$f":"IFERROR(SUMIFS('Equipment Options'!I:I,'Equipment Options'!M:M,$C98),\"\")","v":0},0,0,0,0,0,0]
[null,"Vertical Reach-in Refrigerator, <15, Gas Heat, EOT","FRIGRCHVRT015GEOT",18040,20,87.71,0,1,0,{"$f":"IFERROR(SUMIFS('Equipment Options'!I:I,'Equipment Options'!M:M,$C99),\"\")","v":0},0,0,0,0,0,0]
[null,"Vertical Reach-in Refrigerator, <15, Heat Pump","FRIGRCHVRT015HP",18041,20,77.47,0,1,0,{"$f":"IFERROR(SUMIFS('Equipment Options'!I:I,'Equipment Options'!M:M,$C100),\"\")","v":0},0,0,0,0,0,0]
[null,"Vertical Reach-in Refrigerator, <15, Gas Heat","FRIGRCHVRT015GAS",18065,20,87.71,-0.96,1,0,{"$f":"IFERROR(SUMIFS('Equipment Options'!I:I,'Equipment Options'!M:M,$C101),\"\")","v":0},0,0,0,0,0,0]
[null,"Vertical Reach-in Refrigerator, <15, Electric ","FRIGRCHVRT015ELE",18066,20,66.22,0,1,0,{"$f":"IFERROR(SUMIFS('Equipment Options'!I:I,'Equipment Options'!M:M,$C102),\"\")","v":0},0,0,0,0,0,0]
[null,"Vertical Reach-in Freezer, 15 to <30, Heat Pump","FREZRCHVRT1530HP",18067,80,308.83,0,1,0,{"$f":"IFERROR(SUMIFS('Equipment Options'!I:I,'Equipment Options'!M:M,$C103),\"\")","v":0},0,0,0,0,0,0]
[null,"Vertical Reach-in Freezer, 15 to <30, Gas Heat","FREZRCHVRT1530GAS",18068,80,349.62,-3.85,1,0,{"$f":"IFERROR(SUMIFS('Equipment Options'!I:I,'Equipment Options'!M:M,$C104),\"\")","v":0},0,0,0,0,0,0]
[null,"Vertical Reach-in Freezer, 15 to <30, Gas Heat, EOT","FREZRCHVRT1530GEOT",18069,80,349.62,0,1,0,{"$f":"IFERROR(SUMIFS('Equipment Options'!I:I,'Equipment Options'!M:M,$C105),\"\")","v":0},0,0,0,0,0,0]
[null,"Vertical Reach-in Freezer, 15 to <30, Electric ","FREZRCHVRT1530ELE",18078,80,263.95,0,1,0,{"$f":"IFERROR(SUMIFS('Equipment Options'!I:I,'Equipment Options'!M:M,$C106),\"\")","v":0},0,0,0,0,0,0]
[null,"Vertical Reach-in Freezer, >50, Heat Pump","FREZRCHVRT50HP",18079,325,818.34,0,1,0,{"$f":"IFERROR(SUMIFS('Equipment Options'!I:I,'Equipment Options'!M:M,$C107),\"\")","v":0},0,0,0,0,0,0]
[null,"Vertical Reach-in Freezer, >50, Gas Heat","FREZRCHVRT50GAS",18080,325,926.44,-10.19,1,0,{"$f":"IFERROR(SUMIFS('Equipment Options'!I:I,'Equipment Options'!M:M,$C108),\"\")","v":0},0,0,0,0,0,0]
[null,"Vertical Reach-in Freezer, >50, Electric ","FREZRCHVRT50ELE",18081,325,699.43,0,1,0,{"$f":"IFERROR(SUMIFS('Equipment Options'!I:I,'Equipment Options'!M:M,$C109),\"\")","v":0},0,0,0,0,0,0]
[null,"Vertical Reach-in Freezer, >50, Gas Heat, EOT","FREZRCHVRT50GEOT",18091,325,926.44,0,1,0,{"$f":"IFERROR(SUMIFS('Equipment Options'!I:I,'Equipment Options'!M:M,$C110),\"\")","v":0},0,0,0,0,0,0]
[null,"Vertical Reach-in Freezer, 30 to <50, Heat Pump","FREZRCHVRT3050HP",18092,190,513.74,0,1,0,{"$f":"IFERROR(SUMIFS('Equipment Options'!I:I,'Equipment Options'!M:M,$C111),\"\")","v":0},0,0,0,0,0,0]
[null,"Vertical Reach-in Freezer, 30 to <50, Gas Heat, EOT","FREZRCHVRT3050GEOT",18093,190,581.6,0,1,0,{"$f":"IFERROR(SUMIFS('Equipment Options'!I:I,'Equipment Options'!M:M,$C112),\"\")","v":0},0,0,0,0,0,0]
[null,"Vertical Reach-in Freezer, 30 to <50, Gas Heat","FREZRCHVRT3050GAS",18094,190,581.6,-6.4,1,0,{"$f":"IFERROR(SUMIFS('Equipment Options'!I:I,'Equipment Options'!M:M,$C113),\"\")","v":0},0,0,0,0,0,0]
[null,"Vertical Reach-in Freezer, 30 to <50, Electric ","FREZRCHVRT3050ELE",18095,190,439.09,0,1,0,{"$f":"IFERROR(SUMIFS('Equipment Options'!I:I,'Equipment Options'!M:M,$C114),\"\")","v":0},0,0,0,0,0,0]
[null,"Vertical Reach-in Freezer, <15, Heat Pump","FREZRCHVRT015HP",18096,40,167.65,0,1,0,{"$f":"IFERROR(SUMIFS('Equipment Options'!I:I,'Equipment Options'!M:M,$C115),\"\")","v":0},0,0,0,0,0,0]
[null,"Vertical Reach-in Freezer, <15, Gas Heat, EOT","FREZRCHVRT015GEOT",18097,40,189.79,0,1,0,{"$f":"IFERROR(SUMIFS('Equipment Options'!I:I,'Equipment Options'!M:M,$C116),\"\")","v":0},0,0,0,0,0,0]
[null,"Vertical Reach-in Freezer, <15, Gas Heat","FREZRCHVRT015GAS",18098,40,189.79,-2.09,1,0,{"$f":"IFERROR(SUMIFS('Equipment Options'!I:I,'Equipment Options'!M:M,$C117),\"\")","v":0},0,0,0,0,0,0]
[null,"Vertical Reach-in Freezer, <15, Electric ","FREZRCHVRT015ELE",18099,40,143.29,0,1,0,{"$f":"IFERROR(SUMIFS('Equipment Options'!I:I,'Equipment Options'!M:M,$C118),\"\")","v":0},0,0,0,0,0,0]
[null,"Ductless heat pump, Multifamily, w/o Baseboard Heating","DHPMFNOBASE",18153,500,574.5,0,1,0,{"$f":"IFERROR(SUMIFS('Equipment Options'!I:I,'Equipment Options'!M:M,$C119),\"\")","v":0},0,0,0,0,0,0]
[null,"Ductless heat pump, Lodging, w/o Baseboard Heating","DHPLODNOBASE",18154,500,699.83,0,1,0,{"$f":"IFERROR(SUMIFS('Equipment Options'!I:I,'Equipment Options'!M:M,$C120),\"\")","v":0},0,0,0,0,0,0]
[null,"Ductless heat pump, Dorm, w/o Baseboard Heating","DHPDORMNOBASE",18155,500,581.76,0,1,0,{"$f":"IFERROR(SUMIFS('Equipment Options'!I:I,'Equipment Options'!M:M,$C121),\"\")","v":0},0,0,0,0,0,0]
[null,"Ductless heat pump, Multifamily, w/ Baseboard Heating","DHPMFBASE",18156,500,497.88,0,1,0,{"$f":"IFERROR(SUMIFS('Equipment Options'!I:I,'Equipment Options'!M:M,$C122),\"\")","v":0},0,0,0,0,0,0]
[null,"Ductless heat pump, Lodging, w/ Baseboard Heating","DHPLODBASE",18157,500,601.69000000000005,0,1,0,{"$f":"IFERROR(SUMIFS('Equipment Options'!I:I,'Equipment Options'!M:M,$C123),\"\")","v":0},0,0,0,0,0,0]
[null,"Ductless heat pump, Dorm, w/ Baseboard Heating","DHPDORMBASE",18158,500,506.82,0,1,0,{"$f":"IFERROR(SUMIFS('Equipment Options'!I:I,'Equipment Options'!M:M,$C124),\"\")","v":0},0,0,0,0,0,0]
[null,"Commercial Heat Pump Water Heater - Tier 2","CHPWHT2",18270,800,1432.74,-5.9,1,0,{"$f":"IFERROR(SUMIFS('Equipment Options'!I:I,'Equipment Options'!M:M,$C125),\"\")","v":0},0,0,0,0,0,0]
[null,"Commercial Heat Pump Water Heater - Tier 2, ducted","CHPWHT2D",18271,800,1328.12,-7.9,1,0,{"$f":"IFERROR(SUMIFS('Equipment Options'!I:I,'Equipment Options'!M:M,$C126),\"\")","v":0},0,0,0,0,0,0]
[null,"Commercial Heat Pump Water Heater - Tier 3","CHPWHT3",18272,800,1612.95,-5.89,1,0,{"$f":"IFERROR(SUMIFS('Equipment Options'!I:I,'Equipment Options'!M:M,$C127),\"\")","v":0},0,0,0,0,0,0]
[null,"Commercial Heat Pump Water Heater - Tier 3, ducted","CHPWHT3D",18273,800,1493.61,-7.9,1,0,{"$f":"IFERROR(SUMIFS('Equipment Options'!I:I,'Equipment Options'!M:M,$C128),\"\")","v":0},0,0,0,0,0,0]
[null,"Commercial Heat Pump Water Heater - Tier 4 & up","CHPWHT4UP",18274,800,1838.46,-6.52,1,0,{"$f":"IFERROR(SUMIFS('Equipment Options'!I:I,'Equipment Options'!M:M,$C129),\"\")","v":0},0,0,0,0,0,0]
[null,"Commercial Heat Pump Water Heater - Tier 4 & up, ducted","CHPWHT4UPD",18275,800,1624.15,-10.99,1,0,{"$f":"IFERROR(SUMIFS('Equipment Options'!I:I,'Equipment Options'!M:M,$C130),\"\")","v":0},0,0,0,0,0,0]
[null,"Cooler w/ Door - Self-Contained, Horiz Low Temp - Gas EOT","COOLCASEDRSCHZLOWEOT",18348,150,643.59,0,1,0,{"$f":"IFERROR(SUMIFS('Equipment Options'!I:I,'Equipment Options'!M:M,$C131),\"\")","v":0},0,0,0,0,0,0]
[null,"Condensing Tank Water Heater, Multifamily","DHWCONDTANKMF",18351,3.5,0,1.44,0,1,{"$f":"IFERROR(SUMIFS('Equipment Options'!I:I,'Equipment Options'!M:M,$C132),\"\")","v":0},0,0,0,0,0,0]
[null,"Condensing Tank Water Heater, All Except MF","DHWCONDNMF",18353,{"$f":"IFERROR(_xlfn.XLOOKUP($C133,ProductCode,DefaultIncentive,0,0),0)","v":3.5},{"$f":"IFERROR(_xlfn.XLOOKUP($C133,ProductCode,DefaultKwh,0,0),0)","v":0},{"$f":"IFERROR(_xlfn.XLOOKUP($C133,ProductCode,DefaultTherms,0,0),0)","v":1.1100000000000001},{"$f":"IFERROR((_xlfn.XLOOKUP($C133,ProductCode,AllocationElectric,0,0))/100,0)","v":0},{"$f":"IFERROR((_xlfn.XLOOKUP($C133,ProductCode,AllocationGas,0,0))/100,0)","v":1},{"$f":"IFERROR(SUMIFS('Equipment Options'!I:I,'Equipment Options'!M:M,$C133),\"\")","v":0},0,0,0,0,0,0]
[null,"Comm Heat Pump Water Heater Tier 3+ Any Building Type","COMHPWHT3",18356,800,1422.4,0,1,0,{"$f":"IFERROR(SUMIFS('Equipment Options'!I:I,'Equipment Options'!M:M,$C134),\"\")","v":0},{"$f":"J134*F134","v":0},{"$f":"O134*H134","v":0},{"$f":"J134*G134","v":0},{"$f":"O134*I134","v":0},{"$f":"J134*E134","v":0},{"$f":"(_xlfn.XLOOKUP($C134,ProductCode,IncrementalCost,\"\",0))*J134","v":0}]
[null,"Tankless Water Heater >= 200 kBtu/h, MF","CTWH200COMMF",18357,1.4,0,0.42,0,1,{"$f":"IFERROR(SUMIFS('Equipment Options'!I:I,'Equipment Options'!M:M,$C135),\"\")","v":0},0,0,0,0,0,0]
[null,"Tankless Water Heaters >= 200 kBtu/h, All Except MF","CTWH200COMNONMF",18358,1.4,0,0.28000000000000003,0,1,{"$f":"IFERROR(SUMIFS('Equipment Options'!I:I,'Equipment Options'!M:M,$C136),\"\")","v":0},0,0,0,0,0,0]
[null,"Commercial Heat Pump Water Heater - Tier 1","CHPWHT1",18364,800,1110.6400000000001,-3.71,1,0,{"$f":"IFERROR(SUMIFS('Equipment Options'!I:I,'Equipment Options'!M:M,$C137),\"\")","v":0},0,0,0,0,0,0]
[null,"Commercial Tankless Water Heater <200 - All Commercial","CTWH199ALLCOM",18365,140,0,15.51,0,1,{"$f":"IFERROR(SUMIFS('Equipment Options'!I:I,'Equipment Options'!M:M,$C138),\"\")","v":0},0,0,0,0,0,0]
[null,"MS Elective, Wall Insulation, 2021","MSWALLINSUL2021",19032,0,0,0,1,1,{"$f":"IFERROR(SUMIFS('Equipment Options'!I:I,'Equipment Options'!M:M,$C139),\"\")","v":0},0,0,0,0,0,0]
[null,"MS Elective, Window-to-Wall Ratio (WWR), 2021","MSWWR2021",19033,0,0,0,1,1,{"$f":"IFERROR(SUMIFS('Equipment Options'!I:I,'Equipment Options'!M:M,$C140),\"\")","v":0},0,0,0,0,0,0]
[null,"MS Elective, High-performance windows, 2021","MSWINDOWS2021",19034,0,0,0,1,1,{"$f":"IFERROR(SUMIFS('Equipment Options'!I:I,'Equipment Options'!M:M,$C141),\"\")","v":0},0,0,0,0,0,0]
[null,"MS Elective, Clothes Washer, 2021","MSWASHER2021",19035,0,0,0,1,1,{"$f":"IFERROR(SUMIFS('Equipment Options'!I:I,'Equipment Options'!M:M,$C142),\"\")","v":0},0,0,0,0,0,0]
[null,"MS Elective, Variable Refrigerant Flow (VRF), 2021","MSVRF2021",19036,0,0,0,1,1,{"$f":"IFERROR(SUMIFS('Equipment Options'!I:I,'Equipment Options'!M:M,$C143),\"\")","v":0},0,0,0,0,0,0]
[null,"MS Elective, Tankless DHW, 2021","MSTANKLESSDHW2021",19037,0,0,0,1,1,{"$f":"IFERROR(SUMIFS('Equipment Options'!I:I,'Equipment Options'!M:M,$C144),\"\")","v":0},0,0,0,0,0,0]
[null,"MS Elective, Roof Insulation, 2021","MSROOFINSUL2021",19038,0,0,0,1,1,{"$f":"IFERROR(SUMIFS('Equipment Options'!I:I,'Equipment Options'!M:M,$C145),\"\")","v":0},0,0,0,0,0,0]
[null,"MS Elective, Refrigerator, 2021","MSREFRIDGE2021",19039,0,0,0,1,1,{"$f":"IFERROR(SUMIFS('Equipment Options'!I:I,'Equipment Options'!M:M,$C146),\"\")","v":0},0,0,0,0,0,0]
[null,"MS Elective, PTHP (in-unit), 2021","MSPTHP2021",19040,0,0,0,1,1,{"$f":"IFERROR(SUMIFS('Equipment Options'!I:I,'Equipment Options'!M:M,$C147),\"\")","v":0},0,0,0,0,0,0]
[null,"MS Elective, Overhangs, 2021","MSOVERHANG2021",19041,0,0,0,1,1,{"$f":"IFERROR(SUMIFS('Equipment Options'!I:I,'Equipment Options'!M:M,$C148),\"\")","v":0},0,0,0,0,0,0]
[null,"MS Elective, LPD Reduction in Living Units, 2021","MSINUNITLPD2021",19042,0,0,0,1,1,{"$f":"IFERROR(SUMIFS('Equipment Options'!I:I,'Equipment Options'!M:M,$C149),\"\")","v":0},0,0,0,0,0,0]
[null,"MS Elective, Heat Pump Water Heater, 2021","MSHPWH2021",19043,0,0,0,1,1,{"$f":"IFERROR(SUMIFS('Equipment Options'!I:I,'Equipment Options'!M:M,$C150),\"\")","v":0},0,0,0,0,0,0]
[null,"MS Elective, High-efficiency Split System, 2021","MSHESS2021",19044,0,0,0,1,1,{"$f":"IFERROR(SUMIFS('Equipment Options'!I:I,'Equipment Options'!M:M,$C151),\"\")","v":0},0,0,0,0,0,0]
[null,"MS Elective, Foundation Insulation, 2021","MSFOUNDINSUL2021",19045,0,0,0,1,1,{"$f":"IFERROR(SUMIFS('Equipment Options'!I:I,'Equipment Options'!M:M,$C152),\"\")","v":0},0,0,0,0,0,0]
[null,"MS Elective, Exterior Lighting Power Reduction, 2021","MSEXTLIGHTLPD2021",19046,0,0,0,1,1,{"$f":"IFERROR(SUMIFS('Equipment Options'!I:I,'Equipment Options'!M:M,$C153),\"\")","v":0},0,0,0,0,0,0]
[null,"MS Elective, Energy Recovery Ventilation (ERV), 2021","MSERVENT2021",19047,0,0,0,1,1,{"$f":"IFERROR(SUMIFS('Equipment Options'!I:I,'Equipment Options'!M:M,$C154),\"\")","v":0},0,0,0,0,0,0]
[null,"MS Elective, Efficient Exhaust Fans, 2021","MSEEFANS2021",19048,0,0,0,1,1,{"$f":"IFERROR(SUMIFS('Equipment Options'!I:I,'Equipment Options'!M:M,$C155),\"\")","v":0},0,0,0,0,0,0]
[null,"MS Elective, Dryer, 2021","MSDRYER2021",19049,0,0,0,1,1,{"$f":"IFERROR(SUMIFS('Equipment Options'!I:I,'Equipment Options'!M:M,$C156),\"\")","v":0},0,0,0,0,0,0]
[null,"MS Elective, Dishwasher, 2021","MSDISHWASH2021",19050,0,0,0,1,1,{"$f":"IFERROR(SUMIFS('Equipment Options'!I:I,'Equipment Options'!M:M,$C157),\"\")","v":0},0,0,0,0,0,0]
[null,"MS Elective, DHP in Living Units, 2021 code","MSDHP2021",19051,0,0,0,1,1,{"$f":"IFERROR(SUMIFS('Equipment Options'!I:I,'Equipment Options'!M:M,$C158),\"\")","v":0},0,0,0,0,0,0]
[null,"MS Elective, Condensing DHW (in-unit or central), 2021","MSCTDWH2021",19052,0,0,0,1,1,{"$f":"IFERROR(SUMIFS('Equipment Options'!I:I,'Equipment Options'!M:M,$C159),\"\")","v":0},0,0,0,0,0,0]
[null,"MS Elective, Condensing High-Efficiency Furnace, 2021","MSCONDFURN2021",19053,0,0,0,1,1,{"$f":"IFERROR(SUMIFS('Equipment Options'!I:I,'Equipment Options'!M:M,$C160),\"\")","v":0},0,0,0,0,0,0]
[null,"MS Elective, Bi-level Control in Corridors, 2021","MSBILEVEL2021",19054,0,0,0,1,1,{"$f":"IFERROR(SUMIFS('Equipment Options'!I:I,'Equipment Options'!M:M,$C161),\"\")","v":0},0,0,0,0,0,0]
[null,"MS Elective, Air Tightness, 2021 code","MSAIRTIGHT2021",19055,0,0,0,1,1,{"$f":"IFERROR(SUMIFS('Equipment Options'!I:I,'Equipment Options'!M:M,$C162),\"\")","v":0},0,0,0,0,0,0]
[null,"MS Elective, Aerators, 2021 code","MSAERATOR2021",19056,0,0,0,1,1,{"$f":"IFERROR(SUMIFS('Equipment Options'!I:I,'Equipment Options'!M:M,$C163),\"\")","v":0},0,0,0,0,0,0]
[null,"MS Elective, Condensing boiler, 2021","MSCBOILER2021",19057,0,0,0,1,1,{"$f":"IFERROR(SUMIFS('Equipment Options'!I:I,'Equipment Options'!M:M,$C164),\"\")","v":0},0,0,0,0,0,0]
[null,"MS Elective, High-performance windows, 2019 code","MSWINDOWS2019",19058,0,0,0,1,1,{"$f":"IFERROR(SUMIFS('Equipment Options'!I:I,'Equipment Options'!M:M,$C165),\"\")","v":0},0,0,0,0,0,0]
[null,"MS Elective, Window-to-Wall Ratio (WWR), 2019 code","MSWWR2019",19059,0,0,0,1,1,{"$f":"IFERROR(SUMIFS('Equipment Options'!I:I,'Equipment Options'!M:M,$C166),\"\")","v":0},0,0,0,0,0,0]
[null,"MS Elective, Clothes Washer, 2019 code","MSWASHER2019",19060,0,0,0,1,1,{"$f":"IFERROR(SUMIFS('Equipment Options'!I:I,'Equipment Options'!M:M,$C167),\"\")","v":0},0,0,0,0,0,0]
[null,"MS Elective, Wall Insulation, 2019 code","MSWALLINSUL2019",19061,0,0,0,1,1,{"$f":"IFERROR(SUMIFS('Equipment Options'!I:I,'Equipment Options'!M:M,$C168),\"\")","v":0},0,0,0,0,0,0]
[null,"MS Elective, Variable Refrigerant Flow (VRF), 2019 code","MSVRF2019",19062,0,0,0,1,1,{"$f":"IFERROR(SUMIFS('Equipment Options'!I:I,'Equipment Options'!M:M,$C169),\"\")","v":0},0,0,0,0,0,0]
[null,"MS Elective, Tankless DHW, 2019 code","MSTANKLESSDHW2019",19063,0,0,0,1,1,{"$f":"IFERROR(SUMIFS('Equipment Options'!I:I,'Equipment Options'!M:M,$C170),\"\")","v":0},0,0,0,0,0,0]
[null,"MS Elective, Roof Insulation, 2019 code","MSROOFINSUL2019",19064,0,0,0,1,1,{"$f":"IFERROR(SUMIFS('Equipment Options'!I:I,'Equipment Options'!M:M,$C171),\"\")","v":0},0,0,0,0,0,0]
[null,"MS Elective, Refrigerator, 2019 code","MSREFRIDGE2019",19065,0,0,0,1,1,{"$f":"IFERROR(SUMIFS('Equipment Options'!I:I,'Equipment Options'!M:M,$C172),\"\")","v":0},0,0,0,0,0,0]
[null,"MS Elective, PTHP (in-unit), 2019 code","MSPTHP2019",19066,0,0,0,1,1,{"$f":"IFERROR(SUMIFS('Equipment Options'!I:I,'Equipment Options'!M:M,$C173),\"\")","v":0},0,0,0,0,0,0]
[null,"MS Elective, Overhangs, 2019 code","MSOVERHANG2019",19067,0,0,0,1,1,{"$f":"IFERROR(SUMIFS('Equipment Options'!I:I,'Equipment Options'!M:M,$C174),\"\")","v":0},0,0,0,0,0,0]
[null,"MS Elective, Air Tightness, 2019 code","MSAIRTIGHT2019",19068,0,0,0,1,1,{"$f":"IFERROR(SUMIFS('Equipment Options'!I:I,'Equipment Options'!M:M,$C175),\"\")","v":0},0,0,0,0,0,0]
[null,"MS Elective, Bi-level Control in Corridors, 2019 code","MSBILEVEL2019",19069,0,0,0,1,1,{"$f":"IFERROR(SUMIFS('Equipment Options'!I:I,'Equipment Options'!M:M,$C176),\"\")","v":0},0,0,0,0,0,0]
[null,"MS Elective, Condensing boiler, 2019 code","MSCBOILER2019",19070,0,0,0,1,1,{"$f":"IFERROR(SUMIFS('Equipment Options'!I:I,'Equipment Options'!M:M,$C177),\"\")","v":0},0,0,0,0,0,0]
[null,"MS Elective, Condensing High-Efficiency Furnace, 2019 code","MSCONDFURN2019",19071,0,0,0,1,1,{"$f":"IFERROR(SUMIFS('Equipment Options'!I:I,'Equipment Options'!M:M,$C178),\"\")","v":0},0,0,0,0,0,0]
[null,"MS Elective, Condensing DHW (in-unit or central), 2019 code","MSCTDWH2019",19072,0,0,0,1,1,{"$f":"IFERROR(SUMIFS('Equipment Options'!I:I,'Equipment Options'!M:M,$C179),\"\")","v":0},0,0,0,0,0,0]
[null,"MSO Multifamily, Mid Rise, Good Tier, 2019 code","MSMFMRGOOD2019",19073,0,0,0,1,1,{"$f":"IFERROR(SUMIFS('Equipment Options'!I:I,'Equipment Options'!M:M,$C180),\"\")","v":0},0,0,0,0,0,0]
[null,"MSO Multifamily, Mid Rise, Better Tier, 2019 code","MSMFMRBETTER2019",19074,0,0,0,1,1,{"$f":"IFERROR(SUMIFS('Equipment Options'!I:I,'Equipment Options'!M:M,$C181),\"\")","v":0},0,0,0,0,0,0]
[null,"MSO Multifamily, Mid Rise, Best Tier, 2019 code","MSMFMRBEST2019",19075,0,0,0,1,1,{"$f":"IFERROR(SUMIFS('Equipment Options'!I:I,'Equipment Options'!M:M,$C182),\"\")","v":0},0,0,0,0,0,0]
[null,"MS Elective, Aerators, 2019 code","MSAERATOR2019",19076,0,0,0,1,1,{"$f":"IFERROR(SUMIFS('Equipment Options'!I:I,'Equipment Options'!M:M,$C183),\"\")","v":0},0,0,0,0,0,0]
[null,"MS Elective, Dishwasher, 2019 code","MSDISHWASH2019",19077,0,0,0,1,1,{"$f":"IFERROR(SUMIFS('Equipment Options'!I:I,'Equipment Options'!M:M,$C184),\"\")","v":0},0,0,0,0,0,0]
[null,"MS Elective, Dryer, 2019 code","MSDRYER2019",19078,0,0,0,1,1,{"$f":"IFERROR(SUMIFS('Equipment Options'!I:I,'Equipment Options'!M:M,$C185),\"\")","v":0},0,0,0,0,0,0]
[null,"MS Elective, Efficient Exhaust Fans, 2019 code","MSEEFANS2019",19079,0,0,0,1,1,{"$f":"IFERROR(SUMIFS('Equipment Options'!I:I,'Equipment Options'!M:M,$C186),\"\")","v":0},0,0,0,0,0,0]
[null,"MS Elective, Energy Recovery Ventilation (ERV), 2019 code","MSERVENT2019",19080,0,0,0,1,1,{"$f":"IFERROR(SUMIFS('Equipment Options'!I:I,'Equipment Options'!M:M,$C187),\"\")","v":0},0,0,0,0,0,0]
[null,"MS Elective, Exterior Lighting Power Reduction, 2019 code","MSEXTLIGHTLPD2019",19081,0,0,0,1,1,{"$f":"IFERROR(SUMIFS('Equipment Options'!I:I,'Equipment Options'!M:M,$C188),\"\")","v":0},0,0,0,0,0,0]
[null,"MSO Multifamily, Low Rise, Good Tier, 2019 code","MSMFLRGOOD2019",19082,0,0,0,1,1,{"$f":"IFERROR(SUMIFS('Equipment Options'!I:I,'Equipment Options'!M:M,$C189),\"\")","v":0},0,0,0,0,0,0]
[null,"MSO Multifamily, High Rise, Good Tier, 2019 code","MSMFHRGOOD2019",19083,0,0,0,1,1,{"$f":"IFERROR(SUMIFS('Equipment Options'!I:I,'Equipment Options'!M:M,$C190),\"\")","v":0},0,0,0,0,0,0]
[null,"MSO Multifamily, High Rise, Better Tier, 2019 code","MSMFHRBETTER2019",19084,0,0,0,1,1,{"$f":"IFERROR(SUMIFS('Equipment Options'!I:I,'Equipment Options'!M:M,$C191),\"\")","v":0},0,0,0,0,0,0]
[null,"MSO Multifamily, High Rise, Best Tier, 2019 code","MSMFHRBEST2019",19085,0,0,0,1,1,{"$f":"IFERROR(SUMIFS('Equipment Options'!I:I,'Equipment Options'!M:M,$C192),\"\")","v":0},0,0,0,0,0,0]
[null,"MS Elective, LPD Reduction in Living Units, 2019 code","MSINUNITLPD2019",19086,0,0,0,1,1,{"$f":"IFERROR(SUMIFS('Equipment Options'!I:I,'Equipment Options'!M:M,$C193),\"\")","v":0},0,0,0,0,0,0]
[null,"MS Elective, Foundation Insulation, 2019 code ","MSFOUNDINSUL2019",19087,0,0,0,1,1,{"$f":"IFERROR(SUMIFS('Equipment Options'!I:I,'Equipment Options'!M:M,$C194),\"\")","v":0},0,0,0,0,0,0]
[null,"MS Elective, High-efficiency Split System, 2019 code","MSHESS2019",19088,0,0,0,1,1,{"$f":"IFERROR(SUMIFS('Equipment Options'!I:I,'Equipment Options'!M:M,$C195),\"\")","v":0},0,0,0,0,0,0]
[null,"MS Elective, Heat Pump Water Heater, 2019 code","MSHPWH2019",19089,0,0,0,1,1,{"$f":"IFERROR(SUMIFS('Equipment Options'!I:I,'Equipment Options'!M:M,$C196),\"\")","v":0},0,0,0,0,0,0]
[null,"MSO Multifamily, Low Rise, Best Tier, 2019 code","MSMFLRBEST2019",19090,{"$f":"IFERROR(_xlfn.XLOOKUP($C197,ProductCode,DefaultIncentive,0,0),0)","v":0},{"$f":"IFERROR(_xlfn.XLOOKUP($C197,ProductCode,DefaultKwh,0,0),0)","v":0},{"$f":"IFERROR(_xlfn.XLOOKUP($C197,ProductCode,DefaultTherms,0,0),0)","v":0},{"$f":"IFERROR((_xlfn.XLOOKUP($C197,ProductCode,AllocationElectric,0,0))/100,0)","v":1},{"$f":"IFERROR((_xlfn.XLOOKUP($C197,ProductCode,AllocationGas,0,0))/100,0)","v":1},{"$f":"IFERROR(SUMIFS('Equipment Options'!I:I,'Equipment Options'!M:M,$C197),\"\")","v":0},0,0,0,0,0,0]
[null,"MSO Multifamily, Low Rise, Better Tier, 2019 code","MSMFLRBETTER2019",19091,0,0,0,1,1,{"$f":"IFERROR(SUMIFS('Equipment Options'!I:I,'Equipment Options'!M:M,$C198),\"\")","v":0},{"$f":"J198*F198","v":0},{"$f":"O198*H198","v":0},{"$f":"J198*G198","v":0},{"$f":"O198*I198","v":0},{"$f":"J198*E198","v":0},{"$f":"(_xlfn.XLOOKUP($C198,ProductCode,IncrementalCost,\"\",0))*J198","v":0}]
[null,"MS Elective, DHP in Living Units, 2019 code","MSDHP2019",19092,0,0,0,1,1,{"$f":"IFERROR(SUMIFS('Equipment Options'!I:I,'Equipment Options'!M:M,$C199),\"\")","v":0},0,0,0,0,0,0]
[null,"MSO Multifamily, Best Tier, 2021","MSMFBEST2021",19095,0,0,0,1,1,{"$f":"IFERROR(SUMIFS('Equipment Options'!I:I,'Equipment Options'!M:M,$C200),\"\")","v":0},0,0,0,0,0,0]
[null,"MSO Multifamily, Good Tier, 2021","MSMFGOOD2021",19096,0,0,0,1,1,{"$f":"IFERROR(SUMIFS('Equipment Options'!I:I,'Equipment Options'!M:M,$C201),\"\")","v":0},0,0,0,0,0,0]
[null,"MSO Multifamily, Better Tier, 2021","MSMFBETTER2021",19097,0,0,0,1,1,{"$f":"IFERROR(SUMIFS('Equipment Options'!I:I,'Equipment Options'!M:M,$C202),\"\")","v":0},0,0,0,0,0,0]
[null,"Infrared Radiant Heaters, Modulating, Gas Only","RADHEATMODGO",19725,5,0,3.63,0,1,{"$f":"IFERROR(SUMIFS('Equipment Options'!I:I,'Equipment Options'!M:M,$C203),\"\")","v":0},0,0,0,0,0,0]
[null,"Infrared Radiant Heaters, Non-Modulating, Gas Only","RADHEATNONMODGO",19726,4,0,2.73,0,1,{"$f":"IFERROR(SUMIFS('Equipment Options'!I:I,'Equipment Options'!M:M,$C204),\"\")","v":0},0,0,0,0,0,0]
[null,"Infrared Radiant Heaters, Modulating","RADHEATMOD",19727,5,1.95,3.63,0.03,0.97,{"$f":"IFERROR(SUMIFS('Equipment Options'!I:I,'Equipment Options'!M:M,$C205),\"\")","v":0},0,0,0,0,0,0]
[null,"Infrared Radiant Heaters, non-modulating","RADHEATNONMOD",19728,4,2.0499999999999998,2.73,0.04,0.96,{"$f":"IFERROR(SUMIFS('Equipment Options'!I:I,'Equipment Options'!M:M,$C206),\"\")","v":0},0,0,0,0,0,0]
[null,"High Efficiency Gas Fryer - Large Vat","HEGASFRYERLARG",19734,2000,0,317.69,0,1,{"$f":"IFERROR(SUMIFS('Equipment Options'!I:I,'Equipment Options'!M:M,$C207),\"\")","v":0},0,0,0,0,0,0]
[null,"High Efficiency Gas Fryer - Standard Vat","HEGASFRYERSTAN",19735,1500,0,259.74,0,1,{"$f":"IFERROR(SUMIFS('Equipment Options'!I:I,'Equipment Options'!M:M,$C208),\"\")","v":0},0,0,0,0,0,0]
[null,"High Efficiency Electric Fryer - Large Vat","HEELECFRYERLARG",19736,1000,1949.5,0,1,0,{"$f":"IFERROR(SUMIFS('Equipment Options'!I:I,'Equipment Options'!M:M,$C209),\"\")","v":0},0,0,0,0,0,0]
[null,"High Efficiency Electric Fryer - Standard or Split Vat","HEELECFRYERSTAN",19737,800,2724.82,0,1,0,{"$f":"IFERROR(SUMIFS('Equipment Options'!I:I,'Equipment Options'!M:M,$C210),\"\")","v":0},0,0,0,0,0,0]
[null,"MF Laundry Center, In-Unit, Gas DHW, GOT","LCGASGOT",19738,200,0,5.45,0,1,{"$f":"IFERROR(SUMIFS('Equipment Options'!I:I,'Equipment Options'!M:M,$C211),\"\")","v":0},0,0,0,0,0,0]
[null,"MF Laundry Center, In-Unit, Gas DHW","LCGAS",19739,200,106.85,5.45,0.64,0.36,{"$f":"IFERROR(SUMIFS('Equipment Options'!I:I,'Equipment Options'!M:M,$C212),\"\")","v":0},0,0,0,0,0,0]
[null,"MF Laundry Center, In-Unit, Electric DHW, EOT","LCELEEOT",19740,200,218.62,0,1,0,{"$f":"IFERROR(SUMIFS('Equipment Options'!I:I,'Equipment Options'!M:M,$C213),\"\")","v":0},0,0,0,0,0,0]
[null,"MF Laundry Center, In-Unit, Electric DHW","LCELE",19741,200,218.62,0.13,0.99,0.01,{"$f":"IFERROR(SUMIFS('Equipment Options'!I:I,'Equipment Options'!M:M,$C214),\"\")","v":0},0,0,0,0,0,0]
[null,"MF Clothes Washer, In-Unit, Gas DHW","WASHGASFL",19742,100,56.7,5.43,0.48,0.52,{"$f":"IFERROR(SUMIFS('Equipment Options'!I:I,'Equipment Options'!M:M,$C215),\"\")","v":0},0,0,0,0,0,0]
[null,"MF Clothes Washer, In-Unit, Electric DHW, EOT","WASHELEFLEOT",19743,100,168.47,0,1,0,{"$f":"IFERROR(SUMIFS('Equipment Options'!I:I,'Equipment Options'!M:M,$C216),\"\")","v":0},0,0,0,0,0,0]
[null,"MF Clothes Washer, In-Unit, Electric DHW","WASHELEFL",19744,100,168.47,0.11,0.99,0.01,{"$f":"IFERROR(SUMIFS('Equipment Options'!I:I,'Equipment Options'!M:M,$C217),\"\")","v":0},0,0,0,0,0,0]
[null,"Dishwasher - Pot, Pan, and Utensil - High Temp","DWPPUHTEMP",19745,1200,4243.87,0,1,0,{"$f":"IFERROR(SUMIFS('Equipment Options'!I:I,'Equipment Options'!M:M,$C218),\"\")","v":0},0,0,0,0,0,0]
[null,"Dishwasher - Multiple Tank Conveyor - High Temp","DWMTCONHTEMP",19746,900,4526,0,1,0,{"$f":"IFERROR(SUMIFS('Equipment Options'!I:I,'Equipment Options'!M:M,$C219),\"\")","v":0},0,0,0,0,0,0]
[null,"Dishwasher - Single Tank Conveyor - High temp - Ele WH","DWSTCONHTEMP",19747,900,9402.4,0,1,0,{"$f":"IFERROR(SUMIFS('Equipment Options'!I:I,'Equipment Options'!M:M,$C220),\"\")","v":0},0,0,0,0,0,0]
[null,"Dishwasher - Stationary Single Tank Door - High Temp","DWSTDHTEMP",19748,900,1624.25,0,1,0,{"$f":"IFERROR(SUMIFS('Equipment Options'!I:I,'Equipment Options'!M:M,$C221),\"\")","v":0},0,0,0,0,0,0]
[null,"Dishwasher - Under Counter - High Temp","DWUCHTEMP",19749,750,1776.33,0,1,0,{"$f":"IFERROR(SUMIFS('Equipment Options'!I:I,'Equipment Options'!M:M,$C222),\"\")","v":0},0,0,0,0,0,0]
[null,"Dishwasher - Under Counter - Low Temp","DWUCLTEMP",19750,750,1690.73,0,1,0,{"$f":"IFERROR(SUMIFS('Equipment Options'!I:I,'Equipment Options'!M:M,$C223),\"\")","v":0},0,0,0,0,0,0]
[null,"Hydronic heating circulator pump >1/6 - =1/4 horsepower","HHCECMSC1614HP",19861,250,171.33,0,1,0,{"$f":"IFERROR(SUMIFS('Equipment Options'!I:I,'Equipment Options'!M:M,$C224),\"\")","v":0},0,0,0,0,0,0]
[null,"Hydronic heating circulator pump >4.5 -  =5 horsepower","HHCECMSC450500HP",19863,750,2182.29,0,1,0,{"$f":"IFERROR(SUMIFS('Equipment Options'!I:I,'Equipment Options'!M:M,$C225),\"\")","v":0},0,0,0,0,0,0]
[null,"Hydronic heating circulator pump >3.5 -  =4.5 horsepower","HHCECMSC350450HP",19864,750,1745.83,0,1,0,{"$f":"IFERROR(SUMIFS('Equipment Options'!I:I,'Equipment Options'!M:M,$C226),\"\")","v":0},0,0,0,0,0,0]
[null,"Hydronic heating circulator pump >2.5 -  =3.5 horsepower","HHCECMSC250350HP",19865,750,1309.3699999999999,0,1,0,{"$f":"IFERROR(SUMIFS('Equipment Options'!I:I,'Equipment Options'!M:M,$C227),\"\")","v":0},0,0,0,0,0,0]
[null,"Hydronic heating circulator pump >1.75 -  =2.5 horsepower","HHCECMSC175250HP",19866,300,872.92,0,1,0,{"$f":"IFERROR(SUMIFS('Equipment Options'!I:I,'Equipment Options'!M:M,$C228),\"\")","v":0},0,0,0,0,0,0]
[null,"Hydronic heating circulator pump >3/4 -  =1.25 horsepower","HHCECMSC075125HP",19867,300,436.46,0,1,0,{"$f":"IFERROR(SUMIFS('Equipment Options'!I:I,'Equipment Options'!M:M,$C229),\"\")","v":0},0,0,0,0,0,0]
[null,"Hydronic heating circulator pump >1/2 -  =3/4 horsepower","HHCECMSC050075HP",19868,250,348.08,0,1,0,{"$f":"IFERROR(SUMIFS('Equipment Options'!I:I,'Equipment Options'!M:M,$C230),\"\")","v":0},0,0,0,0,0,0]
[null,"Hydronic heating circulator pump >1/4 - =1/2 horsepower","HHCECMSC025050HP",19869,250,259.70999999999998,0,1,0,{"$f":"IFERROR(SUMIFS('Equipment Options'!I:I,'Equipment Options'!M:M,$C231),\"\")","v":0},0,0,0,0,0,0]
[null,"Hydronic heating circulator pump >1.25 -  =1.75 horsepower","HHCECMSC125175HP",19870,300,654.69000000000005,0,1,0,{"$f":"IFERROR(SUMIFS('Equipment Options'!I:I,'Equipment Options'!M:M,$C232),\"\")","v":0},0,0,0,0,0,0]
[null,"Conveyor Broilers 20-26\", Elec Only Territory","BROILER2026EOT",19879,3000,6403.32,0,1,0,{"$f":"IFERROR(SUMIFS('Equipment Options'!I:I,'Equipment Options'!M:M,$C233),\"\")","v":0},0,0,0,0,0,0]
[null,"Conveyor Broilers <20\", Elec Only Territory","BROILER20EOT",19880,2500,7143.84,0,1,0,{"$f":"IFERROR(SUMIFS('Equipment Options'!I:I,'Equipment Options'!M:M,$C234),\"\")","v":0},0,0,0,0,0,0]
[null,"GAS Griddles - Single-sided","GASGRIDSING",19881,1000,0,207.07,0,0,{"$f":"IFERROR(SUMIFS('Equipment Options'!I:I,'Equipment Options'!M:M,$C235),\"\")","v":0},0,0,0,0,0,0]
[null,"Electric Griddles - Single-sided","ELECGRIDSING",19882,1000,1781.15,0,1,0,{"$f":"IFERROR(SUMIFS('Equipment Options'!I:I,'Equipment Options'!M:M,$C236),\"\")","v":0},0,0,0,0,0,0]
[null,"Rack Oven - Gas/Propane in EOT - Double Rack","RACKOVENDOUBGEOT",19883,600,522.12,0,1,0,{"$f":"IFERROR(SUMIFS('Equipment Options'!I:I,'Equipment Options'!M:M,$C237),\"\")","v":0},0,0,0,0,0,0]
[null,"Rack Oven - Gas Only  - Double Rack","RACKOVENDOUBGOT",19884,900,0,108.3,0,1,{"$f":"IFERROR(SUMIFS('Equipment Options'!I:I,'Equipment Options'!M:M,$C238),\"\")","v":0},0,0,0,0,0,0]
[null,"Rack Oven - Gas - Double Rack","RACKOVENDOUBGAS",19885,900,522.12,108.3,0.28999999999999998,0.71,{"$f":"IFERROR(SUMIFS('Equipment Options'!I:I,'Equipment Options'!M:M,$C239),\"\")","v":0},0,0,0,0,0,0]
[null,"Conveyor Broilers >26\", Gas Only Territory","BROILER26GOT",19886,3500,0,3161.26,0,1,{"$f":"IFERROR(SUMIFS('Equipment Options'!I:I,'Equipment Options'!M:M,$C240),\"\")","v":0},0,0,0,0,0,0]
[null,"Conveyor Broilers 20-26\", Gas Only Territory","BROILER2026GOT",19887,3000,0,1932.84,0,1,{"$f":"IFERROR(SUMIFS('Equipment Options'!I:I,'Equipment Options'!M:M,$C241),\"\")","v":0},0,0,0,0,0,0]
[null,"Conveyor Broilers <20\", Gas Only Territory","BROILER20GOT",19888,2500,0,1145.29,0,1,{"$f":"IFERROR(SUMIFS('Equipment Options'!I:I,'Equipment Options'!M:M,$C242),\"\")","v":0},0,0,0,0,0,0]
[null,"Electric Steam Cooker - Boilerless 5+ Pans - Non-School ","ELESTEAMCOOKBOIL5PNS",19889,600,1758.38,0,1,0,{"$f":"IFERROR(SUMIFS('Equipment Options'!I:I,'Equipment Options'!M:M,$C243),\"\")","v":0},0,0,0,0,0,0]
[null,"Conveyor Broilers >26\", Elec Only Territory","BROILER26EOT",19890,3500,23849.1,0,1,0,{"$f":"IFERROR(SUMIFS('Equipment Options'!I:I,'Equipment Options'!M:M,$C244),\"\")","v":0},0,0,0,0,0,0]
[null,"Electric Hot Food Holding Cabinet, Half Size","HOTCABINETHALF",19891,150,317.3,0,1,0,{"$f":"IFERROR(SUMIFS('Equipment Options'!I:I,'Equipment Options'!M:M,$C245),\"\")","v":0},0,0,0,0,0,0]
[null,"Gas Convection Oven - Full Size - Energy Star 3.0","GASCONOVENES3FULL",19892,500,0,157.80000000000001,0,1,{"$f":"IFERROR(SUMIFS('Equipment Options'!I:I,'Equipment Options'!M:M,$C246),\"\")","v":0},0,0,0,0,0,0]
[null,"Electric Combination Ovens 5-14 Pan Capacity ESTAR 3.0","COMBOOVES3514PANELE",19893,1000,1080.67,0,1,0,{"$f":"IFERROR(SUMIFS('Equipment Options'!I:I,'Equipment Options'!M:M,$C247),\"\")","v":0},0,0,0,0,0,0]
[null,"Electric Combination Ovens 15-28 Pan Capacity ESTAR 3.0","COMBOOVES31528PANELE",19894,600,615.74,0,1,0,{"$f":"IFERROR(SUMIFS('Equipment Options'!I:I,'Equipment Options'!M:M,$C248),\"\")","v":0},0,0,0,0,0,0]
[null,"Electric Combination Ovens 29-40 Pan Capacity ESTAR 3.0","COMBOOVES32940PANELE",19895,3000,4048.1,0,1,0,{"$f":"IFERROR(SUMIFS('Equipment Options'!I:I,'Equipment Options'!M:M,$C249),\"\")","v":0},0,0,0,0,0,0]
[null,"Gas Combination Ovens 5-14 Pan Capacity ESTAR 3.0","COMBOOVES3514PANGAS",19896,500,0,58.81,0,1,{"$f":"IFERROR(SUMIFS('Equipment Options'!I:I,'Equipment Options'!M:M,$C250),\"\")","v":0},0,0,0,0,0,0]
[null,"Gas Combination Ovens 15-28 Pan Capacity ESTAR 3.0","COMBOOVES31528PANGAS",19897,500,0,54.28,0,1,{"$f":"IFERROR(SUMIFS('Equipment Options'!I:I,'Equipment Options'!M:M,$C251),\"\")","v":0},0,0,0,0,0,0]
[null,"Conveyor Broilers <20\", Full Territory","BROILER20FULL",19898,2500,7143.84,1145.29,0.35,0.65,{"$f":"IFERROR(SUMIFS('Equipment Options'!I:I,'Equipment Options'!M:M,$C252),\"\")","v":0},0,0,0,0,0,0]
[null,"Conveyor Broilers >26\", Full Territory","BROILER26FULL",19899,3500,23849.1,3161.26,0.39,0.61,{"$f":"IFERROR(SUMIFS('Equipment Options'!I:I,'Equipment Options'!M:M,$C253),\"\")","v":0},0,0,0,0,0,0]
[null,"Conveyor Broilers, 20-26\", Full Territory","BROILER2026FULL",19900,3000,6403.32,1932.84,0.22,0.78,{"$f":"IFERROR(SUMIFS('Equipment Options'!I:I,'Equipment Options'!M:M,$C254),\"\")","v":0},0,0,0,0,0,0]
[null,"Gas Steam Cooker - Boilerless 3+ Pans - School","GASSTEAMCOOKBOIL3PS",19901,1000,0,111.75,0,1,{"$f":"IFERROR(SUMIFS('Equipment Options'!I:I,'Equipment Options'!M:M,$C255),\"\")","v":0},0,0,0,0,0,0]
[null,"Gas Steam Cooker - Steam Generator 3+ Pans - Non-School","GASSTEAMCOOKGEN3PNS",19902,1000,0,285.05,0,1,{"$f":"IFERROR(SUMIFS('Equipment Options'!I:I,'Equipment Options'!M:M,$C256),\"\")","v":0},0,0,0,0,0,0]
[null,"Gas Steam Cooker - Boilerless 3+ Pans - Non-School","GASSTEAMCOOKBOIL3PNS",19903,1000,0,337.74,0,1,{"$f":"IFERROR(SUMIFS('Equipment Options'!I:I,'Equipment Options'!M:M,$C257),\"\")","v":0},0,0,0,0,0,0]
[null,"Electric Steam Cooker - Generator 3+ Pans - School ","ELESTEAMCOOKGEN3PS",19904,600,787.83,0,1,0,{"$f":"IFERROR(SUMIFS('Equipment Options'!I:I,'Equipment Options'!M:M,$C258),\"\")","v":0},0,0,0,0,0,0]
[null,"Electric Steam Cooker - Boilerless 5+ Pans - School ","ELESTEAMCOOKBOIL5PS",19905,600,587.47,0,1,0,{"$f":"IFERROR(SUMIFS('Equipment Options'!I:I,'Equipment Options'!M:M,$C259),\"\")","v":0},0,0,0,0,0,0]
[null,"Electric Steam Cooker - Boilerless 3-4 Pans - School ","ELESTEAMCOOKBOIL3PS",19906,400,427.77,0,1,0,{"$f":"IFERROR(SUMIFS('Equipment Options'!I:I,'Equipment Options'!M:M,$C260),\"\")","v":0},0,0,0,0,0,0]
[null,"Electric Steam Cooker - Generator 3+ Pans - Non-School ","ELESTEAMCOOKGEN3PNS",19907,{"$f":"IFERROR(_xlfn.XLOOKUP($C261,ProductCode,DefaultIncentive,0,0),0)","v":2000},{"$f":"IFERROR(_xlfn.XLOOKUP($C261,ProductCode,DefaultKwh,0,0),0)","v":2499.3200000000002},{"$f":"IFERROR(_xlfn.XLOOKUP($C261,ProductCode,DefaultTherms,0,0),0)","v":0},{"$f":"IFERROR((_xlfn.XLOOKUP($C261,ProductCode,AllocationElectric,0,0))/100,0)","v":1},{"$f":"IFERROR((_xlfn.XLOOKUP($C261,ProductCode,AllocationGas,0,0))/100,0)","v":0},{"$f":"IFERROR(SUMIFS('Equipment Options'!I:I,'Equipment Options'!M:M,$C261),\"\")","v":0},0,0,0,0,0,0]
[null,"Electric Steam Cooker - Boilerless 3-4 Pans - Non-School ","ELESTEAMCOOKBOIL3PNS",19908,400,1308.9100000000001,0,1,0,{"$f":"IFERROR(SUMIFS('Equipment Options'!I:I,'Equipment Options'!M:M,$C262),\"\")","v":0},{"$f":"J262*F262","v":0},{"$f":"O262*H262","v":0},{"$f":"J262*G262","v":0},{"$f":"O262*I262","v":0},{"$f":"J262*E262","v":0},{"$f":"(_xlfn.XLOOKUP($C262,ProductCode,IncrementalCost,\"\",0))*J262","v":0}]
[null,"Gas Combination Ovens 29-40 Pan Capacity ESTAR 3.0","COMBOOVES32940PANGAS",19909,500,0,65.290000000000006,0,1,{"$f":"IFERROR(SUMIFS('Equipment Options'!I:I,'Equipment Options'!M:M,$C263),\"\")","v":0},0,0,0,0,0,0]
[null,"Electric Convection Oven - Full Size - Energy Star 3.0","ELECONVOVES3FULL",19910,1000,1450.58,0,1,0,{"$f":"IFERROR(SUMIFS('Equipment Options'!I:I,'Equipment Options'!M:M,$C264),\"\")","v":0},0,0,0,0,0,0]
[null,"Bath Fan - Continuous single speed, >=10 cfm/W, <15 cfm/W","BFSS10",19923,25,112.63,0,1,0,{"$f":"IFERROR(SUMIFS('Equipment Options'!I:I,'Equipment Options'!M:M,$C265),\"\")","v":0},0,0,0,0,0,0]
[null,"Bath Fan - Continuous single speed, >=15 cfm/W","BFSS15",19924,30,127.23,0,1,0,{"$f":"IFERROR(SUMIFS('Equipment Options'!I:I,'Equipment Options'!M:M,$C266),\"\")","v":0},0,0,0,0,0,0]
[null,"Bath Fan - Continuous two-speed, <90 cfm, >=5 cfm/W, <10 cfm/W","BFTSSM5",19925,15,73.3,0,1,0,{"$f":"IFERROR(SUMIFS('Equipment Options'!I:I,'Equipment Options'!M:M,$C267),\"\")","v":0},0,0,0,0,0,0]
[null,"Bath Fan - Continuous two-speed, <90 cfm, >=10 cfm/W, <15 cfm/W","BFTSSM10",19926,25,119.95,0,1,0,{"$f":"IFERROR(SUMIFS('Equipment Options'!I:I,'Equipment Options'!M:M,$C268),\"\")","v":0},0,0,0,0,0,0]
[null,"Bath Fan - Continuous two-speed, <90 cfm,  >=15 cfm/W","BFTSSM15",19927,30,135.5,0,1,0,{"$f":"IFERROR(SUMIFS('Equipment Options'!I:I,'Equipment Options'!M:M,$C269),\"\")","v":0},0,0,0,0,0,0]
[null,"Bath Fan - two-speed, >90 cfm, >=5 cfm/W, <10 cfm/W","BFTSLG5",19928,15,70.319999999999993,0,1,0,{"$f":"IFERROR(SUMIFS('Equipment Options'!I:I,'Equipment Options'!M:M,$C270),\"\")","v":0},0,0,0,0,0,0]
[null,"Bath Fan - two-speed, >90 cfm, >=5 cfm/W,  >=10 cfm/W, <15 cfm/W","BFTSLG10",19929,25,119.81,0,1,0,{"$f":"IFERROR(SUMIFS('Equipment Options'!I:I,'Equipment Options'!M:M,$C271),\"\")","v":0},0,0,0,0,0,0]
[null,"Bath Fan - two-speed, >90 cfm, >=5 cfm/W,  >=15 cfm/W","BFTSLG15",19930,30,136.31,0,1,0,{"$f":"IFERROR(SUMIFS('Equipment Options'!I:I,'Equipment Options'!M:M,$C272),\"\")","v":0},0,0,0,0,0,0]
[null,"Bath Fan - Continuous single speed, <10 cfm/W","BFSS5",19943,15,68.83,0,1,0,{"$f":"IFERROR(SUMIFS('Equipment Options'!I:I,'Equipment Options'!M:M,$C273),\"\")","v":0},0,0,0,0,0,0]
[null,"Replacement and New High-Speed Door on Walk-In Cooler","HISPDDRWLKINCOOLR",19954,11000,27219.95,0,1,0,{"$f":"IFERROR(SUMIFS('Equipment Options'!I:I,'Equipment Options'!M:M,$C274),\"\")","v":0},0,0,0,0,0,0]
[null,"Replacement and New High-Speed Door on Walk-In Freezer-Ele Heat","HISPDDRWLKINFRZEH",19955,14000,165200.91,0,1,0,{"$f":"IFERROR(SUMIFS('Equipment Options'!I:I,'Equipment Options'!M:M,$C275),\"\")","v":0},0,0,0,0,0,0]
[null,"Replacement and New High-Speed Door on Walk-In Freezer-HP Heat","HISPDDRWLKINFRZHP",19956,14000,165041.93,0,1,0,{"$f":"IFERROR(SUMIFS('Equipment Options'!I:I,'Equipment Options'!M:M,$C276),\"\")","v":0},0,0,0,0,0,0]
[null,"Replacement and New High-Speed Door on Walk-In Freezer-Gas H-EOT","HISPDDRWLKINFRZGHET",19957,14000,164893.92000000001,0,1,0,{"$f":"IFERROR(SUMIFS('Equipment Options'!I:I,'Equipment Options'!M:M,$C277),\"\")","v":0},0,0,0,0,0,0]
[null,"Replacement and New High-Speed Door on Walk-In Freezer-Gas H","HISPDDRWLKINFRZGH",19958,14000,164893.92000000001,13.7,1,0,{"$f":"IFERROR(SUMIFS('Equipment Options'!I:I,'Equipment Options'!M:M,$C278),\"\")","v":0},0,0,0,0,0,0]

{"sheet":"EquipOpt Lookups","index":3,"n_rows":1063,"n_cols":15,"rows_kept":1063,"cut":false,"hidden":true,"merged":[]}
[null,"Zipcode","CoolingZone","HeatingZone","Combined",null,"Electric",null,"Gas",null,"Fuel/DHW Type",null,"Code Year",null,"Building Type"]
[null,97001,2,2,{"$f":"\"CZ\"&C2&\" \"&\"HZ\"&D2","v":"CZ2 HZ2"},null,"Select Electric Utility",null,"Select Gas Utility",null,"Select Type",null,"Select Code Year",null,"Select Building Type"]
[null,97002,2,1,{"$f":"\"CZ\"&C3&\" \"&\"HZ\"&D3","v":"CZ2 HZ1"},null,"Pacific Power",null,"Cascade Natural Gas",null,"Electric",null,"2019 Code Year",null,"Lodging (Hotel/Motel/Dormitory)"]
[null,97003,2,1,"CZ2 HZ1",null,"Portland General Electric",null,"NW Natural",null,"Gas",null,"2021 Code Year",null,"Multifamily"]
[null,97004,2,1,"CZ2 HZ1",null,"Other",null,"Avista",null,"Both",null,null,null,"Commercial and Other"]
[null,97005,2,1,"CZ2 HZ1",null,null,null,"None"]
[null,97006,2,1,"CZ2 HZ1"]
[null,97007,2,1,"CZ2 HZ1"]
[null,97008,2,1,"CZ2 HZ1"]
[null,97009,2,1,"CZ2 HZ1"]
[null,97011,1,1,"CZ1 HZ1",null,"DryerType",null,"HeatPumpWaterHeaterType",null,"Reach-In Glass Door Space Heat",null,null,null,"BaseboardTypes"]
[null,97013,2,1,"CZ2 HZ1",null,"<Select Dryer Type>",null,"<Select type>",null,"<Select Space Heat Type>",null,null,null,"<Select Building Type>"]
[null,97014,2,1,"CZ2 HZ1",null,"Electric Dryer",null,"Tier 1",null,"Electric Resistance",null,null,null,"Dorm"]
[null,97015,2,1,"CZ2 HZ1",null,"Gas Dryer",null,"Tier 2",null,"Heat Pump",null,null,null,"Lodging"]
[null,97016,1,1,"CZ1 HZ1",null,null,null,"Tier 2, ducted",null,"Natural Gas",null,null,null,"Multifamily"]
[null,97017,1,1,"CZ1 HZ1",null,null,null,"Tier 3"]
[null,97018,2,1,"CZ2 HZ1",null,null,null,"Tier 3, ducted"]
[null,97019,1,1,"CZ1 HZ1",null,null,null,"Tier 4 & up"]
[null,97020,2,1,"CZ2 HZ1",null,null,null,"Tier 4 & up, ducted"]
[null,97021,2,1,"CZ2 HZ1"]
[null,97022,2,1,"CZ2 HZ1"]
[null,97023,1,1,"CZ1 HZ1"]
[null,97024,2,1,"CZ2 HZ1"]
[null,97026,2,1,"CZ2 HZ1"]
[null,97027,2,1,"CZ2 HZ1"]
[null,97028,1,3,"CZ1 HZ3"]
[null,97029,2,2,"CZ2 HZ2"]
[null,97030,1,1,"CZ1 HZ1"]
[null,97031,2,1,"CZ2 HZ1"]
[null,97032,2,1,"CZ2 HZ1"]
[null,97033,2,2,"CZ2 HZ2"]
[null,97034,2,1,"CZ2 HZ1"]
[null,97035,2,1,"CZ2 HZ1"]
[null,97036,2,1,"CZ2 HZ1"]
[null,97037,2,2,"CZ2 HZ2"]
[null,97038,2,1,"CZ2 HZ1"]
[null,97039,2,2,"CZ2 HZ2"]
[null,97040,3,1,"CZ3 HZ1"]
[null,97041,1,2,"CZ1 HZ2"]
[null,97042,2,1,"CZ2 HZ1"]
[null,97044,2,1,"CZ2 HZ1"]
[null,97045,2,1,"CZ2 HZ1"]
[null,97048,1,1,"CZ1 HZ1"]
[null,97049,1,2,"CZ1 HZ2"]
[null,97050,2,1,"CZ2 HZ1"]
[null,97051,2,1,"CZ2 HZ1"]
[null,97053,2,1,"CZ2 HZ1"]
[null,97054,2,1,"CZ2 HZ1"]
[null,97055,1,1,"CZ1 HZ1"]
[null,97056,2,1,"CZ2 HZ1"]
[null,97058,3,1,"CZ3 HZ1"]
[null,97060,1,1,"CZ1 HZ1"]
[null,97062,2,1,"CZ2 HZ1"]
[null,97063,2,2,"CZ2 HZ2"]
[null,97064,1,1,"CZ1 HZ1"]
[null,97065,2,1,"CZ2 HZ1"]
[null,97067,1,1,"CZ1 HZ1"]
[null,97068,2,1,"CZ2 HZ1"]
[null,97070,2,1,"CZ2 HZ1",null,"≥"]
[null,97071,2,1,"CZ2 HZ1",null,"≤"]
[null,97075,2,1,"CZ2 HZ1"]
[null,97078,2,1,"CZ2 HZ1"]
[null,97080,1,1,"CZ1 HZ1"]
[null,97086,2,1,"CZ2 HZ1"]
[null,97089,2,1,"CZ2 HZ1"]
[null,97101,1,1,"CZ1 HZ1"]
[null,97102,1,1,{"$f":"\"CZ\"&C67&\" \"&\"HZ\"&D67","v":"CZ1 HZ1"}]
[null,97103,1,1,"CZ1 HZ1"]
[null,97106,2,1,"CZ2 HZ1"]
[null,97107,1,1,"CZ1 HZ1"]
[null,97108,1,1,"CZ1 HZ1"]
[null,97109,1,1,"CZ1 HZ1"]
[null,97110,1,1,"CZ1 HZ1"]
[null,97111,2,1,"CZ2 HZ1"]
[null,97112,1,1,"CZ1 HZ1"]
[null,97113,2,1,"CZ2 HZ1"]
[null,97114,1,1,"CZ1 HZ1"]
[null,97115,2,1,"CZ2 HZ1"]
[null,97116,2,1,"CZ2 HZ1"]
[null,97117,1,1,"CZ1 HZ1"]
[null,97118,1,1,"CZ1 HZ1"]
[null,97119,2,1,"CZ2 HZ1"]
[null,97121,1,1,"CZ1 HZ1"]
[null,97122,1,1,"CZ1 HZ1"]
[null,97123,1,1,"CZ1 HZ1"]
[null,97124,1,1,"CZ1 HZ1"]
[null,97125,1,1,"CZ1 HZ1"]
[null,97127,2,1,"CZ2 HZ1"]
[null,97128,2,1,"CZ2 HZ1"]
[null,97130,1,1,"CZ1 HZ1"]
[null,97131,1,1,"CZ1 HZ1"]
[null,97132,2,1,"CZ2 HZ1"]
[null,97133,1,1,"CZ1 HZ1"]
[null,97134,1,1,"CZ1 HZ1"]
[null,97135,1,1,"CZ1 HZ1"]
[null,97136,1,1,"CZ1 HZ1"]
[null,97137,1,1,"CZ1 HZ1"]
[null,97138,1,1,"CZ1 HZ1"]
[null,97140,2,1,"CZ2 HZ1"]
[null,97141,1,1,"CZ1 HZ1"]
[null,97144,1,1,"CZ1 HZ1"]
[null,97146,1,1,"CZ1 HZ1"]
[null,97147,1,1,"CZ1 HZ1"]
[null,97148,2,1,"CZ2 HZ1"]
[null,97149,1,1,"CZ1 HZ1"]
[null,97201,2,1,"CZ2 HZ1"]
[null,97202,2,1,"CZ2 HZ1"]
[null,97203,2,1,"CZ2 HZ1"]
[null,97204,2,1,"CZ2 HZ1"]
[null,97205,2,1,"CZ2 HZ1"]
[null,97206,2,1,"CZ2 HZ1"]
[null,97207,2,1,"CZ2 HZ1"]
[null,97208,2,1,"CZ2 HZ1"]
[null,97209,2,1,"CZ2 HZ1"]
[null,97210,2,1,"CZ2 HZ1"]
[null,97211,2,1,"CZ2 HZ1"]
[null,97212,2,1,"CZ2 HZ1"]
[null,97213,2,1,"CZ2 HZ1"]
[null,97214,2,1,"CZ2 HZ1"]
[null,97215,2,1,"CZ2 HZ1"]
[null,97216,2,1,"CZ2 HZ1"]
[null,97217,2,1,"CZ2 HZ1"]
[null,97218,2,1,"CZ2 HZ1"]
[null,97219,2,1,"CZ2 HZ1"]
[null,97220,2,1,"CZ2 HZ1"]
[null,97221,2,1,"CZ2 HZ1"]
[null,97222,2,1,"CZ2 HZ1"]
[null,97223,2,1,"CZ2 HZ1"]
[null,97224,2,1,"CZ2 HZ1"]
[null,97225,2,1,"CZ2 HZ1"]
[null,97227,2,1,{"$f":"\"CZ\"&C131&\" \"&\"HZ\"&D131","v":"CZ2 HZ1"}]
[null,97228,2,1,"CZ2 HZ1"]
[null,97229,2,1,"CZ2 HZ1"]
[null,97230,1,1,"CZ1 HZ1"]
[null,97231,2,1,"CZ2 HZ1"]
[null,97232,2,1,"CZ2 HZ1"]
[null,97233,2,1,"CZ2 HZ1"]
[null,97236,2,1,"CZ2 HZ1"]
[null,97238,2,1,"CZ2 HZ1"]
[null,97239,2,1,"CZ2 HZ1"]
[null,97240,2,1,"CZ2 HZ1"]
[null,97242,2,1,"CZ2 HZ1"]
[null,97250,2,1,"CZ2 HZ1"]
[null,97266,2,1,"CZ2 HZ1"]
[null,97267,2,1,"CZ2 HZ1"]
[null,97268,2,1,"CZ2 HZ1"]
[null,97269,2,1,"CZ2 HZ1"]
[null,97280,2,1,"CZ2 HZ1"]
[null,97281,2,1,"CZ2 HZ1"]
[null,97282,2,1,"CZ2 HZ1"]
[null,97283,2,1,"CZ2 HZ1"]
[null,97286,2,1,"CZ2 HZ1"]
[null,97290,2,1,"CZ2 HZ1"]
[null,97291,2,1,"CZ2 HZ1"]
[null,97292,2,1,"CZ2 HZ1"]
[null,97293,2,1,"CZ2 HZ1"]
[null,97294,2,1,"CZ2 HZ1"]
[null,97296,2,1,"CZ2 HZ1"]
[null,97298,2,1,"CZ2 HZ1"]
[null,97301,2,1,"CZ2 HZ1"]
[null,97302,2,1,"CZ2 HZ1"]
[null,97303,2,1,"CZ2 HZ1"]
[null,97304,1,1,"CZ1 HZ1"]
[null,97305,2,1,"CZ2 HZ1"]
[null,97306,1,1,"CZ1 HZ1"]
[null,97307,2,1,"CZ2 HZ1"]
[null,97308,2,1,"CZ2 HZ1"]
[null,97309,2,1,"CZ2 HZ1"]
[null,97317,2,1,"CZ2 HZ1"]
[null,97321,1,1,"CZ1 HZ1"]
[null,97322,1,1,"CZ1 HZ1"]
[null,97324,1,1,"CZ1 HZ1"]
[null,97325,1,1,"CZ1 HZ1"]
[null,97326,1,1,"CZ1 HZ1"]
[null,97327,2,1,"CZ2 HZ1"]
[null,97329,2,1,"CZ2 HZ1"]
[null,97330,1,1,"CZ1 HZ1"]
[null,97331,1,1,"CZ1 HZ1"]
[null,97333,1,1,"CZ1 HZ1"]
[null,97335,2,1,"CZ2 HZ1"]
[null,97336,1,1,"CZ1 HZ1"]
[null,97338,1,1,"CZ1 HZ1"]
[null,97339,1,1,"CZ1 HZ1"]
[null,97341,1,1,"CZ1 HZ1"]
[null,97342,2,1,"CZ2 HZ1"]
[null,97343,1,1,"CZ1 HZ1"]
[null,97344,1,1,"CZ1 HZ1"]
[null,97345,1,1,"CZ1 HZ1"]
[null,97346,1,1,"CZ1 HZ1"]
[null,97347,1,1,"CZ1 HZ1"]
[null,97348,1,1,"CZ1 HZ1"]
[null,97350,1,2,"CZ1 HZ2"]
[null,97351,2,1,"CZ2 HZ1"]
[null,97352,1,1,"CZ1 HZ1"]
[null,97355,2,1,{"$f":"\"CZ\"&C195&\" \"&\"HZ\"&D195","v":"CZ2 HZ1"}]
[null,97357,1,1,"CZ1 HZ1"]
[null,97358,1,1,"CZ1 HZ1"]
[null,97360,1,1,"CZ1 HZ1"]
[null,97361,1,1,"CZ1 HZ1"]
[null,97362,2,1,"CZ2 HZ1"]
[null,97364,1,1,"CZ1 HZ1"]
[null,97365,1,1,"CZ1 HZ1"]
[null,97366,1,1,"CZ1 HZ1"]
[null,97367,1,1,"CZ1 HZ1"]
[null,97368,1,1,"CZ1 HZ1"]
[null,97369,1,1,"CZ1 HZ1"]
[null,97370,1,1,"CZ1 HZ1"]
[null,97371,1,1,"CZ1 HZ1"]
[null,97374,1,1,"CZ1 HZ1"]
[null,97375,1,2,"CZ1 HZ2"]
[null,97376,1,1,"CZ1 HZ1"]
[null,97377,1,1,"CZ1 HZ1"]
[null,97378,1,1,"CZ1 HZ1"]
[null,97380,1,1,"CZ1 HZ1"]
[null,97381,2,1,"CZ2 HZ1"]
[null,97383,1,1,"CZ1 HZ1"]
[null,97385,1,1,"CZ1 HZ1"]
[null,97386,1,1,"CZ1 HZ1"]
[null,97388,1,1,"CZ1 HZ1"]
[null,97389,1,1,"CZ1 HZ1"]
[null,97390,1,1,"CZ1 HZ1"]
[null,97391,1,1,"CZ1 HZ1"]
[null,97392,2,1,"CZ2 HZ1"]
[null,97394,1,1,"CZ1 HZ1"]
[null,97396,1,1,"CZ1 HZ1"]
[null,97401,1,1,"CZ1 HZ1"]
[null,97402,1,1,"CZ1 HZ1"]
[null,97403,1,1,"CZ1 HZ1"]
[null,97404,1,1,"CZ1 HZ1"]
[null,97405,1,1,"CZ1 HZ1"]
[null,97406,3,1,"CZ3 HZ1"]
[null,97408,1,1,"CZ1 HZ1"]
[null,97410,2,1,"CZ2 HZ1"]
[null,97411,1,1,"CZ1 HZ1"]
[null,97412,1,1,"CZ1 HZ1"]
[null,97413,3,1,"CZ3 HZ1"]
[null,97414,1,1,"CZ1 HZ1"]
[null,97415,1,1,"CZ1 HZ1"]
[null,97416,1,1,"CZ1 HZ1"]
[null,97417,3,1,"CZ3 HZ1"]
[null,97419,1,1,"CZ1 HZ1"]
[null,97420,1,1,"CZ1 HZ1"]
[null,97423,1,1,"CZ1 HZ1"]
[null,97424,1,1,"CZ1 HZ1"]
[null,97426,1,1,"CZ1 HZ1"]
[null,97429,2,1,"CZ2 HZ1"]
[null,97430,1,2,"CZ1 HZ2"]
[null,97431,1,1,"CZ1 HZ1"]
[null,97432,3,1,"CZ3 HZ1"]
[null,97434,2,1,"CZ2 HZ1"]
[null,97435,1,1,"CZ1 HZ1"]
[null,97436,2,1,"CZ2 HZ1"]
[null,97437,1,1,"CZ1 HZ1"]
[null,97438,1,1,"CZ1 HZ1"]
[null,97439,1,1,"CZ1 HZ1"]
[null,97440,1,1,"CZ1 HZ1"]
[null,97441,1,1,"CZ1 HZ1"]
[null,97442,2,1,"CZ2 HZ1"]
[null,97443,1,1,{"$f":"\"CZ\"&C259&\" \"&\"HZ\"&D259","v":"CZ1 HZ1"}]
[null,97444,1,1,"CZ1 HZ1"]
[null,97446,1,1,"CZ1 HZ1"]
[null,97447,1,1,"CZ1 HZ1"]
[null,97448,1,1,"CZ1 HZ1"]
[null,97449,1,1,"CZ1 HZ1"]
[null,97450,1,1,"CZ1 HZ1"]
[null,97451,1,1,"CZ1 HZ1"]
[null,97452,1,1,"CZ1 HZ1"]
[null,97453,1,1,"CZ1 HZ1"]
[null,97454,2,1,"CZ2 HZ1"]
[null,97455,1,1,"CZ1 HZ1"]
[null,97456,1,1,"CZ1 HZ1"]
[null,97457,3,1,"CZ3 HZ1"]
[null,97458,1,1,"CZ1 HZ1"]
[null,97459,1,1,"CZ1 HZ1"]
[null,97461,1,1,"CZ1 HZ1"]
[null,97462,2,1,"CZ2 HZ1"]
[null,97463,1,1,"CZ1 HZ1"]
[null,97465,3,1,"CZ3 HZ1"]
[null,97466,1,1,"CZ1 HZ1"]
[null,97467,1,1,"CZ1 HZ1"]
[null,97469,3,1,"CZ3 HZ1"]
[null,97470,1,1,"CZ1 HZ1"]
[null,97471,3,1,"CZ3 HZ1"]
[null,97473,2,1,"CZ2 HZ1"]
[null,97475,1,1,"CZ1 HZ1"]
[null,97476,3,1,"CZ3 HZ1"]
[null,97477,1,1,"CZ1 HZ1"]
[null,97478,1,1,"CZ1 HZ1"]
[null,97479,3,1,"CZ3 HZ1"]
[null,97480,1,1,"CZ1 HZ1"]
[null,97481,3,1,"CZ3 HZ1"]
[null,97484,2,1,"CZ2 HZ1"]
[null,97486,3,1,"CZ3 HZ1"]
[null,97487,1,1,"CZ1 HZ1"]
[null,97488,1,1,"CZ1 HZ1"]
[null,97489,2,1,"CZ2 HZ1"]
[null,97490,1,1,"CZ1 HZ1"]
[null,97492,1,1,"CZ1 HZ1"]
[null,97493,1,1,"CZ1 HZ1"]
[null,97494,1,1,"CZ1 HZ1"]
[null,97495,2,1,"CZ2 HZ1"]
[null,97496,3,1,"CZ3 HZ1"]
[null,97497,2,1,"CZ2 HZ1"]
[null,97498,1,1,"CZ1 HZ1"]
[null,97499,2,1,"CZ2 HZ1"]
[null,97501,3,1,"CZ3 HZ1"]
[null,97502,3,1,"CZ3 HZ1"]
[null,97503,3,1,"CZ3 HZ1"]
[null,97504,3,1,"CZ3 HZ1"]
[null,97520,2,1,"CZ2 HZ1"]
[null,97522,2,1,"CZ2 HZ1"]
[null,97523,3,1,"CZ3 HZ1"]
[null,97524,3,1,"CZ3 HZ1"]
[null,97525,3,1,"CZ3 HZ1"]
[null,97526,3,1,"CZ3 HZ1"]
[null,97527,3,1,"CZ3 HZ1"]
[null,97528,3,1,"CZ3 HZ1"]
[null,97530,2,1,"CZ2 HZ1"]
[null,97531,3,1,"CZ3 HZ1"]
[null,97532,3,1,"CZ3 HZ1"]
[null,97533,3,1,"CZ3 HZ1"]
[null,97534,3,1,"CZ3 HZ1"]
[null,97535,3,1,{"$f":"\"CZ\"&C323&\" \"&\"HZ\"&D323","v":"CZ3 HZ1"}]
[null,97536,2,1,"CZ2 HZ1"]
[null,97537,3,1,"CZ3 HZ1"]
[null,97538,3,1,"CZ3 HZ1"]
[null,97539,2,1,"CZ2 HZ1"]
[null,97540,2,1,"CZ2 HZ1"]
[null,97541,2,1,"CZ2 HZ1"]
[null,97543,3,1,"CZ3 HZ1"]
[null,97544,3,1,"CZ3 HZ1"]
[null,97601,1,2,"CZ1 HZ2"]
[null,97602,1,2,"CZ1 HZ2"]
[null,97603,1,2,"CZ1 HZ2"]
[null,97620,1,2,"CZ1 HZ2"]
[null,97621,1,2,"CZ1 HZ2"]
[null,97622,2,2,"CZ2 HZ2"]
[null,97623,1,2,"CZ1 HZ2"]
[null,97624,1,3,"CZ1 HZ3"]
[null,97625,1,2,"CZ1 HZ2"]
[null,97626,1,2,"CZ1 HZ2"]
[null,97627,1,2,"CZ1 HZ2"]
[null,97630,2,2,"CZ2 HZ2"]
[null,97632,1,2,"CZ1 HZ2"]
[null,97633,1,2,"CZ1 HZ2"]
[null,97634,1,2,"CZ1 HZ2"]
[null,97635,2,2,"CZ2 HZ2"]
[null,97636,1,2,"CZ1 HZ2"]
[null,97637,1,2,"CZ1 HZ2"]
[null,97638,1,2,"CZ1 HZ2"]
[null,97639,1,2,"CZ1 HZ2"]
[null,97640,2,2,"CZ2 HZ2"]
[null,97641,1,2,"CZ1 HZ2"]
[null,97701,1,2,"CZ1 HZ2"]
[null,97702,1,2,"CZ1 HZ2"]
[null,97703,1,2,"CZ1 HZ2"]
[null,97707,1,3,"CZ1 HZ3"]
[null,97708,1,2,"CZ1 HZ2"]
[null,97709,1,2,"CZ1 HZ2"]
[null,97710,3,2,"CZ3 HZ2"]
[null,97711,2,2,"CZ2 HZ2"]
[null,97712,1,3,"CZ1 HZ3"]
[null,97720,2,2,"CZ2 HZ2"]
[null,97721,1,2,"CZ1 HZ2"]
[null,97722,1,2,"CZ1 HZ2"]
[null,97730,1,2,"CZ1 HZ2"]
[null,97731,1,3,"CZ1 HZ3"]
[null,97732,1,2,"CZ1 HZ2"]
[null,97733,1,3,"CZ1 HZ3"]
[null,97734,2,2,"CZ2 HZ2"]
[null,97735,1,2,"CZ1 HZ2"]
[null,97736,3,2,"CZ3 HZ2"]
[null,97737,1,2,"CZ1 HZ2"]
[null,97738,2,2,"CZ2 HZ2"]
[null,97739,1,2,"CZ1 HZ2"]
[null,97741,1,2,"CZ1 HZ2"]
[null,97750,2,2,"CZ2 HZ2"]
[null,97751,1,2,"CZ1 HZ2"]
[null,97752,1,2,"CZ1 HZ2"]
[null,97753,1,2,"CZ1 HZ2"]
[null,97754,2,2,"CZ2 HZ2"]
[null,97756,2,2,"CZ2 HZ2"]
[null,97758,2,2,"CZ2 HZ2"]
[null,97759,1,2,"CZ1 HZ2"]
[null,97760,2,2,"CZ2 HZ2"]
[null,97801,3,1,"CZ3 HZ1"]
[null,97810,2,1,{"$f":"\"CZ\"&C387&\" \"&\"HZ\"&D387","v":"CZ2 HZ1"}]
[null,97812,2,1,"CZ2 HZ1"]
[null,97813,2,1,"CZ2 HZ1"]
[null,97814,2,2,"CZ2 HZ2"]
[null,97817,1,3,"CZ1 HZ3"]
[null,97818,3,1,"CZ3 HZ1"]
[null,97819,1,3,"CZ1 HZ3"]
[null,97820,1,2,"CZ1 HZ2"]
[null,97823,2,2,"CZ2 HZ2"]
[null,97824,2,2,"CZ2 HZ2"]
[null,97825,1,2,"CZ1 HZ2"]
[null,97826,3,1,"CZ3 HZ1"]
[null,97827,1,2,"CZ1 HZ2"]
[null,97828,1,3,"CZ1 HZ3"]
[null,97830,2,2,"CZ2 HZ2"]
[null,97833,2,2,"CZ2 HZ2"]
[null,97834,2,2,"CZ2 HZ2"]
[null,97835,2,1,"CZ2 HZ1"]
[null,97836,2,2,"CZ2 HZ2"]
[null,97837,1,3,"CZ1 HZ3"]
[null,97838,3,1,"CZ3 HZ1"]
[null,97839,2,1,"CZ2 HZ1"]
[null,97840,2,2,"CZ2 HZ2"]
[null,97841,1,2,"CZ1 HZ2"]
[null,97842,1,2,"CZ1 HZ2"]
[null,97843,2,1,"CZ2 HZ1"]
[null,97844,3,1,"CZ3 HZ1"]
[null,97845,1,2,"CZ1 HZ2"]
[null,97846,1,3,"CZ1 HZ3"]
[null,97848,1,3,"CZ1 HZ3"]
[null,97850,2,2,"CZ2 HZ2"]
[null,97856,1,2,"CZ1 HZ2"]
[null,97857,1,3,"CZ1 HZ3"]
[null,97859,1,3,"CZ1 HZ3"]
[null,97862,3,1,"CZ3 HZ1"]
[null,97864,1,2,"CZ1 HZ2"]
[null,97865,1,2,"CZ1 HZ2"]
[null,97867,2,2,"CZ2 HZ2"]
[null,97868,2,1,"CZ2 HZ1"]
[null,97869,1,3,"CZ1 HZ3"]
[null,97870,2,2,"CZ2 HZ2"]
[null,97873,1,3,"CZ1 HZ3"]
[null,97874,2,1,"CZ2 HZ1"]
[null,97875,3,1,"CZ3 HZ1"]
[null,97876,1,2,"CZ1 HZ2"]
[null,97877,1,3,"CZ1 HZ3"]
[null,97880,1,3,"CZ1 HZ3"]
[null,97882,3,1,"CZ3 HZ1"]
[null,97883,2,2,"CZ2 HZ2"]
[null,97884,1,3,"CZ1 HZ3"]
[null,97885,1,2,"CZ1 HZ2"]
[null,97886,1,3,"CZ1 HZ3"]
[null,97901,3,1,"CZ3 HZ1"]
[null,97902,2,2,"CZ2 HZ2"]
[null,97903,3,2,"CZ3 HZ2"]
[null,97904,2,2,"CZ2 HZ2"]
[null,97905,2,2,"CZ2 HZ2"]
[null,97906,3,1,"CZ3 HZ1"]
[null,97907,3,1,"CZ3 HZ1"]
[null,97908,2,2,"CZ2 HZ2"]
[null,97909,3,2,"CZ3 HZ2"]
[null,97910,2,2,"CZ2 HZ2"]
[null,97911,2,2,"CZ2 HZ2"]
[null,97913,3,1,"CZ3 HZ1"]
[null,97914,3,1,{"$f":"\"CZ\"&C451&\" \"&\"HZ\"&D451","v":"CZ3 HZ1"}]
[null,97917,2,2,"CZ2 HZ2"]
[null,97918,3,2,"CZ3 HZ2"]
[null,97920,3,2,"CZ3 HZ2"]
[null,98001,1,1,"CZ1 HZ1"]
[null,98002,1,1,"CZ1 HZ1"]
[null,98003,1,1,"CZ1 HZ1"]
[null,98004,1,1,"CZ1 HZ1"]
[null,98005,1,1,"CZ1 HZ1"]
[null,98006,1,1,"CZ1 HZ1"]
[null,98007,1,1,"CZ1 HZ1"]
[null,98008,1,1,"CZ1 HZ1"]
[null,98009,1,1,"CZ1 HZ1"]
[null,98010,1,1,"CZ1 HZ1"]
[null,98011,1,1,"CZ1 HZ1"]
[null,98012,1,1,"CZ1 HZ1"]
[null,98014,1,1,"CZ1 HZ1"]
[null,98015,1,1,"CZ1 HZ1"]
[null,98019,1,1,"CZ1 HZ1"]
[null,98020,1,1,"CZ1 HZ1"]
[null,98021,1,1,"CZ1 HZ1"]
[null,98022,1,1,"CZ1 HZ1"]
[null,98023,1,1,"CZ1 HZ1"]
[null,98024,1,1,"CZ1 HZ1"]
[null,98025,1,1,"CZ1 HZ1"]
[null,98026,1,1,"CZ1 HZ1"]
[null,98027,1,1,"CZ1 HZ1"]
[null,98028,1,1,"CZ1 HZ1"]
[null,98029,1,1,"CZ1 HZ1"]
[null,98030,1,1,"CZ1 HZ1"]
[null,98031,1,1,"CZ1 HZ1"]
[null,98032,1,1,"CZ1 HZ1"]
[null,98033,1,1,"CZ1 HZ1"]
[null,98034,1,1,"CZ1 HZ1"]
[null,98035,1,1,"CZ1 HZ1"]
[null,98036,1,1,"CZ1 HZ1"]
[null,98037,1,1,"CZ1 HZ1"]
[null,98038,1,1,"CZ1 HZ1"]
[null,98039,1,1,"CZ1 HZ1"]
[null,98040,1,1,"CZ1 HZ1"]
[null,98041,1,1,"CZ1 HZ1"]
[null,98042,1,1,"CZ1 HZ1"]
[null,98043,1,1,"CZ1 HZ1"]
[null,98045,1,1,"CZ1 HZ1"]
[null,98046,1,1,"CZ1 HZ1"]
[null,98047,1,1,"CZ1 HZ1"]
[null,98050,1,1,"CZ1 HZ1"]
[null,98051,1,1,"CZ1 HZ1"]
[null,98052,1,1,"CZ1 HZ1"]
[null,98053,1,1,"CZ1 HZ1"]
[null,98055,1,1,"CZ1 HZ1"]
[null,98056,1,1,"CZ1 HZ1"]
[null,98057,1,1,"CZ1 HZ1"]
[null,98058,1,1,"CZ1 HZ1"]
[null,98059,1,1,"CZ1 HZ1"]
[null,98061,1,1,"CZ1 HZ1"]
[null,98062,1,1,"CZ1 HZ1"]
[null,98063,1,1,"CZ1 HZ1"]
[null,98064,1,1,"CZ1 HZ1"]
[null,98065,1,1,"CZ1 HZ1"]
[null,98070,1,1,"CZ1 HZ1"]
[null,98071,1,1,"CZ1 HZ1"]
[null,98072,1,1,"CZ1 HZ1"]
[null,98073,1,1,"CZ1 HZ1"]
[null,98074,1,1,{"$f":"\"CZ\"&C515&\" \"&\"HZ\"&D515","v":"CZ1 HZ1"}]
[null,98075,1,1,"CZ1 HZ1"]
[null,98077,1,1,"CZ1 HZ1"]
[null,98082,1,1,"CZ1 HZ1"]
[null,98083,1,1,"CZ1 HZ1"]
[null,98087,1,1,"CZ1 HZ1"]
[null,98089,1,1,"CZ1 HZ1"]
[null,98092,1,1,"CZ1 HZ1"]
[null,98093,1,1,"CZ1 HZ1"]
[null,98101,1,1,"CZ1 HZ1"]
[null,98102,1,1,"CZ1 HZ1"]
[null,98103,1,1,"CZ1 HZ1"]
[null,98104,1,1,"CZ1 HZ1"]
[null,98105,1,1,"CZ1 HZ1"]
[null,98106,1,1,"CZ1 HZ1"]
[null,98107,1,1,"CZ1 HZ1"]
[null,98108,1,1,"CZ1 HZ1"]
[null,98109,1,1,"CZ1 HZ1"]
[null,98110,1,1,"CZ1 HZ1"]
[null,98111,1,1,"CZ1 HZ1"]
[null,98112,1,1,"CZ1 HZ1"]
[null,98113,1,1,"CZ1 HZ1"]
[null,98114,1,1,"CZ1 HZ1"]
[null,98115,1,1,"CZ1 HZ1"]
[null,98116,1,1,"CZ1 HZ1"]
[null,98117,1,1,"CZ1 HZ1"]
[null,98118,1,1,"CZ1 HZ1"]
[null,98119,1,1,"CZ1 HZ1"]
[null,98121,1,1,"CZ1 HZ1"]
[null,98122,1,1,"CZ1 HZ1"]
[null,98124,1,1,"CZ1 HZ1"]
[null,98125,1,1,"CZ1 HZ1"]
[null,98126,1,1,"CZ1 HZ1"]
[null,98127,1,1,"CZ1 HZ1"]
[null,98133,1,1,"CZ1 HZ1"]
[null,98134,1,1,"CZ1 HZ1"]
[null,98136,1,1,"CZ1 HZ1"]
[null,98138,1,1,"CZ1 HZ1"]
[null,98139,1,1,"CZ1 HZ1"]
[null,98144,1,1,"CZ1 HZ1"]
[null,98145,1,1,"CZ1 HZ1"]
[null,98146,1,1,"CZ1 HZ1"]
[null,98148,1,1,"CZ1 HZ1"]
[null,98155,1,1,"CZ1 HZ1"]
[null,98164,1,1,"CZ1 HZ1"]
[null,98165,1,1,"CZ1 HZ1"]
[null,98166,1,1,"CZ1 HZ1"]
[null,98168,1,1,"CZ1 HZ1"]
[null,98175,1,1,"CZ1 HZ1"]
[null,98177,1,1,"CZ1 HZ1"]
[null,98178,1,1,"CZ1 HZ1"]
[null,98188,1,1,"CZ1 HZ1"]
[null,98194,1,1,"CZ1 HZ1"]
[null,98198,1,1,"CZ1 HZ1"]
[null,98199,1,1,"CZ1 HZ1"]
[null,98201,1,1,"CZ1 HZ1"]
[null,98203,1,1,"CZ1 HZ1"]
[null,98204,1,1,"CZ1 HZ1"]
[null,98206,1,1,"CZ1 HZ1"]
[null,98208,1,1,"CZ1 HZ1"]
[null,98213,1,1,"CZ1 HZ1"]
[null,98220,1,1,"CZ1 HZ1"]
[null,98221,1,1,"CZ1 HZ1"]
[null,98222,1,1,"CZ1 HZ1"]
[null,98223,1,1,{"$f":"\"CZ\"&C579&\" \"&\"HZ\"&D579","v":"CZ1 HZ1"}]
[null,98225,1,1,"CZ1 HZ1"]
[null,98226,1,1,"CZ1 HZ1"]
[null,98227,1,1,"CZ1 HZ1"]
[null,98228,1,1,"CZ1 HZ1"]
[null,98229,1,2,"CZ1 HZ2"]
[null,98230,1,1,"CZ1 HZ1"]
[null,98231,1,1,"CZ1 HZ1"]
[null,98232,1,1,"CZ1 HZ1"]
[null,98233,1,1,"CZ1 HZ1"]
[null,98236,1,1,"CZ1 HZ1"]
[null,98237,1,2,"CZ1 HZ2"]
[null,98239,1,1,"CZ1 HZ1"]
[null,98240,1,1,"CZ1 HZ1"]
[null,98241,1,1,"CZ1 HZ1"]
[null,98243,1,1,"CZ1 HZ1"]
[null,98244,1,2,"CZ1 HZ2"]
[null,98245,1,1,"CZ1 HZ1"]
[null,98247,1,1,"CZ1 HZ1"]
[null,98248,1,1,"CZ1 HZ1"]
[null,98249,1,1,"CZ1 HZ1"]
[null,98250,1,1,"CZ1 HZ1"]
[null,98251,1,1,"CZ1 HZ1"]
[null,98252,1,1,"CZ1 HZ1"]
[null,98253,1,1,"CZ1 HZ1"]
[null,98255,1,1,"CZ1 HZ1"]
[null,98257,1,1,"CZ1 HZ1"]
[null,98258,1,1,"CZ1 HZ1"]
[null,98259,1,1,"CZ1 HZ1"]
[null,98260,1,1,"CZ1 HZ1"]
[null,98261,1,1,"CZ1 HZ1"]
[null,98262,1,1,"CZ1 HZ1"]
[null,98264,1,1,"CZ1 HZ1"]
[null,98266,1,1,"CZ1 HZ1"]
[null,98267,1,1,"CZ1 HZ1"]
[null,98270,1,1,"CZ1 HZ1"]
[null,98271,1,1,"CZ1 HZ1"]
[null,98272,1,1,"CZ1 HZ1"]
[null,98273,1,1,"CZ1 HZ1"]
[null,98274,1,1,"CZ1 HZ1"]
[null,98275,1,1,"CZ1 HZ1"]
[null,98276,1,1,"CZ1 HZ1"]
[null,98277,1,1,"CZ1 HZ1"]
[null,98279,1,1,"CZ1 HZ1"]
[null,98281,1,1,"CZ1 HZ1"]
[null,98282,1,1,"CZ1 HZ1"]
[null,98283,2,3,"CZ2 HZ3"]
[null,98284,1,1,"CZ1 HZ1"]
[null,98286,1,1,"CZ1 HZ1"]
[null,98287,1,1,"CZ1 HZ1"]
[null,98290,1,1,"CZ1 HZ1"]
[null,98291,1,1,"CZ1 HZ1"]
[null,98292,1,1,"CZ1 HZ1"]
[null,98293,1,1,"CZ1 HZ1"]
[null,98294,1,1,"CZ1 HZ1"]
[null,98295,1,1,"CZ1 HZ1"]
[null,98296,1,1,"CZ1 HZ1"]
[null,98297,1,1,"CZ1 HZ1"]
[null,98303,1,1,"CZ1 HZ1"]
[null,98304,1,1,"CZ1 HZ1"]
[null,98305,1,1,"CZ1 HZ1"]
[null,98310,1,1,"CZ1 HZ1"]
[null,98311,1,1,"CZ1 HZ1"]
[null,98312,1,1,"CZ1 HZ1"]
[null,98315,1,1,{"$f":"\"CZ\"&C643&\" \"&\"HZ\"&D643","v":"CZ1 HZ1"}]
[null,98320,1,1,"CZ1 HZ1"]
[null,98321,1,1,"CZ1 HZ1"]
[null,98322,1,1,"CZ1 HZ1"]
[null,98323,1,3,"CZ1 HZ3"]
[null,98324,1,1,"CZ1 HZ1"]
[null,98325,1,1,"CZ1 HZ1"]
[null,98326,1,1,"CZ1 HZ1"]
[null,98327,1,1,"CZ1 HZ1"]
[null,98328,1,1,"CZ1 HZ1"]
[null,98329,1,1,"CZ1 HZ1"]
[null,98330,1,1,"CZ1 HZ1"]
[null,98331,1,1,"CZ1 HZ1"]
[null,98332,1,1,"CZ1 HZ1"]
[null,98333,1,1,"CZ1 HZ1"]
[null,98335,1,1,"CZ1 HZ1"]
[null,98336,1,1,"CZ1 HZ1"]
[null,98337,1,1,"CZ1 HZ1"]
[null,98338,1,1,"CZ1 HZ1"]
[null,98339,1,1,"CZ1 HZ1"]
[null,98340,1,1,"CZ1 HZ1"]
[null,98342,1,1,"CZ1 HZ1"]
[null,98345,1,1,"CZ1 HZ1"]
[null,98346,1,1,"CZ1 HZ1"]
[null,98349,1,1,"CZ1 HZ1"]
[null,98351,1,1,"CZ1 HZ1"]
[null,98353,1,1,"CZ1 HZ1"]
[null,98354,1,1,"CZ1 HZ1"]
[null,98355,1,1,"CZ1 HZ1"]
[null,98356,1,1,"CZ1 HZ1"]
[null,98358,1,1,"CZ1 HZ1"]
[null,98359,1,1,"CZ1 HZ1"]
[null,98360,1,1,"CZ1 HZ1"]
[null,98361,1,1,"CZ1 HZ1"]
[null,98362,1,2,"CZ1 HZ2"]
[null,98363,1,1,"CZ1 HZ1"]
[null,98365,1,1,"CZ1 HZ1"]
[null,98366,1,1,"CZ1 HZ1"]
[null,98367,1,1,"CZ1 HZ1"]
[null,98368,1,1,"CZ1 HZ1"]
[null,98370,1,1,"CZ1 HZ1"]
[null,98371,1,1,"CZ1 HZ1"]
[null,98372,1,1,"CZ1 HZ1"]
[null,98373,1,1,"CZ1 HZ1"]
[null,98374,1,1,"CZ1 HZ1"]
[null,98375,1,1,"CZ1 HZ1"]
[null,98376,1,1,"CZ1 HZ1"]
[null,98377,1,1,"CZ1 HZ1"]
[null,98380,1,1,"CZ1 HZ1"]
[null,98381,1,1,"CZ1 HZ1"]
[null,98382,1,1,"CZ1 HZ1"]
[null,98383,1,1,"CZ1 HZ1"]
[null,98385,1,1,"CZ1 HZ1"]
[null,98387,1,1,"CZ1 HZ1"]
[null,98388,1,1,"CZ1 HZ1"]
[null,98390,1,1,"CZ1 HZ1"]
[null,98391,1,1,"CZ1 HZ1"]
[null,98392,1,1,"CZ1 HZ1"]
[null,98393,1,1,"CZ1 HZ1"]
[null,98394,1,1,"CZ1 HZ1"]
[null,98395,1,1,"CZ1 HZ1"]
[null,98401,1,1,"CZ1 HZ1"]
[null,98402,1,1,"CZ1 HZ1"]
[null,98403,1,1,"CZ1 HZ1"]
[null,98404,1,1,{"$f":"\"CZ\"&C707&\" \"&\"HZ\"&D707","v":"CZ1 HZ1"}]
[null,98405,1,1,"CZ1 HZ1"]
[null,98406,1,1,"CZ1 HZ1"]
[null,98407,1,1,"CZ1 HZ1"]
[null,98408,1,1,"CZ1 HZ1"]
[null,98409,1,1,"CZ1 HZ1"]
[null,98411,1,1,"CZ1 HZ1"]
[null,98417,1,1,"CZ1 HZ1"]
[null,98418,1,1,"CZ1 HZ1"]
[null,98419,1,1,"CZ1 HZ1"]
[null,98421,1,1,"CZ1 HZ1"]
[null,98422,1,1,"CZ1 HZ1"]
[null,98424,1,1,"CZ1 HZ1"]
[null,98433,1,1,"CZ1 HZ1"]
[null,98438,1,1,"CZ1 HZ1"]
[null,98439,1,1,"CZ1 HZ1"]
[null,98443,1,1,"CZ1 HZ1"]
[null,98444,1,1,"CZ1 HZ1"]
[null,98445,1,1,"CZ1 HZ1"]
[null,98446,1,1,"CZ1 HZ1"]
[null,98448,1,1,"CZ1 HZ1"]
[null,98464,1,1,"CZ1 HZ1"]
[null,98465,1,1,"CZ1 HZ1"]
[null,98466,1,1,"CZ1 HZ1"]
[null,98467,1,1,"CZ1 HZ1"]
[null,98490,1,1,"CZ1 HZ1"]
[null,98496,1,1,"CZ1 HZ1"]
[null,98498,1,1,"CZ1 HZ1"]
[null,98499,1,1,"CZ1 HZ1"]
[null,98501,1,1,"CZ1 HZ1"]
[null,98502,1,1,"CZ1 HZ1"]
[null,98503,1,1,"CZ1 HZ1"]
[null,98506,1,1,"CZ1 HZ1"]
[null,98507,1,1,"CZ1 HZ1"]
[null,98508,1,1,"CZ1 HZ1"]
[null,98509,1,1,"CZ1 HZ1"]
[null,98511,1,1,"CZ1 HZ1"]
[null,98512,1,1,"CZ1 HZ1"]
[null,98513,1,1,"CZ1 HZ1"]
[null,98516,1,1,"CZ1 HZ1"]
[null,98520,1,1,"CZ1 HZ1"]
[null,98524,1,1,"CZ1 HZ1"]
[null,98526,1,1,"CZ1 HZ1"]
[null,98528,1,1,"CZ1 HZ1"]
[null,98530,1,1,"CZ1 HZ1"]
[null,98531,1,1,"CZ1 HZ1"]
[null,98532,1,1,"CZ1 HZ1"]
[null,98533,1,1,"CZ1 HZ1"]
[null,98535,1,1,"CZ1 HZ1"]
[null,98536,1,1,"CZ1 HZ1"]
[null,98537,1,1,"CZ1 HZ1"]
[null,98538,1,1,"CZ1 HZ1"]
[null,98540,1,1,"CZ1 HZ1"]
[null,98541,1,1,"CZ1 HZ1"]
[null,98542,1,1,"CZ1 HZ1"]
[null,98546,1,1,"CZ1 HZ1"]
[null,98547,1,1,"CZ1 HZ1"]
[null,98548,1,1,"CZ1 HZ1"]
[null,98550,1,1,"CZ1 HZ1"]
[null,98552,1,1,"CZ1 HZ1"]
[null,98555,1,1,"CZ1 HZ1"]
[null,98557,1,1,"CZ1 HZ1"]
[null,98558,1,1,"CZ1 HZ1"]
[null,98559,1,1,"CZ1 HZ1"]
[null,98560,1,1,{"$f":"\"CZ\"&C771&\" \"&\"HZ\"&D771","v":"CZ1 HZ1"}]
[null,98563,1,1,"CZ1 HZ1"]
[null,98564,1,1,"CZ1 HZ1"]
[null,98565,1,1,"CZ1 HZ1"]
[null,98568,1,1,"CZ1 HZ1"]
[null,98569,1,1,"CZ1 HZ1"]
[null,98570,1,1,"CZ1 HZ1"]
[null,98572,1,1,"CZ1 HZ1"]
[null,98575,1,1,"CZ1 HZ1"]
[null,98576,1,1,"CZ1 HZ1"]
[null,98577,1,1,"CZ1 HZ1"]
[null,98579,1,1,"CZ1 HZ1"]
[null,98580,1,1,"CZ1 HZ1"]
[null,98581,1,1,"CZ1 HZ1"]
[null,98582,1,1,"CZ1 HZ1"]
[null,98584,1,1,"CZ1 HZ1"]
[null,98585,1,1,"CZ1 HZ1"]
[null,98586,1,1,"CZ1 HZ1"]
[null,98588,1,1,"CZ1 HZ1"]
[null,98589,1,1,"CZ1 HZ1"]
[null,98590,1,1,"CZ1 HZ1"]
[null,98591,1,1,"CZ1 HZ1"]
[null,98592,1,1,"CZ1 HZ1"]
[null,98593,1,1,"CZ1 HZ1"]
[null,98595,1,1,"CZ1 HZ1"]
[null,98596,1,1,"CZ1 HZ1"]
[null,98597,1,1,"CZ1 HZ1"]
[null,98601,1,1,"CZ1 HZ1"]
[null,98602,1,2,"CZ1 HZ2"]
[null,98603,1,2,"CZ1 HZ2"]
[null,98604,1,1,"CZ1 HZ1"]
[null,98605,3,1,"CZ3 HZ1"]
[null,98606,1,1,"CZ1 HZ1"]
[null,98607,1,1,"CZ1 HZ1"]
[null,98609,1,1,"CZ1 HZ1"]
[null,98610,2,1,"CZ2 HZ1"]
[null,98611,1,1,"CZ1 HZ1"]
[null,98612,1,1,"CZ1 HZ1"]
[null,98613,2,2,"CZ2 HZ2"]
[null,98614,1,1,"CZ1 HZ1"]
[null,98616,2,1,"CZ2 HZ1"]
[null,98617,3,1,"CZ3 HZ1"]
[null,98619,1,2,"CZ1 HZ2"]
[null,98620,2,2,"CZ2 HZ2"]
[null,98621,1,1,"CZ1 HZ1"]
[null,98622,1,1,"CZ1 HZ1"]
[null,98624,1,1,"CZ1 HZ1"]
[null,98625,1,1,"CZ1 HZ1"]
[null,98626,1,1,"CZ1 HZ1"]
[null,98628,2,1,"CZ2 HZ1"]
[null,98629,1,1,"CZ1 HZ1"]
[null,98631,1,1,"CZ1 HZ1"]
[null,98632,1,1,"CZ1 HZ1"]
[null,98635,2,1,"CZ2 HZ1"]
[null,98638,1,1,"CZ1 HZ1"]
[null,98639,2,1,"CZ2 HZ1"]
[null,98640,1,1,"CZ1 HZ1"]
[null,98641,1,1,"CZ1 HZ1"]
[null,98642,1,1,"CZ1 HZ1"]
[null,98643,1,1,"CZ1 HZ1"]
[null,98644,1,1,"CZ1 HZ1"]
[null,98645,1,1,"CZ1 HZ1"]
[null,98647,1,1,"CZ1 HZ1"]
[null,98648,2,1,"CZ2 HZ1"]
[null,98649,1,1,{"$f":"\"CZ\"&C835&\" \"&\"HZ\"&D835","v":"CZ1 HZ1"}]
[null,98650,1,2,"CZ1 HZ2"]
[null,98651,1,2,"CZ1 HZ2"]
[null,98660,2,1,"CZ2 HZ1"]
[null,98661,1,1,"CZ1 HZ1"]
[null,98662,1,1,"CZ1 HZ1"]
[null,98663,1,1,"CZ1 HZ1"]
[null,98664,1,1,"CZ1 HZ1"]
[null,98665,1,1,"CZ1 HZ1"]
[null,98666,2,1,"CZ2 HZ1"]
[null,98668,1,1,"CZ1 HZ1"]
[null,98670,1,2,"CZ1 HZ2"]
[null,98671,1,1,"CZ1 HZ1"]
[null,98672,2,1,"CZ2 HZ1"]
[null,98673,2,1,"CZ2 HZ1"]
[null,98674,2,1,"CZ2 HZ1"]
[null,98675,1,2,"CZ1 HZ2"]
[null,98682,1,1,"CZ1 HZ1"]
[null,98683,1,1,"CZ1 HZ1"]
[null,98684,1,1,"CZ1 HZ1"]
[null,98685,2,1,"CZ2 HZ1"]
[null,98686,1,1,"CZ1 HZ1"]
[null,98687,1,1,"CZ1 HZ1"]
[null,98801,3,1,"CZ3 HZ1"]
[null,98802,3,1,"CZ3 HZ1"]
[null,98807,3,1,"CZ3 HZ1"]
[null,98812,3,1,"CZ3 HZ1"]
[null,98813,3,1,"CZ3 HZ1"]
[null,98814,2,2,"CZ2 HZ2"]
[null,98815,3,1,"CZ3 HZ1"]
[null,98816,3,2,"CZ3 HZ2"]
[null,98822,2,3,"CZ2 HZ3"]
[null,98823,3,1,"CZ3 HZ1"]
[null,98826,2,3,"CZ2 HZ3"]
[null,98827,3,2,"CZ3 HZ2"]
[null,98828,3,1,"CZ3 HZ1"]
[null,98830,1,2,"CZ1 HZ2"]
[null,98831,3,2,"CZ3 HZ2"]
[null,98832,2,2,"CZ2 HZ2"]
[null,98833,1,3,"CZ1 HZ3"]
[null,98834,3,2,"CZ3 HZ2"]
[null,98837,3,1,"CZ3 HZ1"]
[null,98840,3,2,"CZ3 HZ2"]
[null,98841,3,1,"CZ3 HZ1"]
[null,98843,3,2,"CZ3 HZ2"]
[null,98844,1,3,"CZ1 HZ3"]
[null,98845,3,1,"CZ3 HZ1"]
[null,98846,3,2,"CZ3 HZ2"]
[null,98847,2,2,"CZ2 HZ2"]
[null,98848,3,1,"CZ3 HZ1"]
[null,98849,1,3,"CZ1 HZ3"]
[null,98850,3,1,"CZ3 HZ1"]
[null,98851,3,1,"CZ3 HZ1"]
[null,98853,3,1,"CZ3 HZ1"]
[null,98855,1,3,"CZ1 HZ3"]
[null,98856,2,2,"CZ2 HZ2"]
[null,98857,3,1,"CZ3 HZ1"]
[null,98858,2,3,"CZ2 HZ3"]
[null,98859,1,3,"CZ1 HZ3"]
[null,98860,2,2,"CZ2 HZ2"]
[null,98862,2,3,"CZ2 HZ3"]
[null,98901,3,1,"CZ3 HZ1"]
[null,98902,3,1,"CZ3 HZ1"]
[null,98903,3,1,"CZ3 HZ1"]
[null,98907,3,1,{"$f":"\"CZ\"&C899&\" \"&\"HZ\"&D899","v":"CZ3 HZ1"}]
[null,98908,3,1,"CZ3 HZ1"]
[null,98909,3,1,"CZ3 HZ1"]
[null,98921,3,1,"CZ3 HZ1"]
[null,98922,1,2,"CZ1 HZ2"]
[null,98923,2,1,"CZ2 HZ1"]
[null,98926,2,2,"CZ2 HZ2"]
[null,98930,3,1,"CZ3 HZ1"]
[null,98932,2,2,"CZ2 HZ2"]
[null,98933,3,1,"CZ3 HZ1"]
[null,98935,2,2,"CZ2 HZ2"]
[null,98936,3,1,"CZ3 HZ1"]
[null,98937,2,1,"CZ2 HZ1"]
[null,98938,2,2,"CZ2 HZ2"]
[null,98942,2,2,"CZ2 HZ2"]
[null,98944,2,2,"CZ2 HZ2"]
[null,98946,2,1,"CZ2 HZ1"]
[null,98947,1,2,"CZ1 HZ2"]
[null,98948,3,1,"CZ3 HZ1"]
[null,98951,3,1,"CZ3 HZ1"]
[null,98952,3,1,"CZ3 HZ1"]
[null,98953,3,1,"CZ3 HZ1"]
[null,99001,1,2,"CZ1 HZ2"]
[null,99003,2,2,"CZ2 HZ2"]
[null,99004,2,2,"CZ2 HZ2"]
[null,99005,2,2,"CZ2 HZ2"]
[null,99006,1,2,"CZ1 HZ2"]
[null,99008,1,2,"CZ1 HZ2"]
[null,99009,1,2,"CZ1 HZ2"]
[null,99011,1,2,"CZ1 HZ2"]
[null,99012,2,2,"CZ2 HZ2"]
[null,99013,2,2,"CZ2 HZ2"]
[null,99014,2,2,"CZ2 HZ2"]
[null,99016,2,2,"CZ2 HZ2"]
[null,99017,2,2,"CZ2 HZ2"]
[null,99018,2,2,"CZ2 HZ2"]
[null,99019,2,2,"CZ2 HZ2"]
[null,99021,2,2,"CZ2 HZ2"]
[null,99022,1,2,"CZ1 HZ2"]
[null,99023,2,2,"CZ2 HZ2"]
[null,99025,2,2,"CZ2 HZ2"]
[null,99026,2,2,"CZ2 HZ2"]
[null,99027,2,2,"CZ2 HZ2"]
[null,99029,1,2,"CZ1 HZ2"]
[null,99030,2,2,"CZ2 HZ2"]
[null,99031,2,2,"CZ2 HZ2"]
[null,99032,1,2,"CZ1 HZ2"]
[null,99033,2,2,"CZ2 HZ2"]
[null,99034,1,2,"CZ1 HZ2"]
[null,99036,2,2,"CZ2 HZ2"]
[null,99037,2,2,"CZ2 HZ2"]
[null,99040,1,3,"CZ1 HZ3"]
[null,99101,1,3,"CZ1 HZ3"]
[null,99103,2,2,"CZ2 HZ2"]
[null,99104,1,2,"CZ1 HZ2"]
[null,99105,2,1,"CZ2 HZ1"]
[null,99109,1,2,"CZ1 HZ2"]
[null,99110,1,2,"CZ1 HZ2"]
[null,99111,2,2,"CZ2 HZ2"]
[null,99113,1,2,"CZ1 HZ2"]
[null,99114,2,2,"CZ2 HZ2"]
[null,99115,1,2,"CZ1 HZ2"]
[null,99116,3,1,"CZ3 HZ1"]
[null,99117,1,3,"CZ1 HZ3"]
[null,99118,1,3,{"$f":"\"CZ\"&C963&\" \"&\"HZ\"&D963","v":"CZ1 HZ3"}]
[null,99119,1,2,"CZ1 HZ2"]
[null,99121,1,3,"CZ1 HZ3"]
[null,99122,1,3,"CZ1 HZ3"]
[null,99123,3,2,"CZ3 HZ2"]
[null,99125,2,2,"CZ2 HZ2"]
[null,99126,2,2,"CZ2 HZ2"]
[null,99128,1,2,"CZ1 HZ2"]
[null,99129,1,2,"CZ1 HZ2"]
[null,99130,2,2,"CZ2 HZ2"]
[null,99131,1,3,"CZ1 HZ3"]
[null,99133,3,2,"CZ3 HZ2"]
[null,99134,1,2,"CZ1 HZ2"]
[null,99135,2,2,"CZ2 HZ2"]
[null,99136,2,1,"CZ2 HZ1"]
[null,99137,1,3,"CZ1 HZ3"]
[null,99138,1,3,"CZ1 HZ3"]
[null,99139,1,2,"CZ1 HZ2"]
[null,99140,1,2,"CZ1 HZ2"]
[null,99141,2,2,"CZ2 HZ2"]
[null,99143,2,1,"CZ2 HZ1"]
[null,99144,2,2,"CZ2 HZ2"]
[null,99147,1,3,"CZ1 HZ3"]
[null,99148,1,2,"CZ1 HZ2"]
[null,99149,2,2,"CZ2 HZ2"]
[null,99150,1,3,"CZ1 HZ3"]
[null,99153,1,2,"CZ1 HZ2"]
[null,99154,1,2,"CZ1 HZ2"]
[null,99156,1,2,"CZ1 HZ2"]
[null,99157,1,2,"CZ1 HZ2"]
[null,99158,2,2,"CZ2 HZ2"]
[null,99159,2,2,"CZ2 HZ2"]
[null,99160,1,2,"CZ1 HZ2"]
[null,99161,1,2,"CZ1 HZ2"]
[null,99163,2,2,"CZ2 HZ2"]
[null,99166,1,3,"CZ1 HZ3"]
[null,99167,1,3,"CZ1 HZ3"]
[null,99169,2,2,"CZ2 HZ2"]
[null,99170,2,2,"CZ2 HZ2"]
[null,99171,2,2,"CZ2 HZ2"]
[null,99173,1,2,"CZ1 HZ2"]
[null,99176,2,2,"CZ2 HZ2"]
[null,99179,1,2,"CZ1 HZ2"]
[null,99180,1,2,"CZ1 HZ2"]
[null,99181,1,2,"CZ1 HZ2"]
[null,99185,1,2,"CZ1 HZ2"]
[null,99201,2,2,"CZ2 HZ2"]
[null,99202,2,2,"CZ2 HZ2"]
[null,99203,2,2,"CZ2 HZ2"]
[null,99204,2,2,"CZ2 HZ2"]
[null,99205,2,2,"CZ2 HZ2"]
[null,99206,2,2,"CZ2 HZ2"]
[null,99207,2,2,"CZ2 HZ2"]
[null,99208,2,2,"CZ2 HZ2"]
[null,99209,2,2,"CZ2 HZ2"]
[null,99210,2,2,"CZ2 HZ2"]
[null,99211,2,2,"CZ2 HZ2"]
[null,99212,2,2,"CZ2 HZ2"]
[null,99213,2,2,"CZ2 HZ2"]
[null,99214,2,2,"CZ2 HZ2"]
[null,99216,2,2,"CZ2 HZ2"]
[null,99217,2,2,"CZ2 HZ2"]
[null,99218,2,2,"CZ2 HZ2"]
[null,99219,2,2,"CZ2 HZ2"]
[null,99220,2,2,{"$f":"\"CZ\"&C1027&\" \"&\"HZ\"&D1027","v":"CZ2 HZ2"}]
[null,99223,2,2,"CZ2 HZ2"]
[null,99224,2,2,"CZ2 HZ2"]
[null,99228,2,2,"CZ2 HZ2"]
[null,99301,3,1,"CZ3 HZ1"]
[null,99302,3,1,"CZ3 HZ1"]
[null,99320,3,1,"CZ3 HZ1"]
[null,99321,3,1,"CZ3 HZ1"]
[null,99322,2,2,"CZ2 HZ2"]
[null,99323,3,1,"CZ3 HZ1"]
[null,99324,2,1,"CZ2 HZ1"]
[null,99326,3,1,"CZ3 HZ1"]
[null,99328,2,1,"CZ2 HZ1"]
[null,99329,2,1,"CZ2 HZ1"]
[null,99330,2,1,"CZ2 HZ1"]
[null,99336,3,1,"CZ3 HZ1"]
[null,99337,3,1,"CZ3 HZ1"]
[null,99338,3,1,"CZ3 HZ1"]
[null,99341,2,1,"CZ2 HZ1"]
[null,99343,2,1,"CZ2 HZ1"]
[null,99344,3,1,"CZ3 HZ1"]
[null,99347,2,1,"CZ2 HZ1"]
[null,99348,3,1,"CZ3 HZ1"]
[null,99349,2,2,"CZ2 HZ2"]
[null,99350,3,1,"CZ3 HZ1"]
[null,99352,3,1,"CZ3 HZ1"]
[null,99353,2,1,"CZ2 HZ1"]
[null,99354,3,1,"CZ3 HZ1"]
[null,99356,2,2,"CZ2 HZ2"]
[null,99357,3,1,"CZ3 HZ1"]
[null,99360,2,1,"CZ2 HZ1"]
[null,99361,2,1,"CZ2 HZ1"]
[null,99362,3,1,"CZ3 HZ1"]
[null,99371,3,1,"CZ3 HZ1"]
[null,99401,1,2,"CZ1 HZ2"]
[null,99402,2,1,"CZ2 HZ1"]
[null,99403,3,1,"CZ3 HZ1"]

{"sheet":"Active Measures","index":4,"n_rows":275,"n_cols":160,"rows_kept":275,"cut":false,"hidden":true,"merged":[]}
["ProductVersionId","IsActive","ProductPath","ProductCode","ProductDescription","EvaluationDescription","BusinessCustomerReportsDescription","SavingsPotential","SystemType","MADHeaderId","MADId","MADVersion","CECRowId","MADState","ProgramCode","ProgramDescription","StartDate","EndDate","QtyUnitType","PilotFlag","OPUCExceptionFlag","DefaultKwh","DefaultTherms","NEBAnnual","DefaultOverrideSavingsAndNEBs","DefaultLoadProfileEle","DefaultLoadProfileGas","DefaultOverrideProfiles","DefaultIncentive","DefaultOverrideIncentive","DefaultLifeYears","DefaultOverrideLife","UnitIncrementalCost","AddInteractiveKwh","AddInteractiveTherms","UnitCost","UnitSave","UnitIncentive","CustomAllocation","AVI","PGE","PAC","CNG","NWN","NWNF","NWNI","NWNWA","NWNTLM","PGELMI","PGEFF","PACLMI","OCOOL","AVIINT","AVITRP","AttributeCategory","Attribute1","Attribute1Description","Attribute1Required","Attribute1Type","Attribute1Length","Attribute1Entry","Attribute2","Attribute2Description","Attribute2Required","Attribute2Type","Attribute2Length","Attribute2Entry","Attribute3","Attribute3Description","Attribute3Required","Attribute3Type","Attribute3Length","Attribute3Entry","Attribute4","Attribute4Description","Attribute4Required","Attribute4Type","Attribute4Length","Attribute4Entry","Attribute5","Attribute5Description","Attribute5Required","Attribute5Type","Attribute5Length","Attribute5Entry","Attribute6","Attribute6Description","Attribute6Required","Attribute6Type","Attribute6Length","Attribute6Entry","Attribute7","Attribute7Description","Attribute7Required","Attribute7Type","Attribute7Length","Attribute7Entry","Attribute8","Attribute8Description","Attribute8Required","Attribute8Type","Attribute8Length","Attribute8Entry","Attribute9","Attribute9Description","Attribute9Required","Attribute9Type","Attribute9Length","Attribute9Entry","Attribute10","Attribute10Description","Attribute10Required","Attribute10Type","Attribute10Length","Attribute10Entry","Attribute11","Attribute11Description","Attribute11Required","Attribute11Type","Attribute11Length","Attribute11Entry","Attribute12","Attribute12Description","Attribute12Required","Attribute12Type","Attribute12Length","Attribute12Entry","Attribute13","Attribute13Description","Attribute13Required","Attribute13Type","Attribute13Length","Attribute13Entry","Attribute14","Attribute14Description","Attribute14Required","Attribute14Type","Attribute14Length","Attribute14Entry","Attribute15","Attribute15Description","Attribute15Required","Attribute15Type","Attribute15Length","Attribute15Entry","Attribute16","Attribute16Description","Attribute16Required","Attribute16Type","Attribute16Length","Attribute16Entry","Attribute17","Attribute17Description","Attribute17Required","Attribute17Type","Attribute17Length","Attribute17Entry","CreatedDatetime","RevisedDatetime","Column1"]
[15287,"Yes","Prescriptive","CPUMPVSDHEAT5HP","Commercial Pump VSD_Heating_New Pump_5 HP (4.51 to 6.00 HP)","Pump","Pumps","ELE","N/A",864,284,2,5105,"OR","NBE","New Buildings","2023-01-01","2025-12-31","Units",0,0,1826.51,0,0,0,"Other Heating","None - gas",0,500,0,15,0,592.58000000000004,0,0,0,1,1,0,"NULL",100,100,"NULL","NULL","NULL","NULL","NULL","NULL","NULL","NULL","NULL","NULL","NULL","NULL","NULL","No Attributes ","NULL","NULL","F","NULL","NULL","NULL","NULL","NULL","F","NULL","NULL","NULL","NULL","NULL","F","NULL","NULL","NULL","NULL","NULL","F","NULL","NULL","NULL","NULL","NULL","F","NULL","NULL","NULL","NULL","NULL","F","NULL","NULL","NULL","NULL","NULL","F","NULL","NULL","NULL","NULL","NULL","F","NULL","NULL","NULL","NULL","NULL","F","NULL","NULL","NULL","NULL","NULL","F","NULL","NULL","NULL","NULL","NULL","F","NULL","NULL","NULL","NULL","NULL","F","NULL","NULL","NULL","NULL","NULL","F","NULL","NULL","NULL","NULL","NULL","F","NULL","NULL","NULL","NULL","NULL","F","NULL","NULL","NULL","NULL","NULL","F","NULL","NULL","NULL","NULL","NULL","F","NULL","NULL","NULL",44952.607310150466,44952.607310150466]
[15288,"Yes","Prescriptive","CPUMPVSDCOOL4HP","Comm Pump VSD_Cooling_New Pump_4 HP (3.51 to 4.50 HP)","Pump","Pumps","ELE","N/A",864,284,2,5121,"OR","NBE","New Buildings","2023-01-01","2025-12-31","Units",0,0,1438.37,0,0,0,"Other Cooling","None - gas",0,450,0,15,0,532.9,0,0,0,1,1,0,"NULL",100,100,"NULL","NULL","NULL","NULL","NULL","NULL","NULL","NULL","NULL","NULL","NULL","NULL","NULL","No Attributes ","NULL","NULL","F","NULL","NULL","NULL","NULL","NULL","F","NULL","NULL","NULL","NULL","NULL","F","NULL","NULL","NULL","NULL","NULL","F","NULL","NULL","NULL","NULL","NULL","F","NULL","NULL","NULL","NULL","NULL","F","NULL","NULL","NULL","NULL","NULL","F","NULL","NULL","NULL","NULL","NULL","F","NULL","NULL","NULL","NULL","NULL","F","NULL","NULL","NULL","NULL","NULL","F","NULL","NULL","NULL","NULL","NULL","F","NULL","NULL","NULL","NULL","NULL","F","NULL","NULL","NULL","NULL","NULL","F","NULL","NULL","NULL","NULL","NULL","F","NULL","NULL","NULL","NULL","NULL","F","NULL","NULL","NULL","NULL","NULL","F","NULL","NULL","NULL","NULL","NULL","F","NULL","NULL","NULL",44952.607310150466,44952.607310150466]
[15289,"Yes","Prescriptive","CPUMPVSDCOOL3HP","Comm Pump VSD_Cooling_New Pump_3 HP (2.51 to 3.50 HP)","Pump","Pumps","ELE","N/A",864,284,2,5120,"OR","NBE","New Buildings","2023-01-01","2025-12-31","Units",0,0,1078.78,0,0,0,"Other Cooling","None - gas",0,350,0,15,0,464.75,0,0,0,1,1,0,"NULL",100,100,"NULL","NULL","NULL","NULL","NULL","NULL","NULL","NULL","NULL","NULL","NULL","NULL","NULL","No Attributes ","NULL","NULL","F","NULL","NULL","NULL","NULL","NULL","F","NULL","NULL","NULL","NULL","NULL","F","NULL","NULL","NULL","NULL","NULL","F","NULL","NULL","NULL","NULL","NULL","F","NULL","NULL","NULL","NULL","NULL","F","NULL","NULL","NULL","NULL","NULL","F","NULL","NULL","NULL","NULL","NULL","F","NULL","NULL","NULL","NULL","NULL","F","NULL","NULL","NULL","NULL","NULL","F","NULL","NULL","NULL","NULL","NULL","F","NULL","NULL","NULL","NULL","NULL","F","NULL","NULL","NULL","NULL","NULL","F","NULL","NULL","NULL","NULL","NULL","F","NULL","NULL","NULL","NULL","NULL","F","NULL","NULL","NULL","NULL","NULL","F","NULL","NULL","NULL","NULL","NULL","F","NULL","NULL","NULL",44952.607310150466,44952.607310150466]
[15290,"Yes","Prescriptive","CPUMPVSDPB7P5HP","Comm Pump VSD_Pressure Boost_New Pump_7.5 HP (6.01 to 8.00 HP)","Pump","Pumps","ELE","N/A",864,284,2,5112,"OR","NBE","New Buildings","2023-01-01","2025-12-31","Units",0,0,2088.5500000000002,0,0,0,"3-Shift Industrial","None - gas",0,600,0,15,0,718.63,0,0,0,1,1,0,"NULL",100,100,"NULL","NULL","NULL","NULL","NULL","NULL","NULL","NULL","NULL","NULL","NULL","NULL","NULL","No Attributes ","NULL","NULL","F","NULL","NULL","NULL","NULL","NULL","F","NULL","NULL","NULL","NULL","NULL","F","NULL","NULL","NULL","NULL","NULL","F","NULL","NULL","NULL","NULL","NULL","F","NULL","NULL","NULL","NULL","NULL","F","NULL","NULL","NULL","NULL","NULL","F","NULL","NULL","NULL","NULL","NULL","F","NULL","NULL","NULL","NULL","NULL","F","NULL","NULL","NULL","NULL","NULL","F","NULL","NULL","NULL","NULL","NULL","F","NULL","NULL","NULL","NULL","NULL","F","NULL","NULL","NULL","NULL","NULL","F","NULL","NULL","NULL","NULL","NULL","F","NULL","NULL","NULL","NULL","NULL","F","NULL","NULL","NULL","NULL","NULL","F","NULL","NULL","NULL","NULL","NULL","F","NULL","NULL","NULL",44952.607310150466,44952.607310150466]
[15291,"Yes","Prescriptive","CPUMPVSDPB4HP","Comm Pump VSD_Pressure Boost_New Pump_4 HP (3.51 to 4.50 HP)","Pump","Pumps","ELE","N/A",864,284,2,5110,"OR","NBE","New Buildings",44927,"2025-12-31","Units",0,0,1113.8900000000001,0,0,0,"3-Shift Industrial","None - gas",0,450,0,15,0,532.9,0,0,0,1,1,0,"NULL",100,100,"NULL","NULL","NULL","NULL","NULL","NULL","NULL","NULL","NULL","NULL","NULL","NULL","NULL","No Attributes ","NULL","NULL","F","NULL","NULL","NULL","NULL","NULL","F","NULL","NULL","NULL","NULL","NULL","F","NULL","NULL","NULL","NULL","NULL","F","NULL","NULL","NULL","NULL","NULL","F","NULL","NULL","NULL","NULL","NULL","F","NULL","NULL","NULL","NULL","NULL","F","NULL","NULL","NULL","NULL","NULL","F","NULL","NULL","NULL","NULL","NULL","F","NULL","NULL","NULL","NULL","NULL","F","NULL","NULL","NULL","NULL","NULL","F","NULL","NULL","NULL","NULL","NULL","F","NULL","NULL","NULL","NULL","NULL","F","NULL","NULL","NULL","NULL","NULL","F","NULL","NULL","NULL","NULL","NULL","F","NULL","NULL","NULL","NULL","NULL","F","NULL","NULL","NULL","NULL","NULL","F","NULL","NULL","NULL",44952.607310150466,44952.607310150466]
[15292,"Yes","Prescriptive","CPUMPVSDHEAT0P75","Commercial Pump VSD_Heating_New Pump_0.75 HP (0.50 to 0.75 HP)","Pump","Pumps","ELE","N/A",864,284,2,5099,"OR","NBE","New Buildings",44927,"2025-12-31","Units",0,0,273.98,0,0,0,"Other Heating","None - gas",0,150,0,15,0,240.34,0,0,0,1,1,0,"NULL",100,100,"NULL","NULL","NULL","NULL","NULL","NULL","NULL","NULL","NULL","NULL","NULL","NULL","NULL","No Attributes ","NULL","NULL","F","NULL","NULL","NULL","NULL","NULL","F","NULL","NULL","NULL","NULL","NULL","F","NULL","NULL","NULL","NULL","NULL","F","NULL","NULL","NULL","NULL","NULL","F","NULL","NULL","NULL","NULL","NULL","F","NULL","NULL","NULL","NULL","NULL","F","NULL","NULL","NULL","NULL","NULL","F","NULL","NULL","NULL","NULL","NULL","F","NULL","NULL","NULL","NULL","NULL","F","NULL","NULL","NULL","NULL","NULL","F","NULL","NULL","NULL","NULL","NULL","F","NULL","NULL","NULL","NULL","NULL","F","NULL","NULL","NULL","NULL","NULL","F","NULL","NULL","NULL","NULL","NULL","F","NULL","NULL","NULL","NULL","NULL","F","NULL","NULL","NULL","NULL","NULL","F","NULL","NULL","NULL",44952.607310150466,44952.607310150466]
[15293,"Yes","Prescriptive","CPUMPVSDHEAT4HP","Commercial Pump VSD_Heating_New Pump_4 HP (3.51 to 4.50 HP)","Pump","Pumps","ELE","N/A",864,284,2,5104,"OR","NBE","New Buildings","2023-01-01","2025-12-31","Units",0,0,1461.2,0,0,0,"Other Heating","None - gas",0,450,0,15,0,532.9,0,0,0,1,1,0,"NULL",100,100,"NULL","NULL","NULL","NULL","NULL","NULL","NULL","NULL","NULL","NULL","NULL","NULL","NULL","No Attributes ","NULL","NULL","F","NULL","NULL","NULL","NULL","NULL","F","NULL","NULL","NULL","NULL","NULL","F","NULL","NULL","NULL","NULL","NULL","F","NULL","NULL","NULL","NULL","NULL","F","NULL","NULL","NULL","NULL","NULL","F","NULL","NULL","NULL","NULL","NULL","F","NULL","NULL","NULL","NULL","NULL","F","NULL","NULL","NULL","NULL","NULL","F","NULL","NULL","NULL","NULL","NULL","F","NULL","NULL","NULL","NULL","NULL","F","NULL","NULL","NULL","NULL","NULL","F","NULL","NULL","NULL","NULL","NULL","F","NULL","NULL","NULL","NULL","NULL","F","NULL","NULL","NULL","NULL","NULL","F","NULL","NULL","NULL","NULL","NULL","F","NULL","NULL","NULL","NULL","NULL","F","NULL","NULL","NULL",44952.607310150466,44952.607310150466]
[15294,"Yes","Prescriptive","CPUMPVSDCOOLT5HP","Comm Pump VSD_Cooling Tower_New Pump_5 HP (4.51 to 6.00 HP)","Pump","Pumps","ELE","N/A",864,284,2,5094,"OR","NBE","New Buildings","2023-01-01","2025-12-31","Units",0,0,898.41,0,0,0,"Other Cooling","None - gas",0,500,0,15,0,592.58000000000004,0,0,0,1,1,0,"NULL",100,100,"NULL","NULL","NULL","NULL","NULL","NULL","NULL","NULL","NULL","NULL","NULL","NULL","NULL","No Attributes ","NULL","NULL","F","NULL","NULL","NULL","NULL","NULL","F","NULL","NULL","NULL","NULL","NULL","F","NULL","NULL","NULL","NULL","NULL","F","NULL","NULL","NULL","NULL","NULL","F","NULL","NULL","NULL","NULL","NULL","F","NULL","NULL","NULL","NULL","NULL","F","NULL","NULL","NULL","NULL","NULL","F","NULL","NULL","NULL","NULL","NULL","F","NULL","NULL","NULL","NULL","NULL","F","NULL","NULL","NULL","NULL","NULL","F","NULL","NULL","NULL","NULL","NULL","F","NULL","NULL","NULL","NULL","NULL","F","NULL","NULL","NULL","NULL","NULL","F","NULL","NULL","NULL","NULL","NULL","F","NULL","NULL","NULL","NULL","NULL","F","NULL","NULL","NULL","NULL","NULL","F","NULL","NULL","NULL",44952.607310150466,44952.607310150466]
[15295,"Yes","Prescriptive","CPUMPVSDPB15HP","Comm Pump VSD_Pressure Boost_New Pump_15 HP (12.51 to 17.50 HP)","Pump","Pumps","ELE","N/A",864,284,2,5114,"OR","NBE","New Buildings","2023-01-01","2025-12-31","Units",0,0,4177.09,0,0,0,"3-Shift Industrial","None - gas",0,850,0,15,0,999.31,0,0,0,1,1,0,"NULL",100,100,"NULL","NULL","NULL","NULL","NULL","NULL","NULL","NULL","NULL","NULL","NULL","NULL","NULL","No Attributes ","NULL","NULL","F","NULL","NULL","NULL","NULL","NULL","F","NULL","NULL","NULL","NULL","NULL","F","NULL","NULL","NULL","NULL","NULL","F","NULL","NULL","NULL","NULL","NULL","F","NULL","NULL","NULL","NULL","NULL","F","NULL","NULL","NULL","NULL","NULL","F","NULL","NULL","NULL","NULL","NULL","F","NULL","NULL","NULL","NULL","NULL","F","NULL","NULL","NULL","NULL","NULL","F","NULL","NULL","NULL","NULL","NULL","F","NULL","NULL","NULL","NULL","NULL","F","NULL","NULL","NULL","NULL","NULL","F","NULL","NULL","NULL","NULL","NULL","F","NULL","NULL","NULL","NULL","NULL","F","NULL","NULL","NULL","NULL","NULL","F","NULL","NULL","NULL","NULL","NULL","F","NULL","NULL","NULL",44952.607310150466,44952.607310150466]
[15296,"Yes","Prescriptive","CPUMPVSDPB3HP","Comm Pump VSD_Pressure Boost_New Pump_3 HP (2.51 to 3.50 HP)","Pump","Pumps","ELE","N/A",864,284,2,5109,"OR","NBE","New Buildings","2023-01-01","2025-12-31","Units",0,0,835.42,0,0,0,"3-Shift Industrial","None - gas",0,350,0,15,0,464.75,0,0,0,1,1,0,"NULL",100,100,"NULL","NULL","NULL","NULL","NULL","NULL","NULL","NULL","NULL","NULL","NULL","NULL","NULL","No Attributes ","NULL","NULL","F","NULL","NULL","NULL","NULL","NULL","F","NULL","NULL","NULL","NULL","NULL","F","NULL","NULL","NULL","NULL","NULL","F","NULL","NULL","NULL","NULL","NULL","F","NULL","NULL","NULL","NULL","NULL","F","NULL","NULL","NULL","NULL","NULL","F","NULL","NULL","NULL","NULL","NULL","F","NULL","NULL","NULL","NULL","NULL","F","NULL","NULL","NULL","NULL","NULL","F","NULL","NULL","NULL","NULL","NULL","F","NULL","NULL","NULL","NULL","NULL","F","NULL","NULL","NULL","NULL","NULL","F","NULL","NULL","NULL","NULL","NULL","F","NULL","NULL","NULL","NULL","NULL","F","NULL","NULL","NULL","NULL","NULL","F","NULL","NULL","NULL","NULL","NULL","F","NULL","NULL","NULL",44952.607310150466,44952.607310150466]
[15297,"Yes","Prescriptive","CPUMPVSDPB10HP","Comm Pump VSD_Pressure Boost_New Pump_10 HP (8.01 to 12.50 HP)","Pump","Pumps","ELE","N/A",864,284,2,5113,"OR","NBE","New Buildings","2023-01-01","2025-12-31","Units",0,0,2784.73,0,0,0,"3-Shift Industrial","None - gas",0,700,0,15,0,824.02,0,0,0,1,1,0,"NULL",100,100,"NULL","NULL","NULL","NULL","NULL","NULL","NULL","NULL","NULL","NULL","NULL","NULL","NULL","No Attributes ","NULL","NULL","F","NULL","NULL","NULL","NULL","NULL","F","NULL","NULL","NULL","NULL","NULL","F","NULL","NULL","NULL","NULL","NULL","F","NULL","NULL","NULL","NULL","NULL","F","NULL","NULL","NULL","NULL","NULL","F","NULL","NULL","NULL","NULL","NULL","F","NULL","NULL","NULL","NULL","NULL","F","NULL","NULL","NULL","NULL","NULL","F","NULL","NULL","NULL","NULL","NULL","F","NULL","NULL","NULL","NULL","NULL","F","NULL","NULL","NULL","NULL","NULL","F","NULL","NULL","NULL","NULL","NULL","F","NULL","NULL","NULL","NULL","NULL","F","NULL","NULL","NULL","NULL","NULL","F","NULL","NULL","NULL","NULL","NULL","F","NULL","NULL","NULL","NULL","NULL","F","NULL","NULL","NULL",44952.607310150466,44952.607310150466]
[15298,"Yes","Prescriptive","CPUMPVSDCOOLT7P5HP","Comm Pump VSD_Cooling Tower_New Pump_7.5 HP (6.01 to 8.00 HP)","Pump","Pumps","ELE","N/A",864,284,2,5095,"OR","NBE","New Buildings","2023-01-01","2025-12-31","Units",0,0,1347.61,0,0,0,"Other Cooling","None - gas",0,600,0,15,0,718.63,0,0,0,1,1,0,"NULL",100,100,"NULL","NULL","NULL","NULL","NULL","NULL","NULL","NULL","NULL","NULL","NULL","NULL","NULL","No Attributes ","NULL","NULL","F","NULL","NULL","NULL","NULL","NULL","F","NULL","NULL","NULL","NULL","NULL","F","NULL","NULL","NULL","NULL","NULL","F","NULL","NULL","NULL","NULL","NULL","F","NULL","NULL","NULL","NULL","NULL","F","NULL","NULL","NULL","NULL","NULL","F","NULL","NULL","NULL","NULL","NULL","F","NULL","NULL","NULL","NULL","NULL","F","NULL","NULL","NULL","NULL","NULL","F","NULL","NULL","NULL","NULL","NULL","F","NULL","NULL","NULL","NULL","NULL","F","NULL","NULL","NULL","NULL","NULL","F","NULL","NULL","NULL","NULL","NULL","F","NULL","NULL","NULL","NULL","NULL","F","NULL","NULL","NULL","NULL","NULL","F","NULL","NULL","NULL","NULL","NULL","F","NULL","NULL","NULL",44952.607310150466,44952.607310150466]
[15299,"Yes","Prescriptive","CPUMPVSDHEAT2HP","Commercial Pump VSD_Heating_New Pump_2 HP (1.76 to 2.50 HP)","Pump","Pumps","ELE","N/A",864,284,2,5102,"OR","NBE","New Buildings","2023-01-01","2025-12-31","Units",0,0,730.6,0,0,0,"Other Heating","None - gas",0,300,0,15,0,383.22,0,0,0,1,1,0,"NULL",100,100,"NULL","NULL","NULL","NULL","NULL","NULL","NULL","NULL","NULL","NULL","NULL","NULL","NULL","No Attributes ","NULL","NULL","F","NULL","NULL","NULL","NULL","NULL","F","NULL","NULL","NULL","NULL","NULL","F","NULL","NULL","NULL","NULL","NULL","F","NULL","NULL","NULL","NULL","NULL","F","NULL","NULL","NULL","NULL","NULL","F","NULL","NULL","NULL","NULL","NULL","F","NULL","NULL","NULL","NULL","NULL","F","NULL","NULL","NULL","NULL","NULL","F","NULL","NULL","NULL","NULL","NULL","F","NULL","NULL","NULL","NULL","NULL","F","NULL","NULL","NULL","NULL","NULL","F","NULL","NULL","NULL","NULL","NULL","F","NULL","NULL","NULL","NULL","NULL","F","NULL","NULL","NULL","NULL","NULL","F","NULL","NULL","NULL","NULL","NULL","F","NULL","NULL","NULL","NULL","NULL","F","NULL","NULL","NULL",44952.607310150466,44952.607310150466]
[15300,"Yes","Prescriptive","CPUMPVSDCOOL1HP","Comm Pump VSD_Cooling_New Pump_1 HP (0.76 to 1.25 HP)","Pump","Pumps","ELE","N/A",864,284,2,5117,"OR","NBE","New Buildings","2023-01-01","2025-12-31","Units",0,0,359.59,0,0,0,"Other Cooling","None - gas",0,200,0,15,0,275.58999999999997,0,0,0,1,1,0,"NULL",100,100,"NULL","NULL","NULL","NULL","NULL","NULL","NULL","NULL","NULL","NULL","NULL","NULL","NULL","No Attributes ","NULL","NULL","F","NULL","NULL","NULL","NULL","NULL","F","NULL","NULL","NULL","NULL","NULL","F","NULL","NULL","NULL","NULL","NULL","F","NULL","NULL","NULL","NULL","NULL","F","NULL","NULL","NULL","NULL","NULL","F","NULL","NULL","NULL","NULL","NULL","F","NULL","NULL","NULL","NULL","NULL","F","NULL","NULL","NULL","NULL","NULL","F","NULL","NULL","NULL","NULL","NULL","F","NULL","NULL","NULL","NULL","NULL","F","NULL","NULL","NULL","NULL","NULL","F","NULL","NULL","NULL","NULL","NULL","F","NULL","NULL","NULL","NULL","NULL","F","NULL","NULL","NULL","NULL","NULL","F","NULL","NULL","NULL","NULL","NULL","F","NULL","NULL","NULL","NULL","NULL","F","NULL","NULL","NULL",44952.607310150466,44952.607310150466]
[15301,"Yes","Prescriptive","CPUMPVSDCOOL2HP","Comm Pump VSD_Cooling_New Pump_2 HP (1.76 to 2.50 HP)","Pump","Pumps","ELE","N/A",864,284,2,5119,"OR","NBE","New Buildings","2023-01-01","2025-12-31","Units",0,0,719.19,0,0,0,"Other Cooling","None - gas",0,300,0,15,0,383.22,0,0,0,1,1,0,"NULL",100,100,"NULL","NULL","NULL","NULL","NULL","NULL","NULL","NULL","NULL","NULL","NULL","NULL","NULL","No Attributes ","NULL","NULL","F","NULL","NULL","NULL","NULL","NULL","F","NULL","NULL","NULL","NULL","NULL","F","NULL","NULL","NULL","NULL","NULL","F","NULL","NULL","NULL","NULL","NULL","F","NULL","NULL","NULL","NULL","NULL","F","NULL","NULL","NULL","NULL","NULL","F","NULL","NULL","NULL","NULL","NULL","F","NULL","NULL","NULL","NULL","NULL","F","NULL","NULL","NULL","NULL","NULL","F","NULL","NULL","NULL","NULL","NULL","F","NULL","NULL","NULL","NULL","NULL","F","NULL","NULL","NULL","NULL","NULL","F","NULL","NULL","NULL","NULL","NULL","F","NULL","NULL","NULL","NULL","NULL","F","NULL","NULL","NULL","NULL","NULL","F","NULL","NULL","NULL","NULL","NULL","F","NULL","NULL","NULL",44952.607310150466,44952.607310150466]
[15303,"Yes","Prescriptive","CPUMPVSDPB2HP","Comm Pump VSD_Pressure Boost_New Pump_2 HP (1.76 to 2.50 HP)","Pump","Pumps","ELE","N/A",864,284,2,5108,"OR","NBE","New Buildings","2023-01-01","2025-12-31","Units",0,0,556.95000000000005,0,0,0,"3-Shift Industrial","None - gas",0,300,0,15,0,383.22,0,0,0,1,1,0,"NULL",100,100,"NULL","NULL","NULL","NULL","NULL","NULL","NULL","NULL","NULL","NULL","NULL","NULL","NULL","No Attributes ","NULL","NULL","F","NULL","NULL","NULL","NULL","NULL","F","NULL","NULL","NULL","NULL","NULL","F","NULL","NULL","NULL","NULL","NULL","F","NULL","NULL","NULL","NULL","NULL","F","NULL","NULL","NULL","NULL","NULL","F","NULL","NULL","NULL","NULL","NULL","F","NULL","NULL","NULL","NULL","NULL","F","NULL","NULL","NULL","NULL","NULL","F","NULL","NULL","NULL","NULL","NULL","F","NULL","NULL","NULL","NULL","NULL","F","NULL","NULL","NULL","NULL","NULL","F","NULL","NULL","NULL","NULL","NULL","F","NULL","NULL","NULL","NULL","NULL","F","NULL","NULL","NULL","NULL","NULL","F","NULL","NULL","NULL","NULL","NULL","F","NULL","NULL","NULL","NULL","NULL","F","NULL","NULL","NULL",44952.607310150466,44952.607310150466]
[15304,"Yes","Prescriptive","CPUMPVSDCOOLT15HP","Comm Pump VSD_Cooling Tower_New Pump_15 HP (12.51 to 17.50 HP)","Pump","Pumps","ELE","N/A",864,284,2,5097,"OR","NBE","New Buildings","2023-01-01","2025-12-31","Units",0,0,2695.22,0,0,0,"Other Cooling","None - gas",0,850,0,15,0,999.31,0,0,0,1,1,0,"NULL",100,100,"NULL","NULL","NULL","NULL","NULL","NULL","NULL","NULL","NULL","NULL","NULL","NULL","NULL","No Attributes ","NULL","NULL","F","NULL","NULL","NULL","NULL","NULL","F","NULL","NULL","NULL","NULL","NULL","F","NULL","NULL","NULL","NULL","NULL","F","NULL","NULL","NULL","NULL","NULL","F","NULL","NULL","NULL","NULL","NULL","F","NULL","NULL","NULL","NULL","NULL","F","NULL","NULL","NULL","NULL","NULL","F","NULL","NULL","NULL","NULL","NULL","F","NULL","NULL","NULL","NULL","NULL","F","NULL","NULL","NULL","NULL","NULL","F","NULL","NULL","NULL","NULL","NULL","F","NULL","NULL","NULL","NULL","NULL","F","NULL","NULL","NULL","NULL","NULL","F","NULL","NULL","NULL","NULL","NULL","F","NULL","NULL","NULL","NULL","NULL","F","NULL","NULL","NULL","NULL","NULL","F","NULL","NULL","NULL",44952.607310150466,44952.607310150466]
[15305,"Yes","Prescriptive","CPUMPVSDPB20HP","Comm Pump VSD_Pressure Boost_New Pump_20 HP (17.51 to 22.50 HP)","Pump","Pumps","ELE","N/A",864,284,2,5115,"OR","NBE","New Buildings","2023-01-01","2025-12-31","Units",0,0,5569.46,0,0,0,"3-Shift Industrial","None - gas",0,1000,0,15,0,1145.8699999999999,0,0,0,1,1,0,"NULL",100,100,"NULL","NULL","NULL","NULL","NULL","NULL","NULL","NULL","NULL","NULL","NULL","NULL","NULL","No Attributes ","NULL","NULL","F","NULL","NULL","NULL","NULL","NULL","F","NULL","NULL","NULL","NULL","NULL","F","NULL","NULL","NULL","NULL","NULL","F","NULL","NULL","NULL","NULL","NULL","F","NULL","NULL","NULL","NULL","NULL","F","NULL","NULL","NULL","NULL","NULL","F","NULL","NULL","NULL","NULL","NULL","F","NULL","NULL","NULL","NULL","NULL","F","NULL","NULL","NULL","NULL","NULL","F","NULL","NULL","NULL","NULL","NULL","F","NULL","NULL","NULL","NULL","NULL","F","NULL","NULL","NULL","NULL","NULL","F","NULL","NULL","NULL","NULL","NULL","F","NULL","NULL","NULL","NULL","NULL","F","NULL","NULL","NULL","NULL","NULL","F","NULL","NULL","NULL","NULL","NULL","F","NULL","NULL","NULL",44952.607310150466,44952.607310150466]
[15306,"Yes","Prescriptive","CPUMPVSDPB5HP","Comm Pump VSD_Pressure Boost_New Pump_5 HP (4.51 to 6.00 HP)","Pump","Pumps","ELE","N/A",864,284,2,5111,"OR","NBE","New Buildings","2023-01-01","2025-12-31","Units",0,0,1392.36,0,0,0,"3-Shift Industrial","None - gas",0,500,0,15,0,592.58000000000004,0,0,0,1,1,0,"NULL",100,100,"NULL","NULL","NULL","NULL","NULL","NULL","NULL","NULL","NULL","NULL","NULL","NULL","NULL","No Attributes ","NULL","NULL","F","NULL","NULL","NULL","NULL","NULL","F","NULL","NULL","NULL","NULL","NULL","F","NULL","NULL","NULL","NULL","NULL","F","NULL","NULL","NULL","NULL","NULL","F","NULL","NULL","NULL","NULL","NULL","F","NULL","NULL","NULL","NULL","NULL","F","NULL","NULL","NULL","NULL","NULL","F","NULL","NULL","NULL","NULL","NULL","F","NULL","NULL","NULL","NULL","NULL","F","NULL","NULL","NULL","NULL","NULL","F","NULL","NULL","NULL","NULL","NULL","F","NULL","NULL","NULL","NULL","NULL","F","NULL","NULL","NULL","NULL","NULL","F","NULL","NULL","NULL","NULL","NULL","F","NULL","NULL","NULL","NULL","NULL","F","NULL","NULL","NULL","NULL","NULL","F","NULL","NULL","NULL",44952.607310150466,44952.607310150466]
[15307,"Yes","Prescriptive","CPUMPVSDCOOL0P75HP","Comm Pump VSD_Cooling_New Pump_0.75 HP (0.50 to 0.75 HP)","Pump","Pumps","ELE","N/A",864,284,2,5116,"OR","NBE","New Buildings","2023-01-01","2025-12-31","Units",0,0,269.69,0,0,0,"Other Cooling","None - gas",0,150,0,15,0,240.34,0,0,0,1,1,0,"NULL",100,100,"NULL","NULL","NULL","NULL","NULL","NULL","NULL","NULL","NULL","NULL","NULL","NULL","NULL","No Attributes ","NULL","NULL","F","NULL","NULL","NULL","NULL","NULL","F","NULL","NULL","NULL","NULL","NULL","F","NULL","NULL","NULL","NULL","NULL","F","NULL","NULL","NULL","NULL","NULL","F","NULL","NULL","NULL","NULL","NULL","F","NULL","NULL","NULL","NULL","NULL","F","NULL","NULL","NULL","NULL","NULL","F","NULL","NULL","NULL","NULL","NULL","F","NULL","NULL","NULL","NULL","NULL","F","NULL","NULL","NULL","NULL","NULL","F","NULL","NULL","NULL","NULL","NULL","F","NULL","NULL","NULL","NULL","NULL","F","NULL","NULL","NULL","NULL","NULL","F","NULL","NULL","NULL","NULL","NULL","F","NULL","NULL","NULL","NULL","NULL","F","NULL","NULL","NULL","NULL","NULL","F","NULL","NULL","NULL",44952.607310150466,44952.607310150466]
[15308,"Yes","Prescriptive","CPUMPVSDCOOL1P5HP","Comm Pump VSD_Cooling_New Pump_1.5 HP (1.26 to 1.75 HP)","Pump","Pumps","ELE","N/A",864,284,2,5118,"OR","NBE","New Buildings","2023-01-01","2025-12-31","Units",0,0,539.39,0,0,0,"Other Cooling","None - gas",0,250,0,15,0,334.21,0,0,0,1,1,0,"NULL",100,100,"NULL","NULL","NULL","NULL","NULL","NULL","NULL","NULL","NULL","NULL","NULL","NULL","NULL","No Attributes ","NULL","NULL","F","NULL","NULL","NULL","NULL","NULL","F","NULL","NULL","NULL","NULL","NULL","F","NULL","NULL","NULL","NULL","NULL","F","NULL","NULL","NULL","NULL","NULL","F","NULL","NULL","NULL","NULL","NULL","F","NULL","NULL","NULL","NULL","NULL","F","NULL","NULL","NULL","NULL","NULL","F","NULL","NULL","NULL","NULL","NULL","F","NULL","NULL","NULL","NULL","NULL","F","NULL","NULL","NULL","NULL","NULL","F","NULL","NULL","NULL","NULL","NULL","F","NULL","NULL","NULL","NULL","NULL","F","NULL","NULL","NULL","NULL","NULL","F","NULL","NULL","NULL","NULL","NULL","F","NULL","NULL","NULL","NULL","NULL","F","NULL","NULL","NULL","NULL","NULL","F","NULL","NULL","NULL",44952.607310150466,44952.607310150466]
[15309,"Yes","Prescriptive","CPUMPVSDHEAT7P5HP","Commercial Pump VSD_Heating_New Pump_7.5 HP (6.01 to 8.00 HP)","Pump","Pumps","ELE","N/A",864,284,2,5106,"OR","NBE","New Buildings","2023-01-01","2025-12-31","Units",0,0,2739.76,0,0,0,"Other Heating","None - gas",0,600,0,15,0,718.63,0,0,0,1,1,0,"NULL",100,100,"NULL","NULL","NULL","NULL","NULL","NULL","NULL","NULL","NULL","NULL","NULL","NULL","NULL","No Attributes ","NULL","NULL","F","NULL","NULL","NULL","NULL","NULL","F","NULL","NULL","NULL","NULL","NULL","F","NULL","NULL","NULL","NULL","NULL","F","NULL","NULL","NULL","NULL","NULL","F","NULL","NULL","NULL","NULL","NULL","F","NULL","NULL","NULL","NULL","NULL","F","NULL","NULL","NULL","NULL","NULL","F","NULL","NULL","NULL","NULL","NULL","F","NULL","NULL","NULL","NULL","NULL","F","NULL","NULL","NULL","NULL","NULL","F","NULL","NULL","NULL","NULL","NULL","F","NULL","NULL","NULL","NULL","NULL","F","NULL","NULL","NULL","NULL","NULL","F","NULL","NULL","NULL","NULL","NULL","F","NULL","NULL","NULL","NULL","NULL","F","NULL","NULL","NULL","NULL","NULL","F","NULL","NULL","NULL",44952.607310150466,44952.607310150466]
[15310,"Yes","Prescriptive","CPUMPVSDCOOL5HP","Comm Pump VSD_Cooling_New Pump_5 HP (4.51 to 6.00 HP)","Pump","Pumps","ELE","N/A",864,284,2,5122,"OR","NBE","New Buildings","2023-01-01","2025-12-31","Units",0,0,1797.97,0,0,0,"Other Cooling","None - gas",0,500,0,15,0,592.58000000000004,0,0,0,1,1,0,"NULL",100,100,"NULL","NULL","NULL","NULL","NULL","NULL","NULL","NULL","NULL","NULL","NULL","NULL","NULL","No Attributes ","NULL","NULL","F","NULL","NULL","NULL","NULL","NULL","F","NULL","NULL","NULL","NULL","NULL","F","NULL","NULL","NULL","NULL","NULL","F","NULL","NULL","NULL","NULL","NULL","F","NULL","NULL","NULL","NULL","NULL","F","NULL","NULL","NULL","NULL","NULL","F","NULL","NULL","NULL","NULL","NULL","F","NULL","NULL","NULL","NULL","NULL","F","NULL","NULL","NULL","NULL","NULL","F","NULL","NULL","NULL","NULL","NULL","F","NULL","NULL","NULL","NULL","NULL","F","NULL","NULL","NULL","NULL","NULL","F","NULL","NULL","NULL","NULL","NULL","F","NULL","NULL","NULL","NULL","NULL","F","NULL","NULL","NULL","NULL","NULL","F","NULL","NULL","NULL","NULL","NULL","F","NULL","NULL","NULL",44952.607310150466,44952.607310150466]
[15311,"Yes","Prescriptive","CPUMPVSDHEAT3HP","Commercial Pump VSD_Heating_New Pump_3 HP (2.51 to 3.50 HP)","Pump","Pumps","ELE","N/A",864,284,2,5103,"OR","NBE","New Buildings","2023-01-01","2025-12-31","Units",0,0,1095.9000000000001,0,0,0,"Other Heating","None - gas",0,350,0,15,0,464.75,0,0,0,1,1,0,"NULL",100,100,"NULL","NULL","NULL","NULL","NULL","NULL","NULL","NULL","NULL","NULL","NULL","NULL","NULL","No Attributes ","NULL","NULL","F","NULL","NULL","NULL","NULL","NULL","F","NULL","NULL","NULL","NULL","NULL","F","NULL","NULL","NULL","NULL","NULL","F","NULL","NULL","NULL","NULL","NULL","F","NULL","NULL","NULL","NULL","NULL","F","NULL","NULL","NULL","NULL","NULL","F","NULL","NULL","NULL","NULL","NULL","F","NULL","NULL","NULL","NULL","NULL","F","NULL","NULL","NULL","NULL","NULL","F","NULL","NULL","NULL","NULL","NULL","F","NULL","NULL","NULL","NULL","NULL","F","NULL","NULL","NULL","NULL","NULL","F","NULL","NULL","NULL","NULL","NULL","F","NULL","NULL","NULL","NULL","NULL","F","NULL","NULL","NULL","NULL","NULL","F","NULL","NULL","NULL","NULL","NULL","F","NULL","NULL","NULL",44952.607310150466,44952.607310150466]
[15312,"Yes","Prescriptive","CPUMPVSDHEAT1P5HP","Commercial Pump VSD_Heating_New Pump_1.5 HP (1.26 to 1.75 HP)","Pump","Pumps","ELE","N/A",864,284,2,5101,"OR","NBE","New Buildings","2023-01-01","2025-12-31","Units",0,0,547.95000000000005,0,0,0,"Other Heating","None - gas",0,250,0,15,0,334.21,0,0,0,1,1,0,"NULL",100,100,"NULL","NULL","NULL","NULL","NULL","NULL","NULL","NULL","NULL","NULL","NULL","NULL","NULL","No Attributes ","NULL","NULL","F","NULL","NULL","NULL","NULL","NULL","F","NULL","NULL","NULL","NULL","NULL","F","NULL","NULL","NULL","NULL","NULL","F","NULL","NULL","NULL","NULL","NULL","F","NULL","NULL","NULL","NULL","NULL","F","NULL","NULL","NULL","NULL","NULL","F","NULL","NULL","NULL","NULL","NULL","F","NULL","NULL","NULL","NULL","NULL","F","NULL","NULL","NULL","NULL","NULL","F","NULL","NULL","NULL","NULL","NULL","F","NULL","NULL","NULL","NULL","NULL","F","NULL","NULL","NULL","NULL","NULL","F","NULL","NULL","NULL","NULL","NULL","F","NULL","NULL","NULL","NULL","NULL","F","NULL","NULL","NULL","NULL","NULL","F","NULL","NULL","NULL","NULL","NULL","F","NULL","NULL","NULL",44952.607310150466,44952.607310150466]
[15313,"Yes","Prescriptive","CPUMPVSDHEAT1HP","Commercial Pump VSD_Heating_New Pump_1 HP (0.76 to 1.25 HP)","Pump","Pumps","ELE","N/A",864,284,2,5100,"OR","NBE","New Buildings","2023-01-01","2025-12-31","Units",0,0,365.3,0,0,0,"Other Heating","None - gas",0,200,0,15,0,275.58999999999997,0,0,0,1,1,0,"NULL",100,100,"NULL","NULL","NULL","NULL","NULL","NULL","NULL","NULL","NULL","NULL","NULL","NULL","NULL","No Attributes ","NULL","NULL","F","NULL","NULL","NULL","NULL","NULL","F","NULL","NULL","NULL","NULL","NULL","F","NULL","NULL","NULL","NULL","NULL","F","NULL","NULL","NULL","NULL","NULL","F","NULL","NULL","NULL","NULL","NULL","F","NULL","NULL","NULL","NULL","NULL","F","NULL","NULL","NULL","NULL","NULL","F","NULL","NULL","NULL","NULL","NULL","F","NULL","NULL","NULL","NULL","NULL","F","NULL","NULL","NULL","NULL","NULL","F","NULL","NULL","NULL","NULL","NULL","F","NULL","NULL","NULL","NULL","NULL","F","NULL","NULL","NULL","NULL","NULL","F","NULL","NULL","NULL","NULL","NULL","F","NULL","NULL","NULL","NULL","NULL","F","NULL","NULL","NULL","NULL","NULL","F","NULL","NULL","NULL",44952.607310150466,44952.607310150466]
[15314,"Yes","Prescriptive","CPUMPVSDPB1P5HP","Comm Pump VSD_Pressure Boost_New Pump_1.5 HP (1.26 to 1.75 HP)","Pump","Pumps","ELE","N/A",864,284,2,5107,"OR","NBE","New Buildings","2023-01-01","2025-12-31","Units",0,0,417.71,0,0,0,"3-Shift Industrial","None - gas",0,250,0,15,0,334.21,0,0,0,1,1,0,"NULL",100,100,"NULL","NULL","NULL","NULL","NULL","NULL","NULL","NULL","NULL","NULL","NULL","NULL","NULL","No Attributes ","NULL","NULL","F","NULL","NULL","NULL","NULL","NULL","F","NULL","NULL","NULL","NULL","NULL","F","NULL","NULL","NULL","NULL","NULL","F","NULL","NULL","NULL","NULL","NULL","F","NULL","NULL","NULL","NULL","NULL","F","NULL","NULL","NULL","NULL","NULL","F","NULL","NULL","NULL","NULL","NULL","F","NULL","NULL","NULL","NULL","NULL","F","NULL","NULL","NULL","NULL","NULL","F","NULL","NULL","NULL","NULL","NULL","F","NULL","NULL","NULL","NULL","NULL","F","NULL","NULL","NULL","NULL","NULL","F","NULL","NULL","NULL","NULL","NULL","F","NULL","NULL","NULL","NULL","NULL","F","NULL","NULL","NULL","NULL","NULL","F","NULL","NULL","NULL","NULL","NULL","F","NULL","NULL","NULL",44952.607310150466,44952.607310150466]
[15315,"Yes","Prescriptive","CPUMPVSDCOOLT20HP","Comm Pump VSD_Cooling Tower_New Pump_20 HP (17.51 to 22.50 HP)","Pump","Pumps","ELE","N/A",864,284,2,5098,"OR","NBE","New Buildings","2023-01-01","2025-12-31","Units",0,0,3593.63,0,0,0,"Other Cooling","None - gas",0,1000,0,15,0,1145.8699999999999,0,0,0,1,1,0,"NULL",100,100,"NULL","NULL","NULL","NULL","NULL","NULL","NULL","NULL","NULL","NULL","NULL","NULL","NULL","No Attributes ","NULL","NULL","F","NULL","NULL","NULL","NULL","NULL","F","NULL","NULL","NULL","NULL","NULL","F","NULL","NULL","NULL","NULL","NULL","F","NULL","NULL","NULL","NULL","NULL","F","NULL","NULL","NULL","NULL","NULL","F","NULL","NULL","NULL","NULL","NULL","F","NULL","NULL","NULL","NULL","NULL","F","NULL","NULL","NULL","NULL","NULL","F","NULL","NULL","NULL","NULL","NULL","F","NULL","NULL","NULL","NULL","NULL","F","NULL","NULL","NULL","NULL","NULL","F","NULL","NULL","NULL","NULL","NULL","F","NULL","NULL","NULL","NULL","NULL","F","NULL","NULL","NULL","NULL","NULL","F","NULL","NULL","NULL","NULL","NULL","F","NULL","NULL","NULL","NULL","NULL","F","NULL","NULL","NULL",44952.607310150466,44952.607310150466]
[15316,"Yes","Prescriptive","CPUMPVSDCOOLT10HP","Comm Pump VSD_Cooling Tower_New Pump_10 HP (8.01 to 12.50 HP)","Pump","Pumps","ELE","N/A",864,284,2,5096,"OR","NBE","New Buildings","2023-01-01","2025-12-31","Units",0,0,1796.82,0,0,0,"Other Cooling","None - gas",0,700,0,15,0,824.02,0,0,0,1,1,0,"NULL",100,100,"NULL","NULL","NULL","NULL","NULL","NULL","NULL","NULL","NULL","NULL","NULL","NULL","NULL","No Attributes ","NULL","NULL","F","NULL","NULL","NULL","NULL","NULL","F","NULL","NULL","NULL","NULL","NULL","F","NULL","NULL","NULL","NULL","NULL","F","NULL","NULL","NULL","NULL","NULL","F","NULL","NULL","NULL","NULL","NULL","F","NULL","NULL","NULL","NULL","NULL","F","NULL","NULL","NULL","NULL","NULL","F","NULL","NULL","NULL","NULL","NULL","F","NULL","NULL","NULL","NULL","NULL","F","NULL","NULL","NULL","NULL","NULL","F","NULL","NULL","NULL","NULL","NULL","F","NULL","NULL","NULL","NULL","NULL","F","NULL","NULL","NULL","NULL","NULL","F","NULL","NULL","NULL","NULL","NULL","F","NULL","NULL","NULL","NULL","NULL","F","NULL","NULL","NULL","NULL","NULL","F","NULL","NULL","NULL",44952.607310150466,44952.607310150466]
[15317,"Yes","Prescriptive","CPUMPVSDCOOLT4HP","Comm Pump VSD_Cooling Tower_New Pump_4 HP (3.51 to 4.50 HP)","Pump","Pumps","ELE","N/A",864,284,2,5093,"OR","NBE","New Buildings","2023-01-01","2025-12-31","Units",0,0,718.73,0,0,0,"Other Cooling","None - gas",0,450,0,15,0,532.9,0,0,0,1,1,0,"NULL",100,100,"NULL","NULL","NULL","NULL","NULL","NULL","NULL","NULL","NULL","NULL","NULL","NULL","NULL","No Attributes ","NULL","NULL","F","NULL","NULL","NULL","NULL","NULL","F","NULL","NULL","NULL","NULL","NULL","F","NULL","NULL","NULL","NULL","NULL","F","NULL","NULL","NULL","NULL","NULL","F","NULL","NULL","NULL","NULL","NULL","F","NULL","NULL","NULL","NULL","NULL","F","NULL","NULL","NULL","NULL","NULL","F","NULL","NULL","NULL","NULL","NULL","F","NULL","NULL","NULL","NULL","NULL","F","NULL","NULL","NULL","NULL","NULL","F","NULL","NULL","NULL","NULL","NULL","F","NULL","NULL","NULL","NULL","NULL","F","NULL","NULL","NULL","NULL","NULL","F","NULL","NULL","NULL","NULL","NULL","F","NULL","NULL","NULL","NULL","NULL","F","NULL","NULL","NULL","NULL","NULL","F","NULL","NULL","NULL",44952.607310150466,44952.607310150466]
[15318,"Yes","Prescriptive","CPUMPVSDCOOLT3HP","Comm Pump VSD_Cooling Tower_New Pump_3 HP (2.51 to 3.50 HP)","Pump","Pumps","ELE","N/A",864,284,2,5092,"OR","NBE","New Buildings","2023-01-01","2025-12-31","Units",0,0,539.04,0,0,0,"Other Cooling","None - gas",0,350,0,15,0,464.75,0,0,0,1,1,0,"NULL",100,100,"NULL","NULL","NULL","NULL","NULL","NULL","NULL","NULL","NULL","NULL","NULL","NULL","NULL","No Attributes ","NULL","NULL","F","NULL","NULL","NULL","NULL","NULL","F","NULL","NULL","NULL","NULL","NULL","F","NULL","NULL","NULL","NULL","NULL","F","NULL","NULL","NULL","NULL","NULL","F","NULL","NULL","NULL","NULL","NULL","F","NULL","NULL","NULL","NULL","NULL","F","NULL","NULL","NULL","NULL","NULL","F","NULL","NULL","NULL","NULL","NULL","F","NULL","NULL","NULL","NULL","NULL","F","NULL","NULL","NULL","NULL","NULL","F","NULL","NULL","NULL","NULL","NULL","F","NULL","NULL","NULL","NULL","NULL","F","NULL","NULL","NULL","NULL","NULL","F","NULL","NULL","NULL","NULL","NULL","F","NULL","NULL","NULL","NULL","NULL","F","NULL","NULL","NULL","NULL","NULL","F","NULL","NULL","NULL",44952.607310150466,44952.607310150466]
[15319,"Yes","Prescriptive","CPUMPVSDCOOLT2HP","Comm Pump VSD_Cooling Tower_New Pump_2 HP (1.76 to 2.50 HP)","Pump","Pumps","ELE","N/A",864,284,2,5091,"OR","NBE","New Buildings","2023-01-01","2025-12-31","Units",0,0,359.36,0,0,0,"Other Cooling","None - gas",0,300,0,15,0,383.22,0,0,0,1,1,0,"NULL",100,100,"NULL","NULL","NULL","NULL","NULL","NULL","NULL","NULL","NULL","NULL","NULL","NULL","NULL","No Attributes ","NULL","NULL","F","NULL","NULL","NULL","NULL","NULL","F","NULL","NULL","NULL","NULL","NULL","F","NULL","NULL","NULL","NULL","NULL","F","NULL","NULL","NULL","NULL","NULL","F","NULL","NULL","NULL","NULL","NULL","F","NULL","NULL","NULL","NULL","NULL","F","NULL","NULL","NULL","NULL","NULL","F","NULL","NULL","NULL","NULL","NULL","F","NULL","NULL","NULL","NULL","NULL","F","NULL","NULL","NULL","NULL","NULL","F","NULL","NULL","NULL","NULL","NULL","F","NULL","NULL","NULL","NULL","NULL","F","NULL","NULL","NULL","NULL","NULL","F","NULL","NULL","NULL","NULL","NULL","F","NULL","NULL","NULL","NULL","NULL","F","NULL","NULL","NULL","NULL","NULL","F","NULL","NULL","NULL",44952.607310150466,44952.607310150466]
[15320,"Yes","Prescriptive","CPUMPVSDCOOLT1P5HP","Comm Pump VSD_Cooling Tower_New Pump_1.5 HP (1.26 to 1.75 HP)","Pump","Pumps","ELE","N/A",864,284,2,5090,"OR","NBE","New Buildings","2023-01-01","2025-12-31","Units",0,0,269.52,0,0,0,"Other Cooling","None - gas",0,250,0,15,0,334.21,0,0,0,1,1,0,"NULL",100,100,"NULL","NULL","NULL","NULL","NULL","NULL","NULL","NULL","NULL","NULL","NULL","NULL","NULL","No Attributes ","NULL","NULL","F","NULL","NULL","NULL","NULL","NULL","F","NULL","NULL","NULL","NULL","NULL","F","NULL","NULL","NULL","NULL","NULL","F","NULL","NULL","NULL","NULL","NULL","F","NULL","NULL","NULL","NULL","NULL","F","NULL","NULL","NULL","NULL","NULL","F","NULL","NULL","NULL","NULL","NULL","F","NULL","NULL","NULL","NULL","NULL","F","NULL","NULL","NULL","NULL","NULL","F","NULL","NULL","NULL","NULL","NULL","F","NULL","NULL","NULL","NULL","NULL","F","NULL","NULL","NULL","NULL","NULL","F","NULL","NULL","NULL","NULL","NULL","F","NULL","NULL","NULL","NULL","NULL","F","NULL","NULL","NULL","NULL","NULL","F","NULL","NULL","NULL","NULL","NULL","F","NULL","NULL","NULL",44952.607310150466,44952.607310150466]
[15429,"Yes","Prescriptive","MFTANKLESS199","Multifamily 199 kBth/h Condensing Tankless water heater","Tankless water heater","Water Heating","GAS","DHW",828,196,5,4692,"OR","NBE","New Buildings","2023-01-01","2025-12-31","Units",0,0,0,25.67,0,0,"None - ele","DHW",0,140,0,20,0,140.21,0,0,0,1,1,0,100,"NULL","NULL",100,100,100,100,"NULL","NULL","NULL","NULL","NULL","NULL",100,100,100,"Tankless water heater","KBTUHINPUT","kBtuh input per unit","T","Decimal",10,"ED","MANUFACTURER","Manufacturer Name","T","Alphanumeric",64,"ED","MODEL","Model","F","Alphanumeric",64,"ED","EXISTTANK","Existing Water Storage Tank?","T","Alphanumeric",10,"CB","UNITS","Number of units","T","Integer",20,"ED","UENFACT","Uniform Energy Factor","T","Decimal",20,"ED","NULL","NULL","F","NULL","NULL","NULL","NULL","NULL","F","NULL","NULL","NULL","NULL","NULL","F","NULL","NULL","NULL","NULL","NULL","F","NULL","NULL","NULL","NULL","NULL","F","NULL","NULL","NULL","NULL","NULL","F","NULL","NULL","NULL","NULL","NULL","F","NULL","NULL","NULL","NULL","NULL","F","NULL","NULL","NULL","NULL","NULL","F","NULL","NULL","NULL","NULL","NULL","F","NULL","NULL","NULL","NULL","NULL","F","NULL","NULL","NULL",44952.607310150466,45534.507328553242]
[16185,"Yes","Semi-Prescriptive","LIN2019CC","Lighting, Interior, 2019 Code Calc","Lighting","Lighting","ELE","N/A",863,246,2,"NULL","OR","NBE","New Buildings","2023-01-01","2025-12-31","Other",0,0,0,0,0,1,"Other Interior Lights","None - gas",0,0,1,15,0,0,0,0,0,0,0,0,"NULL",100,100,"NULL","NULL","NULL","NULL","NULL","NULL","NULL","NULL","NULL","NULL","NULL","NULL","NULL","Lighting","BLDTYPE","Building Type","T","ALPHANUMERIC",30,"CB","LPD","Lighting Power Density ","T","DECIMAL",10,"ED","LIGHTINGMETHOD","Lighting Analysis Method","T","ALPHANUMERIC",20,"CB","LIGHTDESIGN","Certified Lighting Designer?","T","ALPHANUMERIC",10,"CB","ADVCONTROLS","Advanced Controls?","T","ALPHANUMERIC",10,"CB","NULL","NULL","F","NULL","NULL","NULL","NULL","NULL","F","NULL","NULL","NULL","NULL","NULL","F","NULL","NULL","NULL","NULL","NULL","F","NULL","NULL","NULL","NULL","NULL","F","NULL","NULL","NULL","NULL","NULL","F","NULL","NULL","NULL","NULL","NULL","F","NULL","NULL","NULL","NULL","NULL","F","NULL","NULL","NULL","NULL","NULL","F","NULL","NULL","NULL","NULL","NULL","F","NULL","NULL","NULL","NULL","NULL","F","NULL","NULL","NULL","NULL","NULL","F","NULL","NULL","NULL",44952.607310150466,44952.607310150466]
[17692,"Yes","Prescriptive","MINISPLITAC","Server Closet/Telecom Room Mini-Split Air Conditioner","Server Closet Mini-split AC units","HVAC","ELE","N/A",804,3,3,4326,"OR","NBE","New Buildings","2024-01-01","2025-12-31","Tons",0,0,417.14,0,0,0,"Large Office Ventilation","None - gas",0,250,0,15,0,264.14999999999998,0,0,0,1,1,0,"NULL",100,100,"NULL","NULL","NULL","NULL","NULL","NULL","NULL","NULL","NULL","NULL","NULL","NULL","NULL","Server Closet Mini-split AC units","DESIGNLOAD","Design Load (in kW)","F","Alphanumeric",64,"ED","SEER","SEER","F","Decimal",20,"ED","SEER2","SEER 2","F","ALPHANUMERIC",20,"ED","NULL","NULL","F","NULL","NULL","NULL","NULL","NULL","F","NULL","NULL","NULL","NULL","NULL","F","NULL","NULL","NULL","NULL","NULL","F","NULL","NULL","NULL","NULL","NULL","F","NULL","NULL","NULL","NULL","NULL","F","NULL","NULL","NULL","NULL","NULL","F","NULL","NULL","NULL","NULL","NULL","F","NULL","NULL","NULL","NULL","NULL","F","NULL","NULL","NULL","NULL","NULL","F","NULL","NULL","NULL","NULL","NULL","F","NULL","NULL","NULL","NULL","NULL","F","NULL","NULL","NULL","NULL","NULL","F","NULL","NULL","NULL","NULL","NULL","F","NULL","NULL","NULL",45244.118961805558,45244.118961805558]
[17693,"Yes","Prescriptive","MINISPLITHP","Server Closet/Telecom Room Mini-Split Heat Pumps","Server Closet Mini-split AC units","HVAC","ELE","N/A",804,3,3,4327,"OR","NBE","New Buildings","2024-01-01","2025-12-31","Tons",0,0,417.14,0,0,0,"Large Office Ventilation","None - gas",0,250,0,15,0,272.89999999999998,0,0,0,1,1,0,"NULL",100,100,"NULL","NULL","NULL","NULL","NULL","NULL","NULL","NULL","NULL","NULL","NULL","NULL","NULL","Server Closet Mini-split AC units","DESIGNLOAD","Design Load (in kW)","F","Alphanumeric",64,"ED","SEER","SEER","F","Decimal",20,"ED","SEER2","SEER 2","F","ALPHANUMERIC",20,"ED","NULL","NULL","F","NULL","NULL","NULL","NULL","NULL","F","NULL","NULL","NULL","NULL","NULL","F","NULL","NULL","NULL","NULL","NULL","F","NULL","NULL","NULL","NULL","NULL","F","NULL","NULL","NULL","NULL","NULL","F","NULL","NULL","NULL","NULL","NULL","F","NULL","NULL","NULL","NULL","NULL","F","NULL","NULL","NULL","NULL","NULL","F","NULL","NULL","NULL","NULL","NULL","F","NULL","NULL","NULL","NULL","NULL","F","NULL","NULL","NULL","NULL","NULL","F","NULL","NULL","NULL","NULL","NULL","F","NULL","NULL","NULL","NULL","NULL","F","NULL","NULL","NULL",45244.118961805558,45244.118961805558]
[17915,"Yes","Prescriptive","ESTARFRIDGE","Multifamily Refrigerator","Refrigerator","Appliance","ELE","N/A",913,112,6,5623,"OR","NBE","New Buildings","2024-01-01","2026-12-31","Units",0,0,75.77,0,0,0,"Res Refrigerator","None - gas",0,70,0,17,0,75.41,0,0,0,1,1,0,"NULL",100,100,"NULL","NULL","NULL","NULL","NULL","NULL","NULL","NULL","NULL","NULL","NULL","NULL","NULL","Residential Energy Star Refrigerator ","MANUFACTURER","Manufacturer","T","Alphanumeric",64,"CB","MODEL","Model","T","Alphanumeric",63,"CB","VOLUME","Volume (cubic feet)","T","Decimal",20,"CB","NULL","NULL","F","NULL","NULL","NULL","NULL","NULL","F","NULL","NULL","NULL","NULL","NULL","F","NULL","NULL","NULL","NULL","NULL","F","NULL","NULL","NULL","NULL","NULL","F","NULL","NULL","NULL","NULL","NULL","F","NULL","NULL","NULL","NULL","NULL","F","NULL","NULL","NULL","NULL","NULL","F","NULL","NULL","NULL","NULL","NULL","F","NULL","NULL","NULL","NULL","NULL","F","NULL","NULL","NULL","NULL","NULL","F","NULL","NULL","NULL","NULL","NULL","F","NULL","NULL","NULL","NULL","NULL","F","NULL","NULL","NULL","NULL","NULL","F","NULL","NULL","NULL",45253.110922256943,45253.110922256943]
[17916,"Yes","Prescriptive","ESMEFRIDGE","Energy Star Most Efficient (ESME) Multifamily Refrigerator","Refrigerator","Appliance","ELE","N/A",913,112,6,5624,"OR","NBE","New Buildings","2024-01-01","2026-12-31","Units",0,0,95.8,0,0,0,"Res Refrigerator","None - gas",0,70,0,17,0,83.07,0,0,0,1,1,0,"NULL",100,100,"NULL","NULL","NULL","NULL","NULL","NULL","NULL","NULL","NULL","NULL","NULL","NULL","NULL","Residential Energy Star Refrigerator ","MANUFACTURER","Manufacturer","T","Alphanumeric",64,"CB","MODEL","Model","T","Alphanumeric",63,"CB","VOLUME","Volume (cubic feet)","T","Decimal",20,"CB","NULL","NULL","F","NULL","NULL","NULL","NULL","NULL","F","NULL","NULL","NULL","NULL","NULL","F","NULL","NULL","NULL","NULL","NULL","F","NULL","NULL","NULL","NULL","NULL","F","NULL","NULL","NULL","NULL","NULL","F","NULL","NULL","NULL","NULL","NULL","F","NULL","NULL","NULL","NULL","NULL","F","NULL","NULL","NULL","NULL","NULL","F","NULL","NULL","NULL","NULL","NULL","F","NULL","NULL","NULL","NULL","NULL","F","NULL","NULL","NULL","NULL","NULL","F","NULL","NULL","NULL","NULL","NULL","F","NULL","NULL","NULL","NULL","NULL","F","NULL","NULL","NULL",45253.110922256943,45253.110922256943]
[17926,"Yes","Prescriptive","OZONSYS126400EWH","Ozone Laundry System 126-400 Lbs Capacity - Ele WH","Clothes washer","Appliance","ELE","DHW",918,80,2,5653,"OR","NBE","New Buildings","2024-01-01","2026-12-31","Other",0,0,271970.52,0,14427.32,0,"Lodging Hot Water","Clotheswasher",0,15000,0,10,0,25433.87,0,0,0,1,1,0,"NULL",100,100,"NULL","NULL","NULL","NULL","NULL","NULL","NULL","NULL","NULL","NULL","NULL","NULL","NULL","Clothes Washer","MANUFACTURER","Manufacturer Name","T","Alphanumeric",40,"ED","MODEL","Model","T","Alphanumeric",20,"ED","CAPACITY","Capacity (lbs)","T","Alphanumeric",10,"ED","NULL","NULL","F","NULL","NULL","NULL","NULL","NULL","F","NULL","NULL","NULL","NULL","NULL","F","NULL","NULL","NULL","NULL","NULL","F","NULL","NULL","NULL","NULL","NULL","F","NULL","NULL","NULL","NULL","NULL","F","NULL","NULL","NULL","NULL","NULL","F","NULL","NULL","NULL","NULL","NULL","F","NULL","NULL","NULL","NULL","NULL","F","NULL","NULL","NULL","NULL","NULL","F","NULL","NULL","NULL","NULL","NULL","F","NULL","NULL","NULL","NULL","NULL","F","NULL","NULL","NULL","NULL","NULL","F","NULL","NULL","NULL","NULL","NULL","F","NULL","NULL","NULL",45253.110922256943,45253.110922256943]
[17927,"Yes","Prescriptive","OZONSYS401600GWHGOT","Ozone Laundry System 401-600 Lbs Capacity - Gas WH GOT","Clothes washer","Appliance","GAS","DHW",918,80,2,5644,"OR","NBE","New Buildings","2024-01-01","2026-12-31","Other",0,0,0,22322.85,28596.85,0,"Lodging Hot Water","Clotheswasher",0,25000,0,10,0,39816.22,0,0,0,1,1,0,100,"NULL","NULL",100,100,100,100,"NULL","NULL","NULL","NULL","NULL","NULL",100,100,100,"Clothes Washer","MANUFACTURER","Manufacturer Name","T","Alphanumeric",40,"ED","MODEL","Model","T","Alphanumeric",20,"ED","CAPACITY","Capacity (lbs)","F","Alphanumeric",10,"ED","NULL","NULL","F","NULL","NULL","NULL","NULL","NULL","F","NULL","NULL","NULL","NULL","NULL","F","NULL","NULL","NULL","NULL","NULL","F","NULL","NULL","NULL","NULL","NULL","F","NULL","NULL","NULL","NULL","NULL","F","NULL","NULL","NULL","NULL","NULL","F","NULL","NULL","NULL","NULL","NULL","F","NULL","NULL","NULL","NULL","NULL","F","NULL","NULL","NULL","NULL","NULL","F","NULL","NULL","NULL","NULL","NULL","F","NULL","NULL","NULL","NULL","NULL","F","NULL","NULL","NULL","NULL","NULL","F","NULL","NULL","NULL","NULL","NULL","F","NULL","NULL","NULL",45253.110922256943,45554.104598958336]
[17928,"Yes","Prescriptive","OZONSYS401600GWHFULL","Ozone Laundry System 401-600 Lbs Capacity - Gas WH Full Terr","Clothes washer","Appliance","BOTH","N/A",918,80,2,5639,"OR","NBE","New Buildings","2024-01-01","2026-12-31","Other",0,0,5131.7700000000004,22322.85,27480.6,0,"Lodging Hot Water","Clotheswasher",0,25000,0,10,0,39816.22,0,0,0,1,1,0,99,1,1,99,99,99,99,"NULL","NULL","NULL","NULL","NULL","NULL",99,99,99,"Clothes Washer","MANUFACTURER","Manufacturer Name","T","Alphanumeric",40,"ED","MODEL","Model","T","Alphanumeric",20,"ED","CAPACITY","Capacity (lbs)","F","Alphanumeric",10,"ED","NULL","NULL","F","NULL","NULL","NULL","NULL","NULL","F","NULL","NULL","NULL","NULL","NULL","F","NULL","NULL","NULL","NULL","NULL","F","NULL","NULL","NULL","NULL","NULL","F","NULL","NULL","NULL","NULL","NULL","F","NULL","NULL","NULL","NULL","NULL","F","NULL","NULL","NULL","NULL","NULL","F","NULL","NULL","NULL","NULL","NULL","F","NULL","NULL","NULL","NULL","NULL","F","NULL","NULL","NULL","NULL","NULL","F","NULL","NULL","NULL","NULL","NULL","F","NULL","NULL","NULL","NULL","NULL","F","NULL","NULL","NULL","NULL","NULL","F","NULL","NULL","NULL",45253.110922256943,45554.104598958336]
[17929,"Yes","Prescriptive","OZONSYS401600EWH","Ozone Laundry System 401-600 Lbs Capacity - Ele WH","Clothes washer","Appliance","ELE","DHW",918,80,2,5654,"OR","NBE","New Buildings","2024-01-01","2026-12-31","Other",0,0,518039.09,0,27480.6,0,"Lodging Hot Water","Clotheswasher",0,25000,0,10,0,39816.22,0,0,0,1,1,0,"NULL",100,100,"NULL","NULL","NULL","NULL","NULL","NULL","NULL","NULL","NULL","NULL","NULL","NULL","NULL","Clothes Washer","MANUFACTURER","Manufacturer Name","T","Alphanumeric",40,"ED","MODEL","Model","T","Alphanumeric",20,"ED","CAPACITY","Capacity (lbs)","T","Alphanumeric",10,"ED","NULL","NULL","F","NULL","NULL","NULL","NULL","NULL","F","NULL","NULL","NULL","NULL","NULL","F","NULL","NULL","NULL","NULL","NULL","F","NULL","NULL","NULL","NULL","NULL","F","NULL","NULL","NULL","NULL","NULL","F","NULL","NULL","NULL","NULL","NULL","F","NULL","NULL","NULL","NULL","NULL","F","NULL","NULL","NULL","NULL","NULL","F","NULL","NULL","NULL","NULL","NULL","F","NULL","NULL","NULL","NULL","NULL","F","NULL","NULL","NULL","NULL","NULL","F","NULL","NULL","NULL","NULL","NULL","F","NULL","NULL","NULL","NULL","NULL","F","NULL","NULL","NULL",45253.110922256943,45253.110922256943]
[17930,"Yes","Prescriptive","OZONSYS600GWHGOT","Ozone Laundry System > 600 Lbs Capacity - Gas WH GOT","Clothes washer","Appliance","GAS","DHW",918,80,2,5645,"OR","NBE","New Buildings","2024-01-01","2026-12-31","Other",0,0,0,31251.99,39924.01,0,"Lodging Hot Water","Clotheswasher",0,30000,0,10,0,47957.66,0,0,0,1,1,0,100,"NULL","NULL",100,100,100,100,"NULL","NULL","NULL","NULL","NULL","NULL",100,100,100,"Clothes Washer","MANUFACTURER","Manufacturer Name","T","Alphanumeric",40,"ED","MODEL","Model","T","Alphanumeric",20,"ED","CAPACITY","Capacity (lbs)","F","Alphanumeric",10,"ED","NULL","NULL","F","NULL","NULL","NULL","NULL","NULL","F","NULL","NULL","NULL","NULL","NULL","F","NULL","NULL","NULL","NULL","NULL","F","NULL","NULL","NULL","NULL","NULL","F","NULL","NULL","NULL","NULL","NULL","F","NULL","NULL","NULL","NULL","NULL","F","NULL","NULL","NULL","NULL","NULL","F","NULL","NULL","NULL","NULL","NULL","F","NULL","NULL","NULL","NULL","NULL","F","NULL","NULL","NULL","NULL","NULL","F","NULL","NULL","NULL","NULL","NULL","F","NULL","NULL","NULL","NULL","NULL","F","NULL","NULL","NULL","NULL","NULL","F","NULL","NULL","NULL",45253.110922256943,45554.104598958336]
[17931,"Yes","Prescriptive","OZONSYS600GWHFULL","Ozone Laundry System > 600 Lbs Capacity - Gas WH Full Terr","Clothes washer","Appliance","BOTH","N/A",918,80,2,5640,"OR","NBE","New Buildings","2024-01-01","2026-12-31","Other",0,0,7184.48,31251.99,38472.839999999997,0,"Lodging Hot Water","Clotheswasher",0,30000,0,10,0,47957.66,0,0,0,1,1,0,99,1,1,99,99,99,99,"NULL","NULL","NULL","NULL","NULL","NULL",99,99,99,"Clothes Washer","MANUFACTURER","Manufacturer Name","T","Alphanumeric",40,"ED","MODEL","Model","T","Alphanumeric",20,"ED","CAPACITY","Capacity (lbs)","F","Alphanumeric",10,"ED","NULL","NULL","F","NULL","NULL","NULL","NULL","NULL","F","NULL","NULL","NULL","NULL","NULL","F","NULL","NULL","NULL","NULL","NULL","F","NULL","NULL","NULL","NULL","NULL","F","NULL","NULL","NULL","NULL","NULL","F","NULL","NULL","NULL","NULL","NULL","F","NULL","NULL","NULL","NULL","NULL","F","NULL","NULL","NULL","NULL","NULL","F","NULL","NULL","NULL","NULL","NULL","F","NULL","NULL","NULL","NULL","NULL","F","NULL","NULL","NULL","NULL","NULL","F","NULL","NULL","NULL","NULL","NULL","F","NULL","NULL","NULL","NULL","NULL","F","NULL","NULL","NULL",45253.110922256943,45554.104598958336]
[17932,"Yes","Prescriptive","OZONSYS600EWH","Ozone Laundry System > 600 Lbs Capacity - Ele WH","Clothes washer","Appliance","ELE","DHW",918,80,2,5655,"OR","NBE","New Buildings","2024-01-01","2026-12-31","Other",0,0,725254.73,0,38472.839999999997,0,"Lodging Hot Water","Clotheswasher",0,30000,0,10,0,47957.66,0,0,0,1,1,0,"NULL",100,100,"NULL","NULL","NULL","NULL","NULL","NULL","NULL","NULL","NULL","NULL","NULL","NULL","NULL","Clothes Washer","MANUFACTURER","Manufacturer Name","T","Alphanumeric",40,"ED","MODEL","Model","T","Alphanumeric",20,"ED","CAPACITY","Capacity (lbs)","T","Alphanumeric",10,"ED","NULL","NULL","F","NULL","NULL","NULL","NULL","NULL","F","NULL","NULL","NULL","NULL","NULL","F","NULL","NULL","NULL","NULL","NULL","F","NULL","NULL","NULL","NULL","NULL","F","NULL","NULL","NULL","NULL","NULL","F","NULL","NULL","NULL","NULL","NULL","F","NULL","NULL","NULL","NULL","NULL","F","NULL","NULL","NULL","NULL","NULL","F","NULL","NULL","NULL","NULL","NULL","F","NULL","NULL","NULL","NULL","NULL","F","NULL","NULL","NULL","NULL","NULL","F","NULL","NULL","NULL","NULL","NULL","F","NULL","NULL","NULL","NULL","NULL","F","NULL","NULL","NULL",45253.110922256943,45253.110922256943]
[17933,"Yes","Prescriptive","OZONSYS75GWHFULL","Ozone Laundry System < 75 Lbs Capacity - Gas WH Full Terr","Clothes washer","Appliance","BOTH","N/A",918,80,2,5636,"OR","NBE","New Buildings","2024-01-01","2026-12-31","Other",0,0,513.17999999999995,2232.29,2748.06,0,"Lodging Hot Water","Clotheswasher",0,5000,0,10,0,10092.68,0,0,0,1,1,0,99,1,1,99,99,99,99,"NULL","NULL","NULL","NULL","NULL","NULL",99,99,99,"Clothes Washer","MANUFACTURER","Manufacturer Name","T","Alphanumeric",40,"ED","MODEL","Model","T","Alphanumeric",20,"ED","CAPACITY","Capacity (lbs)","F","Alphanumeric",10,"ED","NULL","NULL","F","NULL","NULL","NULL","NULL","NULL","F","NULL","NULL","NULL","NULL","NULL","F","NULL","NULL","NULL","NULL","NULL","F","NULL","NULL","NULL","NULL","NULL","F","NULL","NULL","NULL","NULL","NULL","F","NULL","NULL","NULL","NULL","NULL","F","NULL","NULL","NULL","NULL","NULL","F","NULL","NULL","NULL","NULL","NULL","F","NULL","NULL","NULL","NULL","NULL","F","NULL","NULL","NULL","NULL","NULL","F","NULL","NULL","NULL","NULL","NULL","F","NULL","NULL","NULL","NULL","NULL","F","NULL","NULL","NULL","NULL","NULL","F","NULL","NULL","NULL",45253.110922256943,45554.104598958336]
[17934,"Yes","Prescriptive","OZONSYS75EWH","Ozone Laundry System < 75 Lbs Capacity - Ele WH","Clothes washer","Appliance","ELE","DHW",918,80,2,5651,"OR","NBE","New Buildings","2024-01-01","2026-12-31","Other",0,0,51803.91,0,2748.06,0,"Lodging Hot Water","Clotheswasher",0,5000,0,10,0,10092.68,0,0,0,1,1,0,"NULL",100,100,"NULL","NULL","NULL","NULL","NULL","NULL","NULL","NULL","NULL","NULL","NULL","NULL","NULL","Clothes Washer","MANUFACTURER","Manufacturer Name","T","Alphanumeric",40,"ED","MODEL","Model","T","Alphanumeric",20,"ED","CAPACITY","Capacity (lbs)","T","Alphanumeric",10,"ED","NULL","NULL","F","NULL","NULL","NULL","NULL","NULL","F","NULL","NULL","NULL","NULL","NULL","F","NULL","NULL","NULL","NULL","NULL","F","NULL","NULL","NULL","NULL","NULL","F","NULL","NULL","NULL","NULL","NULL","F","NULL","NULL","NULL","NULL","NULL","F","NULL","NULL","NULL","NULL","NULL","F","NULL","NULL","NULL","NULL","NULL","F","NULL","NULL","NULL","NULL","NULL","F","NULL","NULL","NULL","NULL","NULL","F","NULL","NULL","NULL","NULL","NULL","F","NULL","NULL","NULL","NULL","NULL","F","NULL","NULL","NULL","NULL","NULL","F","NULL","NULL","NULL",45253.110922256943,45253.110922256943]
[17935,"Yes","Prescriptive","OZONSYS75125GWHGOT","Ozone Laundry System 75-125 Lbs Capacity - Gas WH GOT","Clothes washer","Appliance","GAS","DHW",918,80,2,5642,"OR","NBE","New Buildings","2024-01-01","2026-12-31","Other",0,0,0,4464.57,5703.43,0,"Lodging Hot Water","Clotheswasher",0,7500,0,10,0,13479.48,0,0,0,1,1,0,100,"NULL","NULL",100,100,100,100,"NULL","NULL","NULL","NULL","NULL","NULL",100,100,100,"Clothes Washer","MANUFACTURER","Manufacturer Name","T","Alphanumeric",40,"ED","MODEL","Model","T","Alphanumeric",20,"ED","CAPACITY","Capacity (lbs)","F","Alphanumeric",10,"ED","NULL","NULL","F","NULL","NULL","NULL","NULL","NULL","F","NULL","NULL","NULL","NULL","NULL","F","NULL","NULL","NULL","NULL","NULL","F","NULL","NULL","NULL","NULL","NULL","F","NULL","NULL","NULL","NULL","NULL","F","NULL","NULL","NULL","NULL","NULL","F","NULL","NULL","NULL","NULL","NULL","F","NULL","NULL","NULL","NULL","NULL","F","NULL","NULL","NULL","NULL","NULL","F","NULL","NULL","NULL","NULL","NULL","F","NULL","NULL","NULL","NULL","NULL","F","NULL","NULL","NULL","NULL","NULL","F","NULL","NULL","NULL","NULL","NULL","F","NULL","NULL","NULL",45253.110922256943,45554.104598958336]
[17936,"Yes","Prescriptive","OZONSYS75125GWHFULL","Ozone Laundry System 75-125 Lbs Capacity - Gas WH Full Terr","Clothes washer","Appliance","BOTH","N/A",918,80,2,5637,"OR","NBE","New Buildings","2024-01-01","2026-12-31","Other",0,0,1026.3499999999999,4464.57,5496.12,0,"Lodging Hot Water","Clotheswasher",0,7500,0,10,0,13479.48,0,0,0,1,1,0,99,1,1,99,99,99,99,"NULL","NULL","NULL","NULL","NULL","NULL",99,99,99,"Clothes Washer","MANUFACTURER","Manufacturer Name","T","Alphanumeric",40,"ED","MODEL","Model","T","Alphanumeric",20,"ED","CAPACITY","Capacity (lbs)","F","Alphanumeric",10,"ED","NULL","NULL","F","NULL","NULL","NULL","NULL","NULL","F","NULL","NULL","NULL","NULL","NULL","F","NULL","NULL","NULL","NULL","NULL","F","NULL","NULL","NULL","NULL","NULL","F","NULL","NULL","NULL","NULL","NULL","F","NULL","NULL","NULL","NULL","NULL","F","NULL","NULL","NULL","NULL","NULL","F","NULL","NULL","NULL","NULL","NULL","F","NULL","NULL","NULL","NULL","NULL","F","NULL","NULL","NULL","NULL","NULL","F","NULL","NULL","NULL","NULL","NULL","F","NULL","NULL","NULL","NULL","NULL","F","NULL","NULL","NULL","NULL","NULL","F","NULL","NULL","NULL",45253.110922256943,45554.104598958336]
[17937,"Yes","Prescriptive","OZONSYS75125EWH","Ozone Laundry System 75-125 Lbs Capacity - Ele WH","Clothes washer","Appliance","ELE","DHW",918,80,2,5652,"OR","NBE","New Buildings","2024-01-01","2026-12-31","Other",0,0,103607.82,0,5496.12,0,"Lodging Hot Water","Clotheswasher",0,7500,0,10,0,13479.48,0,0,0,1,1,0,"NULL",100,100,"NULL","NULL","NULL","NULL","NULL","NULL","NULL","NULL","NULL","NULL","NULL","NULL","NULL","Clothes Washer","MANUFACTURER","Manufacturer Name","T","Alphanumeric",40,"ED","MODEL","Model","T","Alphanumeric",20,"ED","CAPACITY","Capacity (lbs)","T","Alphanumeric",10,"ED","NULL","NULL","F","NULL","NULL","NULL","NULL","NULL","F","NULL","NULL","NULL","NULL","NULL","F","NULL","NULL","NULL","NULL","NULL","F","NULL","NULL","NULL","NULL","NULL","F","NULL","NULL","NULL","NULL","NULL","F","NULL","NULL","NULL","NULL","NULL","F","NULL","NULL","NULL","NULL","NULL","F","NULL","NULL","NULL","NULL","NULL","F","NULL","NULL","NULL","NULL","NULL","F","NULL","NULL","NULL","NULL","NULL","F","NULL","NULL","NULL","NULL","NULL","F","NULL","NULL","NULL","NULL","NULL","F","NULL","NULL","NULL","NULL","NULL","F","NULL","NULL","NULL",45253.110922256943,45253.110922256943]
[17938,"Yes","Prescriptive","OZONSYS126400GWHGOT","Ozone Laundry System 126-400 Lbs Capacity - Gas WH GOT","Clothes washer","Appliance","GAS","DHW",918,80,2,5643,"OR","NBE","New Buildings","2024-01-01","2026-12-31","Other",0,0,0,11719.5,14971.5,0,"Lodging Hot Water","Clotheswasher",0,15000,0,10,0,25433.87,0,0,0,1,1,0,100,"NULL","NULL",100,100,100,100,"NULL","NULL","NULL","NULL","NULL","NULL",100,100,100,"Clothes Washer","MANUFACTURER","Manufacturer Name","T","Alphanumeric",40,"ED","MODEL","Model","T","Alphanumeric",20,"ED","CAPACITY","Capacity (lbs)","F","Alphanumeric",10,"ED","NULL","NULL","F","NULL","NULL","NULL","NULL","NULL","F","NULL","NULL","NULL","NULL","NULL","F","NULL","NULL","NULL","NULL","NULL","F","NULL","NULL","NULL","NULL","NULL","F","NULL","NULL","NULL","NULL","NULL","F","NULL","NULL","NULL","NULL","NULL","F","NULL","NULL","NULL","NULL","NULL","F","NULL","NULL","NULL","NULL","NULL","F","NULL","NULL","NULL","NULL","NULL","F","NULL","NULL","NULL","NULL","NULL","F","NULL","NULL","NULL","NULL","NULL","F","NULL","NULL","NULL","NULL","NULL","F","NULL","NULL","NULL","NULL","NULL","F","NULL","NULL","NULL",45253.110922256943,45554.104598958336]
[17939,"Yes","Prescriptive","OZONSYS126400GWHFULL","Ozone Laundry System 126-400 Lbs Capacity - Gas WH Full Terr","Clothes washer","Appliance","BOTH","N/A",918,80,2,5638,"OR","NBE","New Buildings","2024-01-01","2026-12-31","Other",0,0,2694.18,11719.5,14427.32,0,"Lodging Hot Water","Clotheswasher",0,15000,0,10,0,25433.87,0,0,0,1,1,0,99,1,1,99,99,99,99,"NULL","NULL","NULL","NULL","NULL","NULL",99,99,99,"Clothes Washer","MANUFACTURER","Manufacturer Name","T","Alphanumeric",40,"ED","MODEL","Model","T","Alphanumeric",20,"ED","CAPACITY","Capacity (lbs)","F","Alphanumeric",10,"ED","NULL","NULL","F","NULL","NULL","NULL","NULL","NULL","F","NULL","NULL","NULL","NULL","NULL","F","NULL","NULL","NULL","NULL","NULL","F","NULL","NULL","NULL","NULL","NULL","F","NULL","NULL","NULL","NULL","NULL","F","NULL","NULL","NULL","NULL","NULL","F","NULL","NULL","NULL","NULL","NULL","F","NULL","NULL","NULL","NULL","NULL","F","NULL","NULL","NULL","NULL","NULL","F","NULL","NULL","NULL","NULL","NULL","F","NULL","NULL","NULL","NULL","NULL","F","NULL","NULL","NULL","NULL","NULL","F","NULL","NULL","NULL","NULL","NULL","F","NULL","NULL","NULL",45253.110922256943,45554.104598958336]
[17947,"Yes","Prescriptive","OZONSYS75GWHGOT","Ozone Laundry System < 75 Lbs Capacity - Gas WH GOT","Clothes washer","Appliance","GAS","DHW",918,80,2,5641,"OR","NBE","New Buildings","2024-01-01","2026-12-31","Other",0,0,0,2232.29,2851.71,0,"Lodging Hot Water","Clotheswasher",0,5000,0,10,0,10092.68,0,0,0,1,1,0,100,"NULL","NULL",100,100,100,100,"NULL","NULL","NULL","NULL","NULL","NULL",100,100,100,"Clothes Washer","MANUFACTURER","Manufacturer Name","T","Alphanumeric",40,"ED","MODEL","Model","T","Alphanumeric",20,"ED","CAPACITY","Capacity (lbs)","F","Alphanumeric",10,"ED","NULL","NULL","F","NULL","NULL","NULL","NULL","NULL","F","NULL","NULL","NULL","NULL","NULL","F","NULL","NULL","NULL","NULL","NULL","F","NULL","NULL","NULL","NULL","NULL","F","NULL","NULL","NULL","NULL","NULL","F","NULL","NULL","NULL","NULL","NULL","F","NULL","NULL","NULL","NULL","NULL","F","NULL","NULL","NULL","NULL","NULL","F","NULL","NULL","NULL","NULL","NULL","F","NULL","NULL","NULL","NULL","NULL","F","NULL","NULL","NULL","NULL","NULL","F","NULL","NULL","NULL","NULL","NULL","F","NULL","NULL","NULL","NULL","NULL","F","NULL","NULL","NULL",45253.110922256943,45554.104598958336]
[17948,"Yes","Prescriptive","COMWASHEDRYGET","Commercial Washer Gas/Other Dryer Ele WH, Energy Star, EOT","Clothes washer","Appliance","ELE","N/A",935,89,5,5760,"OR","NBE","New Buildings","2024-01-01","2026-12-31","Units",0,0,427.56,0,340.44,0,"Other Process","None - gas",0,150,0,7,0,531.15,0,0,0,1,1,0,"NULL",100,100,"NULL","NULL","NULL","NULL","NULL","NULL","NULL","NULL","NULL","NULL","NULL","NULL","NULL","Clothes Washer","MEF","MEF","T","Alphanumeric",5,"ED","WATERFACTOR","Water Factor","F","Alphanumeric",10,"ED","NULL","NULL","F","NULL","NULL","NULL","NULL","NULL","F","NULL","NULL","NULL","NULL","NULL","F","NULL","NULL","NULL","NULL","NULL","F","NULL","NULL","NULL","NULL","NULL","F","NULL","NULL","NULL","NULL","NULL","F","NULL","NULL","NULL","NULL","NULL","F","NULL","NULL","NULL","NULL","NULL","F","NULL","NULL","NULL","NULL","NULL","F","NULL","NULL","NULL","NULL","NULL","F","NULL","NULL","NULL","NULL","NULL","F","NULL","NULL","NULL","NULL","NULL","F","NULL","NULL","NULL","NULL","NULL","F","NULL","NULL","NULL","NULL","NULL","F","NULL","NULL","NULL","NULL","NULL","F","NULL","NULL","NULL",45253.110922256943,45253.110922256943]
[17949,"Yes","Prescriptive","COMWASHGDRYEET","Commercial Washer Ele Dryer Gas/Other WH, Energy Star, EOT","Clothes washer","Appliance","ELE","N/A",935,89,5,5758,"OR","NBE","New Buildings","2024-01-01","2026-12-31","Units",0,0,804.37,0,326.56,0,"Other Process","None - gas",0,150,0,7,0,531.15,0,0,0,1,1,0,"NULL",100,100,"NULL","NULL","NULL","NULL","NULL","NULL","NULL","NULL","NULL","NULL","NULL","NULL","NULL","Clothes Washer","MEF","MEF","T","Alphanumeric",5,"ED","WATERFACTOR","Water Factor","F","Alphanumeric",10,"ED","NULL","NULL","F","NULL","NULL","NULL","NULL","NULL","F","NULL","NULL","NULL","NULL","NULL","F","NULL","NULL","NULL","NULL","NULL","F","NULL","NULL","NULL","NULL","NULL","F","NULL","NULL","NULL","NULL","NULL","F","NULL","NULL","NULL","NULL","NULL","F","NULL","NULL","NULL","NULL","NULL","F","NULL","NULL","NULL","NULL","NULL","F","NULL","NULL","NULL","NULL","NULL","F","NULL","NULL","NULL","NULL","NULL","F","NULL","NULL","NULL","NULL","NULL","F","NULL","NULL","NULL","NULL","NULL","F","NULL","NULL","NULL","NULL","NULL","F","NULL","NULL","NULL","NULL","NULL","F","NULL","NULL","NULL",45253.110922256943,45253.110922256943]
[17950,"Yes","Prescriptive","COMWASHEDRYGMFET","MF Commercial Washer Gas/Other Dryer Ele WH, Energy Star, EOT","Clothes washer","Appliance","ELE","N/A",935,89,5,5756,"OR","NBE","New Buildings","2024-01-01","2026-12-31","Units",0,0,312.74,0,252.42,0,"Res Clotheswasher","None - gas",0,150,0,11,0,531.15,0,0,0,1,1,0,"NULL",100,100,"NULL","NULL","NULL","NULL","NULL","NULL","NULL","NULL","NULL","NULL","NULL","NULL","NULL","Clothes Washer","MEF","MEF","T","Alphanumeric",5,"ED","WATERFACTOR","Water Factor","F","Alphanumeric",10,"ED","NULL","NULL","F","NULL","NULL","NULL","NULL","NULL","F","NULL","NULL","NULL","NULL","NULL","F","NULL","NULL","NULL","NULL","NULL","F","NULL","NULL","NULL","NULL","NULL","F","NULL","NULL","NULL","NULL","NULL","F","NULL","NULL","NULL","NULL","NULL","F","NULL","NULL","NULL","NULL","NULL","F","NULL","NULL","NULL","NULL","NULL","F","NULL","NULL","NULL","NULL","NULL","F","NULL","NULL","NULL","NULL","NULL","F","NULL","NULL","NULL","NULL","NULL","F","NULL","NULL","NULL","NULL","NULL","F","NULL","NULL","NULL","NULL","NULL","F","NULL","NULL","NULL","NULL","NULL","F","NULL","NULL","NULL",45253.110922256943,45253.110922256943]
[17951,"Yes","Prescriptive","COMWASHGDRYEMFET","MF Commercial Washer Ele Dryer Gas/Other WH, Energy Star, EOT","Clothes washer","Appliance","ELE","N/A",935,89,5,5754,"OR","NBE","New Buildings","2024-01-01","2026-12-31","Units",0,0,588.37,0,242.27,0,"Res Clotheswasher","None - gas",0,150,0,11,0,531.15,0,0,0,1,1,0,"NULL",100,100,"NULL","NULL","NULL","NULL","NULL","NULL","NULL","NULL","NULL","NULL","NULL","NULL","NULL","Clothes Washer","MEF","MEF","T","Alphanumeric",5,"ED","WATERFACTOR","Water Factor","F","Alphanumeric",10,"ED","NULL","NULL","F","NULL","NULL","NULL","NULL","NULL","F","NULL","NULL","NULL","NULL","NULL","F","NULL","NULL","NULL","NULL","NULL","F","NULL","NULL","NULL","NULL","NULL","F","NULL","NULL","NULL","NULL","NULL","F","NULL","NULL","NULL","NULL","NULL","F","NULL","NULL","NULL","NULL","NULL","F","NULL","NULL","NULL","NULL","NULL","F","NULL","NULL","NULL","NULL","NULL","F","NULL","NULL","NULL","NULL","NULL","F","NULL","NULL","NULL","NULL","NULL","F","NULL","NULL","NULL","NULL","NULL","F","NULL","NULL","NULL","NULL","NULL","F","NULL","NULL","NULL","NULL","NULL","F","NULL","NULL","NULL",45253.110922256943,45253.110922256943]
[17952,"Yes","Prescriptive","COMWASHGDRYGFT","Commercial Washer Gas Dryer Gas WH, Energy Star","Clothes washer","Appliance","BOTH","N/A",935,89,5,5740,"OR","NBE","New Buildings","2024-01-01","2026-12-31","Units",0,0,64.09,44.86,307.05,0,"Other Process","Clotheswasher",0,350,0,7,0,531.15,0,0,0,1,1,0,92,8,8,92,92,92,92,"NULL","NULL","NULL","NULL","NULL","NULL",92,92,92,"Clothes Washer","MEF","MEF","T","Alphanumeric",5,"ED","WATERFACTOR","Water Factor","F","Alphanumeric",10,"ED","NULL","NULL","F","NULL","NULL","NULL","NULL","NULL","F","NULL","NULL","NULL","NULL","NULL","F","NULL","NULL","NULL","NULL","NULL","F","NULL","NULL","NULL","NULL","NULL","F","NULL","NULL","NULL","NULL","NULL","F","NULL","NULL","NULL","NULL","NULL","F","NULL","NULL","NULL","NULL","NULL","F","NULL","NULL","NULL","NULL","NULL","F","NULL","NULL","NULL","NULL","NULL","F","NULL","NULL","NULL","NULL","NULL","F","NULL","NULL","NULL","NULL","NULL","F","NULL","NULL","NULL","NULL","NULL","F","NULL","NULL","NULL","NULL","NULL","F","NULL","NULL","NULL","NULL","NULL","F","NULL","NULL","NULL",45253.110922256943,45554.104598958336]
[17953,"Yes","Prescriptive","COMWASHEDRYGFT","Commercial Washer Gas Dryer Ele WH, Energy Star","Clothes washer","Appliance","BOTH","N/A",935,89,5,5738,"OR","NBE","New Buildings","2024-01-01","2026-12-31","Units",0,0,427.56,28.31,307.05,0,"Other Process","Clotheswasher",0,350,0,7,0,531.15,0,0,0,1,1,0,53,47,47,53,53,53,53,"NULL","NULL","NULL","NULL","NULL","NULL",53,53,53,"Clothes Washer","MEF","MEF","T","Alphanumeric",5,"ED","WATERFACTOR","Water Factor","F","Alphanumeric",10,"ED","NULL","NULL","F","NULL","NULL","NULL","NULL","NULL","F","NULL","NULL","NULL","NULL","NULL","F","NULL","NULL","NULL","NULL","NULL","F","NULL","NULL","NULL","NULL","NULL","F","NULL","NULL","NULL","NULL","NULL","F","NULL","NULL","NULL","NULL","NULL","F","NULL","NULL","NULL","NULL","NULL","F","NULL","NULL","NULL","NULL","NULL","F","NULL","NULL","NULL","NULL","NULL","F","NULL","NULL","NULL","NULL","NULL","F","NULL","NULL","NULL","NULL","NULL","F","NULL","NULL","NULL","NULL","NULL","F","NULL","NULL","NULL","NULL","NULL","F","NULL","NULL","NULL","NULL","NULL","F","NULL","NULL","NULL",45253.110922256943,45554.104598958336]
[17954,"Yes","Prescriptive","COMWASHGDRYEFT","Commercial Washer Ele Dryer Gas WH, Energy Star","Clothes washer","Appliance","BOTH","N/A",935,89,5,5736,"OR","NBE","New Buildings","2024-01-01","2026-12-31","Units",0,0,804.37,16.55,307.05,0,"Other Process","Clotheswasher",0,400,0,7,0,531.15,0,0,0,1,1,0,26,74,74,26,26,26,26,"NULL","NULL","NULL","NULL","NULL","NULL",26,26,26,"Clothes Washer","MEF","MEF","T","Alphanumeric",5,"ED","WATERFACTOR","Water Factor","F","Alphanumeric",10,"ED","NULL","NULL","F","NULL","NULL","NULL","NULL","NULL","F","NULL","NULL","NULL","NULL","NULL","F","NULL","NULL","NULL","NULL","NULL","F","NULL","NULL","NULL","NULL","NULL","F","NULL","NULL","NULL","NULL","NULL","F","NULL","NULL","NULL","NULL","NULL","F","NULL","NULL","NULL","NULL","NULL","F","NULL","NULL","NULL","NULL","NULL","F","NULL","NULL","NULL","NULL","NULL","F","NULL","NULL","NULL","NULL","NULL","F","NULL","NULL","NULL","NULL","NULL","F","NULL","NULL","NULL","NULL","NULL","F","NULL","NULL","NULL","NULL","NULL","F","NULL","NULL","NULL","NULL","NULL","F","NULL","NULL","NULL",45253.110922256943,45554.104598958336]
[17955,"Yes","Prescriptive","COMWASHEDRYEFT","Commercial Washer Ele Dryer Ele WH, Energy Star","Clothes washer","Appliance","ELE","N/A",935,89,5,5734,"OR","NBE","New Buildings","2024-01-01","2026-12-31","Units",0,0,1167.8399999999999,0,307.05,0,"Other Process","None - gas",0,400,0,7,0,531.15,0,0,0,1,1,0,"NULL",100,100,"NULL","NULL","NULL","NULL","NULL","NULL","NULL","NULL","NULL","NULL","NULL","NULL","NULL","Clothes Washer","MEF","MEF","T","Alphanumeric",5,"ED","WATERFACTOR","Water Factor","F","Alphanumeric",10,"ED","NULL","NULL","F","NULL","NULL","NULL","NULL","NULL","F","NULL","NULL","NULL","NULL","NULL","F","NULL","NULL","NULL","NULL","NULL","F","NULL","NULL","NULL","NULL","NULL","F","NULL","NULL","NULL","NULL","NULL","F","NULL","NULL","NULL","NULL","NULL","F","NULL","NULL","NULL","NULL","NULL","F","NULL","NULL","NULL","NULL","NULL","F","NULL","NULL","NULL","NULL","NULL","F","NULL","NULL","NULL","NULL","NULL","F","NULL","NULL","NULL","NULL","NULL","F","NULL","NULL","NULL","NULL","NULL","F","NULL","NULL","NULL","NULL","NULL","F","NULL","NULL","NULL","NULL","NULL","F","NULL","NULL","NULL",45253.110922256943,45253.110922256943]
[17956,"Yes","Prescriptive","COMWASHGDRYGMFFT","MF Commercial Washer Gas Dryer Gas WH, Energy Star","Clothes washer","Appliance","BOTH","N/A",935,89,5,5732,"OR","NBE","New Buildings","2024-01-01","2026-12-31","Units",0,0,46.88,32.81,228,0,"Res Clotheswasher","Clotheswasher",0,350,0,11,0,531.15,0,0,0,1,1,0,92,8,8,92,92,92,92,"NULL","NULL","NULL","NULL","NULL","NULL",92,92,92,"Clothes Washer","MEF","MEF","T","Alphanumeric",5,"ED","WATERFACTOR","Water Factor","F","Alphanumeric",10,"ED","NULL","NULL","F","NULL","NULL","NULL","NULL","NULL","F","NULL","NULL","NULL","NULL","NULL","F","NULL","NULL","NULL","NULL","NULL","F","NULL","NULL","NULL","NULL","NULL","F","NULL","NULL","NULL","NULL","NULL","F","NULL","NULL","NULL","NULL","NULL","F","NULL","NULL","NULL","NULL","NULL","F","NULL","NULL","NULL","NULL","NULL","F","NULL","NULL","NULL","NULL","NULL","F","NULL","NULL","NULL","NULL","NULL","F","NULL","NULL","NULL","NULL","NULL","F","NULL","NULL","NULL","NULL","NULL","F","NULL","NULL","NULL","NULL","NULL","F","NULL","NULL","NULL","NULL","NULL","F","NULL","NULL","NULL",45253.110922256943,45554.104598958336]
[17957,"Yes","Prescriptive","COMWASHEDRYGMFFT","MF Commercial Washer Gas Dryer Ele WH, Energy Star","Clothes washer","Appliance","BOTH","N/A",935,89,5,5730,"OR","NBE","New Buildings","2024-01-01","2026-12-31","Units",0,0,312.74,20.71,228,0,"Res Clotheswasher","Clotheswasher",0,350,0,11,0,531.15,0,0,0,1,1,0,52,48,48,52,52,52,52,"NULL","NULL","NULL","NULL","NULL","NULL",52,52,52,"Clothes Washer","MEF","MEF","T","Alphanumeric",5,"ED","WATERFACTOR","Water Factor","F","Alphanumeric",10,"ED","NULL","NULL","F","NULL","NULL","NULL","NULL","NULL","F","NULL","NULL","NULL","NULL","NULL","F","NULL","NULL","NULL","NULL","NULL","F","NULL","NULL","NULL","NULL","NULL","F","NULL","NULL","NULL","NULL","NULL","F","NULL","NULL","NULL","NULL","NULL","F","NULL","NULL","NULL","NULL","NULL","F","NULL","NULL","NULL","NULL","NULL","F","NULL","NULL","NULL","NULL","NULL","F","NULL","NULL","NULL","NULL","NULL","F","NULL","NULL","NULL","NULL","NULL","F","NULL","NULL","NULL","NULL","NULL","F","NULL","NULL","NULL","NULL","NULL","F","NULL","NULL","NULL","NULL","NULL","F","NULL","NULL","NULL",45253.110922256943,45554.104598958336]
[17958,"Yes","Prescriptive","COMWASHGDRYEMFFT","MF Commercial Washer Ele Dryer Gas WH, Energy Star","Clothes washer","Appliance","BOTH","N/A",935,89,5,5728,"OR","NBE","New Buildings","2024-01-01","2026-12-31","Units",0,0,588.37,12.1,228,0,"Res Clotheswasher","Clotheswasher",0,400,0,11,0,531.15,0,0,0,1,1,0,25,75,75,25,25,25,25,"NULL","NULL","NULL","NULL","NULL","NULL",25,25,25,"Clothes Washer","MEF","MEF","T","Alphanumeric",5,"ED","WATERFACTOR","Water Factor","F","Alphanumeric",10,"ED","NULL","NULL","F","NULL","NULL","NULL","NULL","NULL","F","NULL","NULL","NULL","NULL","NULL","F","NULL","NULL","NULL","NULL","NULL","F","NULL","NULL","NULL","NULL","NULL","F","NULL","NULL","NULL","NULL","NULL","F","NULL","NULL","NULL","NULL","NULL","F","NULL","NULL","NULL","NULL","NULL","F","NULL","NULL","NULL","NULL","NULL","F","NULL","NULL","NULL","NULL","NULL","F","NULL","NULL","NULL","NULL","NULL","F","NULL","NULL","NULL","NULL","NULL","F","NULL","NULL","NULL","NULL","NULL","F","NULL","NULL","NULL","NULL","NULL","F","NULL","NULL","NULL","NULL","NULL","F","NULL","NULL","NULL",45253.110922256943,45554.104598958336]
[17959,"Yes","Prescriptive","COMWASHEDRYEMFFT","MF Commercial Washer Ele Dryer Ele WH, Energy Star","Clothes washer","Appliance","ELE","N/A",935,89,5,5726,"OR","NBE","New Buildings","2024-01-01","2026-12-31","Units",0,0,854.23,0,228,0,"Res Clotheswasher","None - gas",0,400,0,11,0,531.15,0,0,0,1,1,0,"NULL",100,100,"NULL","NULL","NULL","NULL","NULL","NULL","NULL","NULL","NULL","NULL","NULL","NULL","NULL","Clothes Washer","MEF","MEF","T","Alphanumeric",5,"ED","WATERFACTOR","Water Factor","F","Alphanumeric",10,"ED","NULL","NULL","F","NULL","NULL","NULL","NULL","NULL","F","NULL","NULL","NULL","NULL","NULL","F","NULL","NULL","NULL","NULL","NULL","F","NULL","NULL","NULL","NULL","NULL","F","NULL","NULL","NULL","NULL","NULL","F","NULL","NULL","NULL","NULL","NULL","F","NULL","NULL","NULL","NULL","NULL","F","NULL","NULL","NULL","NULL","NULL","F","NULL","NULL","NULL","NULL","NULL","F","NULL","NULL","NULL","NULL","NULL","F","NULL","NULL","NULL","NULL","NULL","F","NULL","NULL","NULL","NULL","NULL","F","NULL","NULL","NULL","NULL","NULL","F","NULL","NULL","NULL","NULL","NULL","F","NULL","NULL","NULL",45253.110922256943,45253.110922256943]
[17960,"Yes","Prescriptive","COMWASHGDRYGGT","Commercial Washer Gas Dryer Gas WH, Energy Star, GOT","Clothes washer","Appliance","GAS","N/A",935,89,5,5752,"OR","NBE","New Buildings","2024-01-01","2026-12-31","Units",0,0,0,44.86,314.91000000000003,0,"None - ele","Clotheswasher",0,100,0,7,0,531.15,0,0,0,1,1,0,100,"NULL","NULL",100,100,100,100,"NULL","NULL","NULL","NULL","NULL","NULL",100,100,100,"Clothes Washer","MEF","MEF","T","Alphanumeric",5,"ED","WATERFACTOR","Water Factor","F","Alphanumeric",10,"ED","NULL","NULL","F","NULL","NULL","NULL","NULL","NULL","F","NULL","NULL","NULL","NULL","NULL","F","NULL","NULL","NULL","NULL","NULL","F","NULL","NULL","NULL","NULL","NULL","F","NULL","NULL","NULL","NULL","NULL","F","NULL","NULL","NULL","NULL","NULL","F","NULL","NULL","NULL","NULL","NULL","F","NULL","NULL","NULL","NULL","NULL","F","NULL","NULL","NULL","NULL","NULL","F","NULL","NULL","NULL","NULL","NULL","F","NULL","NULL","NULL","NULL","NULL","F","NULL","NULL","NULL","NULL","NULL","F","NULL","NULL","NULL","NULL","NULL","F","NULL","NULL","NULL","NULL","NULL","F","NULL","NULL","NULL",45253.110922256943,45554.104598958336]
[17961,"Yes","Prescriptive","COMWASHEDRYGGT","Commercial Washer Gas Dryer Ele WH, Energy Star, GOT","Clothes washer","Appliance","GAS","N/A",935,89,5,5750,"OR","NBE","New Buildings","2024-01-01","2026-12-31","Units",0,0,0,28.31,343.88,0,"None - ele","Clotheswasher",0,100,0,7,0,531.15,0,0,0,1,1,0,100,"NULL","NULL",100,100,100,100,"NULL","NULL","NULL","NULL","NULL","NULL",100,100,100,"Clothes Washer","MEF","MEF","T","Alphanumeric",5,"ED","WATERFACTOR","Water Factor","F","Alphanumeric",10,"ED","NULL","NULL","F","NULL","NULL","NULL","NULL","NULL","F","NULL","NULL","NULL","NULL","NULL","F","NULL","NULL","NULL","NULL","NULL","F","NULL","NULL","NULL","NULL","NULL","F","NULL","NULL","NULL","NULL","NULL","F","NULL","NULL","NULL","NULL","NULL","F","NULL","NULL","NULL","NULL","NULL","F","NULL","NULL","NULL","NULL","NULL","F","NULL","NULL","NULL","NULL","NULL","F","NULL","NULL","NULL","NULL","NULL","F","NULL","NULL","NULL","NULL","NULL","F","NULL","NULL","NULL","NULL","NULL","F","NULL","NULL","NULL","NULL","NULL","F","NULL","NULL","NULL","NULL","NULL","F","NULL","NULL","NULL",45253.110922256943,45554.104598958336]
[17962,"Yes","Prescriptive","COMWASHGDRYEGT","Commercial Washer Ele Dryer Gas WH, Energy Star, GOT","Clothes washer","Appliance","GAS","N/A",935,89,5,5748,"OR","NBE","New Buildings","2024-01-01","2026-12-31","Units",0,0,0,16.55,373.92,0,"None - ele","Clotheswasher",0,100,0,7,0,531.15,0,0,0,1,1,0,100,"NULL","NULL",100,100,100,100,"NULL","NULL","NULL","NULL","NULL","NULL",100,100,100,"Clothes Washer","MEF","MEF","T","Alphanumeric",5,"ED","WATERFACTOR","Water Factor","F","Alphanumeric",10,"ED","NULL","NULL","F","NULL","NULL","NULL","NULL","NULL","F","NULL","NULL","NULL","NULL","NULL","F","NULL","NULL","NULL","NULL","NULL","F","NULL","NULL","NULL","NULL","NULL","F","NULL","NULL","NULL","NULL","NULL","F","NULL","NULL","NULL","NULL","NULL","F","NULL","NULL","NULL","NULL","NULL","F","NULL","NULL","NULL","NULL","NULL","F","NULL","NULL","NULL","NULL","NULL","F","NULL","NULL","NULL","NULL","NULL","F","NULL","NULL","NULL","NULL","NULL","F","NULL","NULL","NULL","NULL","NULL","F","NULL","NULL","NULL","NULL","NULL","F","NULL","NULL","NULL","NULL","NULL","F","NULL","NULL","NULL",45253.110922256943,45554.104598958336]
[17963,"Yes","Prescriptive","COMWASHGDRYGMFGT","MF Commercial Washer Gas Dryer Gas WH, Energy Star, GOT","Clothes washer","Appliance","GAS","N/A",935,89,5,5746,"OR","NBE","New Buildings","2024-01-01","2026-12-31","Units",0,0,0,32.81,233.75,0,"None - ele","Clotheswasher",0,100,0,11,0,531.15,0,0,0,1,1,0,100,"NULL","NULL",100,100,100,100,"NULL","NULL","NULL","NULL","NULL","NULL",100,100,100,"Clothes Washer","MEF","MEF","T","Alphanumeric",5,"ED","WATERFACTOR","Water Factor","F","Alphanumeric",10,"ED","NULL","NULL","F","NULL","NULL","NULL","NULL","NULL","F","NULL","NULL","NULL","NULL","NULL","F","NULL","NULL","NULL","NULL","NULL","F","NULL","NULL","NULL","NULL","NULL","F","NULL","NULL","NULL","NULL","NULL","F","NULL","NULL","NULL","NULL","NULL","F","NULL","NULL","NULL","NULL","NULL","F","NULL","NULL","NULL","NULL","NULL","F","NULL","NULL","NULL","NULL","NULL","F","NULL","NULL","NULL","NULL","NULL","F","NULL","NULL","NULL","NULL","NULL","F","NULL","NULL","NULL","NULL","NULL","F","NULL","NULL","NULL","NULL","NULL","F","NULL","NULL","NULL","NULL","NULL","F","NULL","NULL","NULL",45253.110922256943,45554.104598958336]
[17964,"Yes","Prescriptive","COMWASHEDRYGMFGT","MF Commercial Washer Gas Dryer Ele WH, Energy Star, GOT","Clothes washer","Appliance","GAS","N/A",935,89,5,5744,"OR","NBE","New Buildings","2024-01-01","2026-12-31","Units",0,0,0,20.71,254.94,0,"None - ele","Clotheswasher",0,100,0,11,0,531.15,0,0,0,1,1,0,100,"NULL","NULL",100,100,100,100,"NULL","NULL","NULL","NULL","NULL","NULL",100,100,100,"Clothes Washer","MEF","MEF","T","Alphanumeric",5,"ED","WATERFACTOR","Water Factor","F","Alphanumeric",10,"ED","NULL","NULL","F","NULL","NULL","NULL","NULL","NULL","F","NULL","NULL","NULL","NULL","NULL","F","NULL","NULL","NULL","NULL","NULL","F","NULL","NULL","NULL","NULL","NULL","F","NULL","NULL","NULL","NULL","NULL","F","NULL","NULL","NULL","NULL","NULL","F","NULL","NULL","NULL","NULL","NULL","F","NULL","NULL","NULL","NULL","NULL","F","NULL","NULL","NULL","NULL","NULL","F","NULL","NULL","NULL","NULL","NULL","F","NULL","NULL","NULL","NULL","NULL","F","NULL","NULL","NULL","NULL","NULL","F","NULL","NULL","NULL","NULL","NULL","F","NULL","NULL","NULL","NULL","NULL","F","NULL","NULL","NULL",45253.110922256943,45554.104598958336]
[17965,"Yes","Prescriptive","COMWASHGDRYEMFGT","MF Commercial Washer Ele Dryer Gas WH, Energy Star, GOT","Clothes washer","Appliance","GAS","N/A",935,89,5,5742,"OR","NBE","New Buildings","2024-01-01","2026-12-31","Units",0,0,0,12.1,276.91000000000003,0,"None - ele","Clotheswasher",0,100,0,11,0,531.15,0,0,0,1,1,0,100,"NULL","NULL",100,100,100,100,"NULL","NULL","NULL","NULL","NULL","NULL",100,100,100,"Clothes Washer","MEF","MEF","T","Alphanumeric",5,"ED","WATERFACTOR","Water Factor","F","Alphanumeric",10,"ED","NULL","NULL","F","NULL","NULL","NULL","NULL","NULL","F","NULL","NULL","NULL","NULL","NULL","F","NULL","NULL","NULL","NULL","NULL","F","NULL","NULL","NULL","NULL","NULL","F","NULL","NULL","NULL","NULL","NULL","F","NULL","NULL","NULL","NULL","NULL","F","NULL","NULL","NULL","NULL","NULL","F","NULL","NULL","NULL","NULL","NULL","F","NULL","NULL","NULL","NULL","NULL","F","NULL","NULL","NULL","NULL","NULL","F","NULL","NULL","NULL","NULL","NULL","F","NULL","NULL","NULL","NULL","NULL","F","NULL","NULL","NULL","NULL","NULL","F","NULL","NULL","NULL","NULL","NULL","F","NULL","NULL","NULL",45253.110922256943,45554.104598958336]
[17966,"Yes","Prescriptive","ICESCUBATCH","Commercial Ice Maker, Enrgy Str, Batch SCU, 200-4,000 lb/day","Icemaker","Food Service","ELE","N/A",905,90,3,5603,"OR","NBE","New Buildings","2024-01-01","2026-12-31","Units",0,0,559.25,0,17,0,"Restaurant Refrigeration","None - gas",0,180,0,8,0,188.22,0,0,0,1,1,0,"NULL",100,100,"NULL","NULL","NULL","NULL","NULL","NULL","NULL","NULL","NULL","NULL","NULL","NULL","NULL","Icemaker","MANUFACTURER","Manufacturer Name","F","Alphanumeric",64,"ED","MODEL","Model","F","Alphanumeric",64,"ED","NULL","NULL","F","NULL","NULL","NULL","NULL","NULL","F","NULL","NULL","NULL","NULL","NULL","F","NULL","NULL","NULL","NULL","NULL","F","NULL","NULL","NULL","NULL","NULL","F","NULL","NULL","NULL","NULL","NULL","F","NULL","NULL","NULL","NULL","NULL","F","NULL","NULL","NULL","NULL","NULL","F","NULL","NULL","NULL","NULL","NULL","F","NULL","NULL","NULL","NULL","NULL","F","NULL","NULL","NULL","NULL","NULL","F","NULL","NULL","NULL","NULL","NULL","F","NULL","NULL","NULL","NULL","NULL","F","NULL","NULL","NULL","NULL","NULL","F","NULL","NULL","NULL","NULL","NULL","F","NULL","NULL","NULL",45253.110922256943,45253.110922256943]
[17967,"Yes","Prescriptive","ICERCUBATCH","Commercial Ice Maker, Enrgy Str, Batch RCU, 988-4,000 lb/day","Icemaker","Food Service","ELE","N/A",905,90,3,5602,"OR","NBE","New Buildings","2024-01-01","2026-12-31","Units",0,0,1244.53,0,141.11000000000001,0,"Restaurant Refrigeration","None - gas",0,400,0,8,0,420.41,0,0,0,1,1,0,"NULL",100,100,"NULL","NULL","NULL","NULL","NULL","NULL","NULL","NULL","NULL","NULL","NULL","NULL","NULL","Icemaker","MANUFACTURER","Manufacturer Name","F","Alphanumeric",64,"ED","MODEL","Model","F","Alphanumeric",64,"ED","NULL","NULL","F","NULL","NULL","NULL","NULL","NULL","F","NULL","NULL","NULL","NULL","NULL","F","NULL","NULL","NULL","NULL","NULL","F","NULL","NULL","NULL","NULL","NULL","F","NULL","NULL","NULL","NULL","NULL","F","NULL","NULL","NULL","NULL","NULL","F","NULL","NULL","NULL","NULL","NULL","F","NULL","NULL","NULL","NULL","NULL","F","NULL","NULL","NULL","NULL","NULL","F","NULL","NULL","NULL","NULL","NULL","F","NULL","NULL","NULL","NULL","NULL","F","NULL","NULL","NULL","NULL","NULL","F","NULL","NULL","NULL","NULL","NULL","F","NULL","NULL","NULL","NULL","NULL","F","NULL","NULL","NULL",45253.110922256943,45253.110922256943]
[17968,"Yes","Prescriptive","ICERCUCONT","Commercial Ice Maker, Enrgy Str, Cont RCU, 800-4,000 lb/day","Icemaker","Food Service","ELE","N/A",905,90,3,5605,"OR","NBE","New Buildings","2024-01-01","2026-12-31","Units",0,0,4207.47,0,0,0,"Restaurant Refrigeration","None - gas",0,400,0,8,0,427.15,0,0,0,1,1,0,"NULL",100,100,"NULL","NULL","NULL","NULL","NULL","NULL","NULL","NULL","NULL","NULL","NULL","NULL","NULL","Icemaker","MANUFACTURER","Manufacturer Name","F","Alphanumeric",64,"ED","MODEL","Model","F","Alphanumeric",64,"ED","NULL","NULL","F","NULL","NULL","NULL","NULL","NULL","F","NULL","NULL","NULL","NULL","NULL","F","NULL","NULL","NULL","NULL","NULL","F","NULL","NULL","NULL","NULL","NULL","F","NULL","NULL","NULL","NULL","NULL","F","NULL","NULL","NULL","NULL","NULL","F","NULL","NULL","NULL","NULL","NULL","F","NULL","NULL","NULL","NULL","NULL","F","NULL","NULL","NULL","NULL","NULL","F","NULL","NULL","NULL","NULL","NULL","F","NULL","NULL","NULL","NULL","NULL","F","NULL","NULL","NULL","NULL","NULL","F","NULL","NULL","NULL","NULL","NULL","F","NULL","NULL","NULL","NULL","NULL","F","NULL","NULL","NULL",45253.110922256943,45253.110922256943]
[17969,"Yes","Prescriptive","ICEIMHCONT","Commercial Ice Maker, Enrgy Str, Cont IMH, 820-4,000 lb/day","Icemaker","Food Service","ELE","N/A",905,90,3,5604,"OR","NBE","New Buildings","2024-01-01","2026-12-31","Units",0,0,1138.52,0,0,0,"Restaurant Refrigeration","None - gas",0,400,0,8,0,436.86,0,0,0,1,1,0,"NULL",100,100,"NULL","NULL","NULL","NULL","NULL","NULL","NULL","NULL","NULL","NULL","NULL","NULL","NULL","Icemaker","MANUFACTURER","Manufacturer Name","F","Alphanumeric",64,"ED","MODEL","Model","F","Alphanumeric",64,"ED","NULL","NULL","F","NULL","NULL","NULL","NULL","NULL","F","NULL","NULL","NULL","NULL","NULL","F","NULL","NULL","NULL","NULL","NULL","F","NULL","NULL","NULL","NULL","NULL","F","NULL","NULL","NULL","NULL","NULL","F","NULL","NULL","NULL","NULL","NULL","F","NULL","NULL","NULL","NULL","NULL","F","NULL","NULL","NULL","NULL","NULL","F","NULL","NULL","NULL","NULL","NULL","F","NULL","NULL","NULL","NULL","NULL","F","NULL","NULL","NULL","NULL","NULL","F","NULL","NULL","NULL","NULL","NULL","F","NULL","NULL","NULL","NULL","NULL","F","NULL","NULL","NULL","NULL","NULL","F","NULL","NULL","NULL",45253.110922256943,45253.110922256943]
[17970,"Yes","Prescriptive","ICEIMHBATCH","Commercial Ice Maker, Energy Star, Batch IMH, 1,500-4,000 lb/day","Icemaker","Food Service","ELE","N/A",905,90,3,5601,"OR","NBE","New Buildings","2024-01-01","2026-12-31","Units",0,0,1831.57,0,51.29,0,"Restaurant Refrigeration","None - gas",0,400,0,8,0,552.29999999999995,0,0,0,1,1,0,"NULL",100,100,"NULL","NULL","NULL","NULL","NULL","NULL","NULL","NULL","NULL","NULL","NULL","NULL","NULL","Icemaker","MANUFACTURER","Manufacturer Name","F","Alphanumeric",64,"ED","MODEL","Model","F","Alphanumeric",64,"ED","NULL","NULL","F","NULL","NULL","NULL","NULL","NULL","F","NULL","NULL","NULL","NULL","NULL","F","NULL","NULL","NULL","NULL","NULL","F","NULL","NULL","NULL","NULL","NULL","F","NULL","NULL","NULL","NULL","NULL","F","NULL","NULL","NULL","NULL","NULL","F","NULL","NULL","NULL","NULL","NULL","F","NULL","NULL","NULL","NULL","NULL","F","NULL","NULL","NULL","NULL","NULL","F","NULL","NULL","NULL","NULL","NULL","F","NULL","NULL","NULL","NULL","NULL","F","NULL","NULL","NULL","NULL","NULL","F","NULL","NULL","NULL","NULL","NULL","F","NULL","NULL","NULL","NULL","NULL","F","NULL","NULL","NULL",45253.110922256943,45253.110922256943]
[17987,"Yes","Prescriptive","ESETAFRIDGE","Energy Star Emerging Tech Award (ESETA) Multifamily Refrigerator","Refrigerator","Appliance","ELE","N/A",913,112,6,5625,"OR","NBE","New Buildings","2024-01-01","2026-12-31","Units",0,0,135.88,0,0,0,"Res Refrigerator","None - gas",0,70,0,17,0,87.76,0,0,0,1,1,0,"NULL",100,100,"NULL","NULL","NULL","NULL","NULL","NULL","NULL","NULL","NULL","NULL","NULL","NULL","NULL","Residential Energy Star Refrigerator ","MANUFACTURER","Manufacturer","T","Alphanumeric",64,"CB","MODEL","Model","T","Alphanumeric",63,"CB","VOLUME","Volume (cubic feet)","T","Decimal",20,"CB","NULL","NULL","F","NULL","NULL","NULL","NULL","NULL","F","NULL","NULL","NULL","NULL","NULL","F","NULL","NULL","NULL","NULL","NULL","F","NULL","NULL","NULL","NULL","NULL","F","NULL","NULL","NULL","NULL","NULL","F","NULL","NULL","NULL","NULL","NULL","F","NULL","NULL","NULL","NULL","NULL","F","NULL","NULL","NULL","NULL","NULL","F","NULL","NULL","NULL","NULL","NULL","F","NULL","NULL","NULL","NULL","NULL","F","NULL","NULL","NULL","NULL","NULL","F","NULL","NULL","NULL","NULL","NULL","F","NULL","NULL","NULL","NULL","NULL","F","NULL","NULL","NULL",45253.110922256943,45253.110922256943]
[17988,"Yes","Prescriptive","COOLCASEDRRCHZLOWGAS","Cooler w/ Door - Remote Condensing, Horiz Low Temp - Gas","Refrigerator","Appliance","BOTH","N/A",937,201,3,5780,"OR","NBE","New Buildings","2024-01-01","2026-12-31","Linear feet",0,0,500.36,15.91,0,0,"Grocery Refrigeration","Com Heating",0,150,0,10,0,293.82,0,0,0,1,1,0,43,57,57,43,43,43,43,"NULL","NULL","NULL","NULL","NULL","NULL",43,43,43,"No Attributes ","NULL","NULL","F","NULL","NULL","NULL","NULL","NULL","F","NULL","NULL","NULL","NULL","NULL","F","NULL","NULL","NULL","NULL","NULL","F","NULL","NULL","NULL","NULL","NULL","F","NULL","NULL","NULL","NULL","NULL","F","NULL","NULL","NULL","NULL","NULL","F","NULL","NULL","NULL","NULL","NULL","F","NULL","NULL","NULL","NULL","NULL","F","NULL","NULL","NULL","NULL","NULL","F","NULL","NULL","NULL","NULL","NULL","F","NULL","NULL","NULL","NULL","NULL","F","NULL","NULL","NULL","NULL","NULL","F","NULL","NULL","NULL","NULL","NULL","F","NULL","NULL","NULL","NULL","NULL","F","NULL","NULL","NULL","NULL","NULL","F","NULL","NULL","NULL","NULL","NULL","F","NULL","NULL","NULL",45253.110922256943,45554.104598958336]
[17989,"Yes","Prescriptive","COOLCASEDRRCHZMEDGAS","Cooler w/ Door - Remote Condensing, Horiz Med Temp - Gas","Refrigerator","Appliance","BOTH","N/A",937,201,3,5776,"OR","NBE","New Buildings","2024-01-01","2026-12-31","Linear feet",0,0,282.10000000000002,25.68,0,0,"Grocery Refrigeration","Com Heating",0,150,0,10,0,293.82,0,0,0,1,1,0,68,32,32,68,68,68,68,"NULL","NULL","NULL","NULL","NULL","NULL",68,68,68,"No Attributes ","NULL","NULL","F","NULL","NULL","NULL","NULL","NULL","F","NULL","NULL","NULL","NULL","NULL","F","NULL","NULL","NULL","NULL","NULL","F","NULL","NULL","NULL","NULL","NULL","F","NULL","NULL","NULL","NULL","NULL","F","NULL","NULL","NULL","NULL","NULL","F","NULL","NULL","NULL","NULL","NULL","F","NULL","NULL","NULL","NULL","NULL","F","NULL","NULL","NULL","NULL","NULL","F","NULL","NULL","NULL","NULL","NULL","F","NULL","NULL","NULL","NULL","NULL","F","NULL","NULL","NULL","NULL","NULL","F","NULL","NULL","NULL","NULL","NULL","F","NULL","NULL","NULL","NULL","NULL","F","NULL","NULL","NULL","NULL","NULL","F","NULL","NULL","NULL","NULL","NULL","F","NULL","NULL","NULL",45253.110922256943,45554.104598958336]
[17990,"Yes","Prescriptive","COOLCASEDRRCVTMEDGAS","Cooler w/ Door - Remote Condensing, Vert Med Temp - Gas","Refrigerator","Appliance","BOTH","N/A",937,201,3,5775,"OR","NBE","New Buildings","2024-01-01","2026-12-31","Linear feet",0,0,729.34,66.400000000000006,0,0,"Grocery Refrigeration","Com Heating",0,150,0,10,0,293.82,0,0,0,1,1,0,68,32,32,68,68,68,68,"NULL","NULL","NULL","NULL","NULL","NULL",68,68,68,"No Attributes ","NULL","NULL","F","NULL","NULL","NULL","NULL","NULL","F","NULL","NULL","NULL","NULL","NULL","F","NULL","NULL","NULL","NULL","NULL","F","NULL","NULL","NULL","NULL","NULL","F","NULL","NULL","NULL","NULL","NULL","F","NULL","NULL","NULL","NULL","NULL","F","NULL","NULL","NULL","NULL","NULL","F","NULL","NULL","NULL","NULL","NULL","F","NULL","NULL","NULL","NULL","NULL","F","NULL","NULL","NULL","NULL","NULL","F","NULL","NULL","NULL","NULL","NULL","F","NULL","NULL","NULL","NULL","NULL","F","NULL","NULL","NULL","NULL","NULL","F","NULL","NULL","NULL","NULL","NULL","F","NULL","NULL","NULL","NULL","NULL","F","NULL","NULL","NULL","NULL","NULL","F","NULL","NULL","NULL",45253.110922256943,45554.104598958336]
[17991,"Yes","Prescriptive","COOLCASEDRRCHZLOWEOT","Cooler w/ Door - Remote Condensing, Horiz Low Temp - Gas EOT","Refrigerator","Appliance","ELE","N/A",937,201,3,5784,"OR","NBE","New Buildings","2024-01-01","2026-12-31","Linear feet",0,0,500.36,0,18.77,0,"Grocery Refrigeration","Com Heating",0,150,0,10,0,293.82,0,0,0,1,1,0,"NULL",100,100,"NULL","NULL","NULL","NULL","NULL","NULL","NULL","NULL","NULL","NULL","NULL","NULL","NULL","No Attributes ","NULL","NULL","F","NULL","NULL","NULL","NULL","NULL","F","NULL","NULL","NULL","NULL","NULL","F","NULL","NULL","NULL","NULL","NULL","F","NULL","NULL","NULL","NULL","NULL","F","NULL","NULL","NULL","NULL","NULL","F","NULL","NULL","NULL","NULL","NULL","F","NULL","NULL","NULL","NULL","NULL","F","NULL","NULL","NULL","NULL","NULL","F","NULL","NULL","NULL","NULL","NULL","F","NULL","NULL","NULL","NULL","NULL","F","NULL","NULL","NULL","NULL","NULL","F","NULL","NULL","NULL","NULL","NULL","F","NULL","NULL","NULL","NULL","NULL","F","NULL","NULL","NULL","NULL","NULL","F","NULL","NULL","NULL","NULL","NULL","F","NULL","NULL","NULL","NULL","NULL","F","NULL","NULL","NULL",45253.110922256943,45253.110922256943]
[17992,"Yes","Prescriptive","COOLCASEDRRCVTMEDEOT","Cooler w/ Door - Remote Condensing, Vert Med Temp - Gas EOT","Refrigerator","Appliance","ELE","N/A",937,201,3,5782,"OR","NBE","New Buildings","2024-01-01","2026-12-31","Linear feet",0,0,729.34,0,78.31,0,"Grocery Refrigeration","Com Heating",0,150,0,10,0,293.82,0,0,0,1,1,0,"NULL",100,100,"NULL","NULL","NULL","NULL","NULL","NULL","NULL","NULL","NULL","NULL","NULL","NULL","NULL","No Attributes ","NULL","NULL","F","NULL","NULL","NULL","NULL","NULL","F","NULL","NULL","NULL","NULL","NULL","F","NULL","NULL","NULL","NULL","NULL","F","NULL","NULL","NULL","NULL","NULL","F","NULL","NULL","NULL","NULL","NULL","F","NULL","NULL","NULL","NULL","NULL","F","NULL","NULL","NULL","NULL","NULL","F","NULL","NULL","NULL","NULL","NULL","F","NULL","NULL","NULL","NULL","NULL","F","NULL","NULL","NULL","NULL","NULL","F","NULL","NULL","NULL","NULL","NULL","F","NULL","NULL","NULL","NULL","NULL","F","NULL","NULL","NULL","NULL","NULL","F","NULL","NULL","NULL","NULL","NULL","F","NULL","NULL","NULL","NULL","NULL","F","NULL","NULL","NULL","NULL","NULL","F","NULL","NULL","NULL",45253.110922256943,45279.151787418981]
[17993,"Yes","Prescriptive","COOLCASEDRRCHZMEDEOT","Cooler w/ Door - Remote Condensing, Horiz Med Temp - Gas EOT","Refrigerator","Appliance","ELE","N/A",937,201,3,5783,"OR","NBE","New Buildings","2024-01-01","2026-12-31","Linear feet",0,0,282.10000000000002,0,30.29,0,"Grocery Refrigeration","Com Heating",0,150,0,10,0,293.82,0,0,0,1,1,0,"NULL",100,100,"NULL","NULL","NULL","NULL","NULL","NULL","NULL","NULL","NULL","NULL","NULL","NULL","NULL","No Attributes ","NULL","NULL","F","NULL","NULL","NULL","NULL","NULL","F","NULL","NULL","NULL","NULL","NULL","F","NULL","NULL","NULL","NULL","NULL","F","NULL","NULL","NULL","NULL","NULL","F","NULL","NULL","NULL","NULL","NULL","F","NULL","NULL","NULL","NULL","NULL","F","NULL","NULL","NULL","NULL","NULL","F","NULL","NULL","NULL","NULL","NULL","F","NULL","NULL","NULL","NULL","NULL","F","NULL","NULL","NULL","NULL","NULL","F","NULL","NULL","NULL","NULL","NULL","F","NULL","NULL","NULL","NULL","NULL","F","NULL","NULL","NULL","NULL","NULL","F","NULL","NULL","NULL","NULL","NULL","F","NULL","NULL","NULL","NULL","NULL","F","NULL","NULL","NULL","NULL","NULL","F","NULL","NULL","NULL",45253.110922256943,45253.110922256943]
[17994,"Yes","Prescriptive","COOLCASEDRRCHZLOWGOT","Cooler w/ Door - Remote Condensing, Horiz Low Temp - GOT","Refrigerator","Appliance","GAS","HEAT",937,201,3,5781,"OR","NBE","New Buildings","2024-01-01","2026-12-31","Linear feet",0,0,0,15.91,39.880000000000003,0,"Grocery Refrigeration","Com Heating",0,150,0,10,0,293.82,0,0,0,1,1,0,100,"NULL","NULL",100,100,100,100,"NULL","NULL","NULL","NULL","NULL","NULL",100,100,100,"No Attributes ","NULL","NULL","F","NULL","NULL","NULL","NULL","NULL","F","NULL","NULL","NULL","NULL","NULL","F","NULL","NULL","NULL","NULL","NULL","F","NULL","NULL","NULL","NULL","NULL","F","NULL","NULL","NULL","NULL","NULL","F","NULL","NULL","NULL","NULL","NULL","F","NULL","NULL","NULL","NULL","NULL","F","NULL","NULL","NULL","NULL","NULL","F","NULL","NULL","NULL","NULL","NULL","F","NULL","NULL","NULL","NULL","NULL","F","NULL","NULL","NULL","NULL","NULL","F","NULL","NULL","NULL","NULL","NULL","F","NULL","NULL","NULL","NULL","NULL","F","NULL","NULL","NULL","NULL","NULL","F","NULL","NULL","NULL","NULL","NULL","F","NULL","NULL","NULL","NULL","NULL","F","NULL","NULL","NULL",45253.110922256943,45554.104598958336]
[17995,"Yes","Prescriptive","COOLCASEDRRCHZMEDGOT","Cooler w/ Door - Remote Condensing, Horiz Med Temp - GOT","Refrigerator","Appliance","GAS","HEAT",937,201,3,5778,"OR","NBE","New Buildings","2024-01-01","2026-12-31","Linear feet",0,0,0,25.68,22.49,0,"Grocery Refrigeration","Com Heating",0,150,0,10,0,293.82,0,0,0,1,1,0,100,"NULL","NULL",100,100,100,100,"NULL","NULL","NULL","NULL","NULL","NULL",100,100,100,"No Attributes ","NULL","NULL","F","NULL","NULL","NULL","NULL","NULL","F","NULL","NULL","NULL","NULL","NULL","F","NULL","NULL","NULL","NULL","NULL","F","NULL","NULL","NULL","NULL","NULL","F","NULL","NULL","NULL","NULL","NULL","F","NULL","NULL","NULL","NULL","NULL","F","NULL","NULL","NULL","NULL","NULL","F","NULL","NULL","NULL","NULL","NULL","F","NULL","NULL","NULL","NULL","NULL","F","NULL","NULL","NULL","NULL","NULL","F","NULL","NULL","NULL","NULL","NULL","F","NULL","NULL","NULL","NULL","NULL","F","NULL","NULL","NULL","NULL","NULL","F","NULL","NULL","NULL","NULL","NULL","F","NULL","NULL","NULL","NULL","NULL","F","NULL","NULL","NULL","NULL","NULL","F","NULL","NULL","NULL",45253.110922256943,45554.104598958336]
[17996,"Yes","Prescriptive","COOLCASEDRRCVTMEDGOT","Cooler w/ Door - Remote Condensing, Vert Med Temp - GOT","Refrigerator","Appliance","GAS","HEAT",937,201,3,5777,"OR","NBE","New Buildings","2024-01-01","2026-12-31","Linear feet",0,0,0,66.400000000000006,58.13,0,"Grocery Refrigeration","Com Heating",0,150,0,10,0,293.82,0,0,0,1,1,0,100,"NULL","NULL",100,100,100,100,"NULL","NULL","NULL","NULL","NULL","NULL",100,100,100,"No Attributes ","NULL","NULL","F","NULL","NULL","NULL","NULL","NULL","F","NULL","NULL","NULL","NULL","NULL","F","NULL","NULL","NULL","NULL","NULL","F","NULL","NULL","NULL","NULL","NULL","F","NULL","NULL","NULL","NULL","NULL","F","NULL","NULL","NULL","NULL","NULL","F","NULL","NULL","NULL","NULL","NULL","F","NULL","NULL","NULL","NULL","NULL","F","NULL","NULL","NULL","NULL","NULL","F","NULL","NULL","NULL","NULL","NULL","F","NULL","NULL","NULL","NULL","NULL","F","NULL","NULL","NULL","NULL","NULL","F","NULL","NULL","NULL","NULL","NULL","F","NULL","NULL","NULL","NULL","NULL","F","NULL","NULL","NULL","NULL","NULL","F","NULL","NULL","NULL","NULL","NULL","F","NULL","NULL","NULL",45253.110922256943,45554.104598958336]
[17997,"Yes","Prescriptive","COOLCASEDRRCHZLOWELE","Cooler w/ Door - Remote Condensing, Horiz Low Temp - Elec","Refrigerator","Appliance","ELE","HEAT",937,201,3,5779,"OR","NBE","New Buildings","2024-01-01","2026-12-31","Linear feet",0,0,852.29,0,0,0,"Grocery Refrigeration","None - gas",0,150,0,10,0,293.82,0,0,0,1,1,0,"NULL",100,100,"NULL","NULL","NULL","NULL","NULL","NULL","NULL","NULL","NULL","NULL","NULL","NULL","NULL","No Attributes ","NULL","NULL","F","NULL","NULL","NULL","NULL","NULL","F","NULL","NULL","NULL","NULL","NULL","F","NULL","NULL","NULL","NULL","NULL","F","NULL","NULL","NULL","NULL","NULL","F","NULL","NULL","NULL","NULL","NULL","F","NULL","NULL","NULL","NULL","NULL","F","NULL","NULL","NULL","NULL","NULL","F","NULL","NULL","NULL","NULL","NULL","F","NULL","NULL","NULL","NULL","NULL","F","NULL","NULL","NULL","NULL","NULL","F","NULL","NULL","NULL","NULL","NULL","F","NULL","NULL","NULL","NULL","NULL","F","NULL","NULL","NULL","NULL","NULL","F","NULL","NULL","NULL","NULL","NULL","F","NULL","NULL","NULL","NULL","NULL","F","NULL","NULL","NULL","NULL","NULL","F","NULL","NULL","NULL",45253.110922256943,45253.110922256943]
[17998,"Yes","Prescriptive","COOLCASEDRRCHZMEDELE","Cooler w/ Door - Remote Condensing, Horiz Med Temp - Elec","Refrigerator","Appliance","ELE","HEAT",937,201,3,5774,"OR","NBE","New Buildings","2024-01-01","2026-12-31","Linear feet",0,0,850.19,0,0,0,"Grocery Refrigeration","None - gas",0,150,0,10,0,293.82,0,0,0,1,1,0,"NULL",100,100,"NULL","NULL","NULL","NULL","NULL","NULL","NULL","NULL","NULL","NULL","NULL","NULL","NULL","No Attributes ","NULL","NULL","F","NULL","NULL","NULL","NULL","NULL","F","NULL","NULL","NULL","NULL","NULL","F","NULL","NULL","NULL","NULL","NULL","F","NULL","NULL","NULL","NULL","NULL","F","NULL","NULL","NULL","NULL","NULL","F","NULL","NULL","NULL","NULL","NULL","F","NULL","NULL","NULL","NULL","NULL","F","NULL","NULL","NULL","NULL","NULL","F","NULL","NULL","NULL","NULL","NULL","F","NULL","NULL","NULL","NULL","NULL","F","NULL","NULL","NULL","NULL","NULL","F","NULL","NULL","NULL","NULL","NULL","F","NULL","NULL","NULL","NULL","NULL","F","NULL","NULL","NULL","NULL","NULL","F","NULL","NULL","NULL","NULL","NULL","F","NULL","NULL","NULL","NULL","NULL","F","NULL","NULL","NULL",45253.110922256943,45253.110922256943]
[18001,"Yes","Prescriptive","HPREPHZ23","DHP - Replacement or new HZ2 or HZ3","Heat pump","HVAC","ELE","HEAT",819,255,2,4615,"OR","NBE","New Buildings","2024-01-01","2025-12-31","Tons",0,0,461.07,0,0,0,"Small Office Heating","None - gas",0,300,0,15,0,402,0,0,0,1,1,0,"NULL",100,100,"NULL","NULL","NULL","NULL","NULL","NULL","NULL","NULL","NULL","NULL","NULL","NULL","NULL","Heat pump","HPTYPE","Heat Pump Type","T","Alphanumeric",64,"CB","HSPF","HSPF","F","Alphanumeric",64,"ED","SEER2","SEER 2","F","Alphanumeric",20,"ED","SEER","SEER","F","Decimal",20,"ED","HSPF2","HSPF 2","F","Alphanumeric",20,"ED","NULL","NULL","F","NULL","NULL","NULL","NULL","NULL","F","NULL","NULL","NULL","NULL","NULL","F","NULL","NULL","NULL","NULL","NULL","F","NULL","NULL","NULL","NULL","NULL","F","NULL","NULL","NULL","NULL","NULL","F","NULL","NULL","NULL","NULL","NULL","F","NULL","NULL","NULL","NULL","NULL","F","NULL","NULL","NULL","NULL","NULL","F","NULL","NULL","NULL","NULL","NULL","F","NULL","NULL","NULL","NULL","NULL","F","NULL","NULL","NULL","NULL","NULL","F","NULL","NULL","NULL",45253.110922256943,45253.110922256943]
[18002,"Yes","Prescriptive","HPREPHZ1","DHP - Replacement or new - HZ_all CZs","Heat pump","HVAC","ELE","HEAT",819,255,2,4614,"OR","NBE","New Buildings","2024-01-01","2025-12-31","Tons",0,0,410.61,0,0,0,"Small Office Heating","None - gas",0,300,0,15,0,402,0,0,0,1,1,0,"NULL",100,100,"NULL","NULL","NULL","NULL","NULL","NULL","NULL","NULL","NULL","NULL","NULL","NULL","NULL","Heat pump","HPTYPE","Heat Pump Type","T","Alphanumeric",64,"CB","HSPF","HSPF","F","Alphanumeric",64,"ED","SEER2","SEER 2","F","Alphanumeric",20,"ED","SEER","SEER","F","Decimal",20,"ED","HSPF2","HSPF 2","F","Alphanumeric",20,"ED","NULL","NULL","F","NULL","NULL","NULL","NULL","NULL","F","NULL","NULL","NULL","NULL","NULL","F","NULL","NULL","NULL","NULL","NULL","F","NULL","NULL","NULL","NULL","NULL","F","NULL","NULL","NULL","NULL","NULL","F","NULL","NULL","NULL","NULL","NULL","F","NULL","NULL","NULL","NULL","NULL","F","NULL","NULL","NULL","NULL","NULL","F","NULL","NULL","NULL","NULL","NULL","F","NULL","NULL","NULL","NULL","NULL","F","NULL","NULL","NULL","NULL","NULL","F","NULL","NULL","NULL",45253.110922256943,45253.110922256943]
[18003,"Yes","Prescriptive","OVERWRAPPER","On-Demand Overwrapper","Food equipment","Food Service","BOTH","N/A",854,230,3,5029,"OR","NBE","New Buildings","2024-01-01","2025-12-31","Units",0,0,1584.49,-37.57,0,0,"Grocery Process","Com Heating",0,350,0,10,0,367.16,0,-37.57,0,1,1,0,0,100,100,0,0,"NULL","NULL","NULL","NULL","NULL","NULL","NULL","NULL","NULL","NULL","NULL","No Attributes ","NULL","NULL","F","NULL","NULL","NULL","NULL","NULL","F","NULL","NULL","NULL","NULL","NULL","F","NULL","NULL","NULL","NULL","NULL","F","NULL","NULL","NULL","NULL","NULL","F","NULL","NULL","NULL","NULL","NULL","F","NULL","NULL","NULL","NULL","NULL","F","NULL","NULL","NULL","NULL","NULL","F","NULL","NULL","NULL","NULL","NULL","F","NULL","NULL","NULL","NULL","NULL","F","NULL","NULL","NULL","NULL","NULL","F","NULL","NULL","NULL","NULL","NULL","F","NULL","NULL","NULL","NULL","NULL","F","NULL","NULL","NULL","NULL","NULL","F","NULL","NULL","NULL","NULL","NULL","F","NULL","NULL","NULL","NULL","NULL","F","NULL","NULL","NULL","NULL","NULL","F","NULL","NULL","NULL",45253.110922256943,45477.098976851848]
[18008,"Yes","Prescriptive","COOLCASEDRRCVTMEDELE","Cooler w/ Door - Remote Condensing, Vert Med Temp - Elec","Refrigerator","Appliance","ELE","HEAT",937,201,3,5773,"OR","NBE","New Buildings","2024-01-01","2026-12-31","Linear feet",0,0,2198.0700000000002,0,0,0,"Grocery Refrigeration","None - gas",0,150,0,10,0,293.82,0,0,0,1,1,0,"NULL",100,100,"NULL","NULL","NULL","NULL","NULL","NULL","NULL","NULL","NULL","NULL","NULL","NULL","NULL","No Attributes ","NULL","NULL","F","NULL","NULL","NULL","NULL","NULL","F","NULL","NULL","NULL","NULL","NULL","F","NULL","NULL","NULL","NULL","NULL","F","NULL","NULL","NULL","NULL","NULL","F","NULL","NULL","NULL","NULL","NULL","F","NULL","NULL","NULL","NULL","NULL","F","NULL","NULL","NULL","NULL","NULL","F","NULL","NULL","NULL","NULL","NULL","F","NULL","NULL","NULL","NULL","NULL","F","NULL","NULL","NULL","NULL","NULL","F","NULL","NULL","NULL","NULL","NULL","F","NULL","NULL","NULL","NULL","NULL","F","NULL","NULL","NULL","NULL","NULL","F","NULL","NULL","NULL","NULL","NULL","F","NULL","NULL","NULL","NULL","NULL","F","NULL","NULL","NULL","NULL","NULL","F","NULL","NULL","NULL",45253.110922256943,45253.110922256943]
[18010,"Yes","Prescriptive","2STAGASGVALVEOPLDRY","Two-stage Gas Valve on Clothes Dryers in On-Premises Laundry","Clothes Dryer","Appliance","GAS","N/A",923,291,1,5687,"OR","NBE","New Buildings","2024-01-01","2026-12-31","Units",0,0,0,351.82,0,0,"None - ele","Clotheswasher",0,700,0,10,0,875,0,0,0,1,1,0,100,"NULL","NULL",100,100,100,100,"NULL","NULL","NULL","NULL","NULL","NULL",100,100,100,"Clothes Dryer","MANUFACTURER","Manufacturer Name","T","Alphanumeric",40,"ED","MODEL","Model","T","Alphanumeric",20,"ED","VOLUME","Volume (cubic feet)","F","Decimal",10,"ED","CAPACITY","Capacity (lbs)","F","Alphanumeric",10,"ED","NULL","NULL","F","NULL","NULL","NULL","NULL","NULL","F","NULL","NULL","NULL","NULL","NULL","F","NULL","NULL","NULL","NULL","NULL","F","NULL","NULL","NULL","NULL","NULL","F","NULL","NULL","NULL","NULL","NULL","F","NULL","NULL","NULL","NULL","NULL","F","NULL","NULL","NULL","NULL","NULL","F","NULL","NULL","NULL","NULL","NULL","F","NULL","NULL","NULL","NULL","NULL","F","NULL","NULL","NULL","NULL","NULL","F","NULL","NULL","NULL","NULL","NULL","F","NULL","NULL","NULL","NULL","NULL","F","NULL","NULL","NULL",45253.110922256943,45554.104598958336]
[18040,"Yes","Prescriptive","FRIGRCHVRT015GEOT","Vertical Reach-in Refrigerator, <15, Gas Heat, EOT","Refrigerator","Appliance","ELE","N/A",949,186,2,5867,"OR","NBE","New Buildings","2024-01-01","2026-12-31","Units",0,0,87.71,0,-1.1399999999999999,0,"Grocery Refrigeration","None - gas",0,20,0,10,0,22.32,0,0,0,1,1,0,"NULL",100,100,"NULL","NULL","NULL","NULL","NULL","NULL","NULL","NULL","NULL","NULL","NULL","NULL","NULL","Refrigerator","MANUFACTURER","Manufacturer Name","T","Alphanumeric",64,"ED","MODEL","Model","T","Alphanumeric",64,"ED","NULL","NULL","F","NULL","NULL","NULL","NULL","NULL","F","NULL","NULL","NULL","NULL","NULL","F","NULL","NULL","NULL","NULL","NULL","F","NULL","NULL","NULL","NULL","NULL","F","NULL","NULL","NULL","NULL","NULL","F","NULL","NULL","NULL","NULL","NULL","F","NULL","NULL","NULL","NULL","NULL","F","NULL","NULL","NULL","NULL","NULL","F","NULL","NULL","NULL","NULL","NULL","F","NULL","NULL","NULL","NULL","NULL","F","NULL","NULL","NULL","NULL","NULL","F","NULL","NULL","NULL","NULL","NULL","F","NULL","NULL","NULL","NULL","NULL","F","NULL","NULL","NULL","NULL","NULL","F","NULL","NULL","NULL",45266.124619872688,45266.124619872688]
[18041,"Yes","Prescriptive","FRIGRCHVRT015HP","Vertical Reach-in Refrigerator, <15, Heat Pump","Refrigerator","Appliance","ELE","N/A",949,186,2,5857,"OR","NBE","New Buildings","2024-01-01","2026-12-31","Units",0,0,77.47,0,0,0,"Grocery Refrigeration","None - gas",0,20,0,10,0,22.32,0,0,0,1,1,0,"NULL",100,100,"NULL","NULL","NULL","NULL","NULL","NULL","NULL","NULL","NULL","NULL","NULL","NULL","NULL","Refrigerator","MANUFACTURER","Manufacturer Name","T","Alphanumeric",64,"ED","MODEL","Model","T","Alphanumeric",64,"ED","NULL","NULL","F","NULL","NULL","NULL","NULL","NULL","F","NULL","NULL","NULL","NULL","NULL","F","NULL","NULL","NULL","NULL","NULL","F","NULL","NULL","NULL","NULL","NULL","F","NULL","NULL","NULL","NULL","NULL","F","NULL","NULL","NULL","NULL","NULL","F","NULL","NULL","NULL","NULL","NULL","F","NULL","NULL","NULL","NULL","NULL","F","NULL","NULL","NULL","NULL","NULL","F","NULL","NULL","NULL","NULL","NULL","F","NULL","NULL","NULL","NULL","NULL","F","NULL","NULL","NULL","NULL","NULL","F","NULL","NULL","NULL","NULL","NULL","F","NULL","NULL","NULL","NULL","NULL","F","NULL","NULL","NULL",45266.124619872688,45266.124619872688]
[18065,"Yes","Prescriptive","FRIGRCHVRT015GAS","Vertical Reach-in Refrigerator, <15, Gas Heat","Refrigerator","Appliance","BOTH","N/A",949,186,2,5862,"OR","NBE","New Buildings","2024-01-01","2026-12-31","Units",0,0,87.71,-0.96,0,0,"Grocery Refrigeration","Flat - gas",0,20,0,10,0,22.32,0,-0.96,0,1,1,0,0,100,100,0,0,"NULL","NULL","NULL","NULL","NULL","NULL","NULL","NULL","NULL","NULL","NULL","Refrigerator","MANUFACTURER","Manufacturer Name","T","Alphanumeric",64,"ED","MODEL","Model","T","Alphanumeric",64,"ED","NULL","NULL","F","NULL","NULL","NULL","NULL","NULL","F","NULL","NULL","NULL","NULL","NULL","F","NULL","NULL","NULL","NULL","NULL","F","NULL","NULL","NULL","NULL","NULL","F","NULL","NULL","NULL","NULL","NULL","F","NULL","NULL","NULL","NULL","NULL","F","NULL","NULL","NULL","NULL","NULL","F","NULL","NULL","NULL","NULL","NULL","F","NULL","NULL","NULL","NULL","NULL","F","NULL","NULL","NULL","NULL","NULL","F","NULL","NULL","NULL","NULL","NULL","F","NULL","NULL","NULL","NULL","NULL","F","NULL","NULL","NULL","NULL","NULL","F","NULL","NULL","NULL","NULL","NULL","F","NULL","NULL","NULL",45266.124619872688,45477.098976851848]
[18066,"Yes","Prescriptive","FRIGRCHVRT015ELE","Vertical Reach-in Refrigerator, <15, Electric ","Refrigerator","Appliance","ELE","N/A",949,186,2,5852,"OR","NBE","New Buildings","2024-01-01","2026-12-31","Units",0,0,66.22,0,0,0,"Grocery Refrigeration","None - gas",0,20,0,10,0,22.32,0,0,0,1,1,0,"NULL",100,100,"NULL","NULL","NULL","NULL","NULL","NULL","NULL","NULL","NULL","NULL","NULL","NULL","NULL","Refrigerator","MANUFACTURER","Manufacturer Name","T","Alphanumeric",64,"ED","MODEL","Model","T","Alphanumeric",64,"ED","NULL","NULL","F","NULL","NULL","NULL","NULL","NULL","F","NULL","NULL","NULL","NULL","NULL","F","NULL","NULL","NULL","NULL","NULL","F","NULL","NULL","NULL","NULL","NULL","F","NULL","NULL","NULL","NULL","NULL","F","NULL","NULL","NULL","NULL","NULL","F","NULL","NULL","NULL","NULL","NULL","F","NULL","NULL","NULL","NULL","NULL","F","NULL","NULL","NULL","NULL","NULL","F","NULL","NULL","NULL","NULL","NULL","F","NULL","NULL","NULL","NULL","NULL","F","NULL","NULL","NULL","NULL","NULL","F","NULL","NULL","NULL","NULL","NULL","F","NULL","NULL","NULL","NULL","NULL","F","NULL","NULL","NULL",45266.124619872688,45266.124619872688]
[18067,"Yes","Prescriptive","FREZRCHVRT1530HP","Vertical Reach-in Freezer, 15 to <30, Heat Pump","Freezer","Appliance","ELE","N/A",949,186,2,5859,"OR","NBE","New Buildings","2024-01-01","2026-12-31","Units",0,0,308.83,0,0,0,"Grocery Refrigeration","None - gas",0,80,0,10,0,84.03,0,0,0,1,1,0,"NULL",100,100,"NULL","NULL","NULL","NULL","NULL","NULL","NULL","NULL","NULL","NULL","NULL","NULL","NULL","Refrigerator","MANUFACTURER","Manufacturer Name","T","Alphanumeric",64,"ED","MODEL","Model","T","Alphanumeric",64,"ED","NULL","NULL","F","NULL","NULL","NULL","NULL","NULL","F","NULL","NULL","NULL","NULL","NULL","F","NULL","NULL","NULL","NULL","NULL","F","NULL","NULL","NULL","NULL","NULL","F","NULL","NULL","NULL","NULL","NULL","F","NULL","NULL","NULL","NULL","NULL","F","NULL","NULL","NULL","NULL","NULL","F","NULL","NULL","NULL","NULL","NULL","F","NULL","NULL","NULL","NULL","NULL","F","NULL","NULL","NULL","NULL","NULL","F","NULL","NULL","NULL","NULL","NULL","F","NULL","NULL","NULL","NULL","NULL","F","NULL","NULL","NULL","NULL","NULL","F","NULL","NULL","NULL","NULL","NULL","F","NULL","NULL","NULL",45266.124619872688,45266.124619872688]
[18068,"Yes","Prescriptive","FREZRCHVRT1530GAS","Vertical Reach-in Freezer, 15 to <30, Gas Heat","Freezer","Appliance","BOTH","N/A",949,186,2,5864,"OR","NBE","New Buildings","2024-01-01","2026-12-31","Units",0,0,349.62,-3.85,0,0,"Grocery Refrigeration","Flat - gas",0,80,0,10,0,84.03,0,-3.85,0,1,1,0,0,100,100,0,0,"NULL","NULL","NULL","NULL","NULL","NULL","NULL","NULL","NULL","NULL","NULL","Refrigerator","MANUFACTURER","Manufacturer Name","T","Alphanumeric",64,"ED","MODEL","Model","T","Alphanumeric",64,"ED","NULL","NULL","F","NULL","NULL","NULL","NULL","NULL","F","NULL","NULL","NULL","NULL","NULL","F","NULL","NULL","NULL","NULL","NULL","F","NULL","NULL","NULL","NULL","NULL","F","NULL","NULL","NULL","NULL","NULL","F","NULL","NULL","NULL","NULL","NULL","F","NULL","NULL","NULL","NULL","NULL","F","NULL","NULL","NULL","NULL","NULL","F","NULL","NULL","NULL","NULL","NULL","F","NULL","NULL","NULL","NULL","NULL","F","NULL","NULL","NULL","NULL","NULL","F","NULL","NULL","NULL","NULL","NULL","F","NULL","NULL","NULL","NULL","NULL","F","NULL","NULL","NULL","NULL","NULL","F","NULL","NULL","NULL",45266.124619872688,45477.098976851848]
[18069,"Yes","Prescriptive","FREZRCHVRT1530GEOT","Vertical Reach-in Freezer, 15 to <30, Gas Heat, EOT","Freezer","Appliance","ELE","N/A",949,186,2,5869,"OR","NBE","New Buildings","2024-01-01","2026-12-31","Units",0,0,349.62,0,-4.54,0,"Grocery Refrigeration","None - gas",0,80,0,10,0,84.03,0,0,0,1,1,0,"NULL",100,100,"NULL","NULL","NULL","NULL","NULL","NULL","NULL","NULL","NULL","NULL","NULL","NULL","NULL","Refrigerator","MANUFACTURER","Manufacturer Name","T","Alphanumeric",64,"ED","MODEL","Model","T","Alphanumeric",64,"ED","NULL","NULL","F","NULL","NULL","NULL","NULL","NULL","F","NULL","NULL","NULL","NULL","NULL","F","NULL","NULL","NULL","NULL","NULL","F","NULL","NULL","NULL","NULL","NULL","F","NULL","NULL","NULL","NULL","NULL","F","NULL","NULL","NULL","NULL","NULL","F","NULL","NULL","NULL","NULL","NULL","F","NULL","NULL","NULL","NULL","NULL","F","NULL","NULL","NULL","NULL","NULL","F","NULL","NULL","NULL","NULL","NULL","F","NULL","NULL","NULL","NULL","NULL","F","NULL","NULL","NULL","NULL","NULL","F","NULL","NULL","NULL","NULL","NULL","F","NULL","NULL","NULL","NULL","NULL","F","NULL","NULL","NULL",45266.124619872688,45266.124619872688]
[18078,"Yes","Prescriptive","FREZRCHVRT1530ELE","Vertical Reach-in Freezer, 15 to <30, Electric ","Freezer","Appliance","ELE","N/A",949,186,2,5854,"OR","NBE","New Buildings","2024-01-01","2026-12-31","Units",0,0,263.95,0,0,0,"Grocery Refrigeration","None - gas",0,80,0,10,0,84.03,0,0,0,1,1,0,"NULL",100,100,"NULL","NULL","NULL","NULL","NULL","NULL","NULL","NULL","NULL","NULL","NULL","NULL","NULL","Refrigerator","MANUFACTURER","Manufacturer Name","T","Alphanumeric",64,"ED","MODEL","Model","T","Alphanumeric",64,"ED","NULL","NULL","F","NULL","NULL","NULL","NULL","NULL","F","NULL","NULL","NULL","NULL","NULL","F","NULL","NULL","NULL","NULL","NULL","F","NULL","NULL","NULL","NULL","NULL","F","NULL","NULL","NULL","NULL","NULL","F","NULL","NULL","NULL","NULL","NULL","F","NULL","NULL","NULL","NULL","NULL","F","NULL","NULL","NULL","NULL","NULL","F","NULL","NULL","NULL","NULL","NULL","F","NULL","NULL","NULL","NULL","NULL","F","NULL","NULL","NULL","NULL","NULL","F","NULL","NULL","NULL","NULL","NULL","F","NULL","NULL","NULL","NULL","NULL","F","NULL","NULL","NULL","NULL","NULL","F","NULL","NULL","NULL",45266.124619872688,45266.124619872688]
[18079,"Yes","Prescriptive","FREZRCHVRT50HP","Vertical Reach-in Freezer, >50, Heat Pump","Freezer","Appliance","ELE","N/A",949,186,2,5861,"OR","NBE","New Buildings","2024-01-01","2026-12-31","Units",0,0,818.34,0,0,0,"Grocery Refrigeration","None - gas",0,325,0,10,0,344.01,0,0,0,1,1,0,"NULL",100,100,"NULL","NULL","NULL","NULL","NULL","NULL","NULL","NULL","NULL","NULL","NULL","NULL","NULL","Refrigerator","MANUFACTURER","Manufacturer Name","T","Alphanumeric",64,"ED","MODEL","Model","T","Alphanumeric",64,"ED","NULL","NULL","F","NULL","NULL","NULL","NULL","NULL","F","NULL","NULL","NULL","NULL","NULL","F","NULL","NULL","NULL","NULL","NULL","F","NULL","NULL","NULL","NULL","NULL","F","NULL","NULL","NULL","NULL","NULL","F","NULL","NULL","NULL","NULL","NULL","F","NULL","NULL","NULL","NULL","NULL","F","NULL","NULL","NULL","NULL","NULL","F","NULL","NULL","NULL","NULL","NULL","F","NULL","NULL","NULL","NULL","NULL","F","NULL","NULL","NULL","NULL","NULL","F","NULL","NULL","NULL","NULL","NULL","F","NULL","NULL","NULL","NULL","NULL","F","NULL","NULL","NULL","NULL","NULL","F","NULL","NULL","NULL",45266.124619872688,45266.124619872688]
[18080,"Yes","Prescriptive","FREZRCHVRT50GAS","Vertical Reach-in Freezer, >50, Gas Heat","Freezer","Appliance","BOTH","N/A",949,186,2,5866,"OR","NBE","New Buildings","2024-01-01","2026-12-31","Units",0,0,926.44,-10.19,0,0,"Grocery Refrigeration","Flat - gas",0,325,0,10,0,344.01,0,-10.19,0,1,1,0,0,100,100,0,0,"NULL","NULL","NULL","NULL","NULL","NULL","NULL","NULL","NULL","NULL","NULL","Refrigerator","MANUFACTURER","Manufacturer Name","T","Alphanumeric",64,"ED","MODEL","Model","T","Alphanumeric",64,"ED","NULL","NULL","F","NULL","NULL","NULL","NULL","NULL","F","NULL","NULL","NULL","NULL","NULL","F","NULL","NULL","NULL","NULL","NULL","F","NULL","NULL","NULL","NULL","NULL","F","NULL","NULL","NULL","NULL","NULL","F","NULL","NULL","NULL","NULL","NULL","F","NULL","NULL","NULL","NULL","NULL","F","NULL","NULL","NULL","NULL","NULL","F","NULL","NULL","NULL","NULL","NULL","F","NULL","NULL","NULL","NULL","NULL","F","NULL","NULL","NULL","NULL","NULL","F","NULL","NULL","NULL","NULL","NULL","F","NULL","NULL","NULL","NULL","NULL","F","NULL","NULL","NULL","NULL","NULL","F","NULL","NULL","NULL",45266.124619872688,45477.098976851848]
[18081,"Yes","Prescriptive","FREZRCHVRT50ELE","Vertical Reach-in Freezer, >50, Electric ","Freezer","Appliance","ELE","N/A",949,186,2,5856,"OR","NBE","New Buildings","2024-01-01","2026-12-31","Units",0,0,699.43,0,0,0,"Grocery Refrigeration","None - gas",0,325,0,10,0,344.01,0,0,0,1,1,0,"NULL",100,100,"NULL","NULL","NULL","NULL","NULL","NULL","NULL","NULL","NULL","NULL","NULL","NULL","NULL","Refrigerator","MANUFACTURER","Manufacturer Name","T","Alphanumeric",64,"ED","MODEL","Model","T","Alphanumeric",64,"ED","NULL","NULL","F","NULL","NULL","NULL","NULL","NULL","F","NULL","NULL","NULL","NULL","NULL","F","NULL","NULL","NULL","NULL","NULL","F","NULL","NULL","NULL","NULL","NULL","F","NULL","NULL","NULL","NULL","NULL","F","NULL","NULL","NULL","NULL","NULL","F","NULL","NULL","NULL","NULL","NULL","F","NULL","NULL","NULL","NULL","NULL","F","NULL","NULL","NULL","NULL","NULL","F","NULL","NULL","NULL","NULL","NULL","F","NULL","NULL","NULL","NULL","NULL","F","NULL","NULL","NULL","NULL","NULL","F","NULL","NULL","NULL","NULL","NULL","F","NULL","NULL","NULL","NULL","NULL","F","NULL","NULL","NULL",45266.124619872688,45266.124619872688]
[18091,"Yes","Prescriptive","FREZRCHVRT50GEOT","Vertical Reach-in Freezer, >50, Gas Heat, EOT","Freezer","Appliance","ELE","N/A",949,186,2,5871,"OR","NBE","New Buildings","2024-01-01","2026-12-31","Units",0,0,926.44,0,-12.02,0,"Grocery Refrigeration","None - gas",0,325,0,10,0,344.01,0,0,0,1,1,0,"NULL",100,100,"NULL","NULL","NULL","NULL","NULL","NULL","NULL","NULL","NULL","NULL","NULL","NULL","NULL","Refrigerator","MANUFACTURER","Manufacturer Name","T","Alphanumeric",64,"ED","MODEL","Model","T","Alphanumeric",64,"ED","NULL","NULL","F","NULL","NULL","NULL","NULL","NULL","F","NULL","NULL","NULL","NULL","NULL","F","NULL","NULL","NULL","NULL","NULL","F","NULL","NULL","NULL","NULL","NULL","F","NULL","NULL","NULL","NULL","NULL","F","NULL","NULL","NULL","NULL","NULL","F","NULL","NULL","NULL","NULL","NULL","F","NULL","NULL","NULL","NULL","NULL","F","NULL","NULL","NULL","NULL","NULL","F","NULL","NULL","NULL","NULL","NULL","F","NULL","NULL","NULL","NULL","NULL","F","NULL","NULL","NULL","NULL","NULL","F","NULL","NULL","NULL","NULL","NULL","F","NULL","NULL","NULL","NULL","NULL","F","NULL","NULL","NULL",45266.124619872688,45266.124619872688]
[18092,"Yes","Prescriptive","FREZRCHVRT3050HP","Vertical Reach-in Freezer, 30 to <50, Heat Pump","Freezer","Appliance","ELE","N/A",949,186,2,5860,"OR","NBE","New Buildings","2024-01-01","2026-12-31","Units",0,0,513.74,0,0,0,"Grocery Refrigeration","None - gas",0,190,0,10,0,196.36,0,0,0,1,1,0,"NULL",100,100,"NULL","NULL","NULL","NULL","NULL","NULL","NULL","NULL","NULL","NULL","NULL","NULL","NULL","Refrigerator","MANUFACTURER","Manufacturer Name","T","Alphanumeric",64,"ED","MODEL","Model","T","Alphanumeric",64,"ED","NULL","NULL","F","NULL","NULL","NULL","NULL","NULL","F","NULL","NULL","NULL","NULL","NULL","F","NULL","NULL","NULL","NULL","NULL","F","NULL","NULL","NULL","NULL","NULL","F","NULL","NULL","NULL","NULL","NULL","F","NULL","NULL","NULL","NULL","NULL","F","NULL","NULL","NULL","NULL","NULL","F","NULL","NULL","NULL","NULL","NULL","F","NULL","NULL","NULL","NULL","NULL","F","NULL","NULL","NULL","NULL","NULL","F","NULL","NULL","NULL","NULL","NULL","F","NULL","NULL","NULL","NULL","NULL","F","NULL","NULL","NULL","NULL","NULL","F","NULL","NULL","NULL","NULL","NULL","F","NULL","NULL","NULL",45266.124619872688,45266.124619872688]
[18093,"Yes","Prescriptive","FREZRCHVRT3050GEOT","Vertical Reach-in Freezer, 30 to <50, Gas Heat, EOT","Freezer","Appliance","ELE","N/A",949,186,2,5870,"OR","NBE","New Buildings","2024-01-01","2026-12-31","Units",0,0,581.6,0,-7.55,0,"Grocery Refrigeration","None - gas",0,190,0,10,0,196.36,0,0,0,1,1,0,"NULL",100,100,"NULL","NULL","NULL","NULL","NULL","NULL","NULL","NULL","NULL","NULL","NULL","NULL","NULL","Refrigerator","MANUFACTURER","Manufacturer Name","T","Alphanumeric",64,"ED","MODEL","Model","T","Alphanumeric",64,"ED","NULL","NULL","F","NULL","NULL","NULL","NULL","NULL","F","NULL","NULL","NULL","NULL","NULL","F","NULL","NULL","NULL","NULL","NULL","F","NULL","NULL","NULL","NULL","NULL","F","NULL","NULL","NULL","NULL","NULL","F","NULL","NULL","NULL","NULL","NULL","F","NULL","NULL","NULL","NULL","NULL","F","NULL","NULL","NULL","NULL","NULL","F","NULL","NULL","NULL","NULL","NULL","F","NULL","NULL","NULL","NULL","NULL","F","NULL","NULL","NULL","NULL","NULL","F","NULL","NULL","NULL","NULL","NULL","F","NULL","NULL","NULL","NULL","NULL","F","NULL","NULL","NULL","NULL","NULL","F","NULL","NULL","NULL",45266.124619872688,45266.124619872688]
[18094,"Yes","Prescriptive","FREZRCHVRT3050GAS","Vertical Reach-in Freezer, 30 to <50, Gas Heat","Freezer","Appliance","BOTH","N/A",949,186,2,5865,"OR","NBE","New Buildings","2024-01-01","2026-12-31","Units",0,0,581.6,-6.4,0,0,"Grocery Refrigeration","Flat - gas",0,190,0,10,0,196.36,0,-6.4,0,1,1,0,0,100,100,0,0,"NULL","NULL","NULL","NULL","NULL","NULL","NULL","NULL","NULL","NULL","NULL","Refrigerator","MANUFACTURER","Manufacturer Name","T","Alphanumeric",64,"ED","MODEL","Model","T","Alphanumeric",64,"ED","NULL","NULL","F","NULL","NULL","NULL","NULL","NULL","F","NULL","NULL","NULL","NULL","NULL","F","NULL","NULL","NULL","NULL","NULL","F","NULL","NULL","NULL","NULL","NULL","F","NULL","NULL","NULL","NULL","NULL","F","NULL","NULL","NULL","NULL","NULL","F","NULL","NULL","NULL","NULL","NULL","F","NULL","NULL","NULL","NULL","NULL","F","NULL","NULL","NULL","NULL","NULL","F","NULL","NULL","NULL","NULL","NULL","F","NULL","NULL","NULL","NULL","NULL","F","NULL","NULL","NULL","NULL","NULL","F","NULL","NULL","NULL","NULL","NULL","F","NULL","NULL","NULL","NULL","NULL","F","NULL","NULL","NULL",45266.124619872688,45477.098976851848]
[18095,"Yes","Prescriptive","FREZRCHVRT3050ELE","Vertical Reach-in Freezer, 30 to <50, Electric ","Freezer","Appliance","ELE","N/A",949,186,2,5855,"OR","NBE","New Buildings","2024-01-01","2026-12-31","Units",0,0,439.09,0,0,0,"Grocery Refrigeration","None - gas",0,190,0,10,0,196.36,0,0,0,1,1,0,"NULL",100,100,"NULL","NULL","NULL","NULL","NULL","NULL","NULL","NULL","NULL","NULL","NULL","NULL","NULL","Refrigerator","MANUFACTURER","Manufacturer Name","T","Alphanumeric",64,"ED","MODEL","Model","T","Alphanumeric",64,"ED","NULL","NULL","F","NULL","NULL","NULL","NULL","NULL","F","NULL","NULL","NULL","NULL","NULL","F","NULL","NULL","NULL","NULL","NULL","F","NULL","NULL","NULL","NULL","NULL","F","NULL","NULL","NULL","NULL","NULL","F","NULL","NULL","NULL","NULL","NULL","F","NULL","NULL","NULL","NULL","NULL","F","NULL","NULL","NULL","NULL","NULL","F","NULL","NULL","NULL","NULL","NULL","F","NULL","NULL","NULL","NULL","NULL","F","NULL","NULL","NULL","NULL","NULL","F","NULL","NULL","NULL","NULL","NULL","F","NULL","NULL","NULL","NULL","NULL","F","NULL","NULL","NULL","NULL","NULL","F","NULL","NULL","NULL",45266.124619872688,45266.124619872688]
[18096,"Yes","Prescriptive","FREZRCHVRT015HP","Vertical Reach-in Freezer, <15, Heat Pump","Freezer","Appliance","ELE","N/A",949,186,2,5858,"OR","NBE","New Buildings","2024-01-01","2026-12-31","Units",0,0,167.65,0,0,0,"Grocery Refrigeration","None - gas",0,40,0,10,0,40.049999999999997,0,0,0,1,1,0,"NULL",100,100,"NULL","NULL","NULL","NULL","NULL","NULL","NULL","NULL","NULL","NULL","NULL","NULL","NULL","Refrigerator","MANUFACTURER","Manufacturer Name","T","Alphanumeric",64,"ED","MODEL","Model","T","Alphanumeric",64,"ED","NULL","NULL","F","NULL","NULL","NULL","NULL","NULL","F","NULL","NULL","NULL","NULL","NULL","F","NULL","NULL","NULL","NULL","NULL","F","NULL","NULL","NULL","NULL","NULL","F","NULL","NULL","NULL","NULL","NULL","F","NULL","NULL","NULL","NULL","NULL","F","NULL","NULL","NULL","NULL","NULL","F","NULL","NULL","NULL","NULL","NULL","F","NULL","NULL","NULL","NULL","NULL","F","NULL","NULL","NULL","NULL","NULL","F","NULL","NULL","NULL","NULL","NULL","F","NULL","NULL","NULL","NULL","NULL","F","NULL","NULL","NULL","NULL","NULL","F","NULL","NULL","NULL","NULL","NULL","F","NULL","NULL","NULL",45266.124619872688,45266.124619872688]
[18097,"Yes","Prescriptive","FREZRCHVRT015GEOT","Vertical Reach-in Freezer, <15, Gas Heat, EOT","Freezer","Appliance","ELE","N/A",949,186,2,5868,"OR","NBE","New Buildings","2024-01-01","2026-12-31","Units",0,0,189.79,0,-2.46,0,"Grocery Refrigeration","None - gas",0,40,0,10,0,40.049999999999997,0,0,0,1,1,0,"NULL",100,100,"NULL","NULL","NULL","NULL","NULL","NULL","NULL","NULL","NULL","NULL","NULL","NULL","NULL","Refrigerator","MANUFACTURER","Manufacturer Name","T","Alphanumeric",64,"ED","MODEL","Model","T","Alphanumeric",64,"ED","NULL","NULL","F","NULL","NULL","NULL","NULL","NULL","F","NULL","NULL","NULL","NULL","NULL","F","NULL","NULL","NULL","NULL","NULL","F","NULL","NULL","NULL","NULL","NULL","F","NULL","NULL","NULL","NULL","NULL","F","NULL","NULL","NULL","NULL","NULL","F","NULL","NULL","NULL","NULL","NULL","F","NULL","NULL","NULL","NULL","NULL","F","NULL","NULL","NULL","NULL","NULL","F","NULL","NULL","NULL","NULL","NULL","F","NULL","NULL","NULL","NULL","NULL","F","NULL","NULL","NULL","NULL","NULL","F","NULL","NULL","NULL","NULL","NULL","F","NULL","NULL","NULL","NULL","NULL","F","NULL","NULL","NULL",45266.124619872688,45266.124619872688]
[18098,"Yes","Prescriptive","FREZRCHVRT015GAS","Vertical Reach-in Freezer, <15, Gas Heat","Freezer","Appliance","BOTH","N/A",949,186,2,5863,"OR","NBE","New Buildings","2024-01-01","2026-12-31","Units",0,0,189.79,-2.09,0,0,"Grocery Refrigeration","Flat - gas",0,40,0,10,0,40.049999999999997,0,-2.09,0,1,1,0,0,100,100,0,0,"NULL","NULL","NULL","NULL","NULL","NULL","NULL","NULL","NULL","NULL","NULL","Refrigerator","MANUFACTURER","Manufacturer Name","T","Alphanumeric",64,"ED","MODEL","Model","T","Alphanumeric",64,"ED","NULL","NULL","F","NULL","NULL","NULL","NULL","NULL","F","NULL","NULL","NULL","NULL","NULL","F","NULL","NULL","NULL","NULL","NULL","F","NULL","NULL","NULL","NULL","NULL","F","NULL","NULL","NULL","NULL","NULL","F","NULL","NULL","NULL","NULL","NULL","F","NULL","NULL","NULL","NULL","NULL","F","NULL","NULL","NULL","NULL","NULL","F","NULL","NULL","NULL","NULL","NULL","F","NULL","NULL","NULL","NULL","NULL","F","NULL","NULL","NULL","NULL","NULL","F","NULL","NULL","NULL","NULL","NULL","F","NULL","NULL","NULL","NULL","NULL","F","NULL","NULL","NULL","NULL","NULL","F","NULL","NULL","NULL",45266.124619872688,45477.098976851848]
[18099,"Yes","Prescriptive","FREZRCHVRT015ELE","Vertical Reach-in Freezer, <15, Electric ","Freezer","Appliance","ELE","N/A",949,186,2,5853,"OR","NBE","New Buildings","2024-01-01","2026-12-31","Units",0,0,143.29,0,0,0,"Grocery Refrigeration","None - gas",0,40,0,10,0,40.049999999999997,0,0,0,1,1,0,"NULL",100,100,"NULL","NULL","NULL","NULL","NULL","NULL","NULL","NULL","NULL","NULL","NULL","NULL","NULL","Refrigerator","MANUFACTURER","Manufacturer Name","T","Alphanumeric",64,"ED","MODEL","Model","T","Alphanumeric",64,"ED","NULL","NULL","F","NULL","NULL","NULL","NULL","NULL","F","NULL","NULL","NULL","NULL","NULL","F","NULL","NULL","NULL","NULL","NULL","F","NULL","NULL","NULL","NULL","NULL","F","NULL","NULL","NULL","NULL","NULL","F","NULL","NULL","NULL","NULL","NULL","F","NULL","NULL","NULL","NULL","NULL","F","NULL","NULL","NULL","NULL","NULL","F","NULL","NULL","NULL","NULL","NULL","F","NULL","NULL","NULL","NULL","NULL","F","NULL","NULL","NULL","NULL","NULL","F","NULL","NULL","NULL","NULL","NULL","F","NULL","NULL","NULL","NULL","NULL","F","NULL","NULL","NULL","NULL","NULL","F","NULL","NULL","NULL",45266.124619872688,45266.124619872688]
[18153,"Yes","Prescriptive","DHPMFNOBASE","Ductless heat pump, Multifamily, w/o Baseboard Heating","Ductless heat pump","HVAC","ELE","HEAT",915,192,5,5631,"OR","NBE","New Buildings","2024-01-01","2026-12-31","Tons",0,0,574.5,0,0,0,"Res Air Source HP","None - gas",0,500,0,15,0,548.03,0,0,0,1,1,0,"NULL",100,100,"NULL","NULL","NULL","NULL","NULL","NULL","NULL","NULL","NULL","NULL","NULL","NULL","NULL","Ductless heat pump","HSPF","HSPF","F","Alphanumeric",64,"ED","OUTMANUFACTURER","Outdoor Unit Manufacturer Name","F","Alphanumeric",64,"ED","OUTDOORMODEL","Outdoor Model","F","Alphanumeric",64,"ED","HSPF2","HSPF 2","F","Alphanumeric",20,"ED","SEER","SEER","F","Decimal",20,"ED","SUPPLEMENTALHEAT","Supplemental Heating Equipment","F","Alphanumeric",64,"CB","SEER2","SEER 2","F","Alphanumeric",20,"ED","NULL","NULL","F","NULL","NULL","NULL","NULL","NULL","F","NULL","NULL","NULL","NULL","NULL","F","NULL","NULL","NULL","NULL","NULL","F","NULL","NULL","NULL","NULL","NULL","F","NULL","NULL","NULL","NULL","NULL","F","NULL","NULL","NULL","NULL","NULL","F","NULL","NULL","NULL","NULL","NULL","F","NULL","NULL","NULL","NULL","NULL","F","NULL","NULL","NULL","NULL","NULL","F","NULL","NULL","NULL",45266.124619872688,45266.124619872688]
[18154,"Yes","Prescriptive","DHPLODNOBASE","Ductless heat pump, Lodging, w/o Baseboard Heating","Ductless heat pump","HVAC","ELE","HEAT",915,192,5,5630,"OR","NBE","New Buildings","2024-01-01","2026-12-31","Tons",0,0,699.83,0,0,0,"Lodging Heating","None - gas",0,500,0,15,0,548.03,0,0,0,1,1,0,"NULL",100,100,"NULL","NULL","NULL","NULL","NULL","NULL","NULL","NULL","NULL","NULL","NULL","NULL","NULL","Ductless heat pump","HSPF","HSPF","F","Alphanumeric",64,"ED","OUTMANUFACTURER","Outdoor Unit Manufacturer Name","F","Alphanumeric",64,"ED","OUTDOORMODEL","Outdoor Model","F","Alphanumeric",64,"ED","HSPF2","HSPF 2","F","Alphanumeric",20,"ED","SEER","SEER","F","Decimal",20,"ED","SUPPLEMENTALHEAT","Supplemental Heating Equipment","F","Alphanumeric",64,"CB","SEER2","SEER 2","F","Alphanumeric",20,"ED","NULL","NULL","F","NULL","NULL","NULL","NULL","NULL","F","NULL","NULL","NULL","NULL","NULL","F","NULL","NULL","NULL","NULL","NULL","F","NULL","NULL","NULL","NULL","NULL","F","NULL","NULL","NULL","NULL","NULL","F","NULL","NULL","NULL","NULL","NULL","F","NULL","NULL","NULL","NULL","NULL","F","NULL","NULL","NULL","NULL","NULL","F","NULL","NULL","NULL","NULL","NULL","F","NULL","NULL","NULL",45266.124619872688,45266.124619872688]
[18155,"Yes","Prescriptive","DHPDORMNOBASE","Ductless heat pump, Dorm, w/o Baseboard Heating","Ductless heat pump","HVAC","ELE","HEAT",915,192,5,5629,"OR","NBE","New Buildings","2024-01-01","2026-12-31","Tons",0,0,581.76,0,0,0,"Res Air Source HP","None - gas",0,500,0,15,0,548.03,0,0,0,1,1,0,"NULL",100,100,"NULL","NULL","NULL","NULL","NULL","NULL","NULL","NULL","NULL","NULL","NULL","NULL","NULL","Ductless heat pump","HSPF","HSPF","F","Alphanumeric",64,"ED","OUTMANUFACTURER","Outdoor Unit Manufacturer Name","F","Alphanumeric",64,"ED","OUTDOORMODEL","Outdoor Model","F","Alphanumeric",64,"ED","HSPF2","HSPF 2","F","Alphanumeric",20,"ED","SEER","SEER","F","Decimal",20,"ED","SUPPLEMENTALHEAT","Supplemental Heating Equipment","F","Alphanumeric",64,"CB","SEER2","SEER 2","F","Alphanumeric",20,"ED","NULL","NULL","F","NULL","NULL","NULL","NULL","NULL","F","NULL","NULL","NULL","NULL","NULL","F","NULL","NULL","NULL","NULL","NULL","F","NULL","NULL","NULL","NULL","NULL","F","NULL","NULL","NULL","NULL","NULL","F","NULL","NULL","NULL","NULL","NULL","F","NULL","NULL","NULL","NULL","NULL","F","NULL","NULL","NULL","NULL","NULL","F","NULL","NULL","NULL","NULL","NULL","F","NULL","NULL","NULL",45266.124619872688,45266.124619872688]
[18156,"Yes","Prescriptive","DHPMFBASE","Ductless heat pump, Multifamily, w/ Baseboard Heating","Ductless heat pump","HVAC","ELE","HEAT",915,192,5,5628,"OR","NBE","New Buildings","2024-01-01","2026-12-31","Tons",0,0,497.88,0,0,0,"Res Air Source HP","None - gas",0,500,0,15,0,548.03,0,0,0,1,1,0,"NULL",100,100,"NULL","NULL","NULL","NULL","NULL","NULL","NULL","NULL","NULL","NULL","NULL","NULL","NULL","Ductless heat pump","HSPF","HSPF","F","Alphanumeric",64,"ED","OUTMANUFACTURER","Outdoor Unit Manufacturer Name","F","Alphanumeric",64,"ED","OUTDOORMODEL","Outdoor Model","F","Alphanumeric",64,"ED","HSPF2","HSPF 2","F","Alphanumeric",20,"ED","SEER","SEER","F","Decimal",20,"ED","SUPPLEMENTALHEAT","Supplemental Heating Equipment","F","Alphanumeric",64,"CB","SEER2","SEER 2","F","Alphanumeric",20,"ED","NULL","NULL","F","NULL","NULL","NULL","NULL","NULL","F","NULL","NULL","NULL","NULL","NULL","F","NULL","NULL","NULL","NULL","NULL","F","NULL","NULL","NULL","NULL","NULL","F","NULL","NULL","NULL","NULL","NULL","F","NULL","NULL","NULL","NULL","NULL","F","NULL","NULL","NULL","NULL","NULL","F","NULL","NULL","NULL","NULL","NULL","F","NULL","NULL","NULL","NULL","NULL","F","NULL","NULL","NULL",45266.124619872688,45266.124619872688]
[18157,"Yes","Prescriptive","DHPLODBASE","Ductless heat pump, Lodging, w/ Baseboard Heating","Ductless heat pump","HVAC","ELE","HEAT",915,192,5,5627,"OR","NBE","New Buildings","2024-01-01","2026-12-31","Tons",0,0,601.69000000000005,0,0,0,"Lodging Heating","None - gas",0,500,0,15,0,548.03,0,0,0,1,1,0,"NULL",100,100,"NULL","NULL","NULL","NULL","NULL","NULL","NULL","NULL","NULL","NULL","NULL","NULL","NULL","Ductless heat pump","HSPF","HSPF","F","Alphanumeric",64,"ED","OUTMANUFACTURER","Outdoor Unit Manufacturer Name","F","Alphanumeric",64,"ED","OUTDOORMODEL","Outdoor Model","F","Alphanumeric",64,"ED","HSPF2","HSPF 2","F","Alphanumeric",20,"ED","SEER","SEER","F","Decimal",20,"ED","SUPPLEMENTALHEAT","Supplemental Heating Equipment","F","Alphanumeric",64,"CB","SEER2","SEER 2","F","Alphanumeric",20,"ED","NULL","NULL","F","NULL","NULL","NULL","NULL","NULL","F","NULL","NULL","NULL","NULL","NULL","F","NULL","NULL","NULL","NULL","NULL","F","NULL","NULL","NULL","NULL","NULL","F","NULL","NULL","NULL","NULL","NULL","F","NULL","NULL","NULL","NULL","NULL","F","NULL","NULL","NULL","NULL","NULL","F","NULL","NULL","NULL","NULL","NULL","F","NULL","NULL","NULL","NULL","NULL","F","NULL","NULL","NULL",45266.124619872688,45266.124619872688]
[18158,"Yes","Prescriptive","DHPDORMBASE","Ductless heat pump, Dorm, w/ Baseboard Heating","Ductless heat pump","HVAC","ELE","HEAT",915,192,5,5626,"OR","NBE","New Buildings","2024-01-01","2026-12-31","Tons",0,0,506.82,0,0,0,"Res Air Source HP","None - gas",0,500,0,15,0,548.03,0,0,0,1,1,0,"NULL",100,100,"NULL","NULL","NULL","NULL","NULL","NULL","NULL","NULL","NULL","NULL","NULL","NULL","NULL","Ductless heat pump","HSPF","HSPF","F","Alphanumeric",64,"ED","OUTMANUFACTURER","Outdoor Unit Manufacturer Name","F","Alphanumeric",64,"ED","OUTDOORMODEL","Outdoor Model","F","Alphanumeric",64,"ED","HSPF2","HSPF 2","F","Alphanumeric",20,"ED","SEER","SEER","F","Decimal",20,"ED","SUPPLEMENTALHEAT","Supplemental Heating Equipment","F","Alphanumeric",64,"CB","SEER2","SEER 2","F","Alphanumeric",20,"ED","NULL","NULL","F","NULL","NULL","NULL","NULL","NULL","F","NULL","NULL","NULL","NULL","NULL","F","NULL","NULL","NULL","NULL","NULL","F","NULL","NULL","NULL","NULL","NULL","F","NULL","NULL","NULL","NULL","NULL","F","NULL","NULL","NULL","NULL","NULL","F","NULL","NULL","NULL","NULL","NULL","F","NULL","NULL","NULL","NULL","NULL","F","NULL","NULL","NULL","NULL","NULL","F","NULL","NULL","NULL",45266.124619872688,45266.124619872688]
[18270,"Yes","Prescriptive","CHPWHT2","Commercial Heat Pump Water Heater - Tier 2","Heat pump water heater","Water Heating","BOTH","N/A",929,254,2,5698,"OR","NBE","New Buildings","2024-01-01","2026-12-31","Units",0,0,1432.74,-5.9,0,0,"Other Hot Water","None - gas",0,800,0,18,0,866.65,0,-5.9,0,1,1,0,0,100,100,0,0,"NULL","NULL","NULL","NULL","NULL","NULL","NULL","NULL","NULL","NULL","NULL","Heat pump water heater","SN","Serial Number","F","Alphanumeric",64,"ED","NULL","NULL","F","NULL","NULL","NULL","NULL","NULL","F","NULL","NULL","NULL","NULL","NULL","F","NULL","NULL","NULL","NULL","NULL","F","NULL","NULL","NULL","NULL","NULL","F","NULL","NULL","NULL","NULL","NULL","F","NULL","NULL","NULL","NULL","NULL","F","NULL","NULL","NULL","NULL","NULL","F","NULL","NULL","NULL","NULL","NULL","F","NULL","NULL","NULL","NULL","NULL","F","NULL","NULL","NULL","NULL","NULL","F","NULL","NULL","NULL","NULL","NULL","F","NULL","NULL","NULL","NULL","NULL","F","NULL","NULL","NULL","NULL","NULL","F","NULL","NULL","NULL","NULL","NULL","F","NULL","NULL","NULL","NULL","NULL","F","NULL","NULL","NULL",45276.116190428242,45477.098976851848]
[18271,"Yes","Prescriptive","CHPWHT2D","Commercial Heat Pump Water Heater - Tier 2, ducted","Heat pump water heater","Water Heating","BOTH","N/A",929,254,2,5699,"OR","NBE","New Buildings","2024-01-01","2026-12-31","Units",0,0,1328.12,-7.9,0,0,"Other Hot Water","None - gas",0,800,0,18,0,1138.1300000000001,0,-7.9,0,1,1,0,0,100,100,0,0,"NULL","NULL","NULL","NULL","NULL","NULL","NULL","NULL","NULL","NULL","NULL","Heat pump water heater","SN","Serial Number","F","Alphanumeric",64,"ED","NULL","NULL","F","NULL","NULL","NULL","NULL","NULL","F","NULL","NULL","NULL","NULL","NULL","F","NULL","NULL","NULL","NULL","NULL","F","NULL","NULL","NULL","NULL","NULL","F","NULL","NULL","NULL","NULL","NULL","F","NULL","NULL","NULL","NULL","NULL","F","NULL","NULL","NULL","NULL","NULL","F","NULL","NULL","NULL","NULL","NULL","F","NULL","NULL","NULL","NULL","NULL","F","NULL","NULL","NULL","NULL","NULL","F","NULL","NULL","NULL","NULL","NULL","F","NULL","NULL","NULL","NULL","NULL","F","NULL","NULL","NULL","NULL","NULL","F","NULL","NULL","NULL","NULL","NULL","F","NULL","NULL","NULL","NULL","NULL","F","NULL","NULL","NULL",45276.116190428242,45477.098976851848]
[18272,"Yes","Prescriptive","CHPWHT3","Commercial Heat Pump Water Heater - Tier 3","Heat pump water heater","Water Heating","BOTH","N/A",929,254,2,5700,"OR","NBE","New Buildings","2024-01-01","2026-12-31","Units",0,0,1612.95,-5.89,0,0,"Other Hot Water","None - gas",0,800,0,18,0,866.65,0,-5.89,0,1,1,0,0,100,100,0,0,"NULL","NULL","NULL","NULL","NULL","NULL","NULL","NULL","NULL","NULL","NULL","Heat pump water heater","SN","Serial Number","F","Alphanumeric",64,"ED","NULL","NULL","F","NULL","NULL","NULL","NULL","NULL","F","NULL","NULL","NULL","NULL","NULL","F","NULL","NULL","NULL","NULL","NULL","F","NULL","NULL","NULL","NULL","NULL","F","NULL","NULL","NULL","NULL","NULL","F","NULL","NULL","NULL","NULL","NULL","F","NULL","NULL","NULL","NULL","NULL","F","NULL","NULL","NULL","NULL","NULL","F","NULL","NULL","NULL","NULL","NULL","F","NULL","NULL","NULL","NULL","NULL","F","NULL","NULL","NULL","NULL","NULL","F","NULL","NULL","NULL","NULL","NULL","F","NULL","NULL","NULL","NULL","NULL","F","NULL","NULL","NULL","NULL","NULL","F","NULL","NULL","NULL","NULL","NULL","F","NULL","NULL","NULL",45276.116190428242,45477.098976851848]
[18273,"Yes","Prescriptive","CHPWHT3D","Commercial Heat Pump Water Heater - Tier 3, ducted","Heat pump water heater","Water Heating","BOTH","N/A",929,254,2,5701,"OR","NBE","New Buildings","2024-01-01","2026-12-31","Units",0,0,1493.61,-7.9,0,0,"Other Hot Water","None - gas",0,800,0,18,0,1138.1300000000001,0,-7.9,0,1,1,0,0,100,100,0,0,"NULL","NULL","NULL","NULL","NULL","NULL","NULL","NULL","NULL","NULL","NULL","Heat pump water heater","SN","Serial Number","F","Alphanumeric",64,"ED","NULL","NULL","F","NULL","NULL","NULL","NULL","NULL","F","NULL","NULL","NULL","NULL","NULL","F","NULL","NULL","NULL","NULL","NULL","F","NULL","NULL","NULL","NULL","NULL","F","NULL","NULL","NULL","NULL","NULL","F","NULL","NULL","NULL","NULL","NULL","F","NULL","NULL","NULL","NULL","NULL","F","NULL","NULL","NULL","NULL","NULL","F","NULL","NULL","NULL","NULL","NULL","F","NULL","NULL","NULL","NULL","NULL","F","NULL","NULL","NULL","NULL","NULL","F","NULL","NULL","NULL","NULL","NULL","F","NULL","NULL","NULL","NULL","NULL","F","NULL","NULL","NULL","NULL","NULL","F","NULL","NULL","NULL","NULL","NULL","F","NULL","NULL","NULL",45276.116190428242,45477.098976851848]
[18274,"Yes","Prescriptive","CHPWHT4UP","Commercial Heat Pump Water Heater - Tier 4 & up","Heat pump water heater","Water Heating","BOTH","N/A",929,254,2,5702,"OR","NBE","New Buildings","2024-01-01","2026-12-31","Units",0,0,1838.46,-6.52,0,0,"Other Hot Water","None - gas",0,800,0,18,0,866.65,0,-6.52,0,1,1,0,0,100,100,0,0,"NULL","NULL","NULL","NULL","NULL","NULL","NULL","NULL","NULL","NULL","NULL","Heat pump water heater","SN","Serial Number","F","Alphanumeric",64,"ED","NULL","NULL","F","NULL","NULL","NULL","NULL","NULL","F","NULL","NULL","NULL","NULL","NULL","F","NULL","NULL","NULL","NULL","NULL","F","NULL","NULL","NULL","NULL","NULL","F","NULL","NULL","NULL","NULL","NULL","F","NULL","NULL","NULL","NULL","NULL","F","NULL","NULL","NULL","NULL","NULL","F","NULL","NULL","NULL","NULL","NULL","F","NULL","NULL","NULL","NULL","NULL","F","NULL","NULL","NULL","NULL","NULL","F","NULL","NULL","NULL","NULL","NULL","F","NULL","NULL","NULL","NULL","NULL","F","NULL","NULL","NULL","NULL","NULL","F","NULL","NULL","NULL","NULL","NULL","F","NULL","NULL","NULL","NULL","NULL","F","NULL","NULL","NULL",45276.116190428242,45477.098976851848]
[18275,"Yes","Prescriptive","CHPWHT4UPD","Commercial Heat Pump Water Heater - Tier 4 & up, ducted","Heat pump water heater","Water Heating","BOTH","N/A",929,254,2,5703,"OR","NBE","New Buildings","2024-01-01","2026-12-31","Units",0,0,1624.15,-10.99,0,0,"Other Hot Water","None - gas",0,800,0,18,0,1138.1300000000001,0,-10.99,0,1,1,0,0,100,100,0,0,"NULL","NULL","NULL","NULL","NULL","NULL","NULL","NULL","NULL","NULL","NULL","Heat pump water heater","SN","Serial Number","F","Alphanumeric",64,"ED","NULL","NULL","F","NULL","NULL","NULL","NULL","NULL","F","NULL","NULL","NULL","NULL","NULL","F","NULL","NULL","NULL","NULL","NULL","F","NULL","NULL","NULL","NULL","NULL","F","NULL","NULL","NULL","NULL","NULL","F","NULL","NULL","NULL","NULL","NULL","F","NULL","NULL","NULL","NULL","NULL","F","NULL","NULL","NULL","NULL","NULL","F","NULL","NULL","NULL","NULL","NULL","F","NULL","NULL","NULL","NULL","NULL","F","NULL","NULL","NULL","NULL","NULL","F","NULL","NULL","NULL","NULL","NULL","F","NULL","NULL","NULL","NULL","NULL","F","NULL","NULL","NULL","NULL","NULL","F","NULL","NULL","NULL","NULL","NULL","F","NULL","NULL","NULL",45276.116190428242,45477.098976851848]
[18348,"Yes","Prescriptive","COOLCASEDRSCHZLOWEOT","Cooler w/ Door - Self-Contained, Horiz Low Temp - Gas EOT","Refrigerator","Appliance","ELE","N/A",937,201,3,5785,"OR","NBE","New Buildings","2024-01-01","2026-12-31","Linear feet",0,0,643.59,0,-9.91,0,"Grocery Refrigeration","Com Heating",0,150,0,10,0,293.82,0,0,0,1,1,0,"NULL",100,100,"NULL","NULL","NULL","NULL","NULL","NULL","NULL","NULL","NULL","NULL","NULL","NULL","NULL","No Attributes ","NULL","NULL","F","NULL","NULL","NULL","NULL","NULL","F","NULL","NULL","NULL","NULL","NULL","F","NULL","NULL","NULL","NULL","NULL","F","NULL","NULL","NULL","NULL","NULL","F","NULL","NULL","NULL","NULL","NULL","F","NULL","NULL","NULL","NULL","NULL","F","NULL","NULL","NULL","NULL","NULL","F","NULL","NULL","NULL","NULL","NULL","F","NULL","NULL","NULL","NULL","NULL","F","NULL","NULL","NULL","NULL","NULL","F","NULL","NULL","NULL","NULL","NULL","F","NULL","NULL","NULL","NULL","NULL","F","NULL","NULL","NULL","NULL","NULL","F","NULL","NULL","NULL","NULL","NULL","F","NULL","NULL","NULL","NULL","NULL","F","NULL","NULL","NULL","NULL","NULL","F","NULL","NULL","NULL",45279.151787418981,45279.151787418981]
[18351,"Yes","Prescriptive","DHWCONDTANKMF","Condensing Tank Water Heater, Multifamily","Tanked water heater","Water Heating","GAS","DHW",939,21,6,5794,"OR","NBE","New Buildings","2024-01-01","2025-12-31","kBtu/hr",0,0,0,1.44,0,0,"None - ele","DHW",0,3.5,0,15,0,3.79,0,0,0,1,1,0,100,"NULL","NULL",100,100,100,100,"NULL","NULL","NULL","NULL","NULL","NULL",100,100,100,"Tanked water heater","KBTUHINPUT","kBtuh input per unit","T","Decimal",10,"ED","MANUFACTURER","Manufacturer Name","T","Alphanumeric",64,"ED","MODEL","Model","T","Alphanumeric",64,"ED","UNITS","Number of units","T","Integer",20,"ED","NULL","NULL","F","NULL","NULL","NULL","NULL","NULL","F","NULL","NULL","NULL","NULL","NULL","F","NULL","NULL","NULL","NULL","NULL","F","NULL","NULL","NULL","NULL","NULL","F","NULL","NULL","NULL","NULL","NULL","F","NULL","NULL","NULL","NULL","NULL","F","NULL","NULL","NULL","NULL","NULL","F","NULL","NULL","NULL","NULL","NULL","F","NULL","NULL","NULL","NULL","NULL","F","NULL","NULL","NULL","NULL","NULL","F","NULL","NULL","NULL","NULL","NULL","F","NULL","NULL","NULL","NULL","NULL","F","NULL","NULL","NULL",45282.122242824073,45554.104598958336]
[18353,"Yes","Prescriptive","DHWCONDNMF","Condensing Tank Water Heater, All Except MF","Tanked water heater","Water Heating","GAS","DHW",939,21,6,5797,"OR","NBE","New Buildings","2024-01-01","2025-12-31","kBtu/hr",0,0,0,1.1100000000000001,0,0,"None - ele","DHW",0,3.5,0,15,0,3.76,0,0,0,1,1,0,100,"NULL","NULL",100,100,100,100,"NULL","NULL","NULL","NULL","NULL","NULL",100,100,100,"Tanked water heater","KBTUHINPUT","kBtuh input per unit","T","Decimal",10,"ED","MANUFACTURER","Manufacturer Name","T","Alphanumeric",64,"ED","MODEL","Model","T","Alphanumeric",64,"ED","UNITS","Number of units","T","Integer",20,"ED","NULL","NULL","F","NULL","NULL","NULL","NULL","NULL","F","NULL","NULL","NULL","NULL","NULL","F","NULL","NULL","NULL","NULL","NULL","F","NULL","NULL","NULL","NULL","NULL","F","NULL","NULL","NULL","NULL","NULL","F","NULL","NULL","NULL","NULL","NULL","F","NULL","NULL","NULL","NULL","NULL","F","NULL","NULL","NULL","NULL","NULL","F","NULL","NULL","NULL","NULL","NULL","F","NULL","NULL","NULL","NULL","NULL","F","NULL","NULL","NULL","NULL","NULL","F","NULL","NULL","NULL","NULL","NULL","F","NULL","NULL","NULL",45282.122242824073,45554.104598958336]
[18356,"Yes","Prescriptive","COMHPWHT3","Comm Heat Pump Water Heater Tier 3+ Any Building Type","Heat pump water heater","Water Heating","ELE","DHW",857,52,4,5045,"OR","NBE","New Buildings","2024-01-01","2025-12-31","Units",0,0,1422.4,0,0,0,"Res HPWH Conversion","Res Heating",0,800,0,13,0,968.21,0,-5.79,0,1,1,0,"NULL",100,100,"NULL","NULL","NULL","NULL","NULL","NULL","NULL","NULL","NULL","NULL","NULL","NULL","NULL","Heat pump water heater","MANUFACTURER","Manufacturer Name","T","Alphanumeric",64,"ED","MODEL","Model","T","Alphanumeric",64,"ED","SN","Serial Number","T","Alphanumeric",64,"ED","TANKSIZE","Tank Size in gallons","T","Alphanumeric",64,"ED","NULL","NULL","F","NULL","NULL","NULL","NULL","NULL","F","NULL","NULL","NULL","NULL","NULL","F","NULL","NULL","NULL","NULL","NULL","F","NULL","NULL","NULL","NULL","NULL","F","NULL","NULL","NULL","NULL","NULL","F","NULL","NULL","NULL","NULL","NULL","F","NULL","NULL","NULL","NULL","NULL","F","NULL","NULL","NULL","NULL","NULL","F","NULL","NULL","NULL","NULL","NULL","F","NULL","NULL","NULL","NULL","NULL","F","NULL","NULL","NULL","NULL","NULL","F","NULL","NULL","NULL","NULL","NULL","F","NULL","NULL","NULL",45294.118139317128,45379.135342939815]
[18357,"Yes","Prescriptive","CTWH200COMMF","Tankless Water Heater >= 200 kBtu/h, MF","Tankless water heater","Water Heating","GAS","DHW",826,72,4,4679,"OR","NBE","New Buildings","2024-01-01","2025-12-31","kBtu/hr",0,0,0,0.42,0,0,"None - ele","DHW",0,1.4,0,20,0,1.43,0,0,0,1,1,0,100,"NULL","NULL",100,100,100,100,"NULL","NULL","NULL","NULL","NULL","NULL",100,100,100,"Tankless water heater","THERMALEFF","Thermal Efficiency","T","Alphanumeric",64,"ED","NULL","NULL","F","NULL","NULL","NULL","NULL","NULL","F","NULL","NULL","NULL","NULL","NULL","F","NULL","NULL","NULL","NULL","NULL","F","NULL","NULL","NULL","NULL","NULL","F","NULL","NULL","NULL","NULL","NULL","F","NULL","NULL","NULL","NULL","NULL","F","NULL","NULL","NULL","NULL","NULL","F","NULL","NULL","NULL","NULL","NULL","F","NULL","NULL","NULL","NULL","NULL","F","NULL","NULL","NULL","NULL","NULL","F","NULL","NULL","NULL","NULL","NULL","F","NULL","NULL","NULL","NULL","NULL","F","NULL","NULL","NULL","NULL","NULL","F","NULL","NULL","NULL","NULL","NULL","F","NULL","NULL","NULL","NULL","NULL","F","NULL","NULL","NULL",45294.118139317128,45534.507328553242]
[18358,"Yes","Prescriptive","CTWH200COMNONMF","Tankless Water Heaters >= 200 kBtu/h, All Except MF","Tankless water heater","Water Heating","GAS","DHW",826,72,4,4682,"OR","NBE","New Buildings","2024-01-01","2025-12-31","kBtu/hr",0,0,0,0.28000000000000003,0,0,"None - ele","DHW",0,1.4,0,20,0,1.43,0,0,0,1,1,0,100,"NULL","NULL",100,100,100,100,"NULL","NULL","NULL","NULL","NULL","NULL",100,100,100,"Tankless water heater","THERMALEFF","Thermal Efficiency","T","Alphanumeric",64,"ED","NULL","NULL","F","NULL","NULL","NULL","NULL","NULL","F","NULL","NULL","NULL","NULL","NULL","F","NULL","NULL","NULL","NULL","NULL","F","NULL","NULL","NULL","NULL","NULL","F","NULL","NULL","NULL","NULL","NULL","F","NULL","NULL","NULL","NULL","NULL","F","NULL","NULL","NULL","NULL","NULL","F","NULL","NULL","NULL","NULL","NULL","F","NULL","NULL","NULL","NULL","NULL","F","NULL","NULL","NULL","NULL","NULL","F","NULL","NULL","NULL","NULL","NULL","F","NULL","NULL","NULL","NULL","NULL","F","NULL","NULL","NULL","NULL","NULL","F","NULL","NULL","NULL","NULL","NULL","F","NULL","NULL","NULL","NULL","NULL","F","NULL","NULL","NULL",45294.118139317128,45534.507328553242]
[18364,"Yes","Prescriptive","CHPWHT1","Commercial Heat Pump Water Heater - Tier 1","Heat pump water heater","Water Heating","BOTH","N/A",929,254,2,5697,"OR","NBE","New Buildings","2024-01-01","2026-12-31","Units",0,0,1110.6400000000001,-3.71,0,0,"Other Hot Water","None - gas",0,800,0,18,0,866.65,0,-3.71,0,1,1,0,0,100,100,0,0,"NULL","NULL","NULL","NULL","NULL","NULL","NULL","NULL","NULL","NULL","NULL","Heat pump water heater","SN","Serial Number","F","Alphanumeric",64,"ED","NULL","NULL","F","NULL","NULL","NULL","NULL","NULL","F","NULL","NULL","NULL","NULL","NULL","F","NULL","NULL","NULL","NULL","NULL","F","NULL","NULL","NULL","NULL","NULL","F","NULL","NULL","NULL","NULL","NULL","F","NULL","NULL","NULL","NULL","NULL","F","NULL","NULL","NULL","NULL","NULL","F","NULL","NULL","NULL","NULL","NULL","F","NULL","NULL","NULL","NULL","NULL","F","NULL","NULL","NULL","NULL","NULL","F","NULL","NULL","NULL","NULL","NULL","F","NULL","NULL","NULL","NULL","NULL","F","NULL","NULL","NULL","NULL","NULL","F","NULL","NULL","NULL","NULL","NULL","F","NULL","NULL","NULL","NULL","NULL","F","NULL","NULL","NULL",45294.118139317128,45477.098976851848]
[18365,"Yes","Prescriptive","CTWH199ALLCOM","Commercial Tankless Water Heater <200 - All Commercial","Tankless water heater","Water Heating","GAS","DHW",890,212,5,5492,"OR","NBE","New Buildings","2024-01-01","2025-12-31","Units",0,0,0,15.51,0,0,"None - ele","DHW",0,140,0,20,0,140.21,0,0,0,1,1,0,100,"NULL","NULL",100,100,100,100,"NULL","NULL","NULL","NULL","NULL","NULL",100,100,100,"Tankless water heater","EXISTTANK","Existing Water Storage Tank?","T","Alphanumeric",10,"CB","TANKSIZE","Tank Size in gallons","T","Alphanumeric",64,"ED","THERMALEFF","Thermal Efficiency","T","Alphanumeric",64,"ED","NULL","NULL","F","NULL","NULL","NULL","NULL","NULL","F","NULL","NULL","NULL","NULL","NULL","F","NULL","NULL","NULL","NULL","NULL","F","NULL","NULL","NULL","NULL","NULL","F","NULL","NULL","NULL","NULL","NULL","F","NULL","NULL","NULL","NULL","NULL","F","NULL","NULL","NULL","NULL","NULL","F","NULL","NULL","NULL","NULL","NULL","F","NULL","NULL","NULL","NULL","NULL","F","NULL","NULL","NULL","NULL","NULL","F","NULL","NULL","NULL","NULL","NULL","F","NULL","NULL","NULL","NULL","NULL","F","NULL","NULL","NULL","NULL","NULL","F","NULL","NULL","NULL",45294.118139317128,45554.104598958336]
[19032,"Yes","Semi-Prescriptive","MSWALLINSUL2021","MS Elective, Wall Insulation, 2021","Market Solutions Offering","Other","BOTH","N/A",976,278,2,"NULL","OR","NBE","New Buildings","2024-04-01","2026-12-31","Other",0,0,0,0,0,0,"None - ele","None - gas",0,0,0,20,0,0,0,0,0,0,0,1,100,100,100,100,100,100,"NULL","NULL","NULL","NULL","NULL","NULL","NULL",100,100,100,"Market Solutions Offering","RVALUECI","R-value Continuous Insulation (c.i.)","T","Alphanumeric",10,"ED","RVALUEFILL","R-value: fill","T","Alphanumeric",10,"ED","NULL","NULL","F","NULL","NULL","NULL","NULL","NULL","F","NULL","NULL","NULL","NULL","NULL","F","NULL","NULL","NULL","NULL","NULL","F","NULL","NULL","NULL","NULL","NULL","F","NULL","NULL","NULL","NULL","NULL","F","NULL","NULL","NULL","NULL","NULL","F","NULL","NULL","NULL","NULL","NULL","F","NULL","NULL","NULL","NULL","NULL","F","NULL","NULL","NULL","NULL","NULL","F","NULL","NULL","NULL","NULL","NULL","F","NULL","NULL","NULL","NULL","NULL","F","NULL","NULL","NULL","NULL","NULL","F","NULL","NULL","NULL","NULL","NULL","F","NULL","NULL","NULL","NULL","NULL","F","NULL","NULL","NULL",45402.114783877318,45534.507328553242]
[19033,"Yes","Semi-Prescriptive","MSWWR2021","MS Elective, Window-to-Wall Ratio (WWR), 2021","Market Solutions Offering","Other","BOTH","N/A",976,278,2,"NULL","OR","NBE","New Buildings","2024-04-01","2026-12-31","Other",0,0,0,0,0,0,"None - ele","None - gas",0,0,0,20,0,0,0,0,0,0,0,1,100,100,100,100,100,100,"NULL","NULL","NULL","NULL","NULL","NULL","NULL",100,100,100,"Market Solutions Offering","RATIO","Ratio","T","Alphanumeric",20,"ED","NULL","NULL","F","NULL","NULL","NULL","NULL","NULL","F","NULL","NULL","NULL","NULL","NULL","F","NULL","NULL","NULL","NULL","NULL","F","NULL","NULL","NULL","NULL","NULL","F","NULL","NULL","NULL","NULL","NULL","F","NULL","NULL","NULL","NULL","NULL","F","NULL","NULL","NULL","NULL","NULL","F","NULL","NULL","NULL","NULL","NULL","F","NULL","NULL","NULL","NULL","NULL","F","NULL","NULL","NULL","NULL","NULL","F","NULL","NULL","NULL","NULL","NULL","F","NULL","NULL","NULL","NULL","NULL","F","NULL","NULL","NULL","NULL","NULL","F","NULL","NULL","NULL","NULL","NULL","F","NULL","NULL","NULL","NULL","NULL","F","NULL","NULL","NULL",45402.114783877318,45534.507328553242]
[19034,"Yes","Semi-Prescriptive","MSWINDOWS2021","MS Elective, High-performance windows, 2021","Market Solutions Offering","Other","BOTH","N/A",976,278,2,"NULL","OR","NBE","New Buildings","2024-04-01","2026-12-31","Other",0,0,0,0,0,0,"None - ele","None - gas",0,0,0,20,0,0,0,0,0,0,0,1,100,100,100,100,100,100,"NULL","NULL","NULL","NULL","NULL","NULL","NULL",100,100,100,"Market Solutions Offering","NEWUVALUE","New window U-value","T","Decimal",20,"ED","HEATGAIN","Solar Heat Gain Coefficient","T","Integer",10,"ED","NULL","NULL","F","NULL","NULL","NULL","NULL","NULL","F","NULL","NULL","NULL","NULL","NULL","F","NULL","NULL","NULL","NULL","NULL","F","NULL","NULL","NULL","NULL","NULL","F","NULL","NULL","NULL","NULL","NULL","F","NULL","NULL","NULL","NULL","NULL","F","NULL","NULL","NULL","NULL","NULL","F","NULL","NULL","NULL","NULL","NULL","F","NULL","NULL","NULL","NULL","NULL","F","NULL","NULL","NULL","NULL","NULL","F","NULL","NULL","NULL","NULL","NULL","F","NULL","NULL","NULL","NULL","NULL","F","NULL","NULL","NULL","NULL","NULL","F","NULL","NULL","NULL","NULL","NULL","F","NULL","NULL","NULL",45402.114783877318,45534.507328553242]
[19035,"Yes","Semi-Prescriptive","MSWASHER2021","MS Elective, Clothes Washer, 2021","Market Solutions Offering","Other","BOTH","N/A",976,278,2,"NULL","OR","NBE","New Buildings","2024-04-01","2026-12-31","Other",0,0,0,0,0,0,"None - ele","None - gas",0,0,0,20,0,0,0,0,0,0,0,1,100,100,100,100,100,100,"NULL","NULL","NULL","NULL","NULL","NULL","NULL",100,100,100,"No Attributes ","NULL","NULL","F","NULL","NULL","NULL","NULL","NULL","F","NULL","NULL","NULL","NULL","NULL","F","NULL","NULL","NULL","NULL","NULL","F","NULL","NULL","NULL","NULL","NULL","F","NULL","NULL","NULL","NULL","NULL","F","NULL","NULL","NULL","NULL","NULL","F","NULL","NULL","NULL","NULL","NULL","F","NULL","NULL","NULL","NULL","NULL","F","NULL","NULL","NULL","NULL","NULL","F","NULL","NULL","NULL","NULL","NULL","F","NULL","NULL","NULL","NULL","NULL","F","NULL","NULL","NULL","NULL","NULL","F","NULL","NULL","NULL","NULL","NULL","F","NULL","NULL","NULL","NULL","NULL","F","NULL","NULL","NULL","NULL","NULL","F","NULL","NULL","NULL","NULL","NULL","F","NULL","NULL","NULL",45402.114783877318,45534.507328553242]
[19036,"Yes","Semi-Prescriptive","MSVRF2021","MS Elective, Variable Refrigerant Flow (VRF), 2021","Market Solutions Offering","Other","BOTH","N/A",976,278,2,"NULL","OR","NBE","New Buildings","2024-04-01","2026-12-31","Other",0,0,0,0,0,0,"None - ele","None - gas",0,0,0,20,0,0,0,0,0,0,0,1,100,100,100,100,100,100,"NULL","NULL","NULL","NULL","NULL","NULL","NULL",100,100,100,"Market Solutions Offering","SYSTEMTYPE","System Type","T","Alphanumeric",20,"ED","EER","EER","T","Alphanumeric",40,"ED","NULL","NULL","F","NULL","NULL","NULL","NULL","NULL","F","NULL","NULL","NULL","NULL","NULL","F","NULL","NULL","NULL","NULL","NULL","F","NULL","NULL","NULL","NULL","NULL","F","NULL","NULL","NULL","NULL","NULL","F","NULL","NULL","NULL","NULL","NULL","F","NULL","NULL","NULL","NULL","NULL","F","NULL","NULL","NULL","NULL","NULL","F","NULL","NULL","NULL","NULL","NULL","F","NULL","NULL","NULL","NULL","NULL","F","NULL","NULL","NULL","NULL","NULL","F","NULL","NULL","NULL","NULL","NULL","F","NULL","NULL","NULL","NULL","NULL","F","NULL","NULL","NULL","NULL","NULL","F","NULL","NULL","NULL",45402.114783877318,45534.507328553242]
[19037,"Yes","Semi-Prescriptive","MSTANKLESSDHW2021","MS Elective, Tankless DHW, 2021","Market Solutions Offering","Other","BOTH","N/A",976,278,2,"NULL","OR","NBE","New Buildings","2024-04-01","2026-12-31","Other",0,0,0,0,0,0,"None - ele","None - gas",0,0,0,20,0,0,0,0,0,0,0,1,100,100,100,100,100,100,"NULL","NULL","NULL","NULL","NULL","NULL","NULL",100,100,100,"Market Solutions Offering","THERMALEFF","Thermal Efficiency","F","Alphanumeric",64,"ED","ENFACT","Energy Factor","F","Decimal",20,"ED","NULL","NULL","F","NULL","NULL","NULL","NULL","NULL","F","NULL","NULL","NULL","NULL","NULL","F","NULL","NULL","NULL","NULL","NULL","F","NULL","NULL","NULL","NULL","NULL","F","NULL","NULL","NULL","NULL","NULL","F","NULL","NULL","NULL","NULL","NULL","F","NULL","NULL","NULL","NULL","NULL","F","NULL","NULL","NULL","NULL","NULL","F","NULL","NULL","NULL","NULL","NULL","F","NULL","NULL","NULL","NULL","NULL","F","NULL","NULL","NULL","NULL","NULL","F","NULL","NULL","NULL","NULL","NULL","F","NULL","NULL","NULL","NULL","NULL","F","NULL","NULL","NULL","NULL","NULL","F","NULL","NULL","NULL",45402.114783877318,45534.507328553242]
[19038,"Yes","Semi-Prescriptive","MSROOFINSUL2021","MS Elective, Roof Insulation, 2021","Market Solutions Offering","Other","BOTH","N/A",976,278,2,"NULL","OR","NBE","New Buildings","2024-04-01","2026-12-31","Other",0,0,0,0,0,0,"None - ele","None - gas",0,0,0,20,0,0,0,0,0,0,0,1,100,100,100,100,100,100,"NULL","NULL","NULL","NULL","NULL","NULL","NULL",100,100,100,"Market Solutions Offering","RVALUE","R-Value","T","Integer",10,"ED","NULL","NULL","F","NULL","NULL","NULL","NULL","NULL","F","NULL","NULL","NULL","NULL","NULL","F","NULL","NULL","NULL","NULL","NULL","F","NULL","NULL","NULL","NULL","NULL","F","NULL","NULL","NULL","NULL","NULL","F","NULL","NULL","NULL","NULL","NULL","F","NULL","NULL","NULL","NULL","NULL","F","NULL","NULL","NULL","NULL","NULL","F","NULL","NULL","NULL","NULL","NULL","F","NULL","NULL","NULL","NULL","NULL","F","NULL","NULL","NULL","NULL","NULL","F","NULL","NULL","NULL","NULL","NULL","F","NULL","NULL","NULL","NULL","NULL","F","NULL","NULL","NULL","NULL","NULL","F","NULL","NULL","NULL","NULL","NULL","F","NULL","NULL","NULL",45402.114783877318,45534.507328553242]
[19039,"Yes","Semi-Prescriptive","MSREFRIDGE2021","MS Elective, Refrigerator, 2021","Market Solutions Offering","Other","BOTH","N/A",976,278,2,"NULL","OR","NBE","New Buildings","2024-04-01","2026-12-31","Other",0,0,0,0,0,0,"None - ele","None - gas",0,0,0,20,0,0,0,0,0,0,0,1,100,100,100,100,100,100,"NULL","NULL","NULL","NULL","NULL","NULL","NULL",100,100,100,"Market Solutions Offering","REFTYPE","Refrigerator Type","T","Alphanumeric",64,"CB","NULL","NULL","F","NULL","NULL","NULL","NULL","NULL","F","NULL","NULL","NULL","NULL","NULL","F","NULL","NULL","NULL","NULL","NULL","F","NULL","NULL","NULL","NULL","NULL","F","NULL","NULL","NULL","NULL","NULL","F","NULL","NULL","NULL","NULL","NULL","F","NULL","NULL","NULL","NULL","NULL","F","NULL","NULL","NULL","NULL","NULL","F","NULL","NULL","NULL","NULL","NULL","F","NULL","NULL","NULL","NULL","NULL","F","NULL","NULL","NULL","NULL","NULL","F","NULL","NULL","NULL","NULL","NULL","F","NULL","NULL","NULL","NULL","NULL","F","NULL","NULL","NULL","NULL","NULL","F","NULL","NULL","NULL","NULL","NULL","F","NULL","NULL","NULL",45402.114783877318,45534.507328553242]
[19040,"Yes","Semi-Prescriptive","MSPTHP2021","MS Elective, PTHP (in-unit), 2021","Market Solutions Offering","Other","BOTH","N/A",976,278,2,"NULL","OR","NBE","New Buildings","2024-04-01","2026-12-31","Other",0,0,0,0,0,0,"None - ele","None - gas",0,0,0,20,0,0,0,0,0,0,0,1,100,100,100,100,100,100,"NULL","NULL","NULL","NULL","NULL","NULL","NULL",100,100,100,"Market Solutions Offering","SEER","SEER","F","Decimal",20,"ED","NULL","NULL","F","NULL","NULL","NULL","NULL","NULL","F","NULL","NULL","NULL","NULL","NULL","F","NULL","NULL","NULL","NULL","NULL","F","NULL","NULL","NULL","NULL","NULL","F","NULL","NULL","NULL","NULL","NULL","F","NULL","NULL","NULL","NULL","NULL","F","NULL","NULL","NULL","NULL","NULL","F","NULL","NULL","NULL","NULL","NULL","F","NULL","NULL","NULL","NULL","NULL","F","NULL","NULL","NULL","NULL","NULL","F","NULL","NULL","NULL","NULL","NULL","F","NULL","NULL","NULL","NULL","NULL","F","NULL","NULL","NULL","NULL","NULL","F","NULL","NULL","NULL","NULL","NULL","F","NULL","NULL","NULL","NULL","NULL","F","NULL","NULL","NULL",45402.114783877318,45534.507328553242]
[19041,"Yes","Semi-Prescriptive","MSOVERHANG2021","MS Elective, Overhangs, 2021","Market Solutions Offering","Other","BOTH","N/A",976,278,2,"NULL","OR","NBE","New Buildings","2024-04-01","2026-12-31","Other",0,0,0,0,0,0,"None - ele","None - gas",0,0,0,20,0,0,0,0,0,0,0,1,100,100,100,100,100,100,"NULL","NULL","NULL","NULL","NULL","NULL","NULL",100,100,100,"No Attributes ","NULL","NULL","F","NULL","NULL","NULL","NULL","NULL","F","NULL","NULL","NULL","NULL","NULL","F","NULL","NULL","NULL","NULL","NULL","F","NULL","NULL","NULL","NULL","NULL","F","NULL","NULL","NULL","NULL","NULL","F","NULL","NULL","NULL","NULL","NULL","F","NULL","NULL","NULL","NULL","NULL","F","NULL","NULL","NULL","NULL","NULL","F","NULL","NULL","NULL","NULL","NULL","F","NULL","NULL","NULL","NULL","NULL","F","NULL","NULL","NULL","NULL","NULL","F","NULL","NULL","NULL","NULL","NULL","F","NULL","NULL","NULL","NULL","NULL","F","NULL","NULL","NULL","NULL","NULL","F","NULL","NULL","NULL","NULL","NULL","F","NULL","NULL","NULL","NULL","NULL","F","NULL","NULL","NULL",45402.114783877318,45534.507328553242]
[19042,"Yes","Semi-Prescriptive","MSINUNITLPD2021","MS Elective, LPD Reduction in Living Units, 2021","Market Solutions Offering","Other","BOTH","N/A",976,278,2,"NULL","OR","NBE","New Buildings","2024-04-01","2026-12-31","Other",0,0,0,0,0,0,"None - ele","None - gas",0,0,0,20,0,0,0,0,0,0,0,1,100,100,100,100,100,100,"NULL","NULL","NULL","NULL","NULL","NULL","NULL",100,100,100,"Market Solutions Offering","LPD","Lighting Power Density ","T","Decimal",10,"ED","NULL","NULL","F","NULL","NULL","NULL","NULL","NULL","F","NULL","NULL","NULL","NULL","NULL","F","NULL","NULL","NULL","NULL","NULL","F","NULL","NULL","NULL","NULL","NULL","F","NULL","NULL","NULL","NULL","NULL","F","NULL","NULL","NULL","NULL","NULL","F","NULL","NULL","NULL","NULL","NULL","F","NULL","NULL","NULL","NULL","NULL","F","NULL","NULL","NULL","NULL","NULL","F","NULL","NULL","NULL","NULL","NULL","F","NULL","NULL","NULL","NULL","NULL","F","NULL","NULL","NULL","NULL","NULL","F","NULL","NULL","NULL","NULL","NULL","F","NULL","NULL","NULL","NULL","NULL","F","NULL","NULL","NULL","NULL","NULL","F","NULL","NULL","NULL",45402.114783877318,45534.507328553242]
[19043,"Yes","Semi-Prescriptive","MSHPWH2021","MS Elective, Heat Pump Water Heater, 2021","Market Solutions Offering","Other","BOTH","N/A",976,278,2,"NULL","OR","NBE","New Buildings","2024-04-01","2026-12-31","Other",0,0,0,0,0,0,"None - ele","None - gas",0,0,0,20,0,0,0,0,0,0,0,1,100,100,100,100,100,100,"NULL","NULL","NULL","NULL","NULL","NULL","NULL",100,100,100,"Market Solutions Offering","ENFACT","Energy Factor","F","Decimal",20,"ED","HPWHTIER","HPWH Tier","F","Alphanumeric",30,"CB","NULL","NULL","F","NULL","NULL","NULL","NULL","NULL","F","NULL","NULL","NULL","NULL","NULL","F","NULL","NULL","NULL","NULL","NULL","F","NULL","NULL","NULL","NULL","NULL","F","NULL","NULL","NULL","NULL","NULL","F","NULL","NULL","NULL","NULL","NULL","F","NULL","NULL","NULL","NULL","NULL","F","NULL","NULL","NULL","NULL","NULL","F","NULL","NULL","NULL","NULL","NULL","F","NULL","NULL","NULL","NULL","NULL","F","NULL","NULL","NULL","NULL","NULL","F","NULL","NULL","NULL","NULL","NULL","F","NULL","NULL","NULL","NULL","NULL","F","NULL","NULL","NULL","NULL","NULL","F","NULL","NULL","NULL",45402.114783877318,45534.507328553242]
[19044,"Yes","Semi-Prescriptive","MSHESS2021","MS Elective, High-efficiency Split System, 2021","Market Solutions Offering","Other","BOTH","N/A",976,278,2,"NULL","OR","NBE","New Buildings","2024-04-01","2026-12-31","Other",0,0,0,0,0,0,"None - ele","None - gas",0,0,0,20,0,0,0,0,0,0,0,1,100,100,100,100,100,100,"NULL","NULL","NULL","NULL","NULL","NULL","NULL",100,100,100,"Market Solutions Offering","SYSTEMTYPE","System Type","T","Alphanumeric",20,"ED","EER","EER","T","Alphanumeric",40,"ED","NULL","NULL","F","NULL","NULL","NULL","NULL","NULL","F","NULL","NULL","NULL","NULL","NULL","F","NULL","NULL","NULL","NULL","NULL","F","NULL","NULL","NULL","NULL","NULL","F","NULL","NULL","NULL","NULL","NULL","F","NULL","NULL","NULL","NULL","NULL","F","NULL","NULL","NULL","NULL","NULL","F","NULL","NULL","NULL","NULL","NULL","F","NULL","NULL","NULL","NULL","NULL","F","NULL","NULL","NULL","NULL","NULL","F","NULL","NULL","NULL","NULL","NULL","F","NULL","NULL","NULL","NULL","NULL","F","NULL","NULL","NULL","NULL","NULL","F","NULL","NULL","NULL","NULL","NULL","F","NULL","NULL","NULL",45402.114783877318,45534.507328553242]
[19045,"Yes","Semi-Prescriptive","MSFOUNDINSUL2021","MS Elective, Foundation Insulation, 2021","Market Solutions Offering","Other","BOTH","N/A",976,278,2,"NULL","OR","NBE","New Buildings","2024-04-01","2026-12-31","Other",0,0,0,0,0,0,"None - ele","None - gas",0,0,0,20,0,0,0,0,0,0,0,1,100,100,100,100,100,100,"NULL","NULL","NULL","NULL","NULL","NULL","NULL",100,100,100,"Market Solutions Offering","RVALUE","R-Value","T","Integer",10,"ED","NULL","NULL","F","NULL","NULL","NULL","NULL","NULL","F","NULL","NULL","NULL","NULL","NULL","F","NULL","NULL","NULL","NULL","NULL","F","NULL","NULL","NULL","NULL","NULL","F","NULL","NULL","NULL","NULL","NULL","F","NULL","NULL","NULL","NULL","NULL","F","NULL","NULL","NULL","NULL","NULL","F","NULL","NULL","NULL","NULL","NULL","F","NULL","NULL","NULL","NULL","NULL","F","NULL","NULL","NULL","NULL","NULL","F","NULL","NULL","NULL","NULL","NULL","F","NULL","NULL","NULL","NULL","NULL","F","NULL","NULL","NULL","NULL","NULL","F","NULL","NULL","NULL","NULL","NULL","F","NULL","NULL","NULL","NULL","NULL","F","NULL","NULL","NULL",45402.114783877318,45534.507328553242]
[19046,"Yes","Semi-Prescriptive","MSEXTLIGHTLPD2021","MS Elective, Exterior Lighting Power Reduction, 2021","Market Solutions Offering","Other","BOTH","N/A",976,278,2,"NULL","OR","NBE","New Buildings","2024-04-01","2026-12-31","Other",0,0,0,0,0,0,"None - ele","None - gas",0,0,0,20,0,0,0,0,0,0,0,1,100,100,100,100,100,100,"NULL","NULL","NULL","NULL","NULL","NULL","NULL",100,100,100,"Market Solutions Offering","WATTS","Installed Watts","T","Integer",10,"ED","NULL","NULL","F","NULL","NULL","NULL","NULL","NULL","F","NULL","NULL","NULL","NULL","NULL","F","NULL","NULL","NULL","NULL","NULL","F","NULL","NULL","NULL","NULL","NULL","F","NULL","NULL","NULL","NULL","NULL","F","NULL","NULL","NULL","NULL","NULL","F","NULL","NULL","NULL","NULL","NULL","F","NULL","NULL","NULL","NULL","NULL","F","NULL","NULL","NULL","NULL","NULL","F","NULL","NULL","NULL","NULL","NULL","F","NULL","NULL","NULL","NULL","NULL","F","NULL","NULL","NULL","NULL","NULL","F","NULL","NULL","NULL","NULL","NULL","F","NULL","NULL","NULL","NULL","NULL","F","NULL","NULL","NULL","NULL","NULL","F","NULL","NULL","NULL",45402.114783877318,45534.507328553242]
[19047,"Yes","Semi-Prescriptive","MSERVENT2021","MS Elective, Energy Recovery Ventilation (ERV), 2021","Market Solutions Offering","Other","BOTH","N/A",976,278,2,"NULL","OR","NBE","New Buildings","2024-04-01","2026-12-31","Other",0,0,0,0,0,0,"None - ele","None - gas",0,0,0,20,0,0,0,0,0,0,0,1,100,100,100,100,100,100,"NULL","NULL","NULL","NULL","NULL","NULL","NULL",100,100,100,"No Attributes ","NULL","NULL","F","NULL","NULL","NULL","NULL","NULL","F","NULL","NULL","NULL","NULL","NULL","F","NULL","NULL","NULL","NULL","NULL","F","NULL","NULL","NULL","NULL","NULL","F","NULL","NULL","NULL","NULL","NULL","F","NULL","NULL","NULL","NULL","NULL","F","NULL","NULL","NULL","NULL","NULL","F","NULL","NULL","NULL","NULL","NULL","F","NULL","NULL","NULL","NULL","NULL","F","NULL","NULL","NULL","NULL","NULL","F","NULL","NULL","NULL","NULL","NULL","F","NULL","NULL","NULL","NULL","NULL","F","NULL","NULL","NULL","NULL","NULL","F","NULL","NULL","NULL","NULL","NULL","F","NULL","NULL","NULL","NULL","NULL","F","NULL","NULL","NULL","NULL","NULL","F","NULL","NULL","NULL",45402.114783877318,45534.507328553242]
[19048,"Yes","Semi-Prescriptive","MSEEFANS2021","MS Elective, Efficient Exhaust Fans, 2021","Market Solutions Offering","Other","BOTH","N/A",976,278,2,"NULL","OR","NBE","New Buildings","2024-04-01","2026-12-31","Other",0,0,0,0,0,0,"None - ele","None - gas",0,0,0,20,0,0,0,0,0,0,0,1,100,100,100,100,100,100,"NULL","NULL","NULL","NULL","NULL","NULL","NULL",100,100,100,"Market Solutions Offering","FANEFFICACY","Fan Efficacy W/cfm","T","Alphanumeric",15,"ED","NULL","NULL","F","NULL","NULL","NULL","NULL","NULL","F","NULL","NULL","NULL","NULL","NULL","F","NULL","NULL","NULL","NULL","NULL","F","NULL","NULL","NULL","NULL","NULL","F","NULL","NULL","NULL","NULL","NULL","F","NULL","NULL","NULL","NULL","NULL","F","NULL","NULL","NULL","NULL","NULL","F","NULL","NULL","NULL","NULL","NULL","F","NULL","NULL","NULL","NULL","NULL","F","NULL","NULL","NULL","NULL","NULL","F","NULL","NULL","NULL","NULL","NULL","F","NULL","NULL","NULL","NULL","NULL","F","NULL","NULL","NULL","NULL","NULL","F","NULL","NULL","NULL","NULL","NULL","F","NULL","NULL","NULL","NULL","NULL","F","NULL","NULL","NULL",45402.114783877318,45534.507328553242]
[19049,"Yes","Semi-Prescriptive","MSDRYER2021","MS Elective, Dryer, 2021","Market Solutions Offering","Other","BOTH","N/A",976,278,2,"NULL","OR","NBE","New Buildings","2024-04-01","2026-12-31","Other",0,0,0,0,0,0,"None - ele","None - gas",0,0,0,20,0,0,0,0,0,0,0,1,100,100,100,100,100,100,"NULL","NULL","NULL","NULL","NULL","NULL","NULL",100,100,100,"No Attributes ","NULL","NULL","F","NULL","NULL","NULL","NULL","NULL","F","NULL","NULL","NULL","NULL","NULL","F","NULL","NULL","NULL","NULL","NULL","F","NULL","NULL","NULL","NULL","NULL","F","NULL","NULL","NULL","NULL","NULL","F","NULL","NULL","NULL","NULL","NULL","F","NULL","NULL","NULL","NULL","NULL","F","NULL","NULL","NULL","NULL","NULL","F","NULL","NULL","NULL","NULL","NULL","F","NULL","NULL","NULL","NULL","NULL","F","NULL","NULL","NULL","NULL","NULL","F","NULL","NULL","NULL","NULL","NULL","F","NULL","NULL","NULL","NULL","NULL","F","NULL","NULL","NULL","NULL","NULL","F","NULL","NULL","NULL","NULL","NULL","F","NULL","NULL","NULL","NULL","NULL","F","NULL","NULL","NULL",45402.114783877318,45534.507328553242]
[19050,"Yes","Semi-Prescriptive","MSDISHWASH2021","MS Elective, Dishwasher, 2021","Market Solutions Offering","Other","BOTH","N/A",976,278,2,"NULL","OR","NBE","New Buildings","2024-04-01","2026-12-31","Other",0,0,0,0,0,0,"None - ele","None - gas",0,0,0,20,0,0,0,0,0,0,0,1,100,100,100,100,100,100,"NULL","NULL","NULL","NULL","NULL","NULL","NULL",100,100,100,"No Attributes ","NULL","NULL","F","NULL","NULL","NULL","NULL","NULL","F","NULL","NULL","NULL","NULL","NULL","F","NULL","NULL","NULL","NULL","NULL","F","NULL","NULL","NULL","NULL","NULL","F","NULL","NULL","NULL","NULL","NULL","F","NULL","NULL","NULL","NULL","NULL","F","NULL","NULL","NULL","NULL","NULL","F","NULL","NULL","NULL","NULL","NULL","F","NULL","NULL","NULL","NULL","NULL","F","NULL","NULL","NULL","NULL","NULL","F","NULL","NULL","NULL","NULL","NULL","F","NULL","NULL","NULL","NULL","NULL","F","NULL","NULL","NULL","NULL","NULL","F","NULL","NULL","NULL","NULL","NULL","F","NULL","NULL","NULL","NULL","NULL","F","NULL","NULL","NULL","NULL","NULL","F","NULL","NULL","NULL",45402.114783877318,45534.507328553242]
[19051,"Yes","Semi-Prescriptive","MSDHP2021","MS Elective, DHP in Living Units, 2021 code","Market Solutions Offering","Other","BOTH","N/A",976,278,2,"NULL","OR","NBE","New Buildings","2024-04-01","2026-12-31","Other",0,0,0,0,0,0,"None - ele","None - gas",0,0,0,20,0,0,0,0,0,0,0,1,100,100,100,100,100,100,"NULL","NULL","NULL","NULL","NULL","NULL","NULL",100,100,100,"Market Solutions Offering","SYSTEMTYPE","System Type","T","Alphanumeric",20,"ED","SEER","SEER","T","Decimal",20,"ED","NULL","NULL","F","NULL","NULL","NULL","NULL","NULL","F","NULL","NULL","NULL","NULL","NULL","F","NULL","NULL","NULL","NULL","NULL","F","NULL","NULL","NULL","NULL","NULL","F","NULL","NULL","NULL","NULL","NULL","F","NULL","NULL","NULL","NULL","NULL","F","NULL","NULL","NULL","NULL","NULL","F","NULL","NULL","NULL","NULL","NULL","F","NULL","NULL","NULL","NULL","NULL","F","NULL","NULL","NULL","NULL","NULL","F","NULL","NULL","NULL","NULL","NULL","F","NULL","NULL","NULL","NULL","NULL","F","NULL","NULL","NULL","NULL","NULL","F","NULL","NULL","NULL","NULL","NULL","F","NULL","NULL","NULL",45402.114783877318,45534.507328553242]
[19052,"Yes","Semi-Prescriptive","MSCTDWH2021","MS Elective, Condensing DHW (in-unit or central), 2021","Market Solutions Offering","Other","BOTH","N/A",976,278,2,"NULL","OR","NBE","New Buildings","2024-04-01","2026-12-31","Other",0,0,0,0,0,0,"None - ele","None - gas",0,0,0,20,0,0,0,0,0,0,0,1,100,100,100,100,100,100,"NULL","NULL","NULL","NULL","NULL","NULL","NULL",100,100,100,"Market Solutions Offering","THERMALEFF","Thermal Efficiency","F","Alphanumeric",64,"ED","ENFACT","Energy Factor","F","Decimal",20,"ED","NULL","NULL","F","NULL","NULL","NULL","NULL","NULL","F","NULL","NULL","NULL","NULL","NULL","F","NULL","NULL","NULL","NULL","NULL","F","NULL","NULL","NULL","NULL","NULL","F","NULL","NULL","NULL","NULL","NULL","F","NULL","NULL","NULL","NULL","NULL","F","NULL","NULL","NULL","NULL","NULL","F","NULL","NULL","NULL","NULL","NULL","F","NULL","NULL","NULL","NULL","NULL","F","NULL","NULL","NULL","NULL","NULL","F","NULL","NULL","NULL","NULL","NULL","F","NULL","NULL","NULL","NULL","NULL","F","NULL","NULL","NULL","NULL","NULL","F","NULL","NULL","NULL","NULL","NULL","F","NULL","NULL","NULL",45402.114783877318,45534.507328553242]
[19053,"Yes","Semi-Prescriptive","MSCONDFURN2021","MS Elective, Condensing High-Efficiency Furnace, 2021","Market Solutions Offering","Other","BOTH","N/A",976,278,2,"NULL","OR","NBE","New Buildings","2024-04-01","2026-12-31","Other",0,0,0,0,0,0,"None - ele","None - gas",0,0,0,20,0,0,0,0,0,0,0,1,100,100,100,100,100,100,"NULL","NULL","NULL","NULL","NULL","NULL","NULL",100,100,100,"Market Solutions Offering","THERMALEFF","Thermal Efficiency","F","Alphanumeric",64,"ED","SYSTEMTYPE","System Type","T","Alphanumeric",20,"ED","AFUE","AFUE","F","Decimal",2,"ED","NULL","NULL","F","NULL","NULL","NULL","NULL","NULL","F","NULL","NULL","NULL","NULL","NULL","F","NULL","NULL","NULL","NULL","NULL","F","NULL","NULL","NULL","NULL","NULL","F","NULL","NULL","NULL","NULL","NULL","F","NULL","NULL","NULL","NULL","NULL","F","NULL","NULL","NULL","NULL","NULL","F","NULL","NULL","NULL","NULL","NULL","F","NULL","NULL","NULL","NULL","NULL","F","NULL","NULL","NULL","NULL","NULL","F","NULL","NULL","NULL","NULL","NULL","F","NULL","NULL","NULL","NULL","NULL","F","NULL","NULL","NULL","NULL","NULL","F","NULL","NULL","NULL",45402.114783877318,45534.507328553242]
[19054,"Yes","Semi-Prescriptive","MSBILEVEL2021","MS Elective, Bi-level Control in Corridors, 2021","Market Solutions Offering","Other","BOTH","N/A",976,278,2,"NULL","OR","NBE","New Buildings","2024-04-01","2026-12-31","Other",0,0,0,0,0,0,"None - ele","None - gas",0,0,0,20,0,0,0,0,0,0,0,1,100,100,100,100,100,100,"NULL","NULL","NULL","NULL","NULL","NULL","NULL",100,100,100,"No Attributes ","NULL","NULL","F","NULL","NULL","NULL","NULL","NULL","F","NULL","NULL","NULL","NULL","NULL","F","NULL","NULL","NULL","NULL","NULL","F","NULL","NULL","NULL","NULL","NULL","F","NULL","NULL","NULL","NULL","NULL","F","NULL","NULL","NULL","NULL","NULL","F","NULL","NULL","NULL","NULL","NULL","F","NULL","NULL","NULL","NULL","NULL","F","NULL","NULL","NULL","NULL","NULL","F","NULL","NULL","NULL","NULL","NULL","F","NULL","NULL","NULL","NULL","NULL","F","NULL","NULL","NULL","NULL","NULL","F","NULL","NULL","NULL","NULL","NULL","F","NULL","NULL","NULL","NULL","NULL","F","NULL","NULL","NULL","NULL","NULL","F","NULL","NULL","NULL","NULL","NULL","F","NULL","NULL","NULL",45402.114783877318,45534.507328553242]
[19055,"Yes","Semi-Prescriptive","MSAIRTIGHT2021","MS Elective, Air Tightness, 2021 code","Market Solutions Offering","Other","BOTH","N/A",976,278,2,"NULL","OR","NBE","New Buildings","2024-04-01","2026-12-31","Other",0,0,0,0,0,0,"None - ele","None - gas",0,0,0,20,0,0,0,0,0,0,0,1,100,100,100,100,100,100,"NULL","NULL","NULL","NULL","NULL","NULL","NULL",100,100,100,"Market Solutions Offering","PERMEABILITY","Permeability cfm/sf @ .3 in","T","Alphanumeric",15,"ED","NULL","NULL","F","NULL","NULL","NULL","NULL","NULL","F","NULL","NULL","NULL","NULL","NULL","F","NULL","NULL","NULL","NULL","NULL","F","NULL","NULL","NULL","NULL","NULL","F","NULL","NULL","NULL","NULL","NULL","F","NULL","NULL","NULL","NULL","NULL","F","NULL","NULL","NULL","NULL","NULL","F","NULL","NULL","NULL","NULL","NULL","F","NULL","NULL","NULL","NULL","NULL","F","NULL","NULL","NULL","NULL","NULL","F","NULL","NULL","NULL","NULL","NULL","F","NULL","NULL","NULL","NULL","NULL","F","NULL","NULL","NULL","NULL","NULL","F","NULL","NULL","NULL","NULL","NULL","F","NULL","NULL","NULL","NULL","NULL","F","NULL","NULL","NULL",45402.114783877318,45534.507328553242]
[19056,"Yes","Semi-Prescriptive","MSAERATOR2021","MS Elective, Aerators, 2021 code","Market Solutions Offering","Other","BOTH","N/A",976,278,2,"NULL","OR","NBE","New Buildings","2024-04-01","2026-12-31","Other",0,0,0,0,0,0,"None - ele","None - gas",0,0,0,20,0,0,0,0,0,0,0,1,100,100,100,100,100,100,"NULL","NULL","NULL","NULL","NULL","NULL","NULL",100,100,100,"Market Solutions Offering","GPM","Gallons per Minute","T","Alphanumeric",10,"ED","NULL","NULL","F","NULL","NULL","NULL","NULL","NULL","F","NULL","NULL","NULL","NULL","NULL","F","NULL","NULL","NULL","NULL","NULL","F","NULL","NULL","NULL","NULL","NULL","F","NULL","NULL","NULL","NULL","NULL","F","NULL","NULL","NULL","NULL","NULL","F","NULL","NULL","NULL","NULL","NULL","F","NULL","NULL","NULL","NULL","NULL","F","NULL","NULL","NULL","NULL","NULL","F","NULL","NULL","NULL","NULL","NULL","F","NULL","NULL","NULL","NULL","NULL","F","NULL","NULL","NULL","NULL","NULL","F","NULL","NULL","NULL","NULL","NULL","F","NULL","NULL","NULL","NULL","NULL","F","NULL","NULL","NULL","NULL","NULL","F","NULL","NULL","NULL",45402.114783877318,45534.507328553242]
[19057,"Yes","Semi-Prescriptive","MSCBOILER2021","MS Elective, Condensing boiler, 2021","Market Solutions Offering","Other","BOTH","N/A",976,278,2,"NULL","OR","NBE","New Buildings","2024-04-01","2026-12-31","Other",0,0,0,0,0,0,"None - ele","None - gas",0,0,0,20,0,0,0,0,0,0,0,1,100,100,100,100,100,100,"NULL","NULL","NULL","NULL","NULL","NULL","NULL",100,100,100,"Market Solutions Offering","THERMALEFF","Thermal Efficiency","T","Alphanumeric",64,"ED","SYSTEMTYPE","System Type","T","Alphanumeric",20,"ED","NULL","NULL","F","NULL","NULL","NULL","NULL","NULL","F","NULL","NULL","NULL","NULL","NULL","F","NULL","NULL","NULL","NULL","NULL","F","NULL","NULL","NULL","NULL","NULL","F","NULL","NULL","NULL","NULL","NULL","F","NULL","NULL","NULL","NULL","NULL","F","NULL","NULL","NULL","NULL","NULL","F","NULL","NULL","NULL","NULL","NULL","F","NULL","NULL","NULL","NULL","NULL","F","NULL","NULL","NULL","NULL","NULL","F","NULL","NULL","NULL","NULL","NULL","F","NULL","NULL","NULL","NULL","NULL","F","NULL","NULL","NULL","NULL","NULL","F","NULL","NULL","NULL","NULL","NULL","F","NULL","NULL","NULL",45402.114783877318,45534.507328553242]
[19058,"Yes","Semi-Prescriptive","MSWINDOWS2019","MS Elective, High-performance windows, 2019 code","Market Solutions Offering","Other","BOTH","N/A",974,258,3,"NULL","OR","NBE","New Buildings","2024-04-01","2026-12-31","Other",0,0,0,0,0,0,"None - ele","None - gas",0,0,0,20,0,0,0,0,0,0,0,1,100,100,100,100,100,100,"NULL","NULL","NULL","NULL","NULL","NULL","NULL",100,100,100,"Market Solutions Offering","NEWUVALUE","New window U-value","T","Decimal",20,"ED","HEATGAIN","Solar Heat Gain Coefficient","T","Integer",10,"ED","NULL","NULL","F","NULL","NULL","NULL","NULL","NULL","F","NULL","NULL","NULL","NULL","NULL","F","NULL","NULL","NULL","NULL","NULL","F","NULL","NULL","NULL","NULL","NULL","F","NULL","NULL","NULL","NULL","NULL","F","NULL","NULL","NULL","NULL","NULL","F","NULL","NULL","NULL","NULL","NULL","F","NULL","NULL","NULL","NULL","NULL","F","NULL","NULL","NULL","NULL","NULL","F","NULL","NULL","NULL","NULL","NULL","F","NULL","NULL","NULL","NULL","NULL","F","NULL","NULL","NULL","NULL","NULL","F","NULL","NULL","NULL","NULL","NULL","F","NULL","NULL","NULL","NULL","NULL","F","NULL","NULL","NULL",45402.114783877318,45534.507328553242]
[19059,"Yes","Semi-Prescriptive","MSWWR2019","MS Elective, Window-to-Wall Ratio (WWR), 2019 code","Market Solutions Offering","Other","BOTH","N/A",974,258,3,"NULL","OR","NBE","New Buildings","2024-04-01","2026-12-31","Other",0,0,0,0,0,0,"None - ele","None - gas",0,0,0,20,0,0,0,0,0,0,0,1,100,100,100,100,100,100,"NULL","NULL","NULL","NULL","NULL","NULL","NULL",100,100,100,"Market Solutions Offering","RATIO","Ratio","T","Alphanumeric",20,"ED","NULL","NULL","F","NULL","NULL","NULL","NULL","NULL","F","NULL","NULL","NULL","NULL","NULL","F","NULL","NULL","NULL","NULL","NULL","F","NULL","NULL","NULL","NULL","NULL","F","NULL","NULL","NULL","NULL","NULL","F","NULL","NULL","NULL","NULL","NULL","F","NULL","NULL","NULL","NULL","NULL","F","NULL","NULL","NULL","NULL","NULL","F","NULL","NULL","NULL","NULL","NULL","F","NULL","NULL","NULL","NULL","NULL","F","NULL","NULL","NULL","NULL","NULL","F","NULL","NULL","NULL","NULL","NULL","F","NULL","NULL","NULL","NULL","NULL","F","NULL","NULL","NULL","NULL","NULL","F","NULL","NULL","NULL","NULL","NULL","F","NULL","NULL","NULL",45402.114783877318,45534.507328553242]
[19060,"Yes","Semi-Prescriptive","MSWASHER2019","MS Elective, Clothes Washer, 2019 code","Market Solutions Offering","Other","BOTH","N/A",974,258,3,"NULL","OR","NBE","New Buildings","2024-04-01","2026-12-31","Other",0,0,0,0,0,0,"None - ele","None - gas",0,0,0,20,0,0,0,0,0,0,0,1,100,100,100,100,100,100,"NULL","NULL","NULL","NULL","NULL","NULL","NULL",100,100,100,"No Attributes ","NULL","NULL","F","NULL","NULL","NULL","NULL","NULL","F","NULL","NULL","NULL","NULL","NULL","F","NULL","NULL","NULL","NULL","NULL","F","NULL","NULL","NULL","NULL","NULL","F","NULL","NULL","NULL","NULL","NULL","F","NULL","NULL","NULL","NULL","NULL","F","NULL","NULL","NULL","NULL","NULL","F","NULL","NULL","NULL","NULL","NULL","F","NULL","NULL","NULL","NULL","NULL","F","NULL","NULL","NULL","NULL","NULL","F","NULL","NULL","NULL","NULL","NULL","F","NULL","NULL","NULL","NULL","NULL","F","NULL","NULL","NULL","NULL","NULL","F","NULL","NULL","NULL","NULL","NULL","F","NULL","NULL","NULL","NULL","NULL","F","NULL","NULL","NULL","NULL","NULL","F","NULL","NULL","NULL",45402.114783877318,45534.507328553242]
[19061,"Yes","Semi-Prescriptive","MSWALLINSUL2019","MS Elective, Wall Insulation, 2019 code","Market Solutions Offering","Other","BOTH","N/A",974,258,3,"NULL","OR","NBE","New Buildings","2024-04-01","2026-12-31","Other",0,0,0,0,0,0,"None - ele","None - gas",0,0,0,20,0,0,0,0,0,0,0,1,100,100,100,100,100,100,"NULL","NULL","NULL","NULL","NULL","NULL","NULL",100,100,100,"Market Solutions Offering","RVALUECI","R-value Continuous Insulation (c.i.)","T","Alphanumeric",10,"ED","RVALUEFILL","R-value: fill","T","Alphanumeric",10,"ED","NULL","NULL","F","NULL","NULL","NULL","NULL","NULL","F","NULL","NULL","NULL","NULL","NULL","F","NULL","NULL","NULL","NULL","NULL","F","NULL","NULL","NULL","NULL","NULL","F","NULL","NULL","NULL","NULL","NULL","F","NULL","NULL","NULL","NULL","NULL","F","NULL","NULL","NULL","NULL","NULL","F","NULL","NULL","NULL","NULL","NULL","F","NULL","NULL","NULL","NULL","NULL","F","NULL","NULL","NULL","NULL","NULL","F","NULL","NULL","NULL","NULL","NULL","F","NULL","NULL","NULL","NULL","NULL","F","NULL","NULL","NULL","NULL","NULL","F","NULL","NULL","NULL","NULL","NULL","F","NULL","NULL","NULL",45402.114783877318,45534.507328553242]
[19062,"Yes","Semi-Prescriptive","MSVRF2019","MS Elective, Variable Refrigerant Flow (VRF), 2019 code","Market Solutions Offering","Other","BOTH","N/A",974,258,3,"NULL","OR","NBE","New Buildings","2024-04-01","2026-12-31","Other",0,0,0,0,0,0,"None - ele","None - gas",0,0,0,20,0,0,0,0,0,0,0,1,100,100,100,100,100,100,"NULL","NULL","NULL","NULL","NULL","NULL","NULL",100,100,100,"Market Solutions Offering","SYSTEMTYPE","System Type","T","Alphanumeric",20,"ED","EER","EER","T","Alphanumeric",40,"ED","NULL","NULL","F","NULL","NULL","NULL","NULL","NULL","F","NULL","NULL","NULL","NULL","NULL","F","NULL","NULL","NULL","NULL","NULL","F","NULL","NULL","NULL","NULL","NULL","F","NULL","NULL","NULL","NULL","NULL","F","NULL","NULL","NULL","NULL","NULL","F","NULL","NULL","NULL","NULL","NULL","F","NULL","NULL","NULL","NULL","NULL","F","NULL","NULL","NULL","NULL","NULL","F","NULL","NULL","NULL","NULL","NULL","F","NULL","NULL","NULL","NULL","NULL","F","NULL","NULL","NULL","NULL","NULL","F","NULL","NULL","NULL","NULL","NULL","F","NULL","NULL","NULL","NULL","NULL","F","NULL","NULL","NULL",45402.114783877318,45534.507328553242]
[19063,"Yes","Semi-Prescriptive","MSTANKLESSDHW2019","MS Elective, Tankless DHW, 2019 code","Market Solutions Offering","Other","BOTH","DHW",974,258,3,"NULL","OR","NBE","New Buildings","2024-04-01","2026-12-31","Other",0,0,0,0,0,0,"None - ele","None - gas",0,0,0,20,0,0,0,0,0,0,0,1,100,100,100,100,100,100,"NULL","NULL","NULL","NULL","NULL","NULL","NULL",100,100,100,"Market Solutions Offering","THERMALEFF","Thermal Efficiency","F","Alphanumeric",64,"ED","ENFACT","Energy Factor","F","Decimal",20,"ED","NULL","NULL","F","NULL","NULL","NULL","NULL","NULL","F","NULL","NULL","NULL","NULL","NULL","F","NULL","NULL","NULL","NULL","NULL","F","NULL","NULL","NULL","NULL","NULL","F","NULL","NULL","NULL","NULL","NULL","F","NULL","NULL","NULL","NULL","NULL","F","NULL","NULL","NULL","NULL","NULL","F","NULL","NULL","NULL","NULL","NULL","F","NULL","NULL","NULL","NULL","NULL","F","NULL","NULL","NULL","NULL","NULL","F","NULL","NULL","NULL","NULL","NULL","F","NULL","NULL","NULL","NULL","NULL","F","NULL","NULL","NULL","NULL","NULL","F","NULL","NULL","NULL","NULL","NULL","F","NULL","NULL","NULL",45402.114783877318,45534.507328553242]
[19064,"Yes","Semi-Prescriptive","MSROOFINSUL2019","MS Elective, Roof Insulation, 2019 code","Market Solutions Offering","Other","BOTH","N/A",974,258,3,"NULL","OR","NBE","New Buildings","2024-04-01","2026-12-31","Other",0,0,0,0,0,0,"None - ele","None - gas",0,0,0,20,0,0,0,0,0,0,0,1,100,100,100,100,100,100,"NULL","NULL","NULL","NULL","NULL","NULL","NULL",100,100,100,"Market Solutions Offering","RVALUE","R-Value","T","Integer",10,"ED","NULL","NULL","F","NULL","NULL","NULL","NULL","NULL","F","NULL","NULL","NULL","NULL","NULL","F","NULL","NULL","NULL","NULL","NULL","F","NULL","NULL","NULL","NULL","NULL","F","NULL","NULL","NULL","NULL","NULL","F","NULL","NULL","NULL","NULL","NULL","F","NULL","NULL","NULL","NULL","NULL","F","NULL","NULL","NULL","NULL","NULL","F","NULL","NULL","NULL","NULL","NULL","F","NULL","NULL","NULL","NULL","NULL","F","NULL","NULL","NULL","NULL","NULL","F","NULL","NULL","NULL","NULL","NULL","F","NULL","NULL","NULL","NULL","NULL","F","NULL","NULL","NULL","NULL","NULL","F","NULL","NULL","NULL","NULL","NULL","F","NULL","NULL","NULL",45402.114783877318,45534.507328553242]
[19065,"Yes","Semi-Prescriptive","MSREFRIDGE2019","MS Elective, Refrigerator, 2019 code","Market Solutions Offering","Other","BOTH","N/A",974,258,3,"NULL","OR","NBE","New Buildings","2024-04-01","2026-12-31","Other",0,0,0,0,0,0,"None - ele","None - gas",0,0,0,20,0,0,0,0,0,0,0,1,100,100,100,100,100,100,"NULL","NULL","NULL","NULL","NULL","NULL","NULL",100,100,100,"Market Solutions Offering","REFTYPE","Refrigerator Type","T","Alphanumeric",64,"CB","NULL","NULL","F","NULL","NULL","NULL","NULL","NULL","F","NULL","NULL","NULL","NULL","NULL","F","NULL","NULL","NULL","NULL","NULL","F","NULL","NULL","NULL","NULL","NULL","F","NULL","NULL","NULL","NULL","NULL","F","NULL","NULL","NULL","NULL","NULL","F","NULL","NULL","NULL","NULL","NULL","F","NULL","NULL","NULL","NULL","NULL","F","NULL","NULL","NULL","NULL","NULL","F","NULL","NULL","NULL","NULL","NULL","F","NULL","NULL","NULL","NULL","NULL","F","NULL","NULL","NULL","NULL","NULL","F","NULL","NULL","NULL","NULL","NULL","F","NULL","NULL","NULL","NULL","NULL","F","NULL","NULL","NULL","NULL","NULL","F","NULL","NULL","NULL",45402.114783877318,45534.507328553242]
[19066,"Yes","Semi-Prescriptive","MSPTHP2019","MS Elective, PTHP (in-unit), 2019 code","Market Solutions Offering","Other","BOTH","N/A",974,258,3,"NULL","OR","NBE","New Buildings","2024-04-01","2026-12-31","Other",0,0,0,0,0,0,"None - ele","None - gas",0,0,0,20,0,0,0,0,0,0,0,1,100,100,100,100,100,100,"NULL","NULL","NULL","NULL","NULL","NULL","NULL",100,100,100,"Market Solutions Offering","SEER","SEER","F","Decimal",20,"ED","NULL","NULL","F","NULL","NULL","NULL","NULL","NULL","F","NULL","NULL","NULL","NULL","NULL","F","NULL","NULL","NULL","NULL","NULL","F","NULL","NULL","NULL","NULL","NULL","F","NULL","NULL","NULL","NULL","NULL","F","NULL","NULL","NULL","NULL","NULL","F","NULL","NULL","NULL","NULL","NULL","F","NULL","NULL","NULL","NULL","NULL","F","NULL","NULL","NULL","NULL","NULL","F","NULL","NULL","NULL","NULL","NULL","F","NULL","NULL","NULL","NULL","NULL","F","NULL","NULL","NULL","NULL","NULL","F","NULL","NULL","NULL","NULL","NULL","F","NULL","NULL","NULL","NULL","NULL","F","NULL","NULL","NULL","NULL","NULL","F","NULL","NULL","NULL",45402.114783877318,45534.507328553242]
[19067,"Yes","Semi-Prescriptive","MSOVERHANG2019","MS Elective, Overhangs, 2019 code","Market Solutions Offering","Other","BOTH","N/A",974,258,3,"NULL","OR","NBE","New Buildings","2024-04-01","2026-12-31","Other",0,0,0,0,0,0,"None - ele","None - gas",0,0,0,20,0,0,0,0,0,0,0,1,100,100,100,100,100,100,"NULL","NULL","NULL","NULL","NULL","NULL","NULL",100,100,100,"No Attributes ","NULL","NULL","F","NULL","NULL","NULL","NULL","NULL","F","NULL","NULL","NULL","NULL","NULL","F","NULL","NULL","NULL","NULL","NULL","F","NULL","NULL","NULL","NULL","NULL","F","NULL","NULL","NULL","NULL","NULL","F","NULL","NULL","NULL","NULL","NULL","F","NULL","NULL","NULL","NULL","NULL","F","NULL","NULL","NULL","NULL","NULL","F","NULL","NULL","NULL","NULL","NULL","F","NULL","NULL","NULL","NULL","NULL","F","NULL","NULL","NULL","NULL","NULL","F","NULL","NULL","NULL","NULL","NULL","F","NULL","NULL","NULL","NULL","NULL","F","NULL","NULL","NULL","NULL","NULL","F","NULL","NULL","NULL","NULL","NULL","F","NULL","NULL","NULL","NULL","NULL","F","NULL","NULL","NULL",45402.114783877318,45534.507328553242]
[19068,"Yes","Semi-Prescriptive","MSAIRTIGHT2019","MS Elective, Air Tightness, 2019 code","Market Solutions Offering","Other","BOTH","N/A",974,258,3,"NULL","OR","NBE","New Buildings","2024-04-01","2026-12-31","Other",0,0,0,0,0,0,"None - ele","None - gas",0,0,0,20,0,0,0,0,0,0,0,1,100,100,100,100,100,100,"NULL","NULL","NULL","NULL","NULL","NULL","NULL",100,100,100,"Market Solutions Offering","PERMEABILITY","Permeability cfm/sf @ .3 in","T","Alphanumeric",15,"ED","NULL","NULL","F","NULL","NULL","NULL","NULL","NULL","F","NULL","NULL","NULL","NULL","NULL","F","NULL","NULL","NULL","NULL","NULL","F","NULL","NULL","NULL","NULL","NULL","F","NULL","NULL","NULL","NULL","NULL","F","NULL","NULL","NULL","NULL","NULL","F","NULL","NULL","NULL","NULL","NULL","F","NULL","NULL","NULL","NULL","NULL","F","NULL","NULL","NULL","NULL","NULL","F","NULL","NULL","NULL","NULL","NULL","F","NULL","NULL","NULL","NULL","NULL","F","NULL","NULL","NULL","NULL","NULL","F","NULL","NULL","NULL","NULL","NULL","F","NULL","NULL","NULL","NULL","NULL","F","NULL","NULL","NULL","NULL","NULL","F","NULL","NULL","NULL",45402.114783877318,45534.507328553242]
[19069,"Yes","Semi-Prescriptive","MSBILEVEL2019","MS Elective, Bi-level Control in Corridors, 2019 code","Market Solutions Offering","Other","BOTH","N/A",974,258,3,"NULL","OR","NBE","New Buildings","2024-04-01","2026-12-31","Other",0,0,0,0,0,0,"None - ele","None - gas",0,0,0,20,0,0,0,0,0,0,0,1,100,100,100,100,100,100,"NULL","NULL","NULL","NULL","NULL","NULL","NULL",100,100,100,"No Attributes ","NULL","NULL","F","NULL","NULL","NULL","NULL","NULL","F","NULL","NULL","NULL","NULL","NULL","F","NULL","NULL","NULL","NULL","NULL","F","NULL","NULL","NULL","NULL","NULL","F","NULL","NULL","NULL","NULL","NULL","F","NULL","NULL","NULL","NULL","NULL","F","NULL","NULL","NULL","NULL","NULL","F","NULL","NULL","NULL","NULL","NULL","F","NULL","NULL","NULL","NULL","NULL","F","NULL","NULL","NULL","NULL","NULL","F","NULL","NULL","NULL","NULL","NULL","F","NULL","NULL","NULL","NULL","NULL","F","NULL","NULL","NULL","NULL","NULL","F","NULL","NULL","NULL","NULL","NULL","F","NULL","NULL","NULL","NULL","NULL","F","NULL","NULL","NULL","NULL","NULL","F","NULL","NULL","NULL",45402.114783877318,45534.507328553242]
[19070,"Yes","Semi-Prescriptive","MSCBOILER2019","MS Elective, Condensing boiler, 2019 code","Market Solutions Offering","Other","BOTH","HEAT",974,258,3,"NULL","OR","NBE","New Buildings","2024-04-01","2026-12-31","Other",0,0,0,0,0,0,"None - ele","None - gas",0,0,0,20,0,0,0,0,0,0,0,1,100,100,100,100,100,100,"NULL","NULL","NULL","NULL","NULL","NULL","NULL",100,100,100,"Market Solutions Offering","THERMALEFF","Thermal Efficiency","T","Alphanumeric",64,"ED","SYSTEMTYPE","System Type","T","Alphanumeric",20,"ED","NULL","NULL","F","NULL","NULL","NULL","NULL","NULL","F","NULL","NULL","NULL","NULL","NULL","F","NULL","NULL","NULL","NULL","NULL","F","NULL","NULL","NULL","NULL","NULL","F","NULL","NULL","NULL","NULL","NULL","F","NULL","NULL","NULL","NULL","NULL","F","NULL","NULL","NULL","NULL","NULL","F","NULL","NULL","NULL","NULL","NULL","F","NULL","NULL","NULL","NULL","NULL","F","NULL","NULL","NULL","NULL","NULL","F","NULL","NULL","NULL","NULL","NULL","F","NULL","NULL","NULL","NULL","NULL","F","NULL","NULL","NULL","NULL","NULL","F","NULL","NULL","NULL","NULL","NULL","F","NULL","NULL","NULL",45402.114783877318,45534.507328553242]
[19071,"Yes","Semi-Prescriptive","MSCONDFURN2019","MS Elective, Condensing High-Efficiency Furnace, 2019 code","Market Solutions Offering","Other","BOTH","HEAT",974,258,3,"NULL","OR","NBE","New Buildings","2024-04-01","2026-12-31","Other",0,0,0,0,0,0,"None - ele","None - gas",0,0,0,20,0,0,0,0,0,0,0,1,100,100,100,100,100,100,"NULL","NULL","NULL","NULL","NULL","NULL","NULL",100,100,100,"Market Solutions Offering","THERMALEFF","Thermal Efficiency","F","Alphanumeric",64,"ED","SYSTEMTYPE","System Type","T","Alphanumeric",20,"ED","AFUE","AFUE","F","Decimal",2,"ED","NULL","NULL","F","NULL","NULL","NULL","NULL","NULL","F","NULL","NULL","NULL","NULL","NULL","F","NULL","NULL","NULL","NULL","NULL","F","NULL","NULL","NULL","NULL","NULL","F","NULL","NULL","NULL","NULL","NULL","F","NULL","NULL","NULL","NULL","NULL","F","NULL","NULL","NULL","NULL","NULL","F","NULL","NULL","NULL","NULL","NULL","F","NULL","NULL","NULL","NULL","NULL","F","NULL","NULL","NULL","NULL","NULL","F","NULL","NULL","NULL","NULL","NULL","F","NULL","NULL","NULL","NULL","NULL","F","NULL","NULL","NULL","NULL","NULL","F","NULL","NULL","NULL",45402.114783877318,45534.507328553242]
[19072,"Yes","Semi-Prescriptive","MSCTDWH2019","MS Elective, Condensing DHW (in-unit or central), 2019 code","Market Solutions Offering","Other","BOTH","DHW",974,258,3,"NULL","OR","NBE","New Buildings","2024-04-01","2026-12-31","Other",0,0,0,0,0,0,"None - ele","None - gas",0,0,0,20,0,0,0,0,0,0,0,1,100,100,100,100,100,100,"NULL","NULL","NULL","NULL","NULL","NULL","NULL",100,100,100,"Market Solutions Offering","THERMALEFF","Thermal Efficiency","F","Alphanumeric",64,"ED","ENFACT","Energy Factor","F","Decimal",20,"ED","NULL","NULL","F","NULL","NULL","NULL","NULL","NULL","F","NULL","NULL","NULL","NULL","NULL","F","NULL","NULL","NULL","NULL","NULL","F","NULL","NULL","NULL","NULL","NULL","F","NULL","NULL","NULL","NULL","NULL","F","NULL","NULL","NULL","NULL","NULL","F","NULL","NULL","NULL","NULL","NULL","F","NULL","NULL","NULL","NULL","NULL","F","NULL","NULL","NULL","NULL","NULL","F","NULL","NULL","NULL","NULL","NULL","F","NULL","NULL","NULL","NULL","NULL","F","NULL","NULL","NULL","NULL","NULL","F","NULL","NULL","NULL","NULL","NULL","F","NULL","NULL","NULL","NULL","NULL","F","NULL","NULL","NULL",45402.114783877318,45534.507328553242]
[19073,"Yes","Semi-Prescriptive","MSMFMRGOOD2019","MSO Multifamily, Mid Rise, Good Tier, 2019 code","Market Solutions Offering","Other","BOTH","N/A",974,258,3,"NULL","OR","NBE","New Buildings","2024-04-01","2026-12-31","Other",0,0,0,0,0,1,"None - ele","None - gas",1,0,1,20,1,0,0,0,0,0,0,1,100,100,100,100,100,100,"NULL","NULL","NULL","NULL","NULL","NULL","NULL",100,100,100,"Market Solutions Offering","EUI","Energy Use Intensity (W/sf)","F","Alphanumeric",20,"ED","NULL","NULL","F","NULL","NULL","NULL","NULL","NULL","F","NULL","NULL","NULL","NULL","NULL","F","NULL","NULL","NULL","NULL","NULL","F","NULL","NULL","NULL","NULL","NULL","F","NULL","NULL","NULL","NULL","NULL","F","NULL","NULL","NULL","NULL","NULL","F","NULL","NULL","NULL","NULL","NULL","F","NULL","NULL","NULL","NULL","NULL","F","NULL","NULL","NULL","NULL","NULL","F","NULL","NULL","NULL","NULL","NULL","F","NULL","NULL","NULL","NULL","NULL","F","NULL","NULL","NULL","NULL","NULL","F","NULL","NULL","NULL","NULL","NULL","F","NULL","NULL","NULL","NULL","NULL","F","NULL","NULL","NULL","NULL","NULL","F","NULL","NULL","NULL",45402.114783877318,45534.507328553242]
[19074,"Yes","Semi-Prescriptive","MSMFMRBETTER2019","MSO Multifamily, Mid Rise, Better Tier, 2019 code","Market Solutions Offering","Other","BOTH","N/A",974,258,3,"NULL","OR","NBE","New Buildings","2024-04-01","2026-12-31","Other",0,0,0,0,0,1,"None - ele","None - gas",1,0,1,20,1,0,0,0,0,0,0,1,100,100,100,100,100,100,"NULL","NULL","NULL","NULL","NULL","NULL","NULL",100,100,100,"Market Solutions Offering","EUI","Energy Use Intensity (W/sf)","F","Alphanumeric",20,"ED","NULL","NULL","F","NULL","NULL","NULL","NULL","NULL","F","NULL","NULL","NULL","NULL","NULL","F","NULL","NULL","NULL","NULL","NULL","F","NULL","NULL","NULL","NULL","NULL","F","NULL","NULL","NULL","NULL","NULL","F","NULL","NULL","NULL","NULL","NULL","F","NULL","NULL","NULL","NULL","NULL","F","NULL","NULL","NULL","NULL","NULL","F","NULL","NULL","NULL","NULL","NULL","F","NULL","NULL","NULL","NULL","NULL","F","NULL","NULL","NULL","NULL","NULL","F","NULL","NULL","NULL","NULL","NULL","F","NULL","NULL","NULL","NULL","NULL","F","NULL","NULL","NULL","NULL","NULL","F","NULL","NULL","NULL","NULL","NULL","F","NULL","NULL","NULL",45402.114783877318,45534.507328553242]
[19075,"Yes","Semi-Prescriptive","MSMFMRBEST2019","MSO Multifamily, Mid Rise, Best Tier, 2019 code","Market Solutions Offering","Other","BOTH","N/A",974,258,3,"NULL","OR","NBE","New Buildings","2024-04-01","2026-12-31","Other",0,0,0,0,0,1,"None - ele","None - gas",1,0,1,20,1,0,0,0,0,0,0,1,100,100,100,100,100,100,"NULL","NULL","NULL","NULL","NULL","NULL","NULL",100,100,100,"Market Solutions Offering","EUI","Energy Use Intensity (W/sf)","F","Alphanumeric",20,"ED","NULL","NULL","F","NULL","NULL","NULL","NULL","NULL","F","NULL","NULL","NULL","NULL","NULL","F","NULL","NULL","NULL","NULL","NULL","F","NULL","NULL","NULL","NULL","NULL","F","NULL","NULL","NULL","NULL","NULL","F","NULL","NULL","NULL","NULL","NULL","F","NULL","NULL","NULL","NULL","NULL","F","NULL","NULL","NULL","NULL","NULL","F","NULL","NULL","NULL","NULL","NULL","F","NULL","NULL","NULL","NULL","NULL","F","NULL","NULL","NULL","NULL","NULL","F","NULL","NULL","NULL","NULL","NULL","F","NULL","NULL","NULL","NULL","NULL","F","NULL","NULL","NULL","NULL","NULL","F","NULL","NULL","NULL","NULL","NULL","F","NULL","NULL","NULL",45402.114783877318,45534.507328553242]
[19076,"Yes","Semi-Prescriptive","MSAERATOR2019","MS Elective, Aerators, 2019 code","Market Solutions Offering","Other","BOTH","DHW",974,258,3,"NULL","OR","NBE","New Buildings","2024-04-01","2026-12-31","Other",0,0,0,0,0,0,"None - ele","None - gas",0,0,0,20,0,0,0,0,0,0,0,1,100,100,100,100,100,100,"NULL","NULL","NULL","NULL","NULL","NULL","NULL",100,100,100,"Market Solutions Offering","GPM","Gallons per Minute","T","Alphanumeric",10,"ED","NULL","NULL","F","NULL","NULL","NULL","NULL","NULL","F","NULL","NULL","NULL","NULL","NULL","F","NULL","NULL","NULL","NULL","NULL","F","NULL","NULL","NULL","NULL","NULL","F","NULL","NULL","NULL","NULL","NULL","F","NULL","NULL","NULL","NULL","NULL","F","NULL","NULL","NULL","NULL","NULL","F","NULL","NULL","NULL","NULL","NULL","F","NULL","NULL","NULL","NULL","NULL","F","NULL","NULL","NULL","NULL","NULL","F","NULL","NULL","NULL","NULL","NULL","F","NULL","NULL","NULL","NULL","NULL","F","NULL","NULL","NULL","NULL","NULL","F","NULL","NULL","NULL","NULL","NULL","F","NULL","NULL","NULL","NULL","NULL","F","NULL","NULL","NULL",45402.114783877318,45534.507328553242]
[19077,"Yes","Semi-Prescriptive","MSDISHWASH2019","MS Elective, Dishwasher, 2019 code","Market Solutions Offering","Other","BOTH","N/A",974,258,3,"NULL","OR","NBE","New Buildings","2024-04-01","2026-12-31","Other",0,0,0,0,0,0,"None - ele","None - gas",0,0,0,20,0,0,0,0,0,0,0,1,100,100,100,100,100,100,"NULL","NULL","NULL","NULL","NULL","NULL","NULL",100,100,100,"No Attributes ","NULL","NULL","F","NULL","NULL","NULL","NULL","NULL","F","NULL","NULL","NULL","NULL","NULL","F","NULL","NULL","NULL","NULL","NULL","F","NULL","NULL","NULL","NULL","NULL","F","NULL","NULL","NULL","NULL","NULL","F","NULL","NULL","NULL","NULL","NULL","F","NULL","NULL","NULL","NULL","NULL","F","NULL","NULL","NULL","NULL","NULL","F","NULL","NULL","NULL","NULL","NULL","F","NULL","NULL","NULL","NULL","NULL","F","NULL","NULL","NULL","NULL","NULL","F","NULL","NULL","NULL","NULL","NULL","F","NULL","NULL","NULL","NULL","NULL","F","NULL","NULL","NULL","NULL","NULL","F","NULL","NULL","NULL","NULL","NULL","F","NULL","NULL","NULL","NULL","NULL","F","NULL","NULL","NULL",45402.114783877318,45534.507328553242]
[19078,"Yes","Semi-Prescriptive","MSDRYER2019","MS Elective, Dryer, 2019 code","Market Solutions Offering","Other","BOTH","N/A",974,258,3,"NULL","OR","NBE","New Buildings","2024-04-01","2026-12-31","Other",0,0,0,0,0,0,"None - ele","None - gas",0,0,0,20,0,0,0,0,0,0,0,1,100,100,100,100,100,100,"NULL","NULL","NULL","NULL","NULL","NULL","NULL",100,100,100,"No Attributes ","NULL","NULL","F","NULL","NULL","NULL","NULL","NULL","F","NULL","NULL","NULL","NULL","NULL","F","NULL","NULL","NULL","NULL","NULL","F","NULL","NULL","NULL","NULL","NULL","F","NULL","NULL","NULL","NULL","NULL","F","NULL","NULL","NULL","NULL","NULL","F","NULL","NULL","NULL","NULL","NULL","F","NULL","NULL","NULL","NULL","NULL","F","NULL","NULL","NULL","NULL","NULL","F","NULL","NULL","NULL","NULL","NULL","F","NULL","NULL","NULL","NULL","NULL","F","NULL","NULL","NULL","NULL","NULL","F","NULL","NULL","NULL","NULL","NULL","F","NULL","NULL","NULL","NULL","NULL","F","NULL","NULL","NULL","NULL","NULL","F","NULL","NULL","NULL","NULL","NULL","F","NULL","NULL","NULL",45402.114783877318,45534.507328553242]
[19079,"Yes","Semi-Prescriptive","MSEEFANS2019","MS Elective, Efficient Exhaust Fans, 2019 code","Market Solutions Offering","Other","BOTH","N/A",974,258,3,"NULL","OR","NBE","New Buildings","2024-04-01","2026-12-31","Other",0,0,0,0,0,0,"None - ele","None - gas",0,0,0,20,0,0,0,0,0,0,0,1,100,100,100,100,100,100,"NULL","NULL","NULL","NULL","NULL","NULL","NULL",100,100,100,"Market Solutions Offering","FANEFFICACY","Fan Efficacy W/cfm","T","Alphanumeric",15,"ED","NULL","NULL","F","NULL","NULL","NULL","NULL","NULL","F","NULL","NULL","NULL","NULL","NULL","F","NULL","NULL","NULL","NULL","NULL","F","NULL","NULL","NULL","NULL","NULL","F","NULL","NULL","NULL","NULL","NULL","F","NULL","NULL","NULL","NULL","NULL","F","NULL","NULL","NULL","NULL","NULL","F","NULL","NULL","NULL","NULL","NULL","F","NULL","NULL","NULL","NULL","NULL","F","NULL","NULL","NULL","NULL","NULL","F","NULL","NULL","NULL","NULL","NULL","F","NULL","NULL","NULL","NULL","NULL","F","NULL","NULL","NULL","NULL","NULL","F","NULL","NULL","NULL","NULL","NULL","F","NULL","NULL","NULL","NULL","NULL","F","NULL","NULL","NULL",45402.114783877318,45534.507328553242]
[19080,"Yes","Semi-Prescriptive","MSERVENT2019","MS Elective, Energy Recovery Ventilation (ERV), 2019 code","Market Solutions Offering","Other","BOTH","N/A",974,258,3,"NULL","OR","NBE","New Buildings","2024-04-01","2026-12-31","Other",0,0,0,0,0,0,"None - ele","None - gas",0,0,0,20,0,0,0,0,0,0,0,1,100,100,100,100,100,100,"NULL","NULL","NULL","NULL","NULL","NULL","NULL",100,100,100,"No Attributes ","NULL","NULL","F","NULL","NULL","NULL","NULL","NULL","F","NULL","NULL","NULL","NULL","NULL","F","NULL","NULL","NULL","NULL","NULL","F","NULL","NULL","NULL","NULL","NULL","F","NULL","NULL","NULL","NULL","NULL","F","NULL","NULL","NULL","NULL","NULL","F","NULL","NULL","NULL","NULL","NULL","F","NULL","NULL","NULL","NULL","NULL","F","NULL","NULL","NULL","NULL","NULL","F","NULL","NULL","NULL","NULL","NULL","F","NULL","NULL","NULL","NULL","NULL","F","NULL","NULL","NULL","NULL","NULL","F","NULL","NULL","NULL","NULL","NULL","F","NULL","NULL","NULL","NULL","NULL","F","NULL","NULL","NULL","NULL","NULL","F","NULL","NULL","NULL","NULL","NULL","F","NULL","NULL","NULL",45402.114783877318,45534.507328553242]
[19081,"Yes","Semi-Prescriptive","MSEXTLIGHTLPD2019","MS Elective, Exterior Lighting Power Reduction, 2019 code","Market Solutions Offering","Other","BOTH","N/A",974,258,3,"NULL","OR","NBE","New Buildings","2024-04-01","2026-12-31","Other",0,0,0,0,0,0,"None - ele","None - gas",0,0,0,20,0,0,0,0,0,0,0,1,100,100,100,100,100,100,"NULL","NULL","NULL","NULL","NULL","NULL","NULL",100,100,100,"Market Solutions Offering","WATTS","Installed Watts","T","Integer",10,"ED","NULL","NULL","F","NULL","NULL","NULL","NULL","NULL","F","NULL","NULL","NULL","NULL","NULL","F","NULL","NULL","NULL","NULL","NULL","F","NULL","NULL","NULL","NULL","NULL","F","NULL","NULL","NULL","NULL","NULL","F","NULL","NULL","NULL","NULL","NULL","F","NULL","NULL","NULL","NULL","NULL","F","NULL","NULL","NULL","NULL","NULL","F","NULL","NULL","NULL","NULL","NULL","F","NULL","NULL","NULL","NULL","NULL","F","NULL","NULL","NULL","NULL","NULL","F","NULL","NULL","NULL","NULL","NULL","F","NULL","NULL","NULL","NULL","NULL","F","NULL","NULL","NULL","NULL","NULL","F","NULL","NULL","NULL","NULL","NULL","F","NULL","NULL","NULL",45402.114783877318,45534.507328553242]
[19082,"Yes","Semi-Prescriptive","MSMFLRGOOD2019","MSO Multifamily, Low Rise, Good Tier, 2019 code","Market Solutions Offering","Other","BOTH","N/A",974,258,3,"NULL","OR","NBE","New Buildings","2024-04-01","2026-12-31","Other",0,0,0,0,0,1,"Res Other","Res Heating",1,0,1,20,1,0,0,0,0,0,0,1,100,100,100,100,100,100,"NULL","NULL","NULL","NULL","NULL","NULL","NULL",100,100,100,"Market Solutions Offering","EUI","Energy Use Intensity (W/sf)","F","Alphanumeric",20,"ED","NULL","NULL","F","NULL","NULL","NULL","NULL","NULL","F","NULL","NULL","NULL","NULL","NULL","F","NULL","NULL","NULL","NULL","NULL","F","NULL","NULL","NULL","NULL","NULL","F","NULL","NULL","NULL","NULL","NULL","F","NULL","NULL","NULL","NULL","NULL","F","NULL","NULL","NULL","NULL","NULL","F","NULL","NULL","NULL","NULL","NULL","F","NULL","NULL","NULL","NULL","NULL","F","NULL","NULL","NULL","NULL","NULL","F","NULL","NULL","NULL","NULL","NULL","F","NULL","NULL","NULL","NULL","NULL","F","NULL","NULL","NULL","NULL","NULL","F","NULL","NULL","NULL","NULL","NULL","F","NULL","NULL","NULL","NULL","NULL","F","NULL","NULL","NULL",45402.114783877318,45534.507328553242]
[19083,"Yes","Semi-Prescriptive","MSMFHRGOOD2019","MSO Multifamily, High Rise, Good Tier, 2019 code","Market Solutions Offering","Other","BOTH","N/A",974,258,3,"NULL","OR","NBE","New Buildings","2024-04-01","2026-12-31","Other",0,0,0,0,0,1,"Res Other","Res Heating",1,0,1,20,1,0,0,0,0,0,0,1,100,100,100,100,100,100,"NULL","NULL","NULL","NULL","NULL","NULL","NULL",100,100,100,"Market Solutions Offering","EUI","Energy Use Intensity (W/sf)","F","Alphanumeric",20,"ED","NULL","NULL","F","NULL","NULL","NULL","NULL","NULL","F","NULL","NULL","NULL","NULL","NULL","F","NULL","NULL","NULL","NULL","NULL","F","NULL","NULL","NULL","NULL","NULL","F","NULL","NULL","NULL","NULL","NULL","F","NULL","NULL","NULL","NULL","NULL","F","NULL","NULL","NULL","NULL","NULL","F","NULL","NULL","NULL","NULL","NULL","F","NULL","NULL","NULL","NULL","NULL","F","NULL","NULL","NULL","NULL","NULL","F","NULL","NULL","NULL","NULL","NULL","F","NULL","NULL","NULL","NULL","NULL","F","NULL","NULL","NULL","NULL","NULL","F","NULL","NULL","NULL","NULL","NULL","F","NULL","NULL","NULL","NULL","NULL","F","NULL","NULL","NULL",45402.114783877318,45534.507328553242]
[19084,"Yes","Semi-Prescriptive","MSMFHRBETTER2019","MSO Multifamily, High Rise, Better Tier, 2019 code","Market Solutions Offering","Other","BOTH","N/A",974,258,3,"NULL","OR","NBE","New Buildings","2024-04-01","2026-12-31","Other",0,0,0,0,0,1,"Res Air Source HP","DHW",1,0,1,20,1,0,0,0,0,0,0,1,100,100,100,100,100,100,"NULL","NULL","NULL","NULL","NULL","NULL","NULL",100,100,100,"Market Solutions Offering","EUI","Energy Use Intensity (W/sf)","F","Alphanumeric",20,"ED","NULL","NULL","F","NULL","NULL","NULL","NULL","NULL","F","NULL","NULL","NULL","NULL","NULL","F","NULL","NULL","NULL","NULL","NULL","F","NULL","NULL","NULL","NULL","NULL","F","NULL","NULL","NULL","NULL","NULL","F","NULL","NULL","NULL","NULL","NULL","F","NULL","NULL","NULL","NULL","NULL","F","NULL","NULL","NULL","NULL","NULL","F","NULL","NULL","NULL","NULL","NULL","F","NULL","NULL","NULL","NULL","NULL","F","NULL","NULL","NULL","NULL","NULL","F","NULL","NULL","NULL","NULL","NULL","F","NULL","NULL","NULL","NULL","NULL","F","NULL","NULL","NULL","NULL","NULL","F","NULL","NULL","NULL","NULL","NULL","F","NULL","NULL","NULL",45402.114783877318,45534.507328553242]
[19085,"Yes","Semi-Prescriptive","MSMFHRBEST2019","MSO Multifamily, High Rise, Best Tier, 2019 code","Market Solutions Offering","Other","BOTH","N/A",974,258,3,"NULL","OR","NBE","New Buildings","2024-04-01","2026-12-31","Other",0,0,0,0,0,1,"Res HPWH Conversion","None - gas",1,0,1,20,1,0,0,0,0,0,0,1,100,100,100,100,100,100,"NULL","NULL","NULL","NULL","NULL","NULL","NULL",100,100,100,"Market Solutions Offering","EUI","Energy Use Intensity (W/sf)","F","Alphanumeric",20,"ED","NULL","NULL","F","NULL","NULL","NULL","NULL","NULL","F","NULL","NULL","NULL","NULL","NULL","F","NULL","NULL","NULL","NULL","NULL","F","NULL","NULL","NULL","NULL","NULL","F","NULL","NULL","NULL","NULL","NULL","F","NULL","NULL","NULL","NULL","NULL","F","NULL","NULL","NULL","NULL","NULL","F","NULL","NULL","NULL","NULL","NULL","F","NULL","NULL","NULL","NULL","NULL","F","NULL","NULL","NULL","NULL","NULL","F","NULL","NULL","NULL","NULL","NULL","F","NULL","NULL","NULL","NULL","NULL","F","NULL","NULL","NULL","NULL","NULL","F","NULL","NULL","NULL","NULL","NULL","F","NULL","NULL","NULL","NULL","NULL","F","NULL","NULL","NULL",45402.114783877318,45534.507328553242]
[19086,"Yes","Semi-Prescriptive","MSINUNITLPD2019","MS Elective, LPD Reduction in Living Units, 2019 code","Market Solutions Offering","Other","BOTH","N/A",974,258,3,"NULL","OR","NBE","New Buildings","2024-04-01","2026-12-31","Other",0,0,0,0,0,0,"None - ele","None - gas",0,0,0,20,0,0,0,0,0,0,0,1,100,100,100,100,100,100,"NULL","NULL","NULL","NULL","NULL","NULL","NULL",100,100,100,"Market Solutions Offering","LPD","Lighting Power Density ","T","Decimal",10,"ED","NULL","NULL","F","NULL","NULL","NULL","NULL","NULL","F","NULL","NULL","NULL","NULL","NULL","F","NULL","NULL","NULL","NULL","NULL","F","NULL","NULL","NULL","NULL","NULL","F","NULL","NULL","NULL","NULL","NULL","F","NULL","NULL","NULL","NULL","NULL","F","NULL","NULL","NULL","NULL","NULL","F","NULL","NULL","NULL","NULL","NULL","F","NULL","NULL","NULL","NULL","NULL","F","NULL","NULL","NULL","NULL","NULL","F","NULL","NULL","NULL","NULL","NULL","F","NULL","NULL","NULL","NULL","NULL","F","NULL","NULL","NULL","NULL","NULL","F","NULL","NULL","NULL","NULL","NULL","F","NULL","NULL","NULL","NULL","NULL","F","NULL","NULL","NULL",45402.114783877318,45534.507328553242]
[19087,"Yes","Semi-Prescriptive","MSFOUNDINSUL2019","MS Elective, Foundation Insulation, 2019 code ","Market Solutions Offering","Other","BOTH","N/A",974,258,3,"NULL","OR","NBE","New Buildings","2024-04-01","2026-12-31","Other",0,0,0,0,0,0,"None - ele","None - gas",0,0,0,20,0,0,0,0,0,0,0,1,100,100,100,100,100,100,"NULL","NULL","NULL","NULL","NULL","NULL","NULL",100,100,100,"Market Solutions Offering","RVALUE","R-Value","T","Integer",10,"ED","NULL","NULL","F","NULL","NULL","NULL","NULL","NULL","F","NULL","NULL","NULL","NULL","NULL","F","NULL","NULL","NULL","NULL","NULL","F","NULL","NULL","NULL","NULL","NULL","F","NULL","NULL","NULL","NULL","NULL","F","NULL","NULL","NULL","NULL","NULL","F","NULL","NULL","NULL","NULL","NULL","F","NULL","NULL","NULL","NULL","NULL","F","NULL","NULL","NULL","NULL","NULL","F","NULL","NULL","NULL","NULL","NULL","F","NULL","NULL","NULL","NULL","NULL","F","NULL","NULL","NULL","NULL","NULL","F","NULL","NULL","NULL","NULL","NULL","F","NULL","NULL","NULL","NULL","NULL","F","NULL","NULL","NULL","NULL","NULL","F","NULL","NULL","NULL",45402.114783877318,45534.507328553242]
[19088,"Yes","Semi-Prescriptive","MSHESS2019","MS Elective, High-efficiency Split System, 2019 code","Market Solutions Offering","Other","BOTH","N/A",974,258,3,"NULL","OR","NBE","New Buildings","2024-04-01","2026-12-31","Other",0,0,0,0,0,0,"None - ele","None - gas",0,0,0,20,0,0,0,0,0,0,0,1,100,100,100,100,100,100,"NULL","NULL","NULL","NULL","NULL","NULL","NULL",100,100,100,"Market Solutions Offering","SYSTEMTYPE","System Type","T","Alphanumeric",20,"ED","EER","EER","T","Alphanumeric",40,"ED","NULL","NULL","F","NULL","NULL","NULL","NULL","NULL","F","NULL","NULL","NULL","NULL","NULL","F","NULL","NULL","NULL","NULL","NULL","F","NULL","NULL","NULL","NULL","NULL","F","NULL","NULL","NULL","NULL","NULL","F","NULL","NULL","NULL","NULL","NULL","F","NULL","NULL","NULL","NULL","NULL","F","NULL","NULL","NULL","NULL","NULL","F","NULL","NULL","NULL","NULL","NULL","F","NULL","NULL","NULL","NULL","NULL","F","NULL","NULL","NULL","NULL","NULL","F","NULL","NULL","NULL","NULL","NULL","F","NULL","NULL","NULL","NULL","NULL","F","NULL","NULL","NULL","NULL","NULL","F","NULL","NULL","NULL",45402.114783877318,45534.507328553242]
[19089,"Yes","Semi-Prescriptive","MSHPWH2019","MS Elective, Heat Pump Water Heater, 2019 code","Market Solutions Offering","Other","BOTH","DHW",974,258,3,"NULL","OR","NBE","New Buildings","2024-04-01","2026-12-31","Other",0,0,0,0,0,0,"None - ele","None - gas",0,0,0,20,0,0,0,0,0,0,0,1,100,100,100,100,100,100,"NULL","NULL","NULL","NULL","NULL","NULL","NULL",100,100,100,"Market Solutions Offering","ENFACT","Energy Factor","F","Decimal",20,"ED","HPWHTIER","HPWH Tier","F","Alphanumeric",30,"CB","NULL","NULL","F","NULL","NULL","NULL","NULL","NULL","F","NULL","NULL","NULL","NULL","NULL","F","NULL","NULL","NULL","NULL","NULL","F","NULL","NULL","NULL","NULL","NULL","F","NULL","NULL","NULL","NULL","NULL","F","NULL","NULL","NULL","NULL","NULL","F","NULL","NULL","NULL","NULL","NULL","F","NULL","NULL","NULL","NULL","NULL","F","NULL","NULL","NULL","NULL","NULL","F","NULL","NULL","NULL","NULL","NULL","F","NULL","NULL","NULL","NULL","NULL","F","NULL","NULL","NULL","NULL","NULL","F","NULL","NULL","NULL","NULL","NULL","F","NULL","NULL","NULL","NULL","NULL","F","NULL","NULL","NULL",45402.114783877318,45534.507328553242]
[19090,"Yes","Semi-Prescriptive","MSMFLRBEST2019","MSO Multifamily, Low Rise, Best Tier, 2019 code","Market Solutions Offering","Other","BOTH","N/A",974,258,3,"NULL","OR","NBE","New Buildings","2024-04-01","2026-12-31","Other",0,0,0,0,0,1,"Res HPWH Conversion","None - gas",1,0,1,20,1,0,0,0,0,0,0,1,100,100,100,100,100,100,"NULL","NULL","NULL","NULL","NULL","NULL","NULL",100,100,100,"Market Solutions Offering","EUI","Energy Use Intensity (W/sf)","F","Alphanumeric",20,"ED","NULL","NULL","F","NULL","NULL","NULL","NULL","NULL","F","NULL","NULL","NULL","NULL","NULL","F","NULL","NULL","NULL","NULL","NULL","F","NULL","NULL","NULL","NULL","NULL","F","NULL","NULL","NULL","NULL","NULL","F","NULL","NULL","NULL","NULL","NULL","F","NULL","NULL","NULL","NULL","NULL","F","NULL","NULL","NULL","NULL","NULL","F","NULL","NULL","NULL","NULL","NULL","F","NULL","NULL","NULL","NULL","NULL","F","NULL","NULL","NULL","NULL","NULL","F","NULL","NULL","NULL","NULL","NULL","F","NULL","NULL","NULL","NULL","NULL","F","NULL","NULL","NULL","NULL","NULL","F","NULL","NULL","NULL","NULL","NULL","F","NULL","NULL","NULL",45402.114783877318,45534.507328553242]
[19091,"Yes","Semi-Prescriptive","MSMFLRBETTER2019","MSO Multifamily, Low Rise, Better Tier, 2019 code","Market Solutions Offering","Other","BOTH","N/A",974,258,3,"NULL","OR","NBE","New Buildings","2024-04-01","2026-12-31","Other",0,0,0,0,0,1,"Res Air Source HP","DHW",1,0,1,20,1,0,0,0,0,0,0,1,100,100,100,100,100,100,"NULL","NULL","NULL","NULL","NULL","NULL","NULL",100,100,100,"Market Solutions Offering","EUI","Energy Use Intensity (W/sf)","F","Alphanumeric",20,"ED","NULL","NULL","F","NULL","NULL","NULL","NULL","NULL","F","NULL","NULL","NULL","NULL","NULL","F","NULL","NULL","NULL","NULL","NULL","F","NULL","NULL","NULL","NULL","NULL","F","NULL","NULL","NULL","NULL","NULL","F","NULL","NULL","NULL","NULL","NULL","F","NULL","NULL","NULL","NULL","NULL","F","NULL","NULL","NULL","NULL","NULL","F","NULL","NULL","NULL","NULL","NULL","F","NULL","NULL","NULL","NULL","NULL","F","NULL","NULL","NULL","NULL","NULL","F","NULL","NULL","NULL","NULL","NULL","F","NULL","NULL","NULL","NULL","NULL","F","NULL","NULL","NULL","NULL","NULL","F","NULL","NULL","NULL","NULL","NULL","F","NULL","NULL","NULL",45402.114783877318,45534.507328553242]
[19092,"Yes","Semi-Prescriptive","MSDHP2019","MS Elective, DHP in Living Units, 2019 code","Market Solutions Offering","Other","BOTH","N/A",974,258,3,"NULL","OR","NBE","New Buildings","2024-04-01","2026-12-31","Other",0,0,0,0,0,0,"None - ele","None - gas",0,0,0,20,0,0,0,0,0,0,0,1,100,100,100,100,100,100,"NULL","NULL","NULL","NULL","NULL","NULL","NULL",100,100,100,"Market Solutions Offering","SYSTEMTYPE","System Type","T","Alphanumeric",20,"ED","SEER","SEER","T","Decimal",20,"ED","NULL","NULL","F","NULL","NULL","NULL","NULL","NULL","F","NULL","NULL","NULL","NULL","NULL","F","NULL","NULL","NULL","NULL","NULL","F","NULL","NULL","NULL","NULL","NULL","F","NULL","NULL","NULL","NULL","NULL","F","NULL","NULL","NULL","NULL","NULL","F","NULL","NULL","NULL","NULL","NULL","F","NULL","NULL","NULL","NULL","NULL","F","NULL","NULL","NULL","NULL","NULL","F","NULL","NULL","NULL","NULL","NULL","F","NULL","NULL","NULL","NULL","NULL","F","NULL","NULL","NULL","NULL","NULL","F","NULL","NULL","NULL","NULL","NULL","F","NULL","NULL","NULL","NULL","NULL","F","NULL","NULL","NULL",45402.114783877318,45534.507328553242]
[19095,"Yes","Semi-Prescriptive","MSMFBEST2021","MSO Multifamily, Best Tier, 2021","Market Solutions Offering","Other","BOTH","N/A",976,278,2,"NULL","OR","NBE","New Buildings","2024-04-01","2026-12-31","Other",0,0,0,0,0,1,"Res HPWH Conversion","None - gas",1,0,1,20,0,0,0,0,0,0,0,1,100,100,100,100,100,100,"NULL","NULL","NULL","NULL","NULL","NULL","NULL",100,100,100,"No Attributes ","NULL","NULL","F","NULL","NULL","NULL","NULL","NULL","F","NULL","NULL","NULL","NULL","NULL","F","NULL","NULL","NULL","NULL","NULL","F","NULL","NULL","NULL","NULL","NULL","F","NULL","NULL","NULL","NULL","NULL","F","NULL","NULL","NULL","NULL","NULL","F","NULL","NULL","NULL","NULL","NULL","F","NULL","NULL","NULL","NULL","NULL","F","NULL","NULL","NULL","NULL","NULL","F","NULL","NULL","NULL","NULL","NULL","F","NULL","NULL","NULL","NULL","NULL","F","NULL","NULL","NULL","NULL","NULL","F","NULL","NULL","NULL","NULL","NULL","F","NULL","NULL","NULL","NULL","NULL","F","NULL","NULL","NULL","NULL","NULL","F","NULL","NULL","NULL","NULL","NULL","F","NULL","NULL","NULL",45433.097402118059,45534.507328553242]
[19096,"Yes","Semi-Prescriptive","MSMFGOOD2021","MSO Multifamily, Good Tier, 2021","Market Solutions Offering","Other","BOTH","N/A",976,278,2,"NULL","OR","NBE","New Buildings","2024-04-01","2026-12-31","Other",0,0,0,0,0,1,"Res Other","Res Heating",1,0,1,20,0,0,0,0,0,0,0,1,100,100,100,100,100,100,"NULL","NULL","NULL","NULL","NULL","NULL","NULL",100,100,100,"No Attributes ","NULL","NULL","F","NULL","NULL","NULL","NULL","NULL","F","NULL","NULL","NULL","NULL","NULL","F","NULL","NULL","NULL","NULL","NULL","F","NULL","NULL","NULL","NULL","NULL","F","NULL","NULL","NULL","NULL","NULL","F","NULL","NULL","NULL","NULL","NULL","F","NULL","NULL","NULL","NULL","NULL","F","NULL","NULL","NULL","NULL","NULL","F","NULL","NULL","NULL","NULL","NULL","F","NULL","NULL","NULL","NULL","NULL","F","NULL","NULL","NULL","NULL","NULL","F","NULL","NULL","NULL","NULL","NULL","F","NULL","NULL","NULL","NULL","NULL","F","NULL","NULL","NULL","NULL","NULL","F","NULL","NULL","NULL","NULL","NULL","F","NULL","NULL","NULL","NULL","NULL","F","NULL","NULL","NULL",45433.097402118059,45534.507328553242]
[19097,"Yes","Semi-Prescriptive","MSMFBETTER2021","MSO Multifamily, Better Tier, 2021","Market Solutions Offering","Other","BOTH","N/A",976,278,2,"NULL","OR","NBE","New Buildings","2024-04-01","2026-12-31","Other",0,0,0,0,0,1,"Res Air Source HP","DHW",1,0,1,20,0,0,0,0,0,0,0,1,100,100,100,100,100,100,"NULL","NULL","NULL","NULL","NULL","NULL","NULL",100,100,100,"No Attributes ","NULL","NULL","F","NULL","NULL","NULL","NULL","NULL","F","NULL","NULL","NULL","NULL","NULL","F","NULL","NULL","NULL","NULL","NULL","F","NULL","NULL","NULL","NULL","NULL","F","NULL","NULL","NULL","NULL","NULL","F","NULL","NULL","NULL","NULL","NULL","F","NULL","NULL","NULL","NULL","NULL","F","NULL","NULL","NULL","NULL","NULL","F","NULL","NULL","NULL","NULL","NULL","F","NULL","NULL","NULL","NULL","NULL","F","NULL","NULL","NULL","NULL","NULL","F","NULL","NULL","NULL","NULL","NULL","F","NULL","NULL","NULL","NULL","NULL","F","NULL","NULL","NULL","NULL","NULL","F","NULL","NULL","NULL","NULL","NULL","F","NULL","NULL","NULL","NULL","NULL","F","NULL","NULL","NULL",45433.097402118059,45534.507328553242]
[19725,"Yes","Prescriptive","RADHEATMODGO","Infrared Radiant Heaters, Modulating, Gas Only","Radiant heating","HVAC","GAS","N/A",989,117,4,6161,"OR","NBE","New Buildings","2025-01-01","2027-12-31","kBtu/hr",0,0,0,3.63,0.28000000000000003,0,"Warehouse Other","Com Heating",0,5,0,20,0,13.81,0,0,0,0,0,0,100,"NULL","NULL",100,100,100,100,"NULL","NULL","NULL","NULL","NULL","NULL",100,100,100,"No Attributes ","NULL","NULL","F","NULL","NULL","NULL","NULL","NULL","F","NULL","NULL","NULL","NULL","NULL","F","NULL","NULL","NULL","NULL","NULL","F","NULL","NULL","NULL","NULL","NULL","F","NULL","NULL","NULL","NULL","NULL","F","NULL","NULL","NULL","NULL","NULL","F","NULL","NULL","NULL","NULL","NULL","F","NULL","NULL","NULL","NULL","NULL","F","NULL","NULL","NULL","NULL","NULL","F","NULL","NULL","NULL","NULL","NULL","F","NULL","NULL","NULL","NULL","NULL","F","NULL","NULL","NULL","NULL","NULL","F","NULL","NULL","NULL","NULL","NULL","F","NULL","NULL","NULL","NULL","NULL","F","NULL","NULL","NULL","NULL","NULL","F","NULL","NULL","NULL","NULL","NULL","F","NULL","NULL","NULL",45639.144485104167,45639.144485104167]
[19726,"Yes","Prescriptive","RADHEATNONMODGO","Infrared Radiant Heaters, Non-Modulating, Gas Only","Radiant heating","HVAC","GAS","N/A",989,117,4,6160,"OR","NBE","New Buildings","2025-01-01","2027-12-31","kBtu/hr",0,0,0,2.73,0.3,0,"Warehouse Other","Com Heating",0,4,0,20,0,10.210000000000001,0,0,0,0,0,0,100,"NULL","NULL",100,100,100,100,"NULL","NULL","NULL","NULL","NULL","NULL",100,100,100,"No Attributes ","NULL","NULL","F","NULL","NULL","NULL","NULL","NULL","F","NULL","NULL","NULL","NULL","NULL","F","NULL","NULL","NULL","NULL","NULL","F","NULL","NULL","NULL","NULL","NULL","F","NULL","NULL","NULL","NULL","NULL","F","NULL","NULL","NULL","NULL","NULL","F","NULL","NULL","NULL","NULL","NULL","F","NULL","NULL","NULL","NULL","NULL","F","NULL","NULL","NULL","NULL","NULL","F","NULL","NULL","NULL","NULL","NULL","F","NULL","NULL","NULL","NULL","NULL","F","NULL","NULL","NULL","NULL","NULL","F","NULL","NULL","NULL","NULL","NULL","F","NULL","NULL","NULL","NULL","NULL","F","NULL","NULL","NULL","NULL","NULL","F","NULL","NULL","NULL","NULL","NULL","F","NULL","NULL","NULL",45639.144485104167,45639.144485104167]
[19727,"Yes","Prescriptive","RADHEATMOD","Infrared Radiant Heaters, Modulating","Radiant heating","HVAC","BOTH","N/A",989,117,4,6159,"OR","NBE","New Buildings","2025-01-01","2027-12-31","kBtu/hr",0,0,1.95,3.63,0,0,"Warehouse Other","Com Heating",0,5,0,20,0,13.81,0,0,0,0,0,0,97,3,3,97,97,97,97,"NULL","NULL","NULL","NULL","NULL","NULL",97,97,97,"No Attributes ","NULL","NULL","F","NULL","NULL","NULL","NULL","NULL","F","NULL","NULL","NULL","NULL","NULL","F","NULL","NULL","NULL","NULL","NULL","F","NULL","NULL","NULL","NULL","NULL","F","NULL","NULL","NULL","NULL","NULL","F","NULL","NULL","NULL","NULL","NULL","F","NULL","NULL","NULL","NULL","NULL","F","NULL","NULL","NULL","NULL","NULL","F","NULL","NULL","NULL","NULL","NULL","F","NULL","NULL","NULL","NULL","NULL","F","NULL","NULL","NULL","NULL","NULL","F","NULL","NULL","NULL","NULL","NULL","F","NULL","NULL","NULL","NULL","NULL","F","NULL","NULL","NULL","NULL","NULL","F","NULL","NULL","NULL","NULL","NULL","F","NULL","NULL","NULL","NULL","NULL","F","NULL","NULL","NULL",45639.144485104167,45639.144485104167]
[19728,"Yes","Prescriptive","RADHEATNONMOD","Infrared Radiant Heaters, non-modulating","Radiant heating","HVAC","BOTH","N/A",989,117,4,6158,"OR","NBE","New Buildings","2025-01-01","2027-12-31","kBtu/hr",0,0,2.0499999999999998,2.73,0,0,"Warehouse Other","Com Heating",0,4,0,20,0,10.210000000000001,0,0,0,0,0,0,96,4,4,96,96,96,96,"NULL","NULL","NULL","NULL","NULL","NULL",96,96,96,"No Attributes ","NULL","NULL","F","NULL","NULL","NULL","NULL","NULL","F","NULL","NULL","NULL","NULL","NULL","F","NULL","NULL","NULL","NULL","NULL","F","NULL","NULL","NULL","NULL","NULL","F","NULL","NULL","NULL","NULL","NULL","F","NULL","NULL","NULL","NULL","NULL","F","NULL","NULL","NULL","NULL","NULL","F","NULL","NULL","NULL","NULL","NULL","F","NULL","NULL","NULL","NULL","NULL","F","NULL","NULL","NULL","NULL","NULL","F","NULL","NULL","NULL","NULL","NULL","F","NULL","NULL","NULL","NULL","NULL","F","NULL","NULL","NULL","NULL","NULL","F","NULL","NULL","NULL","NULL","NULL","F","NULL","NULL","NULL","NULL","NULL","F","NULL","NULL","NULL","NULL","NULL","F","NULL","NULL","NULL",45639.144485104167,45639.144485104167]
[19734,"Yes","Prescriptive","HEGASFRYERLARG","High Efficiency Gas Fryer - Large Vat","Food equipment","Food Service","GAS","N/A",1014,272,2,6526,"OR","NBE","New Buildings","2025-01-01","2027-12-31","Units",0,0,0,317.69,0,0,"None - ele","Flat - gas",0,2000,0,12,0,4336.17,0,0,0,0,0,0,100,"NULL","NULL",100,100,100,100,"NULL","NULL","NULL","NULL","NULL","NULL",100,100,100,"Food equipment","MODEL","Model","T","Alphanumeric",64,"ED","MANUFACTURER","Manufacturer Name","T","Alphanumeric",64,"ED","NULL","NULL","F","NULL","NULL","NULL","NULL","NULL","F","NULL","NULL","NULL","NULL","NULL","F","NULL","NULL","NULL","NULL","NULL","F","NULL","NULL","NULL","NULL","NULL","F","NULL","NULL","NULL","NULL","NULL","F","NULL","NULL","NULL","NULL","NULL","F","NULL","NULL","NULL","NULL","NULL","F","NULL","NULL","NULL","NULL","NULL","F","NULL","NULL","NULL","NULL","NULL","F","NULL","NULL","NULL","NULL","NULL","F","NULL","NULL","NULL","NULL","NULL","F","NULL","NULL","NULL","NULL","NULL","F","NULL","NULL","NULL","NULL","NULL","F","NULL","NULL","NULL","NULL","NULL","F","NULL","NULL","NULL",45643.145391122685,45643.145391122685]
[19735,"Yes","Prescriptive","HEGASFRYERSTAN","High Efficiency Gas Fryer - Standard Vat","Food equipment","Food Service","GAS","N/A",1014,272,2,6525,"OR","NBE","New Buildings","2025-01-01","2027-12-31","Units",0,0,0,259.74,0,0,"None - ele","Flat - gas",0,1500,0,12,0,3073.5,0,0,0,0,0,0,100,"NULL","NULL",100,100,100,100,"NULL","NULL","NULL","NULL","NULL","NULL",100,100,100,"Food equipment","MODEL","Model","T","Alphanumeric",64,"ED","MANUFACTURER","Manufacturer Name","T","Alphanumeric",64,"ED","NULL","NULL","F","NULL","NULL","NULL","NULL","NULL","F","NULL","NULL","NULL","NULL","NULL","F","NULL","NULL","NULL","NULL","NULL","F","NULL","NULL","NULL","NULL","NULL","F","NULL","NULL","NULL","NULL","NULL","F","NULL","NULL","NULL","NULL","NULL","F","NULL","NULL","NULL","NULL","NULL","F","NULL","NULL","NULL","NULL","NULL","F","NULL","NULL","NULL","NULL","NULL","F","NULL","NULL","NULL","NULL","NULL","F","NULL","NULL","NULL","NULL","NULL","F","NULL","NULL","NULL","NULL","NULL","F","NULL","NULL","NULL","NULL","NULL","F","NULL","NULL","NULL","NULL","NULL","F","NULL","NULL","NULL",45643.145391122685,45643.145391122685]
[19736,"Yes","Prescriptive","HEELECFRYERLARG","High Efficiency Electric Fryer - Large Vat","Food equipment","Food Service","ELE","N/A",1014,272,2,6528,"OR","NBE","New Buildings",45658,46752,"Units",0,0,1949.5,0,0,0,"Restaurant Cooking","None - gas",0,1000,0,12,0,1430.5,0,0,0,0,0,0,"NULL",100,100,"NULL","NULL","NULL","NULL","NULL","NULL","NULL","NULL","NULL","NULL","NULL","NULL","NULL","Food equipment","MODEL","Model","T","Alphanumeric",64,"ED","MANUFACTURER","Manufacturer Name","T","Alphanumeric",64,"ED","NULL","NULL","F","NULL","NULL","NULL","NULL","NULL","F","NULL","NULL","NULL","NULL","NULL","F","NULL","NULL","NULL","NULL","NULL","F","NULL","NULL","NULL","NULL","NULL","F","NULL","NULL","NULL","NULL","NULL","F","NULL","NULL","NULL","NULL","NULL","F","NULL","NULL","NULL","NULL","NULL","F","NULL","NULL","NULL","NULL","NULL","F","NULL","NULL","NULL","NULL","NULL","F","NULL","NULL","NULL","NULL","NULL","F","NULL","NULL","NULL","NULL","NULL","F","NULL","NULL","NULL","NULL","NULL","F","NULL","NULL","NULL","NULL","NULL","F","NULL","NULL","NULL","NULL","NULL","F","NULL","NULL","NULL",45643.145391122685,45643.145391122685]
[19737,"Yes","Prescriptive","HEELECFRYERSTAN","High Efficiency Electric Fryer - Standard or Split Vat","Food equipment","Food Service","ELE","N/A",1014,272,2,6527,"OR","NBE","New Buildings",45658,46752,"Units",0,0,2724.82,0,0,0,"Restaurant Cooking","None - gas",0,800,0,12,0,1197.5,0,0,0,0,0,0,"NULL",100,100,"NULL","NULL","NULL","NULL","NULL","NULL","NULL","NULL","NULL","NULL","NULL","NULL","NULL","Food equipment","MODEL","Model","T","Alphanumeric",64,"ED","MANUFACTURER","Manufacturer Name","T","Alphanumeric",64,"ED","NULL","NULL","F","NULL","NULL","NULL","NULL","NULL","F","NULL","NULL","NULL","NULL","NULL","F","NULL","NULL","NULL","NULL","NULL","F","NULL","NULL","NULL","NULL","NULL","F","NULL","NULL","NULL","NULL","NULL","F","NULL","NULL","NULL","NULL","NULL","F","NULL","NULL","NULL","NULL","NULL","F","NULL","NULL","NULL","NULL","NULL","F","NULL","NULL","NULL","NULL","NULL","F","NULL","NULL","NULL","NULL","NULL","F","NULL","NULL","NULL","NULL","NULL","F","NULL","NULL","NULL","NULL","NULL","F","NULL","NULL","NULL","NULL","NULL","F","NULL","NULL","NULL","NULL","NULL","F","NULL","NULL","NULL",45643.145391122685,45643.145391122685]
[19738,"Yes","Prescriptive","LCGASGOT","MF Laundry Center, In-Unit, Gas DHW, GOT","Clothes washer","Appliance","GAS","DHW",1002,152,6,6371,"OR","NBE","New Buildings",45658,46752,"Units",0,1,0,5.45,38.950000000000003,0,"Res Clotheswasher","Clotheswasher",0,200,0,12,0,386.7,0,0,0,0,0,0,100,"NULL","NULL",100,100,100,100,"NULL","NULL","NULL","NULL","NULL","NULL",100,100,100,"Clothes Washer","MANUFACTURER","Manufacturer Name","T","Alphanumeric",40,"ED","MODEL","Model","T","Alphanumeric",20,"ED","IMEF","Integrated Modified Energy Factor (IMEF)","T","Alphanumeric",10,"ED","VOLUME","Volume (cubic feet)","F","Decimal",10,"ED","WATERFACTOR","Water Factor","F","Alphanumeric",10,"ED","NULL","NULL","F","NULL","NULL","NULL","NULL","NULL","F","NULL","NULL","NULL","NULL","NULL","F","NULL","NULL","NULL","NULL","NULL","F","NULL","NULL","NULL","NULL","NULL","F","NULL","NULL","NULL","NULL","NULL","F","NULL","NULL","NULL","NULL","NULL","F","NULL","NULL","NULL","NULL","NULL","F","NULL","NULL","NULL","NULL","NULL","F","NULL","NULL","NULL","NULL","NULL","F","NULL","NULL","NULL","NULL","NULL","F","NULL","NULL","NULL","NULL","NULL","F","NULL","NULL","NULL",45643.145391122685,45643.145391122685]
[19739,"Yes","Prescriptive","LCGAS","MF Laundry Center, In-Unit, Gas DHW","Clothes washer","Appliance","BOTH","N/A",1002,152,6,6369,"OR","NBE","New Buildings",45658,46752,"Units",0,1,106.85,5.45,30.81,0,"Res Clotheswasher","Clotheswasher",0,200,0,12,0,386.7,0,0,0,0,0,0,36,64,64,36,36,36,36,"NULL","NULL","NULL","NULL","NULL","NULL",36,36,36,"Clothes Washer","MANUFACTURER","Manufacturer Name","T","Alphanumeric",40,"ED","MODEL","Model","T","Alphanumeric",20,"ED","IMEF","Integrated Modified Energy Factor (IMEF)","T","Alphanumeric",10,"ED","VOLUME","Volume (cubic feet)","F","Decimal",10,"ED","WATERFACTOR","Water Factor","F","Alphanumeric",10,"ED","NULL","NULL","F","NULL","NULL","NULL","NULL","NULL","F","NULL","NULL","NULL","NULL","NULL","F","NULL","NULL","NULL","NULL","NULL","F","NULL","NULL","NULL","NULL","NULL","F","NULL","NULL","NULL","NULL","NULL","F","NULL","NULL","NULL","NULL","NULL","F","NULL","NULL","NULL","NULL","NULL","F","NULL","NULL","NULL","NULL","NULL","F","NULL","NULL","NULL","NULL","NULL","F","NULL","NULL","NULL","NULL","NULL","F","NULL","NULL","NULL","NULL","NULL","F","NULL","NULL","NULL",45643.145391122685,45643.145391122685]
[19740,"Yes","Prescriptive","LCELEEOT","MF Laundry Center, In-Unit, Electric DHW, EOT","Clothes washer","Appliance","ELE","DHW",1002,152,6,6370,"OR","NBE","New Buildings",45658,46752,"Units",0,0,218.62,0,30.19,0,"Res Clotheswasher","Clotheswasher",0,200,0,12,0,386.7,0,0,0,0,0,0,"NULL",100,100,"NULL","NULL","NULL","NULL","NULL","NULL","NULL","NULL","NULL","NULL","NULL","NULL","NULL","Clothes Washer","MANUFACTURER","Manufacturer Name","T","Alphanumeric",40,"ED","MODEL","Model","T","Alphanumeric",20,"ED","IMEF","Integrated Modified Energy Factor (IMEF)","T","Alphanumeric",10,"ED","VOLUME","Volume (cubic feet)","F","Decimal",10,"ED","WATERFACTOR","Water Factor","F","Alphanumeric",10,"ED","NULL","NULL","F","NULL","NULL","NULL","NULL","NULL","F","NULL","NULL","NULL","NULL","NULL","F","NULL","NULL","NULL","NULL","NULL","F","NULL","NULL","NULL","NULL","NULL","F","NULL","NULL","NULL","NULL","NULL","F","NULL","NULL","NULL","NULL","NULL","F","NULL","NULL","NULL","NULL","NULL","F","NULL","NULL","NULL","NULL","NULL","F","NULL","NULL","NULL","NULL","NULL","F","NULL","NULL","NULL","NULL","NULL","F","NULL","NULL","NULL","NULL","NULL","F","NULL","NULL","NULL",45643.145391122685,45643.145391122685]
[19741,"Yes","Prescriptive","LCELE","MF Laundry Center, In-Unit, Electric DHW","Clothes washer","Appliance","BOTH","N/A",1002,152,6,6368,"OR","NBE","New Buildings",45658,46752,"Units",0,0,218.62,0.13,30.1,0,"Res Clotheswasher","Clotheswasher",0,200,0,12,0,386.7,0,0,0,0,0,0,1,99,99,1,1,1,1,"NULL","NULL","NULL","NULL","NULL","NULL",1,1,1,"Clothes Washer","MANUFACTURER","Manufacturer Name","T","Alphanumeric",40,"ED","MODEL","Model","T","Alphanumeric",20,"ED","IMEF","Integrated Modified Energy Factor (IMEF)","T","Alphanumeric",10,"ED","VOLUME","Volume (cubic feet)","F","Decimal",10,"ED","WATERFACTOR","Water Factor","F","Alphanumeric",10,"ED","NULL","NULL","F","NULL","NULL","NULL","NULL","NULL","F","NULL","NULL","NULL","NULL","NULL","F","NULL","NULL","NULL","NULL","NULL","F","NULL","NULL","NULL","NULL","NULL","F","NULL","NULL","NULL","NULL","NULL","F","NULL","NULL","NULL","NULL","NULL","F","NULL","NULL","NULL","NULL","NULL","F","NULL","NULL","NULL","NULL","NULL","F","NULL","NULL","NULL","NULL","NULL","F","NULL","NULL","NULL","NULL","NULL","F","NULL","NULL","NULL","NULL","NULL","F","NULL","NULL","NULL",45643.145391122685,45643.145391122685]
[19742,"Yes","Prescriptive","WASHGASFL","MF Clothes Washer, In-Unit, Gas DHW","Clothes washer","Appliance","BOTH","N/A",1002,152,6,6365,"OR","NBE","New Buildings",45658,46752,"Units",0,0,56.7,5.43,30.22,0,"Res Clotheswasher","Clotheswasher",0,100,0,14,0,131.4,0,0,0,0,0,0,52,48,48,52,52,52,52,"NULL","NULL","NULL","NULL","NULL","NULL",52,52,52,"Clothes Washer","MANUFACTURER","Manufacturer Name","T","Alphanumeric",40,"ED","MODEL","Model","T","Alphanumeric",20,"ED","IMEF","Integrated Modified Energy Factor (IMEF)","T","Alphanumeric",10,"ED","VOLUME","Volume (cubic feet)","F","Decimal",10,"ED","WATERFACTOR","Water Factor","F","Alphanumeric",10,"ED","NULL","NULL","F","NULL","NULL","NULL","NULL","NULL","F","NULL","NULL","NULL","NULL","NULL","F","NULL","NULL","NULL","NULL","NULL","F","NULL","NULL","NULL","NULL","NULL","F","NULL","NULL","NULL","NULL","NULL","F","NULL","NULL","NULL","NULL","NULL","F","NULL","NULL","NULL","NULL","NULL","F","NULL","NULL","NULL","NULL","NULL","F","NULL","NULL","NULL","NULL","NULL","F","NULL","NULL","NULL","NULL","NULL","F","NULL","NULL","NULL","NULL","NULL","F","NULL","NULL","NULL",45643.145391122685,45643.145391122685]
[19743,"Yes","Prescriptive","WASHELEFLEOT","MF Clothes Washer, In-Unit, Electric DHW, EOT","Clothes washer","Appliance","ELE","DHW",1002,152,6,6366,"OR","NBE","New Buildings",45658,46752,"Units",0,0,168.47,0,30.35,0,"Res Clotheswasher","Clotheswasher",0,100,0,14,0,131.4,0,0,0,0,0,0,"NULL",100,100,"NULL","NULL","NULL","NULL","NULL","NULL","NULL","NULL","NULL","NULL","NULL","NULL","NULL","Clothes Washer","MANUFACTURER","Manufacturer Name","T","Alphanumeric",40,"ED","MODEL","Model","T","Alphanumeric",20,"ED","IMEF","Integrated Modified Energy Factor (IMEF)","T","Alphanumeric",10,"ED","VOLUME","Volume (cubic feet)","F","Decimal",10,"ED","WATERFACTOR","Water Factor","F","Alphanumeric",10,"ED","NULL","NULL","F","NULL","NULL","NULL","NULL","NULL","F","NULL","NULL","NULL","NULL","NULL","F","NULL","NULL","NULL","NULL","NULL","F","NULL","NULL","NULL","NULL","NULL","F","NULL","NULL","NULL","NULL","NULL","F","NULL","NULL","NULL","NULL","NULL","F","NULL","NULL","NULL","NULL","NULL","F","NULL","NULL","NULL","NULL","NULL","F","NULL","NULL","NULL","NULL","NULL","F","NULL","NULL","NULL","NULL","NULL","F","NULL","NULL","NULL","NULL","NULL","F","NULL","NULL","NULL",45643.145391122685,45643.145391122685]
[19744,"Yes","Prescriptive","WASHELEFL","MF Clothes Washer, In-Unit, Electric DHW","Clothes washer","Appliance","BOTH","N/A",1002,152,6,6364,"OR","NBE","New Buildings",45658,46752,"Units",0,0,168.47,0.11,30.22,0,"Res Clotheswasher","Clotheswasher",0,100,0,14,0,131.4,0,0,0,0,0,0,1,99,99,1,1,1,1,"NULL","NULL","NULL","NULL","NULL","NULL",1,1,1,"Clothes Washer","MANUFACTURER","Manufacturer Name","T","Alphanumeric",40,"ED","MODEL","Model","T","Alphanumeric",20,"ED","IMEF","Integrated Modified Energy Factor (IMEF)","T","Alphanumeric",10,"ED","VOLUME","Volume (cubic feet)","F","Decimal",10,"ED","WATERFACTOR","Water Factor","F","Alphanumeric",10,"ED","NULL","NULL","F","NULL","NULL","NULL","NULL","NULL","F","NULL","NULL","NULL","NULL","NULL","F","NULL","NULL","NULL","NULL","NULL","F","NULL","NULL","NULL","NULL","NULL","F","NULL","NULL","NULL","NULL","NULL","F","NULL","NULL","NULL","NULL","NULL","F","NULL","NULL","NULL","NULL","NULL","F","NULL","NULL","NULL","NULL","NULL","F","NULL","NULL","NULL","NULL","NULL","F","NULL","NULL","NULL","NULL","NULL","F","NULL","NULL","NULL","NULL","NULL","F","NULL","NULL","NULL",45643.145391122685,45643.145391122685]
[19745,"Yes","Prescriptive","DWPPUHTEMP","Dishwasher - Pot, Pan, and Utensil - High Temp","Dishwasher","Appliance","ELE","DHW",1022,35,4,6644,"OR","NBE","New Buildings",45658,46752,"Units",0,0,4243.87,0,0,0,"Restaurant Hot Water","Flat - gas",0,1200,0,10,0,3271.51,0,0,0,1,1,0,"NULL",100,100,"NULL","NULL","NULL","NULL","NULL","NULL","NULL","NULL","NULL","NULL","NULL","NULL","NULL","Dishwasher","MANUFACTURER","Manufacturer Name","F","Alphanumeric",64,"ED","MODEL","Model","F","Alphanumeric",64,"ED","NULL","NULL","F","NULL","NULL","NULL","NULL","NULL","F","NULL","NULL","NULL","NULL","NULL","F","NULL","NULL","NULL","NULL","NULL","F","NULL","NULL","NULL","NULL","NULL","F","NULL","NULL","NULL","NULL","NULL","F","NULL","NULL","NULL","NULL","NULL","F","NULL","NULL","NULL","NULL","NULL","F","NULL","NULL","NULL","NULL","NULL","F","NULL","NULL","NULL","NULL","NULL","F","NULL","NULL","NULL","NULL","NULL","F","NULL","NULL","NULL","NULL","NULL","F","NULL","NULL","NULL","NULL","NULL","F","NULL","NULL","NULL","NULL","NULL","F","NULL","NULL","NULL","NULL","NULL","F","NULL","NULL","NULL",45643.145391122685,45643.145391122685]
[19746,"Yes","Prescriptive","DWMTCONHTEMP","Dishwasher - Multiple Tank Conveyor - High Temp","Dishwasher","Appliance","ELE","DHW",1022,35,4,6643,"OR","NBE","New Buildings",45658,46752,"Units",0,0,4526,0,0,0,"Restaurant Hot Water","Flat - gas",0,900,0,10,0,4381.82,0,0,0,1,1,0,"NULL",100,100,"NULL","NULL","NULL","NULL","NULL","NULL","NULL","NULL","NULL","NULL","NULL","NULL","NULL","Dishwasher","MANUFACTURER","Manufacturer Name","F","Alphanumeric",64,"ED","MODEL","Model","F","Alphanumeric",64,"ED","NULL","NULL","F","NULL","NULL","NULL","NULL","NULL","F","NULL","NULL","NULL","NULL","NULL","F","NULL","NULL","NULL","NULL","NULL","F","NULL","NULL","NULL","NULL","NULL","F","NULL","NULL","NULL","NULL","NULL","F","NULL","NULL","NULL","NULL","NULL","F","NULL","NULL","NULL","NULL","NULL","F","NULL","NULL","NULL","NULL","NULL","F","NULL","NULL","NULL","NULL","NULL","F","NULL","NULL","NULL","NULL","NULL","F","NULL","NULL","NULL","NULL","NULL","F","NULL","NULL","NULL","NULL","NULL","F","NULL","NULL","NULL","NULL","NULL","F","NULL","NULL","NULL","NULL","NULL","F","NULL","NULL","NULL",45643.145391122685,45643.145391122685]
[19747,"Yes","Prescriptive","DWSTCONHTEMP","Dishwasher - Single Tank Conveyor - High temp - Ele WH","Dishwasher","Appliance","ELE","DHW",1022,35,4,6642,"OR","NBE","New Buildings",45658,46752,"Units",0,0,9402.4,0,0,0,"Restaurant Hot Water","Flat - gas",0,900,0,10,0,3539.04,0,0,0,1,1,0,"NULL",100,100,"NULL","NULL","NULL","NULL","NULL","NULL","NULL","NULL","NULL","NULL","NULL","NULL","NULL","Dishwasher","MANUFACTURER","Manufacturer Name","F","Alphanumeric",64,"ED","MODEL","Model","F","Alphanumeric",64,"ED","NULL","NULL","F","NULL","NULL","NULL","NULL","NULL","F","NULL","NULL","NULL","NULL","NULL","F","NULL","NULL","NULL","NULL","NULL","F","NULL","NULL","NULL","NULL","NULL","F","NULL","NULL","NULL","NULL","NULL","F","NULL","NULL","NULL","NULL","NULL","F","NULL","NULL","NULL","NULL","NULL","F","NULL","NULL","NULL","NULL","NULL","F","NULL","NULL","NULL","NULL","NULL","F","NULL","NULL","NULL","NULL","NULL","F","NULL","NULL","NULL","NULL","NULL","F","NULL","NULL","NULL","NULL","NULL","F","NULL","NULL","NULL","NULL","NULL","F","NULL","NULL","NULL","NULL","NULL","F","NULL","NULL","NULL",45643.145391122685,45643.145391122685]
[19748,"Yes","Prescriptive","DWSTDHTEMP","Dishwasher - Stationary Single Tank Door - High Temp","Dishwasher","Appliance","ELE","DHW",1022,35,4,6641,"OR","NBE","New Buildings",45658,46752,"Units",0,0,1624.25,0,0,0,"Restaurant Hot Water","Flat - gas",0,900,0,10,0,1223.44,0,0,0,1,1,0,"NULL",100,100,"NULL","NULL","NULL","NULL","NULL","NULL","NULL","NULL","NULL","NULL","NULL","NULL","NULL","Dishwasher","MANUFACTURER","Manufacturer Name","F","Alphanumeric",64,"ED","MODEL","Model","F","Alphanumeric",64,"ED","NULL","NULL","F","NULL","NULL","NULL","NULL","NULL","F","NULL","NULL","NULL","NULL","NULL","F","NULL","NULL","NULL","NULL","NULL","F","NULL","NULL","NULL","NULL","NULL","F","NULL","NULL","NULL","NULL","NULL","F","NULL","NULL","NULL","NULL","NULL","F","NULL","NULL","NULL","NULL","NULL","F","NULL","NULL","NULL","NULL","NULL","F","NULL","NULL","NULL","NULL","NULL","F","NULL","NULL","NULL","NULL","NULL","F","NULL","NULL","NULL","NULL","NULL","F","NULL","NULL","NULL","NULL","NULL","F","NULL","NULL","NULL","NULL","NULL","F","NULL","NULL","NULL","NULL","NULL","F","NULL","NULL","NULL",45643.145391122685,45643.145391122685]
[19749,"Yes","Prescriptive","DWUCHTEMP","Dishwasher - Under Counter - High Temp","Dishwasher","Appliance","ELE","DHW",1022,35,4,6640,"OR","NBE","New Buildings",45658,46752,"Units",0,0,1776.33,0,0,0,"Restaurant Hot Water","Flat - gas",0,750,0,10,0,1314.04,0,0,0,1,1,0,"NULL",100,100,"NULL","NULL","NULL","NULL","NULL","NULL","NULL","NULL","NULL","NULL","NULL","NULL","NULL","Dishwasher","MANUFACTURER","Manufacturer Name","F","Alphanumeric",64,"ED","MODEL","Model","F","Alphanumeric",64,"ED","NULL","NULL","F","NULL","NULL","NULL","NULL","NULL","F","NULL","NULL","NULL","NULL","NULL","F","NULL","NULL","NULL","NULL","NULL","F","NULL","NULL","NULL","NULL","NULL","F","NULL","NULL","NULL","NULL","NULL","F","NULL","NULL","NULL","NULL","NULL","F","NULL","NULL","NULL","NULL","NULL","F","NULL","NULL","NULL","NULL","NULL","F","NULL","NULL","NULL","NULL","NULL","F","NULL","NULL","NULL","NULL","NULL","F","NULL","NULL","NULL","NULL","NULL","F","NULL","NULL","NULL","NULL","NULL","F","NULL","NULL","NULL","NULL","NULL","F","NULL","NULL","NULL","NULL","NULL","F","NULL","NULL","NULL",45643.145391122685,45643.145391122685]
[19750,"Yes","Prescriptive","DWUCLTEMP","Dishwasher - Under Counter - Low Temp","Dishwasher","Appliance","ELE","DHW",1022,35,4,6639,"OR","NBE","New Buildings",45658,46752,"Units",0,0,1690.73,0,0,0,"Restaurant Hot Water","Flat - gas",0,750,0,10,0,771.52,0,0,0,1,1,0,"NULL",100,100,"NULL","NULL","NULL","NULL","NULL","NULL","NULL","NULL","NULL","NULL","NULL","NULL","NULL","Dishwasher","MANUFACTURER","Manufacturer Name","F","Alphanumeric",64,"ED","MODEL","Model","F","Alphanumeric",64,"ED","NULL","NULL","F","NULL","NULL","NULL","NULL","NULL","F","NULL","NULL","NULL","NULL","NULL","F","NULL","NULL","NULL","NULL","NULL","F","NULL","NULL","NULL","NULL","NULL","F","NULL","NULL","NULL","NULL","NULL","F","NULL","NULL","NULL","NULL","NULL","F","NULL","NULL","NULL","NULL","NULL","F","NULL","NULL","NULL","NULL","NULL","F","NULL","NULL","NULL","NULL","NULL","F","NULL","NULL","NULL","NULL","NULL","F","NULL","NULL","NULL","NULL","NULL","F","NULL","NULL","NULL","NULL","NULL","F","NULL","NULL","NULL","NULL","NULL","F","NULL","NULL","NULL","NULL","NULL","F","NULL","NULL","NULL",45643.145391122685,45643.145391122685]
[19861,"Yes","Prescriptive","HHCECMSC1614HP","Hydronic heating circulator pump >1/6 - =1/4 horsepower","Recirculation Pump Control","Pumps","ELE","N/A",996,247,3,6251,"OR","NBE","New Buildings",45658,46752,"Units",0,0,171.33,0,0,0,"Other Heating","None - gas",0,250,0,14,0,272.82,0,0,0,1,1,0,"NULL",100,100,"NULL","NULL","NULL","NULL","NULL","NULL","NULL","NULL","NULL","NULL","NULL","NULL","NULL","No Attributes ","NULL","NULL","F","NULL","NULL","NULL","NULL","NULL","F","NULL","NULL","NULL","NULL","NULL","F","NULL","NULL","NULL","NULL","NULL","F","NULL","NULL","NULL","NULL","NULL","F","NULL","NULL","NULL","NULL","NULL","F","NULL","NULL","NULL","NULL","NULL","F","NULL","NULL","NULL","NULL","NULL","F","NULL","NULL","NULL","NULL","NULL","F","NULL","NULL","NULL","NULL","NULL","F","NULL","NULL","NULL","NULL","NULL","F","NULL","NULL","NULL","NULL","NULL","F","NULL","NULL","NULL","NULL","NULL","F","NULL","NULL","NULL","NULL","NULL","F","NULL","NULL","NULL","NULL","NULL","F","NULL","NULL","NULL","NULL","NULL","F","NULL","NULL","NULL","NULL","NULL","F","NULL","NULL","NULL",45643.145391122685,45643.145391122685]
[19863,"Yes","Prescriptive","HHCECMSC450500HP","Hydronic heating circulator pump >4.5 -  =5 horsepower","Recirculation Pump Control","Pumps","ELE","N/A",996,247,3,6259,"OR","NBE","New Buildings",45658,46752,"Units",0,0,2182.29,0,0,0,"Other Heating","None - gas",0,750,0,14,0,1876.49,0,0,0,1,1,0,"NULL",100,100,"NULL","NULL","NULL","NULL","NULL","NULL","NULL","NULL","NULL","NULL","NULL","NULL","NULL","No Attributes ","NULL","NULL","F","NULL","NULL","NULL","NULL","NULL","F","NULL","NULL","NULL","NULL","NULL","F","NULL","NULL","NULL","NULL","NULL","F","NULL","NULL","NULL","NULL","NULL","F","NULL","NULL","NULL","NULL","NULL","F","NULL","NULL","NULL","NULL","NULL","F","NULL","NULL","NULL","NULL","NULL","F","NULL","NULL","NULL","NULL","NULL","F","NULL","NULL","NULL","NULL","NULL","F","NULL","NULL","NULL","NULL","NULL","F","NULL","NULL","NULL","NULL","NULL","F","NULL","NULL","NULL","NULL","NULL","F","NULL","NULL","NULL","NULL","NULL","F","NULL","NULL","NULL","NULL","NULL","F","NULL","NULL","NULL","NULL","NULL","F","NULL","NULL","NULL","NULL","NULL","F","NULL","NULL","NULL",45643.145391122685,45643.145391122685]
[19864,"Yes","Prescriptive","HHCECMSC350450HP","Hydronic heating circulator pump >3.5 -  =4.5 horsepower","Recirculation Pump Control","Pumps","ELE","N/A",996,247,3,6258,"OR","NBE","New Buildings",45658,46752,"Units",0,0,1745.83,0,0,0,"Other Heating","None - gas",0,750,0,14,0,1501.19,0,0,0,1,1,0,"NULL",100,100,"NULL","NULL","NULL","NULL","NULL","NULL","NULL","NULL","NULL","NULL","NULL","NULL","NULL","No Attributes ","NULL","NULL","F","NULL","NULL","NULL","NULL","NULL","F","NULL","NULL","NULL","NULL","NULL","F","NULL","NULL","NULL","NULL","NULL","F","NULL","NULL","NULL","NULL","NULL","F","NULL","NULL","NULL","NULL","NULL","F","NULL","NULL","NULL","NULL","NULL","F","NULL","NULL","NULL","NULL","NULL","F","NULL","NULL","NULL","NULL","NULL","F","NULL","NULL","NULL","NULL","NULL","F","NULL","NULL","NULL","NULL","NULL","F","NULL","NULL","NULL","NULL","NULL","F","NULL","NULL","NULL","NULL","NULL","F","NULL","NULL","NULL","NULL","NULL","F","NULL","NULL","NULL","NULL","NULL","F","NULL","NULL","NULL","NULL","NULL","F","NULL","NULL","NULL","NULL","NULL","F","NULL","NULL","NULL",45643.145391122685,45643.145391122685]
[19865,"Yes","Prescriptive","HHCECMSC250350HP","Hydronic heating circulator pump >2.5 -  =3.5 horsepower","Recirculation Pump Control","Pumps","ELE","N/A",996,247,3,6257,"OR","NBE","New Buildings",45658,46752,"Units",0,0,1309.3699999999999,0,0,0,"Other Heating","None - gas",0,750,0,14,0,1125.8900000000001,0,0,0,1,1,0,"NULL",100,100,"NULL","NULL","NULL","NULL","NULL","NULL","NULL","NULL","NULL","NULL","NULL","NULL","NULL","No Attributes ","NULL","NULL","F","NULL","NULL","NULL","NULL","NULL","F","NULL","NULL","NULL","NULL","NULL","F","NULL","NULL","NULL","NULL","NULL","F","NULL","NULL","NULL","NULL","NULL","F","NULL","NULL","NULL","NULL","NULL","F","NULL","NULL","NULL","NULL","NULL","F","NULL","NULL","NULL","NULL","NULL","F","NULL","NULL","NULL","NULL","NULL","F","NULL","NULL","NULL","NULL","NULL","F","NULL","NULL","NULL","NULL","NULL","F","NULL","NULL","NULL","NULL","NULL","F","NULL","NULL","NULL","NULL","NULL","F","NULL","NULL","NULL","NULL","NULL","F","NULL","NULL","NULL","NULL","NULL","F","NULL","NULL","NULL","NULL","NULL","F","NULL","NULL","NULL","NULL","NULL","F","NULL","NULL","NULL",45643.145391122685,45643.145391122685]
[19866,"Yes","Prescriptive","HHCECMSC175250HP","Hydronic heating circulator pump >1.75 -  =2.5 horsepower","Recirculation Pump Control","Pumps","ELE","N/A",996,247,3,6256,"OR","NBE","New Buildings",45658,46752,"Units",0,0,872.92,0,0,0,"Other Heating","None - gas",0,300,0,14,0,750.6,0,0,0,1,1,0,"NULL",100,100,"NULL","NULL","NULL","NULL","NULL","NULL","NULL","NULL","NULL","NULL","NULL","NULL","NULL","No Attributes ","NULL","NULL","F","NULL","NULL","NULL","NULL","NULL","F","NULL","NULL","NULL","NULL","NULL","F","NULL","NULL","NULL","NULL","NULL","F","NULL","NULL","NULL","NULL","NULL","F","NULL","NULL","NULL","NULL","NULL","F","NULL","NULL","NULL","NULL","NULL","F","NULL","NULL","NULL","NULL","NULL","F","NULL","NULL","NULL","NULL","NULL","F","NULL","NULL","NULL","NULL","NULL","F","NULL","NULL","NULL","NULL","NULL","F","NULL","NULL","NULL","NULL","NULL","F","NULL","NULL","NULL","NULL","NULL","F","NULL","NULL","NULL","NULL","NULL","F","NULL","NULL","NULL","NULL","NULL","F","NULL","NULL","NULL","NULL","NULL","F","NULL","NULL","NULL","NULL","NULL","F","NULL","NULL","NULL",45643.145391122685,45643.145391122685]
[19867,"Yes","Prescriptive","HHCECMSC075125HP","Hydronic heating circulator pump >3/4 -  =1.25 horsepower","Recirculation Pump Control","Pumps","ELE","N/A",996,247,3,6254,"OR","NBE","New Buildings",45658,46752,"Units",0,0,436.46,0,0,0,"Other Heating","None - gas",0,300,0,14,0,375.3,0,0,0,1,1,0,"NULL",100,100,"NULL","NULL","NULL","NULL","NULL","NULL","NULL","NULL","NULL","NULL","NULL","NULL","NULL","No Attributes ","NULL","NULL","F","NULL","NULL","NULL","NULL","NULL","F","NULL","NULL","NULL","NULL","NULL","F","NULL","NULL","NULL","NULL","NULL","F","NULL","NULL","NULL","NULL","NULL","F","NULL","NULL","NULL","NULL","NULL","F","NULL","NULL","NULL","NULL","NULL","F","NULL","NULL","NULL","NULL","NULL","F","NULL","NULL","NULL","NULL","NULL","F","NULL","NULL","NULL","NULL","NULL","F","NULL","NULL","NULL","NULL","NULL","F","NULL","NULL","NULL","NULL","NULL","F","NULL","NULL","NULL","NULL","NULL","F","NULL","NULL","NULL","NULL","NULL","F","NULL","NULL","NULL","NULL","NULL","F","NULL","NULL","NULL","NULL","NULL","F","NULL","NULL","NULL","NULL","NULL","F","NULL","NULL","NULL",45643.145391122685,45643.145391122685]
[19868,"Yes","Prescriptive","HHCECMSC050075HP","Hydronic heating circulator pump >1/2 -  =3/4 horsepower","Recirculation Pump Control","Pumps","ELE","N/A",996,247,3,6253,"OR","NBE","New Buildings",45658,46752,"Units",0,0,348.08,0,0,0,"Other Heating","None - gas",0,250,0,14,0,341.14,0,0,0,1,1,0,"NULL",100,100,"NULL","NULL","NULL","NULL","NULL","NULL","NULL","NULL","NULL","NULL","NULL","NULL","NULL","No Attributes ","NULL","NULL","F","NULL","NULL","NULL","NULL","NULL","F","NULL","NULL","NULL","NULL","NULL","F","NULL","NULL","NULL","NULL","NULL","F","NULL","NULL","NULL","NULL","NULL","F","NULL","NULL","NULL","NULL","NULL","F","NULL","NULL","NULL","NULL","NULL","F","NULL","NULL","NULL","NULL","NULL","F","NULL","NULL","NULL","NULL","NULL","F","NULL","NULL","NULL","NULL","NULL","F","NULL","NULL","NULL","NULL","NULL","F","NULL","NULL","NULL","NULL","NULL","F","NULL","NULL","NULL","NULL","NULL","F","NULL","NULL","NULL","NULL","NULL","F","NULL","NULL","NULL","NULL","NULL","F","NULL","NULL","NULL","NULL","NULL","F","NULL","NULL","NULL","NULL","NULL","F","NULL","NULL","NULL",45643.145391122685,45643.145391122685]
[19869,"Yes","Prescriptive","HHCECMSC025050HP","Hydronic heating circulator pump >1/4 - =1/2 horsepower","Recirculation Pump Control","Pumps","ELE","N/A",996,247,3,6252,"OR","NBE","New Buildings",45658,46752,"Units",0,0,259.70999999999998,0,0,0,"Other Heating","None - gas",0,250,0,14,0,306.98,0,0,0,1,1,0,"NULL",100,100,"NULL","NULL","NULL","NULL","NULL","NULL","NULL","NULL","NULL","NULL","NULL","NULL","NULL","No Attributes ","NULL","NULL","F","NULL","NULL","NULL","NULL","NULL","F","NULL","NULL","NULL","NULL","NULL","F","NULL","NULL","NULL","NULL","NULL","F","NULL","NULL","NULL","NULL","NULL","F","NULL","NULL","NULL","NULL","NULL","F","NULL","NULL","NULL","NULL","NULL","F","NULL","NULL","NULL","NULL","NULL","F","NULL","NULL","NULL","NULL","NULL","F","NULL","NULL","NULL","NULL","NULL","F","NULL","NULL","NULL","NULL","NULL","F","NULL","NULL","NULL","NULL","NULL","F","NULL","NULL","NULL","NULL","NULL","F","NULL","NULL","NULL","NULL","NULL","F","NULL","NULL","NULL","NULL","NULL","F","NULL","NULL","NULL","NULL","NULL","F","NULL","NULL","NULL","NULL","NULL","F","NULL","NULL","NULL",45643.145391122685,45643.145391122685]
[19870,"Yes","Prescriptive","HHCECMSC125175HP","Hydronic heating circulator pump >1.25 -  =1.75 horsepower","Recirculation Pump Control","Pumps","ELE","N/A",996,247,3,6255,"OR","NBE","New Buildings",45658,46752,"Units",0,0,654.69000000000005,0,0,0,"Other Heating","None - gas",0,300,0,14,0,562.95000000000005,0,0,0,1,1,0,"NULL",100,100,"NULL","NULL","NULL","NULL","NULL","NULL","NULL","NULL","NULL","NULL","NULL","NULL","NULL","No Attributes ","NULL","NULL","F","NULL","NULL","NULL","NULL","NULL","F","NULL","NULL","NULL","NULL","NULL","F","NULL","NULL","NULL","NULL","NULL","F","NULL","NULL","NULL","NULL","NULL","F","NULL","NULL","NULL","NULL","NULL","F","NULL","NULL","NULL","NULL","NULL","F","NULL","NULL","NULL","NULL","NULL","F","NULL","NULL","NULL","NULL","NULL","F","NULL","NULL","NULL","NULL","NULL","F","NULL","NULL","NULL","NULL","NULL","F","NULL","NULL","NULL","NULL","NULL","F","NULL","NULL","NULL","NULL","NULL","F","NULL","NULL","NULL","NULL","NULL","F","NULL","NULL","NULL","NULL","NULL","F","NULL","NULL","NULL","NULL","NULL","F","NULL","NULL","NULL","NULL","NULL","F","NULL","NULL","NULL",45643.145391122685,45643.145391122685]
[19879,"Yes","Prescriptive","BROILER2026EOT","Conveyor Broilers 20-26\", Elec Only Territory","Food equipment","Food Service","ELE","N/A",1020,101,6,6626,"OR","NBE","New Buildings",45658,46752,"Units",0,0,6403.32,0,2101.0100000000002,0,"Restaurant Cooking","None - gas",0,3000,0,12,0,3876.17,0,0,0,1,1,0,"NULL",100,100,"NULL","NULL","NULL","NULL","NULL","NULL","NULL","NULL","NULL","NULL","NULL","NULL","NULL","Food equipment","MODEL","Model","T","Alphanumeric",64,"ED","MANUFACTURER","Manufacturer Name","T","Alphanumeric",64,"ED","NULL","NULL","F","NULL","NULL","NULL","NULL","NULL","F","NULL","NULL","NULL","NULL","NULL","F","NULL","NULL","NULL","NULL","NULL","F","NULL","NULL","NULL","NULL","NULL","F","NULL","NULL","NULL","NULL","NULL","F","NULL","NULL","NULL","NULL","NULL","F","NULL","NULL","NULL","NULL","NULL","F","NULL","NULL","NULL","NULL","NULL","F","NULL","NULL","NULL","NULL","NULL","F","NULL","NULL","NULL","NULL","NULL","F","NULL","NULL","NULL","NULL","NULL","F","NULL","NULL","NULL","NULL","NULL","F","NULL","NULL","NULL","NULL","NULL","F","NULL","NULL","NULL","NULL","NULL","F","NULL","NULL","NULL",45658.142722141201,45658.142722141201]
[19880,"Yes","Prescriptive","BROILER20EOT","Conveyor Broilers <20\", Elec Only Territory","Food equipment","Food Service","ELE","N/A",1020,101,6,6625,"OR","NBE","New Buildings",45658,46752,"Units",0,0,7143.84,0,1244.94,0,"Restaurant Cooking","None - gas",0,2500,0,12,0,3108.74,0,0,0,1,1,0,"NULL",100,100,"NULL","NULL","NULL","NULL","NULL","NULL","NULL","NULL","NULL","NULL","NULL","NULL","NULL","Food equipment","MODEL","Model","T","Alphanumeric",64,"ED","MANUFACTURER","Manufacturer Name","T","Alphanumeric",64,"ED","NULL","NULL","F","NULL","NULL","NULL","NULL","NULL","F","NULL","NULL","NULL","NULL","NULL","F","NULL","NULL","NULL","NULL","NULL","F","NULL","NULL","NULL","NULL","NULL","F","NULL","NULL","NULL","NULL","NULL","F","NULL","NULL","NULL","NULL","NULL","F","NULL","NULL","NULL","NULL","NULL","F","NULL","NULL","NULL","NULL","NULL","F","NULL","NULL","NULL","NULL","NULL","F","NULL","NULL","NULL","NULL","NULL","F","NULL","NULL","NULL","NULL","NULL","F","NULL","NULL","NULL","NULL","NULL","F","NULL","NULL","NULL","NULL","NULL","F","NULL","NULL","NULL","NULL","NULL","F","NULL","NULL","NULL",45658.142722141201,45658.142722141201]
[19881,"Yes","Prescriptive","GASGRIDSING","GAS Griddles - Single-sided","Food equipment","Food Service","GAS","N/A",1021,101,6,6631,"WA","NBE","New Buildings",45658,46752,"Units",0,0,0,207.07,0,0,"None - ele","Com Cooking",0,1000,0,8,0,1230.04,0,0,0,1,1,0,"NULL","NULL","NULL","NULL","NULL","NULL","NULL",100,"NULL","NULL","NULL","NULL","NULL","NULL","NULL","NULL","Food equipment","MODEL","Model","T","Alphanumeric",64,"ED","MANUFACTURER","Manufacturer Name","T","Alphanumeric",64,"ED","NULL","NULL","F","NULL","NULL","NULL","NULL","NULL","F","NULL","NULL","NULL","NULL","NULL","F","NULL","NULL","NULL","NULL","NULL","F","NULL","NULL","NULL","NULL","NULL","F","NULL","NULL","NULL","NULL","NULL","F","NULL","NULL","NULL","NULL","NULL","F","NULL","NULL","NULL","NULL","NULL","F","NULL","NULL","NULL","NULL","NULL","F","NULL","NULL","NULL","NULL","NULL","F","NULL","NULL","NULL","NULL","NULL","F","NULL","NULL","NULL","NULL","NULL","F","NULL","NULL","NULL","NULL","NULL","F","NULL","NULL","NULL","NULL","NULL","F","NULL","NULL","NULL","NULL","NULL","F","NULL","NULL","NULL",45660.131294675928,45660.131294675928]
[19882,"Yes","Prescriptive","ELECGRIDSING","Electric Griddles - Single-sided","Food equipment","Food Service","ELE","N/A",1020,101,6,6611,"OR","NBE","New Buildings",45658,46752,"Units",0,0,1781.15,0,0,0,"Restaurant Cooking","None - gas",0,1000,0,8,0,1508.37,0,0,0,1,1,0,"NULL",100,100,"NULL","NULL","NULL","NULL","NULL","NULL","NULL","NULL","NULL","NULL","NULL","NULL","NULL","Food equipment","MODEL","Model","T","Alphanumeric",64,"ED","MANUFACTURER","Manufacturer Name","T","Alphanumeric",64,"ED","NULL","NULL","F","NULL","NULL","NULL","NULL","NULL","F","NULL","NULL","NULL","NULL","NULL","F","NULL","NULL","NULL","NULL","NULL","F","NULL","NULL","NULL","NULL","NULL","F","NULL","NULL","NULL","NULL","NULL","F","NULL","NULL","NULL","NULL","NULL","F","NULL","NULL","NULL","NULL","NULL","F","NULL","NULL","NULL","NULL","NULL","F","NULL","NULL","NULL","NULL","NULL","F","NULL","NULL","NULL","NULL","NULL","F","NULL","NULL","NULL","NULL","NULL","F","NULL","NULL","NULL","NULL","NULL","F","NULL","NULL","NULL","NULL","NULL","F","NULL","NULL","NULL","NULL","NULL","F","NULL","NULL","NULL",45660.131294675928,45660.131294675928]
[19883,"Yes","Prescriptive","RACKOVENDOUBGEOT","Rack Oven - Gas/Propane in EOT - Double Rack","Food equipment","Food Service","ELE","N/A",1020,101,6,6601,"OR","NBE","New Buildings",45658,46752,"Units",0,0,522.12,0,117.72,0,"Restaurant Cooking","None - gas",0,600,0,13,0,927.84,0,0,0,1,1,0,"NULL",100,100,"NULL","NULL","NULL","NULL","NULL","NULL","NULL","NULL","NULL","NULL","NULL","NULL","NULL","Food equipment","MODEL","Model","T","Alphanumeric",64,"ED","MANUFACTURER","Manufacturer Name","T","Alphanumeric",64,"ED","NULL","NULL","F","NULL","NULL","NULL","NULL","NULL","F","NULL","NULL","NULL","NULL","NULL","F","NULL","NULL","NULL","NULL","NULL","F","NULL","NULL","NULL","NULL","NULL","F","NULL","NULL","NULL","NULL","NULL","F","NULL","NULL","NULL","NULL","NULL","F","NULL","NULL","NULL","NULL","NULL","F","NULL","NULL","NULL","NULL","NULL","F","NULL","NULL","NULL","NULL","NULL","F","NULL","NULL","NULL","NULL","NULL","F","NULL","NULL","NULL","NULL","NULL","F","NULL","NULL","NULL","NULL","NULL","F","NULL","NULL","NULL","NULL","NULL","F","NULL","NULL","NULL","NULL","NULL","F","NULL","NULL","NULL",45660.131294675928,45660.131294675928]
[19884,"Yes","Prescriptive","RACKOVENDOUBGOT","Rack Oven - Gas Only  - Double Rack","Food equipment","Food Service","GAS","N/A",1020,101,6,6602,"OR","NBE","New Buildings",45658,46752,"Units",0,0,0,108.3,76.12,0,"None - ele","Flat - gas",0,900,0,13,0,927.84,0,0,0,1,1,0,100,"NULL","NULL",100,100,100,100,"NULL","NULL","NULL","NULL","NULL","NULL",100,100,100,"Food equipment","MODEL","Model","T","Alphanumeric",64,"ED","MANUFACTURER","Manufacturer Name","T","Alphanumeric",64,"ED","NULL","NULL","F","NULL","NULL","NULL","NULL","NULL","F","NULL","NULL","NULL","NULL","NULL","F","NULL","NULL","NULL","NULL","NULL","F","NULL","NULL","NULL","NULL","NULL","F","NULL","NULL","NULL","NULL","NULL","F","NULL","NULL","NULL","NULL","NULL","F","NULL","NULL","NULL","NULL","NULL","F","NULL","NULL","NULL","NULL","NULL","F","NULL","NULL","NULL","NULL","NULL","F","NULL","NULL","NULL","NULL","NULL","F","NULL","NULL","NULL","NULL","NULL","F","NULL","NULL","NULL","NULL","NULL","F","NULL","NULL","NULL","NULL","NULL","F","NULL","NULL","NULL","NULL","NULL","F","NULL","NULL","NULL",45660.131294675928,45660.131294675928]
[19885,"Yes","Prescriptive","RACKOVENDOUBGAS","Rack Oven - Gas - Double Rack","Food equipment","Food Service","BOTH","N/A",1020,101,6,6600,"OR","NBE","New Buildings",45658,46752,"Units",0,0,522.12,108.3,0,0,"Restaurant Cooking","Flat - gas",0,900,0,13,0,927.84,0,0,0,1,1,0,71,29,29,71,71,71,71,"NULL","NULL","NULL","NULL","NULL","NULL",71,71,71,"Food equipment","MODEL","Model","T","Alphanumeric",64,"ED","MANUFACTURER","Manufacturer Name","T","Alphanumeric",64,"ED","NULL","NULL","F","NULL","NULL","NULL","NULL","NULL","F","NULL","NULL","NULL","NULL","NULL","F","NULL","NULL","NULL","NULL","NULL","F","NULL","NULL","NULL","NULL","NULL","F","NULL","NULL","NULL","NULL","NULL","F","NULL","NULL","NULL","NULL","NULL","F","NULL","NULL","NULL","NULL","NULL","F","NULL","NULL","NULL","NULL","NULL","F","NULL","NULL","NULL","NULL","NULL","F","NULL","NULL","NULL","NULL","NULL","F","NULL","NULL","NULL","NULL","NULL","F","NULL","NULL","NULL","NULL","NULL","F","NULL","NULL","NULL","NULL","NULL","F","NULL","NULL","NULL","NULL","NULL","F","NULL","NULL","NULL",45660.131294675928,45660.131294675928]
[19886,"Yes","Prescriptive","BROILER26GOT","Conveyor Broilers >26\", Gas Only Territory","Food equipment","Food Service","GAS","N/A",1020,101,6,6630,"OR","NBE","New Buildings",45658,46752,"Units",0,0,0,3161.26,3476.9,0,"None - ele","Flat - gas",0,3500,0,12,0,4507.99,0,0,0,1,1,0,100,"NULL","NULL",100,100,100,100,"NULL","NULL","NULL","NULL","NULL","NULL",100,100,100,"Food equipment","MODEL","Model","T","Alphanumeric",64,"ED","MANUFACTURER","Manufacturer Name","T","Alphanumeric",64,"ED","NULL","NULL","F","NULL","NULL","NULL","NULL","NULL","F","NULL","NULL","NULL","NULL","NULL","F","NULL","NULL","NULL","NULL","NULL","F","NULL","NULL","NULL","NULL","NULL","F","NULL","NULL","NULL","NULL","NULL","F","NULL","NULL","NULL","NULL","NULL","F","NULL","NULL","NULL","NULL","NULL","F","NULL","NULL","NULL","NULL","NULL","F","NULL","NULL","NULL","NULL","NULL","F","NULL","NULL","NULL","NULL","NULL","F","NULL","NULL","NULL","NULL","NULL","F","NULL","NULL","NULL","NULL","NULL","F","NULL","NULL","NULL","NULL","NULL","F","NULL","NULL","NULL","NULL","NULL","F","NULL","NULL","NULL",45660.131294675928,45660.131294675928]
[19887,"Yes","Prescriptive","BROILER2026GOT","Conveyor Broilers 20-26\", Gas Only Territory","Food equipment","Food Service","GAS","N/A",1020,101,6,6629,"OR","NBE","New Buildings",45658,46752,"Units",0,0,0,1932.84,933.52,0,"None - ele","Flat - gas",0,3000,0,12,0,3876.17,0,0,0,1,1,0,100,"NULL","NULL",100,100,100,100,"NULL","NULL","NULL","NULL","NULL","NULL",100,100,100,"Food equipment","MODEL","Model","T","Alphanumeric",64,"ED","MANUFACTURER","Manufacturer Name","T","Alphanumeric",64,"ED","NULL","NULL","F","NULL","NULL","NULL","NULL","NULL","F","NULL","NULL","NULL","NULL","NULL","F","NULL","NULL","NULL","NULL","NULL","F","NULL","NULL","NULL","NULL","NULL","F","NULL","NULL","NULL","NULL","NULL","F","NULL","NULL","NULL","NULL","NULL","F","NULL","NULL","NULL","NULL","NULL","F","NULL","NULL","NULL","NULL","NULL","F","NULL","NULL","NULL","NULL","NULL","F","NULL","NULL","NULL","NULL","NULL","F","NULL","NULL","NULL","NULL","NULL","F","NULL","NULL","NULL","NULL","NULL","F","NULL","NULL","NULL","NULL","NULL","F","NULL","NULL","NULL","NULL","NULL","F","NULL","NULL","NULL",45660.131294675928,45660.131294675928]
[19888,"Yes","Prescriptive","BROILER20GOT","Conveyor Broilers <20\", Gas Only Territory","Food equipment","Food Service","GAS","N/A",1020,101,6,6628,"OR","NBE","New Buildings",45658,46752,"Units",0,0,0,1145.29,1041.48,0,"None - ele","Flat - gas",0,2500,0,12,0,3108.74,0,0,0,1,1,0,100,"NULL","NULL",100,100,100,100,"NULL","NULL","NULL","NULL","NULL","NULL",100,100,100,"Food equipment","MODEL","Model","T","Alphanumeric",64,"ED","MANUFACTURER","Manufacturer Name","T","Alphanumeric",64,"ED","NULL","NULL","F","NULL","NULL","NULL","NULL","NULL","F","NULL","NULL","NULL","NULL","NULL","F","NULL","NULL","NULL","NULL","NULL","F","NULL","NULL","NULL","NULL","NULL","F","NULL","NULL","NULL","NULL","NULL","F","NULL","NULL","NULL","NULL","NULL","F","NULL","NULL","NULL","NULL","NULL","F","NULL","NULL","NULL","NULL","NULL","F","NULL","NULL","NULL","NULL","NULL","F","NULL","NULL","NULL","NULL","NULL","F","NULL","NULL","NULL","NULL","NULL","F","NULL","NULL","NULL","NULL","NULL","F","NULL","NULL","NULL","NULL","NULL","F","NULL","NULL","NULL","NULL","NULL","F","NULL","NULL","NULL",45660.131294675928,45660.131294675928]
[19889,"Yes","Prescriptive","ELESTEAMCOOKBOIL5PNS","Electric Steam Cooker - Boilerless 5+ Pans - Non-School ","Food equipment","Food Service","ELE","N/A",1020,101,6,6614,"OR","NBE","New Buildings",45658,46752,"Units",0,0,1758.38,0,25.6,0,"Restaurant Cooking","None - gas",0,600,0,12,0,1,0,0,0,1,1,0,"NULL",100,100,"NULL","NULL","NULL","NULL","NULL","NULL","NULL","NULL","NULL","NULL","NULL","NULL","NULL","Food equipment","MODEL","Model","T","Alphanumeric",64,"ED","MANUFACTURER","Manufacturer Name","T","Alphanumeric",64,"ED","NULL","NULL","F","NULL","NULL","NULL","NULL","NULL","F","NULL","NULL","NULL","NULL","NULL","F","NULL","NULL","NULL","NULL","NULL","F","NULL","NULL","NULL","NULL","NULL","F","NULL","NULL","NULL","NULL","NULL","F","NULL","NULL","NULL","NULL","NULL","F","NULL","NULL","NULL","NULL","NULL","F","NULL","NULL","NULL","NULL","NULL","F","NULL","NULL","NULL","NULL","NULL","F","NULL","NULL","NULL","NULL","NULL","F","NULL","NULL","NULL","NULL","NULL","F","NULL","NULL","NULL","NULL","NULL","F","NULL","NULL","NULL","NULL","NULL","F","NULL","NULL","NULL","NULL","NULL","F","NULL","NULL","NULL",45660.131294675928,45660.131294675928]
[19890,"Yes","Prescriptive","BROILER26EOT","Conveyor Broilers >26\", Elec Only Territory","Food equipment","Food Service","ELE","N/A",1020,101,6,6627,"OR","NBE","New Buildings",45658,46752,"Units",0,0,23849.1,0,3436.33,0,"Restaurant Cooking","None - gas",0,3500,0,12,0,4507.99,0,0,0,1,1,0,"NULL",100,100,"NULL","NULL","NULL","NULL","NULL","NULL","NULL","NULL","NULL","NULL","NULL","NULL","NULL","Food equipment","MODEL","Model","T","Alphanumeric",64,"ED","MANUFACTURER","Manufacturer Name","T","Alphanumeric",64,"ED","NULL","NULL","F","NULL","NULL","NULL","NULL","NULL","F","NULL","NULL","NULL","NULL","NULL","F","NULL","NULL","NULL","NULL","NULL","F","NULL","NULL","NULL","NULL","NULL","F","NULL","NULL","NULL","NULL","NULL","F","NULL","NULL","NULL","NULL","NULL","F","NULL","NULL","NULL","NULL","NULL","F","NULL","NULL","NULL","NULL","NULL","F","NULL","NULL","NULL","NULL","NULL","F","NULL","NULL","NULL","NULL","NULL","F","NULL","NULL","NULL","NULL","NULL","F","NULL","NULL","NULL","NULL","NULL","F","NULL","NULL","NULL","NULL","NULL","F","NULL","NULL","NULL","NULL","NULL","F","NULL","NULL","NULL",45660.131294675928,45660.131294675928]
[19891,"Yes","Prescriptive","HOTCABINETHALF","Electric Hot Food Holding Cabinet, Half Size","Food equipment","Food Service","ELE","N/A",1020,101,6,6599,"OR","NBE","New Buildings",45658,46752,"Units",0,0,317.3,0,0,0,"Restaurant Cooking","None - gas",0,150,0,12,0,150.41999999999999,0,0,0,1,1,0,"NULL",100,100,"NULL","NULL","NULL","NULL","NULL","NULL","NULL","NULL","NULL","NULL","NULL","NULL","NULL","Food equipment","MODEL","Model","T","Alphanumeric",64,"ED","MANUFACTURER","Manufacturer Name","T","Alphanumeric",64,"ED","NULL","NULL","F","NULL","NULL","NULL","NULL","NULL","F","NULL","NULL","NULL","NULL","NULL","F","NULL","NULL","NULL","NULL","NULL","F","NULL","NULL","NULL","NULL","NULL","F","NULL","NULL","NULL","NULL","NULL","F","NULL","NULL","NULL","NULL","NULL","F","NULL","NULL","NULL","NULL","NULL","F","NULL","NULL","NULL","NULL","NULL","F","NULL","NULL","NULL","NULL","NULL","F","NULL","NULL","NULL","NULL","NULL","F","NULL","NULL","NULL","NULL","NULL","F","NULL","NULL","NULL","NULL","NULL","F","NULL","NULL","NULL","NULL","NULL","F","NULL","NULL","NULL","NULL","NULL","F","NULL","NULL","NULL",45660.131294675928,45660.131294675928]
[19892,"Yes","Prescriptive","GASCONOVENES3FULL","Gas Convection Oven - Full Size - Energy Star 3.0","Food equipment","Food Service","GAS","N/A",1020,101,6,6604,"OR","NBE","New Buildings",45658,46752,"Units",0,0,0,157.80000000000001,0,0,"None - ele","Flat - gas",0,500,0,12,0,1397.13,0,0,0,1,1,0,100,"NULL","NULL",100,100,100,100,"NULL","NULL","NULL","NULL","NULL","NULL",100,100,100,"Food equipment","MODEL","Model","T","Alphanumeric",64,"ED","MANUFACTURER","Manufacturer Name","T","Alphanumeric",64,"ED","NULL","NULL","F","NULL","NULL","NULL","NULL","NULL","F","NULL","NULL","NULL","NULL","NULL","F","NULL","NULL","NULL","NULL","NULL","F","NULL","NULL","NULL","NULL","NULL","F","NULL","NULL","NULL","NULL","NULL","F","NULL","NULL","NULL","NULL","NULL","F","NULL","NULL","NULL","NULL","NULL","F","NULL","NULL","NULL","NULL","NULL","F","NULL","NULL","NULL","NULL","NULL","F","NULL","NULL","NULL","NULL","NULL","F","NULL","NULL","NULL","NULL","NULL","F","NULL","NULL","NULL","NULL","NULL","F","NULL","NULL","NULL","NULL","NULL","F","NULL","NULL","NULL","NULL","NULL","F","NULL","NULL","NULL",45660.131294675928,45660.131294675928]
[19893,"Yes","Prescriptive","COMBOOVES3514PANELE","Electric Combination Ovens 5-14 Pan Capacity ESTAR 3.0","Food equipment","Food Service","ELE","N/A",1020,101,6,6605,"OR","NBE","New Buildings",45658,46752,"Units",0,0,1080.67,0,33.94,0,"Restaurant Cooking","None - gas",0,1000,0,12,0,1,0,0,0,1,1,0,"NULL",100,100,"NULL","NULL","NULL","NULL","NULL","NULL","NULL","NULL","NULL","NULL","NULL","NULL","NULL","Food equipment","MODEL","Model","T","Alphanumeric",64,"ED","MANUFACTURER","Manufacturer Name","T","Alphanumeric",64,"ED","NULL","NULL","F","NULL","NULL","NULL","NULL","NULL","F","NULL","NULL","NULL","NULL","NULL","F","NULL","NULL","NULL","NULL","NULL","F","NULL","NULL","NULL","NULL","NULL","F","NULL","NULL","NULL","NULL","NULL","F","NULL","NULL","NULL","NULL","NULL","F","NULL","NULL","NULL","NULL","NULL","F","NULL","NULL","NULL","NULL","NULL","F","NULL","NULL","NULL","NULL","NULL","F","NULL","NULL","NULL","NULL","NULL","F","NULL","NULL","NULL","NULL","NULL","F","NULL","NULL","NULL","NULL","NULL","F","NULL","NULL","NULL","NULL","NULL","F","NULL","NULL","NULL","NULL","NULL","F","NULL","NULL","NULL",45660.131294675928,45660.131294675928]
[19894,"Yes","Prescriptive","COMBOOVES31528PANELE","Electric Combination Ovens 15-28 Pan Capacity ESTAR 3.0","Food equipment","Food Service","ELE","N/A",1020,101,6,6606,"OR","NBE","New Buildings",45658,46752,"Units",0,0,615.74,0,72.8,0,"Restaurant Cooking","None - gas",0,600,0,12,0,1,0,0,0,1,1,0,"NULL",100,100,"NULL","NULL","NULL","NULL","NULL","NULL","NULL","NULL","NULL","NULL","NULL","NULL","NULL","Food equipment","MODEL","Model","T","Alphanumeric",64,"ED","MANUFACTURER","Manufacturer Name","T","Alphanumeric",64,"ED","NULL","NULL","F","NULL","NULL","NULL","NULL","NULL","F","NULL","NULL","NULL","NULL","NULL","F","NULL","NULL","NULL","NULL","NULL","F","NULL","NULL","NULL","NULL","NULL","F","NULL","NULL","NULL","NULL","NULL","F","NULL","NULL","NULL","NULL","NULL","F","NULL","NULL","NULL","NULL","NULL","F","NULL","NULL","NULL","NULL","NULL","F","NULL","NULL","NULL","NULL","NULL","F","NULL","NULL","NULL","NULL","NULL","F","NULL","NULL","NULL","NULL","NULL","F","NULL","NULL","NULL","NULL","NULL","F","NULL","NULL","NULL","NULL","NULL","F","NULL","NULL","NULL","NULL","NULL","F","NULL","NULL","NULL",45660.131294675928,45660.131294675928]
[19895,"Yes","Prescriptive","COMBOOVES32940PANELE","Electric Combination Ovens 29-40 Pan Capacity ESTAR 3.0","Food equipment","Food Service","ELE","N/A",1020,101,6,6607,"OR","NBE","New Buildings",45658,46752,"Units",0,0,4048.1,0,202.53,0,"Restaurant Cooking","None - gas",0,3000,0,12,0,1,0,0,0,1,1,0,"NULL",100,100,"NULL","NULL","NULL","NULL","NULL","NULL","NULL","NULL","NULL","NULL","NULL","NULL","NULL","Food equipment","MODEL","Model","T","Alphanumeric",64,"ED","MANUFACTURER","Manufacturer Name","T","Alphanumeric",64,"ED","NULL","NULL","F","NULL","NULL","NULL","NULL","NULL","F","NULL","NULL","NULL","NULL","NULL","F","NULL","NULL","NULL","NULL","NULL","F","NULL","NULL","NULL","NULL","NULL","F","NULL","NULL","NULL","NULL","NULL","F","NULL","NULL","NULL","NULL","NULL","F","NULL","NULL","NULL","NULL","NULL","F","NULL","NULL","NULL","NULL","NULL","F","NULL","NULL","NULL","NULL","NULL","F","NULL","NULL","NULL","NULL","NULL","F","NULL","NULL","NULL","NULL","NULL","F","NULL","NULL","NULL","NULL","NULL","F","NULL","NULL","NULL","NULL","NULL","F","NULL","NULL","NULL","NULL","NULL","F","NULL","NULL","NULL",45660.131294675928,45660.131294675928]
[19896,"Yes","Prescriptive","COMBOOVES3514PANGAS","Gas Combination Ovens 5-14 Pan Capacity ESTAR 3.0","Food equipment","Food Service","GAS","N/A",1020,101,6,6608,"OR","NBE","New Buildings",45658,46752,"Units",0,0,0,58.81,65.23,0,"None - ele","Flat - gas",0,500,0,12,0,1,0,0,0,1,1,0,100,"NULL","NULL",100,100,100,100,"NULL","NULL","NULL","NULL","NULL","NULL",100,100,100,"Food equipment","MODEL","Model","T","Alphanumeric",64,"ED","MANUFACTURER","Manufacturer Name","T","Alphanumeric",64,"ED","NULL","NULL","F","NULL","NULL","NULL","NULL","NULL","F","NULL","NULL","NULL","NULL","NULL","F","NULL","NULL","NULL","NULL","NULL","F","NULL","NULL","NULL","NULL","NULL","F","NULL","NULL","NULL","NULL","NULL","F","NULL","NULL","NULL","NULL","NULL","F","NULL","NULL","NULL","NULL","NULL","F","NULL","NULL","NULL","NULL","NULL","F","NULL","NULL","NULL","NULL","NULL","F","NULL","NULL","NULL","NULL","NULL","F","NULL","NULL","NULL","NULL","NULL","F","NULL","NULL","NULL","NULL","NULL","F","NULL","NULL","NULL","NULL","NULL","F","NULL","NULL","NULL","NULL","NULL","F","NULL","NULL","NULL",45660.131294675928,45660.131294675928]
[19897,"Yes","Prescriptive","COMBOOVES31528PANGAS","Gas Combination Ovens 15-28 Pan Capacity ESTAR 3.0","Food equipment","Food Service","GAS","N/A",1020,101,6,6609,"OR","NBE","New Buildings","2025-01-01","2027-12-31","Units",0,0,0,54.28,124.44,0,"None - ele","Flat - gas",0,500,0,12,0,1,0,0,0,1,1,0,100,"NULL","NULL",100,100,100,100,"NULL","NULL","NULL","NULL","NULL","NULL",100,100,100,"Food equipment","MODEL","Model","T","Alphanumeric",64,"ED","MANUFACTURER","Manufacturer Name","T","Alphanumeric",64,"ED","NULL","NULL","F","NULL","NULL","NULL","NULL","NULL","F","NULL","NULL","NULL","NULL","NULL","F","NULL","NULL","NULL","NULL","NULL","F","NULL","NULL","NULL","NULL","NULL","F","NULL","NULL","NULL","NULL","NULL","F","NULL","NULL","NULL","NULL","NULL","F","NULL","NULL","NULL","NULL","NULL","F","NULL","NULL","NULL","NULL","NULL","F","NULL","NULL","NULL","NULL","NULL","F","NULL","NULL","NULL","NULL","NULL","F","NULL","NULL","NULL","NULL","NULL","F","NULL","NULL","NULL","NULL","NULL","F","NULL","NULL","NULL","NULL","NULL","F","NULL","NULL","NULL","NULL","NULL","F","NULL","NULL","NULL",45660.131294675928,45660.131294675928]
[19898,"Yes","Prescriptive","BROILER20FULL","Conveyor Broilers <20\", Full Territory","Food equipment","Food Service","BOTH","N/A",1020,101,6,6622,"OR","NBE","New Buildings","2025-01-01","2027-12-31","Units",0,0,7143.84,1145.29,0,0,"Restaurant Cooking","Flat - gas",0,2500,0,12,0,3108.74,0,0,0,1,1,0,65,35,35,65,65,65,65,"NULL","NULL","NULL","NULL","NULL","NULL",65,65,65,"Food equipment","MODEL","Model","T","Alphanumeric",64,"ED","MANUFACTURER","Manufacturer Name","T","Alphanumeric",64,"ED","NULL","NULL","F","NULL","NULL","NULL","NULL","NULL","F","NULL","NULL","NULL","NULL","NULL","F","NULL","NULL","NULL","NULL","NULL","F","NULL","NULL","NULL","NULL","NULL","F","NULL","NULL","NULL","NULL","NULL","F","NULL","NULL","NULL","NULL","NULL","F","NULL","NULL","NULL","NULL","NULL","F","NULL","NULL","NULL","NULL","NULL","F","NULL","NULL","NULL","NULL","NULL","F","NULL","NULL","NULL","NULL","NULL","F","NULL","NULL","NULL","NULL","NULL","F","NULL","NULL","NULL","NULL","NULL","F","NULL","NULL","NULL","NULL","NULL","F","NULL","NULL","NULL","NULL","NULL","F","NULL","NULL","NULL",45660.131294675928,45660.131294675928]
[19899,"Yes","Prescriptive","BROILER26FULL","Conveyor Broilers >26\", Full Territory","Food equipment","Food Service","BOTH","N/A",1020,101,6,6624,"OR","NBE","New Buildings","2025-01-01","2027-12-31","Units",0,0,23849.1,3161.26,0,0,"Restaurant Cooking","Flat - gas",0,3500,0,12,0,4507.99,0,0,0,1,1,0,61,39,39,61,61,61,61,"NULL","NULL","NULL","NULL","NULL","NULL",61,61,61,"Food equipment","MODEL","Model","T","Alphanumeric",64,"ED","MANUFACTURER","Manufacturer Name","T","Alphanumeric",64,"ED","NULL","NULL","F","NULL","NULL","NULL","NULL","NULL","F","NULL","NULL","NULL","NULL","NULL","F","NULL","NULL","NULL","NULL","NULL","F","NULL","NULL","NULL","NULL","NULL","F","NULL","NULL","NULL","NULL","NULL","F","NULL","NULL","NULL","NULL","NULL","F","NULL","NULL","NULL","NULL","NULL","F","NULL","NULL","NULL","NULL","NULL","F","NULL","NULL","NULL","NULL","NULL","F","NULL","NULL","NULL","NULL","NULL","F","NULL","NULL","NULL","NULL","NULL","F","NULL","NULL","NULL","NULL","NULL","F","NULL","NULL","NULL","NULL","NULL","F","NULL","NULL","NULL","NULL","NULL","F","NULL","NULL","NULL",45660.131294675928,45660.131294675928]
[19900,"Yes","Prescriptive","BROILER2026FULL","Conveyor Broilers, 20-26\", Full Territory","Food equipment","Food Service","BOTH","N/A",1020,101,6,6623,"OR","NBE","New Buildings","2025-01-01","2027-12-31","Units",0,0,6403.32,1932.84,0,0,"Restaurant Cooking","Flat - gas",0,3000,0,12,0,3876.17,0,0,0,1,1,0,78,22,22,78,78,78,78,"NULL","NULL","NULL","NULL","NULL","NULL",78,78,78,"Food equipment","MODEL","Model","T","Alphanumeric",64,"ED","MANUFACTURER","Manufacturer Name","T","Alphanumeric",64,"ED","NULL","NULL","F","NULL","NULL","NULL","NULL","NULL","F","NULL","NULL","NULL","NULL","NULL","F","NULL","NULL","NULL","NULL","NULL","F","NULL","NULL","NULL","NULL","NULL","F","NULL","NULL","NULL","NULL","NULL","F","NULL","NULL","NULL","NULL","NULL","F","NULL","NULL","NULL","NULL","NULL","F","NULL","NULL","NULL","NULL","NULL","F","NULL","NULL","NULL","NULL","NULL","F","NULL","NULL","NULL","NULL","NULL","F","NULL","NULL","NULL","NULL","NULL","F","NULL","NULL","NULL","NULL","NULL","F","NULL","NULL","NULL","NULL","NULL","F","NULL","NULL","NULL","NULL","NULL","F","NULL","NULL","NULL",45660.131294675928,45660.131294675928]
[19901,"Yes","Prescriptive","GASSTEAMCOOKBOIL3PS","Gas Steam Cooker - Boilerless 3+ Pans - School","Food equipment","Food Service","GAS","N/A",1020,101,6,6621,"OR","NBE","New Buildings","2025-01-01","2027-12-31","Units",0,0,0,111.75,57.2,0,"None - ele","Flat - gas",0,1000,0,12,0,1,0,0,0,1,1,0,100,"NULL","NULL",100,100,100,100,"NULL","NULL","NULL","NULL","NULL","NULL",100,100,100,"Food equipment","MODEL","Model","T","Alphanumeric",64,"ED","MANUFACTURER","Manufacturer Name","T","Alphanumeric",64,"ED","NULL","NULL","F","NULL","NULL","NULL","NULL","NULL","F","NULL","NULL","NULL","NULL","NULL","F","NULL","NULL","NULL","NULL","NULL","F","NULL","NULL","NULL","NULL","NULL","F","NULL","NULL","NULL","NULL","NULL","F","NULL","NULL","NULL","NULL","NULL","F","NULL","NULL","NULL","NULL","NULL","F","NULL","NULL","NULL","NULL","NULL","F","NULL","NULL","NULL","NULL","NULL","F","NULL","NULL","NULL","NULL","NULL","F","NULL","NULL","NULL","NULL","NULL","F","NULL","NULL","NULL","NULL","NULL","F","NULL","NULL","NULL","NULL","NULL","F","NULL","NULL","NULL","NULL","NULL","F","NULL","NULL","NULL",45660.131294675928,45660.131294675928]
[19902,"Yes","Prescriptive","GASSTEAMCOOKGEN3PNS","Gas Steam Cooker - Steam Generator 3+ Pans - Non-School","Food equipment","Food Service","GAS","N/A",1020,101,6,6617,"OR","NBE","New Buildings","2025-01-01","2027-12-31","Units",0,0,0,285.05,322.14,0,"None - ele","Flat - gas",0,1000,0,12,0,5128,0,0,0,1,1,0,100,"NULL","NULL",100,100,100,100,"NULL","NULL","NULL","NULL","NULL","NULL",100,100,100,"Food equipment","MODEL","Model","T","Alphanumeric",64,"ED","MANUFACTURER","Manufacturer Name","T","Alphanumeric",64,"ED","NULL","NULL","F","NULL","NULL","NULL","NULL","NULL","F","NULL","NULL","NULL","NULL","NULL","F","NULL","NULL","NULL","NULL","NULL","F","NULL","NULL","NULL","NULL","NULL","F","NULL","NULL","NULL","NULL","NULL","F","NULL","NULL","NULL","NULL","NULL","F","NULL","NULL","NULL","NULL","NULL","F","NULL","NULL","NULL","NULL","NULL","F","NULL","NULL","NULL","NULL","NULL","F","NULL","NULL","NULL","NULL","NULL","F","NULL","NULL","NULL","NULL","NULL","F","NULL","NULL","NULL","NULL","NULL","F","NULL","NULL","NULL","NULL","NULL","F","NULL","NULL","NULL","NULL","NULL","F","NULL","NULL","NULL",45660.131294675928,45660.131294675928]
[19903,"Yes","Prescriptive","GASSTEAMCOOKBOIL3PNS","Gas Steam Cooker - Boilerless 3+ Pans - Non-School","Food equipment","Food Service","GAS","N/A",1020,101,6,6616,"OR","NBE","New Buildings","2025-01-01","2027-12-31","Units",0,0,0,337.74,117.39,0,"None - ele","Flat - gas",0,1000,0,12,0,1,0,0,0,1,1,0,100,"NULL","NULL",100,100,100,100,"NULL","NULL","NULL","NULL","NULL","NULL",100,100,100,"Food equipment","MODEL","Model","T","Alphanumeric",64,"ED","MANUFACTURER","Manufacturer Name","T","Alphanumeric",64,"ED","NULL","NULL","F","NULL","NULL","NULL","NULL","NULL","F","NULL","NULL","NULL","NULL","NULL","F","NULL","NULL","NULL","NULL","NULL","F","NULL","NULL","NULL","NULL","NULL","F","NULL","NULL","NULL","NULL","NULL","F","NULL","NULL","NULL","NULL","NULL","F","NULL","NULL","NULL","NULL","NULL","F","NULL","NULL","NULL","NULL","NULL","F","NULL","NULL","NULL","NULL","NULL","F","NULL","NULL","NULL","NULL","NULL","F","NULL","NULL","NULL","NULL","NULL","F","NULL","NULL","NULL","NULL","NULL","F","NULL","NULL","NULL","NULL","NULL","F","NULL","NULL","NULL","NULL","NULL","F","NULL","NULL","NULL",45660.131294675928,45660.131294675928]
[19904,"Yes","Prescriptive","ELESTEAMCOOKGEN3PS","Electric Steam Cooker - Generator 3+ Pans - School ","Food equipment","Food Service","ELE","N/A",1020,101,6,6620,"OR","NBE","New Buildings","2025-01-01","2027-12-31","Units",0,0,787.83,0,41.73,0,"School Cooking","None - gas",0,600,0,12,0,1,0,0,0,1,1,0,"NULL",100,100,"NULL","NULL","NULL","NULL","NULL","NULL","NULL","NULL","NULL","NULL","NULL","NULL","NULL","Food equipment","MODEL","Model","T","Alphanumeric",64,"ED","MANUFACTURER","Manufacturer Name","T","Alphanumeric",64,"ED","NULL","NULL","F","NULL","NULL","NULL","NULL","NULL","F","NULL","NULL","NULL","NULL","NULL","F","NULL","NULL","NULL","NULL","NULL","F","NULL","NULL","NULL","NULL","NULL","F","NULL","NULL","NULL","NULL","NULL","F","NULL","NULL","NULL","NULL","NULL","F","NULL","NULL","NULL","NULL","NULL","F","NULL","NULL","NULL","NULL","NULL","F","NULL","NULL","NULL","NULL","NULL","F","NULL","NULL","NULL","NULL","NULL","F","NULL","NULL","NULL","NULL","NULL","F","NULL","NULL","NULL","NULL","NULL","F","NULL","NULL","NULL","NULL","NULL","F","NULL","NULL","NULL","NULL","NULL","F","NULL","NULL","NULL",45660.131294675928,45660.131294675928]
[19905,"Yes","Prescriptive","ELESTEAMCOOKBOIL5PS","Electric Steam Cooker - Boilerless 5+ Pans - School ","Food equipment","Food Service","ELE","N/A",1020,101,6,6619,"OR","NBE","New Buildings","2025-01-01","2027-12-31","Units",0,0,587.47,0,13.03,0,"School Cooking","None - gas",0,600,0,12,0,1,0,0,0,1,1,0,"NULL",100,100,"NULL","NULL","NULL","NULL","NULL","NULL","NULL","NULL","NULL","NULL","NULL","NULL","NULL","Food equipment","MODEL","Model","T","Alphanumeric",64,"ED","MANUFACTURER","Manufacturer Name","T","Alphanumeric",64,"ED","NULL","NULL","F","NULL","NULL","NULL","NULL","NULL","F","NULL","NULL","NULL","NULL","NULL","F","NULL","NULL","NULL","NULL","NULL","F","NULL","NULL","NULL","NULL","NULL","F","NULL","NULL","NULL","NULL","NULL","F","NULL","NULL","NULL","NULL","NULL","F","NULL","NULL","NULL","NULL","NULL","F","NULL","NULL","NULL","NULL","NULL","F","NULL","NULL","NULL","NULL","NULL","F","NULL","NULL","NULL","NULL","NULL","F","NULL","NULL","NULL","NULL","NULL","F","NULL","NULL","NULL","NULL","NULL","F","NULL","NULL","NULL","NULL","NULL","F","NULL","NULL","NULL","NULL","NULL","F","NULL","NULL","NULL",45660.131294675928,45660.131294675928]
[19906,"Yes","Prescriptive","ELESTEAMCOOKBOIL3PS","Electric Steam Cooker - Boilerless 3-4 Pans - School ","Food equipment","Food Service","ELE","N/A",1020,101,6,6618,"OR","NBE","New Buildings","2025-01-01","2027-12-31","Units",0,0,427.77,0,7.98,0,"School Cooking","None - gas",0,400,0,12,0,347,0,0,0,1,1,0,"NULL",100,100,"NULL","NULL","NULL","NULL","NULL","NULL","NULL","NULL","NULL","NULL","NULL","NULL","NULL","Food equipment","MODEL","Model","T","Alphanumeric",64,"ED","MANUFACTURER","Manufacturer Name","T","Alphanumeric",64,"ED","NULL","NULL","F","NULL","NULL","NULL","NULL","NULL","F","NULL","NULL","NULL","NULL","NULL","F","NULL","NULL","NULL","NULL","NULL","F","NULL","NULL","NULL","NULL","NULL","F","NULL","NULL","NULL","NULL","NULL","F","NULL","NULL","NULL","NULL","NULL","F","NULL","NULL","NULL","NULL","NULL","F","NULL","NULL","NULL","NULL","NULL","F","NULL","NULL","NULL","NULL","NULL","F","NULL","NULL","NULL","NULL","NULL","F","NULL","NULL","NULL","NULL","NULL","F","NULL","NULL","NULL","NULL","NULL","F","NULL","NULL","NULL","NULL","NULL","F","NULL","NULL","NULL","NULL","NULL","F","NULL","NULL","NULL",45660.131294675928,45660.131294675928]
[19907,"Yes","Prescriptive","ELESTEAMCOOKGEN3PNS","Electric Steam Cooker - Generator 3+ Pans - Non-School ","Food equipment","Food Service","ELE","N/A",1020,101,6,6615,"OR","NBE","New Buildings","2025-01-01","2027-12-31","Units",0,0,2499.3200000000002,0,131.31,0,"Restaurant Cooking","None - gas",0,2000,0,12,0,1,0,0,0,1,1,0,"NULL",100,100,"NULL","NULL","NULL","NULL","NULL","NULL","NULL","NULL","NULL","NULL","NULL","NULL","NULL","Food equipment","MODEL","Model","T","Alphanumeric",64,"ED","MANUFACTURER","Manufacturer Name","T","Alphanumeric",64,"ED","NULL","NULL","F","NULL","NULL","NULL","NULL","NULL","F","NULL","NULL","NULL","NULL","NULL","F","NULL","NULL","NULL","NULL","NULL","F","NULL","NULL","NULL","NULL","NULL","F","NULL","NULL","NULL","NULL","NULL","F","NULL","NULL","NULL","NULL","NULL","F","NULL","NULL","NULL","NULL","NULL","F","NULL","NULL","NULL","NULL","NULL","F","NULL","NULL","NULL","NULL","NULL","F","NULL","NULL","NULL","NULL","NULL","F","NULL","NULL","NULL","NULL","NULL","F","NULL","NULL","NULL","NULL","NULL","F","NULL","NULL","NULL","NULL","NULL","F","NULL","NULL","NULL","NULL","NULL","F","NULL","NULL","NULL",45660.131294675928,45660.131294675928]
[19908,"Yes","Prescriptive","ELESTEAMCOOKBOIL3PNS","Electric Steam Cooker - Boilerless 3-4 Pans - Non-School ","Food equipment","Food Service","ELE","N/A",1020,101,6,6613,"OR","NBE","New Buildings","2025-01-01","2027-12-31","Units",0,0,1308.9100000000001,0,16.45,0,"Restaurant Cooking","None - gas",0,400,0,12,0,347,0,0,0,1,1,0,"NULL",100,100,"NULL","NULL","NULL","NULL","NULL","NULL","NULL","NULL","NULL","NULL","NULL","NULL","NULL","Food equipment","MODEL","Model","T","Alphanumeric",64,"ED","MANUFACTURER","Manufacturer Name","T","Alphanumeric",64,"ED","NULL","NULL","F","NULL","NULL","NULL","NULL","NULL","F","NULL","NULL","NULL","NULL","NULL","F","NULL","NULL","NULL","NULL","NULL","F","NULL","NULL","NULL","NULL","NULL","F","NULL","NULL","NULL","NULL","NULL","F","NULL","NULL","NULL","NULL","NULL","F","NULL","NULL","NULL","NULL","NULL","F","NULL","NULL","NULL","NULL","NULL","F","NULL","NULL","NULL","NULL","NULL","F","NULL","NULL","NULL","NULL","NULL","F","NULL","NULL","NULL","NULL","NULL","F","NULL","NULL","NULL","NULL","NULL","F","NULL","NULL","NULL","NULL","NULL","F","NULL","NULL","NULL","NULL","NULL","F","NULL","NULL","NULL",45660.131294675928,45660.131294675928]
[19909,"Yes","Prescriptive","COMBOOVES32940PANGAS","Gas Combination Ovens 29-40 Pan Capacity ESTAR 3.0","Food equipment","Food Service","GAS","N/A",1020,101,6,6610,"OR","NBE","New Buildings","2025-01-01","2027-12-31","Units",0,0,0,65.290000000000006,159,0,"None - ele","Flat - gas",0,500,0,12,0,1,0,0,0,1,1,0,100,"NULL","NULL",100,100,100,100,"NULL","NULL","NULL","NULL","NULL","NULL",100,100,100,"Food equipment","MODEL","Model","T","Alphanumeric",64,"ED","MANUFACTURER","Manufacturer Name","T","Alphanumeric",64,"ED","NULL","NULL","F","NULL","NULL","NULL","NULL","NULL","F","NULL","NULL","NULL","NULL","NULL","F","NULL","NULL","NULL","NULL","NULL","F","NULL","NULL","NULL","NULL","NULL","F","NULL","NULL","NULL","NULL","NULL","F","NULL","NULL","NULL","NULL","NULL","F","NULL","NULL","NULL","NULL","NULL","F","NULL","NULL","NULL","NULL","NULL","F","NULL","NULL","NULL","NULL","NULL","F","NULL","NULL","NULL","NULL","NULL","F","NULL","NULL","NULL","NULL","NULL","F","NULL","NULL","NULL","NULL","NULL","F","NULL","NULL","NULL","NULL","NULL","F","NULL","NULL","NULL","NULL","NULL","F","NULL","NULL","NULL",45660.131294675928,45660.131294675928]
[19910,"Yes","Prescriptive","ELECONVOVES3FULL","Electric Convection Oven - Full Size - Energy Star 3.0","Food equipment","Food Service","ELE","N/A",1020,101,6,6603,"OR","NBE","New Buildings","2025-01-01","2027-12-31","Units",0,0,1450.58,0,0,0,"Restaurant Cooking","None - gas",0,1000,0,12,0,1458.38,0,0,0,1,1,0,"NULL",100,100,"NULL","NULL","NULL","NULL","NULL","NULL","NULL","NULL","NULL","NULL","NULL","NULL","NULL","Food equipment","MODEL","Model","T","Alphanumeric",64,"ED","MANUFACTURER","Manufacturer Name","T","Alphanumeric",64,"ED","NULL","NULL","F","NULL","NULL","NULL","NULL","NULL","F","NULL","NULL","NULL","NULL","NULL","F","NULL","NULL","NULL","NULL","NULL","F","NULL","NULL","NULL","NULL","NULL","F","NULL","NULL","NULL","NULL","NULL","F","NULL","NULL","NULL","NULL","NULL","F","NULL","NULL","NULL","NULL","NULL","F","NULL","NULL","NULL","NULL","NULL","F","NULL","NULL","NULL","NULL","NULL","F","NULL","NULL","NULL","NULL","NULL","F","NULL","NULL","NULL","NULL","NULL","F","NULL","NULL","NULL","NULL","NULL","F","NULL","NULL","NULL","NULL","NULL","F","NULL","NULL","NULL","NULL","NULL","F","NULL","NULL","NULL",45660.131294675928,45660.131294675928]
[19923,"Yes","Prescriptive","BFSS10","Bath Fan - Continuous single speed, >=10 cfm/W, <15 cfm/W","Ventilation","HVAC","ELE","N/A",1019,269,2,6591,"OR","NBE","New Buildings","2025-01-01","2027-12-31","Units",0,0,112.63,0,0,0,"Res Other","None - gas",0,25,0,19,0,46,0,0,0,1,1,0,"NULL",100,100,"NULL","NULL","NULL","NULL","NULL","NULL","NULL","NULL","NULL","NULL","NULL","NULL","NULL","No Attributes ","NULL","NULL","F","NULL","NULL","NULL","NULL","NULL","F","NULL","NULL","NULL","NULL","NULL","F","NULL","NULL","NULL","NULL","NULL","F","NULL","NULL","NULL","NULL","NULL","F","NULL","NULL","NULL","NULL","NULL","F","NULL","NULL","NULL","NULL","NULL","F","NULL","NULL","NULL","NULL","NULL","F","NULL","NULL","NULL","NULL","NULL","F","NULL","NULL","NULL","NULL","NULL","F","NULL","NULL","NULL","NULL","NULL","F","NULL","NULL","NULL","NULL","NULL","F","NULL","NULL","NULL","NULL","NULL","F","NULL","NULL","NULL","NULL","NULL","F","NULL","NULL","NULL","NULL","NULL","F","NULL","NULL","NULL","NULL","NULL","F","NULL","NULL","NULL","NULL","NULL","F","NULL","NULL","NULL",45688.119577430552,45688.119577430552]
[19924,"Yes","Prescriptive","BFSS15","Bath Fan - Continuous single speed, >=15 cfm/W","Ventilation","HVAC","ELE","N/A",1019,269,2,6592,"OR","NBE","New Buildings","2025-01-01","2027-12-31","Units",0,0,127.23,0,0,0,"Res Other","None - gas",0,30,0,19,0,59,0,0,0,1,1,0,"NULL",100,100,"NULL","NULL","NULL","NULL","NULL","NULL","NULL","NULL","NULL","NULL","NULL","NULL","NULL","No Attributes ","NULL","NULL","F","NULL","NULL","NULL","NULL","NULL","F","NULL","NULL","NULL","NULL","NULL","F","NULL","NULL","NULL","NULL","NULL","F","NULL","NULL","NULL","NULL","NULL","F","NULL","NULL","NULL","NULL","NULL","F","NULL","NULL","NULL","NULL","NULL","F","NULL","NULL","NULL","NULL","NULL","F","NULL","NULL","NULL","NULL","NULL","F","NULL","NULL","NULL","NULL","NULL","F","NULL","NULL","NULL","NULL","NULL","F","NULL","NULL","NULL","NULL","NULL","F","NULL","NULL","NULL","NULL","NULL","F","NULL","NULL","NULL","NULL","NULL","F","NULL","NULL","NULL","NULL","NULL","F","NULL","NULL","NULL","NULL","NULL","F","NULL","NULL","NULL","NULL","NULL","F","NULL","NULL","NULL",45688.119577430552,45688.119577430552]
[19925,"Yes","Prescriptive","BFTSSM5","Bath Fan - Continuous two-speed, <90 cfm, >=5 cfm/W, <10 cfm/W","Ventilation","HVAC","ELE","N/A",1019,269,2,6593,"OR","NBE","New Buildings","2025-01-01","2027-12-31","Units",0,0,73.3,0,0,0,"Res Other","None - gas",0,15,0,19,0,42,0,0,0,1,1,0,"NULL",100,100,"NULL","NULL","NULL","NULL","NULL","NULL","NULL","NULL","NULL","NULL","NULL","NULL","NULL","No Attributes ","NULL","NULL","F","NULL","NULL","NULL","NULL","NULL","F","NULL","NULL","NULL","NULL","NULL","F","NULL","NULL","NULL","NULL","NULL","F","NULL","NULL","NULL","NULL","NULL","F","NULL","NULL","NULL","NULL","NULL","F","NULL","NULL","NULL","NULL","NULL","F","NULL","NULL","NULL","NULL","NULL","F","NULL","NULL","NULL","NULL","NULL","F","NULL","NULL","NULL","NULL","NULL","F","NULL","NULL","NULL","NULL","NULL","F","NULL","NULL","NULL","NULL","NULL","F","NULL","NULL","NULL","NULL","NULL","F","NULL","NULL","NULL","NULL","NULL","F","NULL","NULL","NULL","NULL","NULL","F","NULL","NULL","NULL","NULL","NULL","F","NULL","NULL","NULL","NULL","NULL","F","NULL","NULL","NULL",45688.119577430552,45688.119577430552]
[19926,"Yes","Prescriptive","BFTSSM10","Bath Fan - Continuous two-speed, <90 cfm, >=10 cfm/W, <15 cfm/W","Ventilation","HVAC","ELE","N/A",1019,269,2,6594,"OR","NBE","New Buildings","2025-01-01","2027-12-31","Units",0,0,119.95,0,0,0,"Res Other","None - gas",0,25,0,19,0,58,0,0,0,1,1,0,"NULL",100,100,"NULL","NULL","NULL","NULL","NULL","NULL","NULL","NULL","NULL","NULL","NULL","NULL","NULL","No Attributes ","NULL","NULL","F","NULL","NULL","NULL","NULL","NULL","F","NULL","NULL","NULL","NULL","NULL","F","NULL","NULL","NULL","NULL","NULL","F","NULL","NULL","NULL","NULL","NULL","F","NULL","NULL","NULL","NULL","NULL","F","NULL","NULL","NULL","NULL","NULL","F","NULL","NULL","NULL","NULL","NULL","F","NULL","NULL","NULL","NULL","NULL","F","NULL","NULL","NULL","NULL","NULL","F","NULL","NULL","NULL","NULL","NULL","F","NULL","NULL","NULL","NULL","NULL","F","NULL","NULL","NULL","NULL","NULL","F","NULL","NULL","NULL","NULL","NULL","F","NULL","NULL","NULL","NULL","NULL","F","NULL","NULL","NULL","NULL","NULL","F","NULL","NULL","NULL","NULL","NULL","F","NULL","NULL","NULL",45688.119577430552,45688.119577430552]
[19927,"Yes","Prescriptive","BFTSSM15","Bath Fan - Continuous two-speed, <90 cfm,  >=15 cfm/W","Ventilation","HVAC","ELE","N/A",1019,269,2,6595,"OR","NBE","New Buildings","2025-01-01","2027-12-31","Units",0,0,135.5,0,0,0,"Res Other","None - gas",0,30,0,19,0,64.64,0,0,0,1,1,0,"NULL",100,100,"NULL","NULL","NULL","NULL","NULL","NULL","NULL","NULL","NULL","NULL","NULL","NULL","NULL","No Attributes ","NULL","NULL","F","NULL","NULL","NULL","NULL","NULL","F","NULL","NULL","NULL","NULL","NULL","F","NULL","NULL","NULL","NULL","NULL","F","NULL","NULL","NULL","NULL","NULL","F","NULL","NULL","NULL","NULL","NULL","F","NULL","NULL","NULL","NULL","NULL","F","NULL","NULL","NULL","NULL","NULL","F","NULL","NULL","NULL","NULL","NULL","F","NULL","NULL","NULL","NULL","NULL","F","NULL","NULL","NULL","NULL","NULL","F","NULL","NULL","NULL","NULL","NULL","F","NULL","NULL","NULL","NULL","NULL","F","NULL","NULL","NULL","NULL","NULL","F","NULL","NULL","NULL","NULL","NULL","F","NULL","NULL","NULL","NULL","NULL","F","NULL","NULL","NULL","NULL","NULL","F","NULL","NULL","NULL",45688.119577430552,45688.119577430552]
[19928,"Yes","Prescriptive","BFTSLG5","Bath Fan - two-speed, >90 cfm, >=5 cfm/W, <10 cfm/W","Ventilation","HVAC","ELE","N/A",1019,269,2,6596,"OR","NBE","New Buildings","2025-01-01","2027-12-31","Units",0,0,70.319999999999993,0,0,0,"Res Other","None - gas",0,15,0,19,0,31.86,0,0,0,1,1,0,"NULL",100,100,"NULL","NULL","NULL","NULL","NULL","NULL","NULL","NULL","NULL","NULL","NULL","NULL","NULL","No Attributes ","NULL","NULL","F","NULL","NULL","NULL","NULL","NULL","F","NULL","NULL","NULL","NULL","NULL","F","NULL","NULL","NULL","NULL","NULL","F","NULL","NULL","NULL","NULL","NULL","F","NULL","NULL","NULL","NULL","NULL","F","NULL","NULL","NULL","NULL","NULL","F","NULL","NULL","NULL","NULL","NULL","F","NULL","NULL","NULL","NULL","NULL","F","NULL","NULL","NULL","NULL","NULL","F","NULL","NULL","NULL","NULL","NULL","F","NULL","NULL","NULL","NULL","NULL","F","NULL","NULL","NULL","NULL","NULL","F","NULL","NULL","NULL","NULL","NULL","F","NULL","NULL","NULL","NULL","NULL","F","NULL","NULL","NULL","NULL","NULL","F","NULL","NULL","NULL","NULL","NULL","F","NULL","NULL","NULL",45688.119577430552,45688.119577430552]
[19929,"Yes","Prescriptive","BFTSLG10","Bath Fan - two-speed, >90 cfm, >=5 cfm/W,  >=10 cfm/W, <15 cfm/W","Ventilation","HVAC","ELE","N/A",1019,269,2,6597,"OR","NBE","New Buildings","2025-01-01","2027-12-31","Units",0,0,119.81,0,0,0,"Res Other","None - gas",0,25,0,19,0,55.86,0,0,0,1,1,0,"NULL",100,100,"NULL","NULL","NULL","NULL","NULL","NULL","NULL","NULL","NULL","NULL","NULL","NULL","NULL","No Attributes ","NULL","NULL","F","NULL","NULL","NULL","NULL","NULL","F","NULL","NULL","NULL","NULL","NULL","F","NULL","NULL","NULL","NULL","NULL","F","NULL","NULL","NULL","NULL","NULL","F","NULL","NULL","NULL","NULL","NULL","F","NULL","NULL","NULL","NULL","NULL","F","NULL","NULL","NULL","NULL","NULL","F","NULL","NULL","NULL","NULL","NULL","F","NULL","NULL","NULL","NULL","NULL","F","NULL","NULL","NULL","NULL","NULL","F","NULL","NULL","NULL","NULL","NULL","F","NULL","NULL","NULL","NULL","NULL","F","NULL","NULL","NULL","NULL","NULL","F","NULL","NULL","NULL","NULL","NULL","F","NULL","NULL","NULL","NULL","NULL","F","NULL","NULL","NULL","NULL","NULL","F","NULL","NULL","NULL",45688.119577430552,45688.119577430552]
[19930,"Yes","Prescriptive","BFTSLG15","Bath Fan - two-speed, >90 cfm, >=5 cfm/W,  >=15 cfm/W","Ventilation","HVAC","ELE","N/A",1019,269,2,6598,"OR","NBE","New Buildings","2025-01-01","2027-12-31","Units",0,0,136.31,0,0,0,"Res Other","None - gas",0,30,0,19,0,69.12,0,0,0,1,1,0,"NULL",100,100,"NULL","NULL","NULL","NULL","NULL","NULL","NULL","NULL","NULL","NULL","NULL","NULL","NULL","No Attributes ","NULL","NULL","F","NULL","NULL","NULL","NULL","NULL","F","NULL","NULL","NULL","NULL","NULL","F","NULL","NULL","NULL","NULL","NULL","F","NULL","NULL","NULL","NULL","NULL","F","NULL","NULL","NULL","NULL","NULL","F","NULL","NULL","NULL","NULL","NULL","F","NULL","NULL","NULL","NULL","NULL","F","NULL","NULL","NULL","NULL","NULL","F","NULL","NULL","NULL","NULL","NULL","F","NULL","NULL","NULL","NULL","NULL","F","NULL","NULL","NULL","NULL","NULL","F","NULL","NULL","NULL","NULL","NULL","F","NULL","NULL","NULL","NULL","NULL","F","NULL","NULL","NULL","NULL","NULL","F","NULL","NULL","NULL","NULL","NULL","F","NULL","NULL","NULL","NULL","NULL","F","NULL","NULL","NULL",45688.119577430552,45688.119577430552]
[19943,"Yes","Prescriptive","BFSS5","Bath Fan - Continuous single speed, <10 cfm/W","Ventilation","HVAC","ELE","N/A",1019,269,2,6590,"OR","NBE","New Buildings","2025-01-01","2027-12-31","Units",0,0,68.83,0,0,0,"Res Other","None - gas",0,15,0,19,0,38.630000000000003,0,0,0,1,1,0,"NULL",100,100,"NULL","NULL","NULL","NULL","NULL","NULL","NULL","NULL","NULL","NULL","NULL","NULL","NULL","No Attributes ","NULL","NULL","F","NULL","NULL","NULL","NULL","NULL","F","NULL","NULL","NULL","NULL","NULL","F","NULL","NULL","NULL","NULL","NULL","F","NULL","NULL","NULL","NULL","NULL","F","NULL","NULL","NULL","NULL","NULL","F","NULL","NULL","NULL","NULL","NULL","F","NULL","NULL","NULL","NULL","NULL","F","NULL","NULL","NULL","NULL","NULL","F","NULL","NULL","NULL","NULL","NULL","F","NULL","NULL","NULL","NULL","NULL","F","NULL","NULL","NULL","NULL","NULL","F","NULL","NULL","NULL","NULL","NULL","F","NULL","NULL","NULL","NULL","NULL","F","NULL","NULL","NULL","NULL","NULL","F","NULL","NULL","NULL","NULL","NULL","F","NULL","NULL","NULL","NULL","NULL","F","NULL","NULL","NULL",45688.119577430552,45688.119577430552]
[19954,"Yes","Prescriptive","HISPDDRWLKINCOOLR","Replacement and New High-Speed Door on Walk-In Cooler","C&I Refrigeration","Refrigeration","ELE","N/A",1005,301,1,6376,"OR","NBE","New Buildings","2025-01-01","2027-12-31","Units",0,0,27219.95,0,761,0,"Grocery Refrigeration","None - gas",0,11000,0,15,0,11606,0,0,0,1,1,0,"NULL",100,100,"NULL","NULL","NULL","NULL","NULL","NULL","NULL","NULL","NULL","NULL","NULL","NULL","NULL","No Attributes ","NULL","NULL","F","NULL","NULL","NULL","NULL","NULL","F","NULL","NULL","NULL","NULL","NULL","F","NULL","NULL","NULL","NULL","NULL","F","NULL","NULL","NULL","NULL","NULL","F","NULL","NULL","NULL","NULL","NULL","F","NULL","NULL","NULL","NULL","NULL","F","NULL","NULL","NULL","NULL","NULL","F","NULL","NULL","NULL","NULL","NULL","F","NULL","NULL","NULL","NULL","NULL","F","NULL","NULL","NULL","NULL","NULL","F","NULL","NULL","NULL","NULL","NULL","F","NULL","NULL","NULL","NULL","NULL","F","NULL","NULL","NULL","NULL","NULL","F","NULL","NULL","NULL","NULL","NULL","F","NULL","NULL","NULL","NULL","NULL","F","NULL","NULL","NULL","NULL","NULL","F","NULL","NULL","NULL",45692.11520104167,45692.11520104167]
[19955,"Yes","Prescriptive","HISPDDRWLKINFRZEH","Replacement and New High-Speed Door on Walk-In Freezer-Ele Heat","C&I Refrigeration","Refrigeration","ELE","N/A",1005,301,1,6378,"OR","NBE","New Buildings","2025-01-01","2027-12-31","Units",0,0,165200.91,0,761,0,"Grocery Refrigeration","None - gas",0,14000,0,15,0,14606,0,0,0,1,1,0,"NULL",100,100,"NULL","NULL","NULL","NULL","NULL","NULL","NULL","NULL","NULL","NULL","NULL","NULL","NULL","No Attributes ","NULL","NULL","F","NULL","NULL","NULL","NULL","NULL","F","NULL","NULL","NULL","NULL","NULL","F","NULL","NULL","NULL","NULL","NULL","F","NULL","NULL","NULL","NULL","NULL","F","NULL","NULL","NULL","NULL","NULL","F","NULL","NULL","NULL","NULL","NULL","F","NULL","NULL","NULL","NULL","NULL","F","NULL","NULL","NULL","NULL","NULL","F","NULL","NULL","NULL","NULL","NULL","F","NULL","NULL","NULL","NULL","NULL","F","NULL","NULL","NULL","NULL","NULL","F","NULL","NULL","NULL","NULL","NULL","F","NULL","NULL","NULL","NULL","NULL","F","NULL","NULL","NULL","NULL","NULL","F","NULL","NULL","NULL","NULL","NULL","F","NULL","NULL","NULL","NULL","NULL","F","NULL","NULL","NULL",45692.11520104167,45692.11520104167]
[19956,"Yes","Prescriptive","HISPDDRWLKINFRZHP","Replacement and New High-Speed Door on Walk-In Freezer-HP Heat","C&I Refrigeration","Refrigeration","ELE","N/A",1005,301,1,6380,"OR","NBE","New Buildings","2025-01-01","2027-12-31","Units",0,0,165041.93,0,761,0,"Grocery Refrigeration","None - gas",0,14000,0,15,0,14606,0,0,0,1,1,0,"NULL",100,100,"NULL","NULL","NULL","NULL","NULL","NULL","NULL","NULL","NULL","NULL","NULL","NULL","NULL","No Attributes ","NULL","NULL","F","NULL","NULL","NULL","NULL","NULL","F","NULL","NULL","NULL","NULL","NULL","F","NULL","NULL","NULL","NULL","NULL","F","NULL","NULL","NULL","NULL","NULL","F","NULL","NULL","NULL","NULL","NULL","F","NULL","NULL","NULL","NULL","NULL","F","NULL","NULL","NULL","NULL","NULL","F","NULL","NULL","NULL","NULL","NULL","F","NULL","NULL","NULL","NULL","NULL","F","NULL","NULL","NULL","NULL","NULL","F","NULL","NULL","NULL","NULL","NULL","F","NULL","NULL","NULL","NULL","NULL","F","NULL","NULL","NULL","NULL","NULL","F","NULL","NULL","NULL","NULL","NULL","F","NULL","NULL","NULL","NULL","NULL","F","NULL","NULL","NULL","NULL","NULL","F","NULL","NULL","NULL",45692.11520104167,45692.11520104167]
[19957,"Yes","Prescriptive","HISPDDRWLKINFRZGHET","Replacement and New High-Speed Door on Walk-In Freezer-Gas H-EOT","C&I Refrigeration","Refrigeration","ELE","N/A",1005,301,1,6384,"OR","NBE","New Buildings","2025-01-01","2027-12-31","Units",0,0,164893.92000000001,0,775.9,0,"Grocery Refrigeration","Com Heating",0,14000,0,15,0,14606,0,0,0,1,1,0,"NULL",100,100,"NULL","NULL","NULL","NULL","NULL","NULL","NULL","NULL","NULL","NULL","NULL","NULL","NULL","No Attributes ","NULL","NULL","F","NULL","NULL","NULL","NULL","NULL","F","NULL","NULL","NULL","NULL","NULL","F","NULL","NULL","NULL","NULL","NULL","F","NULL","NULL","NULL","NULL","NULL","F","NULL","NULL","NULL","NULL","NULL","F","NULL","NULL","NULL","NULL","NULL","F","NULL","NULL","NULL","NULL","NULL","F","NULL","NULL","NULL","NULL","NULL","F","NULL","NULL","NULL","NULL","NULL","F","NULL","NULL","NULL","NULL","NULL","F","NULL","NULL","NULL","NULL","NULL","F","NULL","NULL","NULL","NULL","NULL","F","NULL","NULL","NULL","NULL","NULL","F","NULL","NULL","NULL","NULL","NULL","F","NULL","NULL","NULL","NULL","NULL","F","NULL","NULL","NULL","NULL","NULL","F","NULL","NULL","NULL",45692.11520104167,45692.11520104167]
[19958,"Yes","Prescriptive","HISPDDRWLKINFRZGH","Replacement and New High-Speed Door on Walk-In Freezer-Gas H","C&I Refrigeration","Refrigeration","BOTH","N/A",1005,301,1,6382,"OR","NBE","New Buildings","2025-01-01","2027-12-31","Units",0,0,164893.92000000001,13.7,761,0,"Grocery Refrigeration","Com Heating",0,14000,0,15,0,14606,0,0,0,1,1,0,"NULL",100,100,"NULL","NULL","NULL","NULL","NULL","NULL","NULL","NULL","NULL","NULL","NULL","NULL","NULL","No Attributes ","NULL","NULL","F","NULL","NULL","NULL","NULL","NULL","F","NULL","NULL","NULL","NULL","NULL","F","NULL","NULL","NULL","NULL","NULL","F","NULL","NULL","NULL","NULL","NULL","F","NULL","NULL","NULL","NULL","NULL","F","NULL","NULL","NULL","NULL","NULL","F","NULL","NULL","NULL","NULL","NULL","F","NULL","NULL","NULL","NULL","NULL","F","NULL","NULL","NULL","NULL","NULL","F","NULL","NULL","NULL","NULL","NULL","F","NULL","NULL","NULL","NULL","NULL","F","NULL","NULL","NULL","NULL","NULL","F","NULL","NULL","NULL","NULL","NULL","F","NULL","NULL","NULL","NULL","NULL","F","NULL","NULL","NULL","NULL","NULL","F","NULL","NULL","NULL","NULL","NULL","F","NULL","NULL","NULL",45692.11520104167,45692.11520104167]

{"sheet":"Changelog","index":5,"n_rows":55,"n_cols":6,"rows_kept":55,"cut":false,"hidden":true,"merged":[[0,2,0,4],[1,2,1,4],[2,2,2,4],[3,2,3,4]]}
["Macro Name","Shortcut or button","Function"]
["FilterMeasures","Button located on Measure Totals tab","Filters the measure totals by column N (Quantity)."]
["Hide","Ctrl+h","Hides unused columns(only use on user facing application tabs)."]
["Unhide","Ctrl+o","Unhides columns."]
[]
["Date","Revision","Category","Fixed in Version","Notes","Initials"]
["2022-01-01","v.2022.1","New Version",null,"New 520S Released for 2022","JV"]
["2022-03-01","v2","Updates","v.2022.2","Climate Zones Updated on CZ HZ Tab","JV"]
["2022-03-01","v2","Updates","v.2022.2","Condensing Furnaces, updates to allow multiples","JV"]
["2022-03-01","v2","Updates","v.2022.2","Gas Steam Cooker Incentive cell updated to $2,000","JV"]
["2022-03-01","v2","Updates","v.2022.2","VRF Requirements updated with the heat recovery efficiency language ","JV"]
["2022-03-01","v2","Updates","v.2022.2","Dishwasher requirement updated to Energy Star 3.0","JV"]
["2022-03-01","v2","Updates","v.2022.2","Verifed and updated groupings","JV"]
["2022-03-01","v2","Updates","v.2022.2","Added conditional formatting for non-qualifying code years","JV"]
["2022-03-01","v2","Updates","v.2022.2","Condensing Boiler requirement for 2019 Code Year","JV"]
["2022-03-01","v2","Updates","v.2022.2","Added conditional formatting for kBtu/h on tankless water heaters","JV"]
[null,null,null,null,"Active Measures Updated"]
["2022-03-01","v2","Updates","v.2022.2","Default Incentive updated for MFCONDENSFURN91 in Column 6","JV"]
["2022-03-01","v2","Updates","v.2022.2","Updafte Import, Measure Totals, Measure Lookups, Active Measures tabs","JM"]
["2022-04-18","v2","Updates","v.2022.2","Added 2014 code program information option -- Boilers and Garage Ventilation only measures not available for 2014 code","JM"]
["2022-09-28","v2023.1","Updates",null,"COM and MF boiler removed","AM"]
["2022-09-28","v2023.1","Updates",null,"added hydronic heating circulators measure","AM"]
["2022-09-28","v2023.1","Updates",null,"updated incentives for tankless WH","AM"]
["2022-10-13","v2023.1","Updates",null,"updated incentives for hydronic heating circulators measure","AM"]
["2022-10-13","v2023.1","Updates",null,"removed MF condensing furnaces","JV"]
["2022-10-13","v2023.1","Updates",null,"removed evaporator motor","JV"]
["2022-10-13","v2023.1","Updates",null,"removed spa covers","JV"]
["2022-10-13","v2023.1","Updates",null,"added new minisplit heat pumpmeasure","JV"]
["2022-10-13","v2023.1","Updates",null,"Updated minisplit totals for 2023","JV"]
["2022-10-13","v2023.1","Updates",null,"Added language from marketing materials for further incentive opportunities","JV"]
["2022-10-13","v2023.1","Updates",null,"updated MF Condensing Tankless savings/incentives","JV"]
["2022-10-13","v2023.1","Updates",null,"Fixed product lookup for Residential Washers on MF tab","JV"]
["2022-10-13","v2023.1","Updates",null,"Updated single speed bath fan requirements on MF tab","JV"]
["2022-10-13","v2023.1","Updates",null,"Fixed product lookup for condensing tankless water heater > 200 on HVAC tab","JV"]
["2022-10-26","v2023.1","Updates",null,"Added MAD 284 VFDs as new tab","JV"]
["2022-10-26","v2023.1","Updates",null,"Added MAD 52 on Multifamily tab","JV"]
["2022-12-09","v2023.1","Updates",null,"Final cleanup and small formatting changes to last rows on tabs","JV"]
["2023-03-20","v2023.2","Updates",null,"Fixed equipment option for commercial air-source heat pump","AM"]
["2023-03-20","v2023.2","Updates",null,"Updated formulas for incentive totals on each tab","AM"]
["2023-03-20","v2023.2","Updates",null,"Updated measure lookup formulas with new product codes, catching errors","AM"]
["2023-03-20","v2023.2","Updates",null,"Updated footer with current mailing address and form version","AM"]
["2023-03-27","v2023.2","Updates",null,"Updated electric oven incentive and measures with Energy Star v3.0 new product requests","AM"]
["2023-05-17","v2023.2","Updates",null,"Update formula in HVAC tab to remove duplicate error","AM"]
["2023-08-29","v2023.3","Updates",null,"adding double rack gas oven measure (MAD 101)","AM"]
["2023-09-27","v2024.1","Updates",null,"Combined equipment options and updated formulas","JV"]
["2023-10-10","v2024.1","Updates",null,"Updated all measures for EOY changes, corrected broken formulas, updated all product codes.","AM"]
["2023-11-10","v2024.1","Updates",null,"Completed incentive updates, EOY changes, and review of requirements, review requirements, and SV notes","JV"]
["2024-01-03","v2024.1","Updates",null,"Updating active measures for 2024","JV/AM"]
["2024-01-04","v2024.1","Updates",null,"Added electric hot food holding cabinets, protected workbook for use","JV/AM"]
["2024-06-12","v2024.2","Updates",null,"Updating footer, ","AM"]
["2024-06-14","v2024.2","Updates",null,"Updating formula in DCV measure.","AM"]
["2024-08-14","v2024.3","Updates",null,"fixed formula in Commercial Clothes Washer w/ Dryer tab","AM"]
["2024-10-10","v2025.1","New Version",null,"updated formatting for 2025, each product code is separated into its own line on the equipment options tab","AM"]
["2024-10-10","v2025.1","New Version",null,"adding and updating incentives for EOY changes","AM"]
["2024-10-17","v2025.1","New Version",null,"Added new Measure Totals tab","EB"]